Workbook

Sheet Chart Index (hidden)
A7: Preview | B7: Sheet (and graph link) | C7: Chart Title | D7: Chart Series
B8: طراحی همه الگوها | C8: رسم دستی چادر2 | D8: انحنا, صاف
B9: طراحی همه الگوها | C9: رسم دستی چادر 3 | D9: انحنا, صاف
B10: طراحی همه الگوها | C10: رسم دستی چادر 5 | D10: انحنا, صاف
B11: طراحی همه الگوها | C11: طراحی چادرها و رسم چادر 4 | D11: شبیه ساز دست خمیده و سر, شبیه ساز دامن, رسم یا طراحی چادر4
B12: طراحی همه الگوها | C12: چادر1 و مقنعه برای پرینت | D12: شبیه ساز دست خمیده و سر, شبیه ساز دامن, چادر 1 با نقطه گذاری
B13: طراحی همه الگوها | C13: شلوار پشت | D13: 1شبیه ساز, 2کمر شلوار, 3وسط شلوار و خط اتو, 4پهلو, 6فاق, 7لبه پایین, 9کمر جدا, اطلاعات اندام در شلوار
B14: طراحی همه الگوها | C14: طراحی پشت یقه | D14: شبیه ساز برش, شبیه ساز انحنا, طراحی یقه گرد
B15: طراحی همه الگوها | C15: طراحی جلو یقه | D15: شبیه ساز اندام, طراحی یقه شکاری
B16: طراحی همه الگوها | C16: شلوار جلو | D16: 1شبیه ساز جلو, 2کمر شلوار, 3وسط شلوار, 4پهلو, 6فاق, 7لبه پایین شلوار, 8زیپ, 9کمر جدا, 10جیب مردانه, 11جیب جین, اطلاعات اندام در شلوار
B17: طراحی همه الگوها | C17: طراحی جلو دامن ترک با کمر پهن | D17: شبیه ساز دامن تنگ, کمر پهن, خط مرکزی جلو کمر, خطوط اصلی دامن ترک, خطوط فرعی دامن ترک, خط اوزمان, پیلی
B18: طراحی همه الگوها | C18: طراحی پشت دامن ترک با کمر پهن | D18: شبیه ساز دامن تنگ, کمر یکسره, خطوط اصلی دامن ترک, خطوط فرعی دامن ترک, پیلی
B19: طراحی همه الگوها | C19: آستین | D19: شبیه ساز آستین, آستین بلند یا کوتاه, مچ آستین بلند یا کوتاه
B20: طراحی همه الگوها | C20: الگو پشت | D20: 0 اطلاعات اندام, 72شبیه ساز بالاتنه بدون ساسون, 2شبیه ساز دامن, 5حلقه آستین بدون ساسون, 6سرشانه بدون ساسون, 10پهلو صاف وپایین لباس, 17یقه گرد , 18خط پشت در پیراهن, 24بدون شیفت ساسون کمر
B21: طراحی همه الگوها | C21: یقه و کلاه | D21: شومیزیه
B22: طراحی همه الگوها | C22: الگو جلو | D22: 0اطلاعات اندام, 1شبیه ساز بالاتنه, 2شبیه ساز دامن, 6حلقه آستین بدون ساسون , 7سرشانه بدون ساسون, 11پهلو صاف , 22یقه گرد چرخیده, 23جادکمه یقه گرد در پیراهن, 29پایین پیراهن بدون ترک, 70ساسون کمر, 76جادکمه متصل به یقه

Sheet محاسبات (hidden)
A1: height_print | B1: 29.49565508
A2: width_print | B2: 28.05231805
A3: charts_resized | B3: 1
A4: print_body_chartS
A5: ActiveWindow.Zoom | B5: 15
A6: per_font_size_chart | B6: 0.8
A7: ChartFieldRange( باید خالی باشد )
A8: show_temp_print_sheet | B8: 0
A9: per_line_size_chart | F9: نقاط ورودی | J9: رسم چادر شماره 1 و مقنعه چانه دار | N9: نقاط ورودی | R9: رسم مقنعه دراپه | V9: رسم دستی چادر 2 (بر حسب سانتیمتر) | Y9: رسم چادر شماره 2 | AG9: نقاط ورودی | AK9: طراحی چادر شماره 2 | AS9: طراحی چادر شماره 3 | AW9: رسم دستی چادر 3 (بر حسب سانتیمتر) | AZ9: رسم چادر شماره 3 | BH9: رسم دستی چادر 4 | BN9: رسم و طراحی چادر شماره 4 | BZ9: رسم چادر شماره 5 | CH9: طراحی چادر شماره 5 | CL9: طراحی چادر شماره 5 | CU9: پروسیجر یافتن راس سوم مثلث با داشتن دو راس و دو ضلع | DA9: پروسیجر چرخش یک نقطه حول نقطه دیگر | DG9: کامل شده
F10: مولفه افقی | G10: مولفه عمودی | H10: اسم نقطه | J10: مولفه افقی | K10: مولفه عمودی | L10: اسم نقطه | N10: مولفه افقی | O10: مولفه عمودی | P10: اسم نقطه | R10: مولفه افقی | S10: مولفه عمودی | T10: اسم نقطه | Z10: صاف | AD10: انحنا | AG10: اسم نقطه | AH10: مولفه افقی | AI10: مولفه عمودی | AK10: =AH21 -> 5 | AL10: 167.483949 | AM10: s6 | AO10: طراحی چادر شماره 3 | AS10: =AP12 -> 5 | AT10: 167.483949 | AU10: s'6 | BA10: صاف | BE10: انحنا | BN10: رسم دستی چادر4 با نقطه گذاری | BS10: خطوط پرینت الگو یا طراحی چادر4 | BV10: رسم دستی چادر 5 (بر حسب سانتیمتر) | CA10: صاف | CE10: انحنا | CH10: اسم نقطه | CI10: مولفه افقی | CJ10: مولفه عمودی | CL10: =CI14 -> 5 | CM10: =CJ14 -> 167.483949 | CN10: s'6 | CW10: اطلاعات ورودی | DA10: رادیان | DB10: =-#REF! ->  | DC10: زاویه چرخش | DD10: چرخش مخالف عقربه های ساعت
F11: =AO406 -> 5 | G11: =AP406 -> 166.983 | H11: شبیه ساز s15 | J11: =F36 -> 88.3 | K11: =G36 -> 171.9 | L11: j5 | N11: =AO404 -> 5 | O11: =AP404 -> 148.428 | P11: شبیه ساز s5 | R11: =N24 -> 5 | S11: =O24 -> 92.5605 | T11: d6 | Y11: =W35+'طراحی همه الگوها'!U190 -> 15.3 | Z11: =Z12 -> 0 | AA11: 5 | AC11: =Y15 -> 15.3 | AD11: =Z15 -> 27.7 | AE11: 11 | AG11: s2 | AH11: =AO401 -> 10.065704 | AI11: =AP401 -> 163.1755875 | AK11: 12.09074782 | AL11: 165.3741171 | AM11: s7 | AO11: اسم نقطه | AP11: مولفه افقی | AQ11: مولفه عمودی | AS11: 11.77107371 | AT11: 164.4541922 | AU11: s'7 | AZ11: =W35 -> 0 | BA11: ='طراحی همه الگوها'!U210+AX33 -> 166.9 | BB11: 1 | BD11: =AZ30 -> 179.3 | BE11: =BA30 -> 166.9 | BF11: 11 | BN11: =BJ29 -> 5 | BO11: =BK30 -> -7.4 | BP11: 2 | BR11: =BJ30 -> -4.4 | BS11: =BK30 -> -7.4 | BT11: 3 | BZ11: =BZ15-'طراحی همه الگوها'!U274 -> 68.3 | CA11: =CA15 -> 95.5 | CB11: خط پهلو | CD11: =BZ30 -> 102.6 | CE11: =CA30 -> 106.4 | CF11: 13 | CH11: s1 | CI11: =AO400 -> 5 | CJ11: =AP400 -> 165.045 | CL11: 13.14034079 | CM11: 164.562026 | CN11: s''7 | CU11: اسم نقطه | CV11: مولفه افقی | CW11: مولفه عمودی | DA11: مولفه افقی | DB11: مولفه عمودی | DC11: اسم نقطه | DE11: نقطه خروجی چرخیده
G12: ='متغیرها '!C52 -> 5 | H12: شیفت عمودی | J12: =F33 -> 5 | K12: =G33 -> 171.9 | L12: j1 | N12: =F34 -> 5 | O12: =G34 -> 101 | P12: j2 | R12: =N22 -> 5 | S12: =O22 -> 182.7855 | T12: d3 | Y12: =W35 -> 0 | Z12: =O33 -> 0 | AA12: 2 | AC12: ='طراحی همه الگوها'!U190+'طراحی همه الگوها'!U199 -> 36.4 | AD12: =Z12+'طراحی همه الگوها'!U201 -> 30.6 | AE12: 17 | AG12: s3 | AH12: =AO402 -> 12.23672 | AI12: =AP402 -> 157.56735 | AK12: 28.63582606 | AL12: 149.9020166 | AM12: s8 | AO12: s'6 | AP12: =AH14 -> 5 | AQ12: =1.003*AI14 -> 167.483949 | AS12: 27.57024571 | AT12: 143.2458946 | AU12: s'8 | AZ12: =W35 -> 0 | BA12: =BA11-'طراحی همه الگوها'!U212 -> 91.7 | BB12: 4 | BD12: =BD13+0.7*(BD11-BD13) -> 177.35 | BE12: =BE13+0.4*(BE11-BE13) -> 141.22 | BF12: 13' | BN12: =BJ29 -> 5 | BO12: =BK29 -> 171.9 | BP12: 1 | BR12: =BJ32 -> 10.87903188 | BS12: =BK32 -> -8.200740131 | BT12: 6 | CD12: =CD11+0.45*(CD15-CD11) -> 113.355 | CE12: =CE11+0.25*(CE15-CE11) -> 134.05 | CF12: 13' | CH12: s3 | CI12: =AO402 -> 12.23672 | CJ12: =AP402 -> 157.56735 | CL12: 26.70757544 | CM12: 144.1085649 | CN12: s''8 | CT12: راس پایین | CU12: منهای شیفتa50 | CV12: =BL37 -> 87.15255963 | CW12: =BM37 -> 0 | CX12: ضلع پایین | CY12: =BT25 -> 8 | DA12: =#REF! ->  | DB12: =#REF! ->  | DC12: a40 | DD12: نقطه مرکزی چرخش | DE12: مولفه افقی | DF12: مولفه عمودی | DG12: اسم نقطه
F13: دور سر | G13: ='متغیرها '!U85 -> 59 | H13: w12 | O13: =G19 -> 161 | P13: تمام قد | Y13: =W35 -> 0 | Z13: ='طراحی همه الگوها'!U188+O33 -> 175.2 | AA13: 1 | AC13: =Y19 -> 57.5 | AD13: =Z19 -> 36.1 | AE13: 10 | AG13: خط سینه | AH13: =BG400 -> 5 | AI13: =BH400 -> 120.2 | AK13: 46.3626956 | AL13: 139.3528572 | AM13: s9 | AO13: s'7 | AP13: =AP12+0.12*(AP16-AP12) -> 11.77107371 | AQ13: =AQ16+0.95*(AQ12-AQ16) -> 164.4541922 | AS13: 44.49793 | AT13: 125.0673538 | AU13: s'9 | AZ13: =W35 -> 0 | BA13: =AX33 -> 0 | BB13: 2 | BD13: =AZ29-'طراحی همه الگوها'!U220 -> 172.8 | BE13: =BA29 -> 124.1 | BF13: 13 | BZ13: 0 | CA13: =BW42 -> 0 | CB13: 1 | CD13: =CD11+0.75*(CD15-CD11) -> 120.525 | CE13: =CE11+0.5*(CE15-CE11) -> 161.7 | CF13: 28 | CH13: s5 | CI13: =AO404 -> 5 | CJ13: =AP404 -> 148.428 | CL13: 42.98825702 | CM13: 125.4082576 | CN13: s''9 | CT13: راس بالا | CU13: منهای شیفتe18 | CV13: =BV27-BQ21 -> 0 | CW13: =BW27 -> 0 | CX13: ضلع بالا | CY13: =BT26 -> 0 | DA13: =#REF!-#REF!+#REF! ->  | DB13: =#REF! ->  | DC13: a48-b16+f22 | DD13: نقطه قبل از چرخش | DE13: =IF(DB13>DB12,IF(DA13>DA12,DA12+SQRT(POWER(DA13-DA12,2)+POWER(DB13-DB12,2))*COS(ATAN((DB13-DB12)/(DA13-DA12+0.000123))+DB10),DA12-SQRT(POWER(DA13-DA12,2)+POWER(DB13-DB12,2))*COS(ATAN((DB13-DB12)/(DA12-DA13+0.000123))-DB10)),IF(DA13>DA12,DA12+SQRT(POWER(DA13-DA12,2)+POWER(DB13-DB12,2))*COS(ATAN((DB12-DB13)/(DA13-DA12+0.000123))-DB10),DA12-SQRT(POWER(DA13-DA12,2)+POWER(DB13-DB12,2))*COS(ATAN((DB12-DB13)/(DA12-DA13+0.000123))+DB10))) ->  | DF13: =IF(DB13>DB12,IF(DA13>DA12,DB12+SQRT(POWER(DA13-DA12,2)+POWER(DB13-DB12,2))*SIN(ATAN((DB13-DB12)/(DA13-DA12+0.000123))+DB10),DB12+SQRT(POWER(DA13-DA12,2)+POWER(DB13-DB12,2))*SIN(ATAN((DB13-DB12)/(DA12-DA13+0.000123))-DB10)),IF(DA13>DA12,DB12-SQRT(POWER(DA13-DA12,2)+POWER(DB13-DB12,2))*SIN(ATAN((DB12-DB13)/(DA13-DA12+0.000123))-DB10),DB12-SQRT(POWER(DA13-DA12,2)+POWER(DB13-DB12,2))*SIN(ATAN((DB12-DB13)/(DA12-DA13+0.000123))+DB10))) ->  | DG13: e52
G14: ='متغیرها '!U76 -> 89 | H14: t3 | J14: =F33 -> 5 | K14: =G33 -> 171.9 | L14: j1 | O14: ='متغیرها '!C52 -> 5 | P14: شیفت عمودی | R14: =N22 -> 5 | S14: =O22 -> 182.7855 | T14: d3 | Y14: =W35+'طراحی همه الگوها'!U190 -> 15.3 | Z14: =Z13 -> 175.2 | AA14: 4 | AC14: ='طراحی همه الگوها'!U190+'طراحی همه الگوها'!U192+'طراحی همه الگوها'!U202 -> 68.2 | AD14: =Z12+'طراحی همه الگوها'!U204 -> 34.6 | AE14: 20 | AG14: s15 | AH14: =AO406 -> 5 | AI14: =AP406 -> 166.983 | AK14: 64.08956515 | AL14: 132.3200843 | AM14: s10 | AO14: s'8 | AP14: =AP12+0.4*(AP16-AP12) -> 27.57024571 | AQ14: =AQ16+0.6*(AQ12-AQ16) -> 143.2458946 | AS14: 61.42561428 | AT14: 106.888813 | AU14: s'10 | AZ14: =W35+'طراحی همه الگوها'!U216 -> 110 | BA14: =BA13 -> 0 | BB14: 8 | BN14: =BJ31 -> 13.7 | BO14: =BK31 -> 5 | BP14: 5 | BR14: =BJ32 -> 10.87903188 | BS14: =BK32 -> -8.200740131 | BT14: 6 | BZ14: =BZ13+'طراحی همه الگوها'!U249 -> 94.5 | CA14: =CA13 -> 0 | CB14: 2 | CD14: =CD11+0.95*(CD15-CD11) -> 125.305 | CE14: =CE11+0.8*(CE15-CE11) -> 194.88 | CF14: 13''' | CH14: s'6 | CI14: =AP12 -> 5 | CJ14: =AQ12 -> 167.483949 | CL14: 59.2689386 | CM14: 109.0454887 | CN14: s''10 | CT14: c19 | CU14: =ATAN((CV13-CV12)/(CW13-CW12)) ->  | CW14: محاسبات
G15: ='متغیرها '!U56 -> 95.5 | H15: e | J15: =F34 -> 5 | K15: =G34 -> 101 | L15: j2 | N15: محاسبات | R15: =N23 -> 81.895 | S15: =O23 -> 105.8905 | T15: d4 | Y15: =W35+'طراحی همه الگوها'!U190 -> 15.3 | Z15: =Z12+'طراحی همه الگوها'!U195 -> 27.7 | AA15: 11 | AC15: =Y23 -> 78.8 | AD15: =Z23 -> 28.458 | AE15: 7 | AG15: زاویه متوسط سرشانه | AH15: ='متغیرها '!B245 -> 0.2782010298 | AI15: α2 | AO15: s'9 | AP15: =AP12+0.7*(AP16-AP12) -> 44.49793 | AQ15: =AQ16+0.3*(AQ12-AQ16) -> 125.0673538 | AZ15: =AZ14 -> 110 | BA15: =BA14+'طراحی همه الگوها'!U221 -> 6.5 | BB15: 14 | BD15: =AZ13 -> 0 | BE15: =BA13 -> 0 | BF15: 2 | BN15: =BJ29 -> 5 | BO15: =BK31 -> 5 | BP15: 4 | BR15: =BR14+0.3*(BR17-BR14) -> 29.21946064 | BS15: =BS14+0.05*(BS17-BS14) -> -7.127971267 | BT15: 6'' | BZ15: =BZ13+'طراحی همه الگوها'!U249 -> 94.5 | CA15: =CA13+'طراحی همه الگوها'!U251 -> 95.5 | CB15: 4 | CD15: =BZ34 -> 126.5 | CE15: =CA34 -> 217 | CF15: 15 | CH15: s''7 | CI15: =CI14+0.15*(CI18-CI14) -> 13.14034079 | CJ15: =CJ18+0.95*(CJ14-CJ18) -> 164.562026 | CL15: 67.89564133 | CM15: 100.418786 | CN15: k4 شبیه ساز | CU15: درجه α | CV15: x | CW15: y | CX15: c21 | CY15: c'17 | DB15: به دست آوردن نقطه تقاطع دو خط | DC15: مولفه افقی | DD15: مولفه عمودی
G16: ='متغیرها '!U58 -> 96.5 | H16: g | N16: (d1 → d2) | O16: =0.45*'متغیرها '!U85 -> 26.55 | Y16: =W35+'طراحی همه الگوها'!U190 -> 15.3 | Z16: =Z12 -> 0 | AA16: 5 | AG16: دست صاف شبیه ساز k4 | AH16: =F406 -> 83.41674102 | AI16: =J406 -> 126.8000958 | AK16: =AH26 -> 57.69077254 | AL16: =AI26 -> 109.9159451 | AM16: s12 | AO16: s'10 | AP16: =AX39-('متغیرها '!C19*'متغیرها '!U83)*COS(AH15+RADIANS(AX38)) -> 61.42561428 | AQ16: =AY39+('متغیرها '!C19*'متغیرها '!U83)*SIN(AH15+RADIANS(AX38)) -> 106.888813 | AS16: =AP18 -> 47.7784534 | AT16: 93.24165216 | AU16: s'12 | AZ16: =W35+'طراحی همه الگوها'!U216 -> 110 | BA16: =BA13+'طراحی همه الگوها'!U217 -> 69.3 | BB16: 9 | BD16: =BD15+0.3*(BD18-BD15) -> 18.336 | BE16: =BE15+0.15*(BE18-BE15) -> 2.31 | BF16: 16' | BN16: =BJ29 -> 5 | BO16: =BK30 -> -7.4 | BP16: 2 | BR16: =BR14+0.7*(BR17-BR14) -> 53.67336566 | BS16: =BS14+0.4*(BS17-BS14) -> 0.3814107782 | BT16: 6''' | BZ16: =BZ13+'طراحی همه الگوها'!U249-'طراحی همه الگوها'!U255 -> 84 | CA16: =CA15 -> 95.5 | CB16: 8 | CH16: s''8 | CI16: =CI14+0.4*(CI18-CI14) -> 26.70757544 | CJ16: =CJ18+0.6*(CJ14-CJ18) -> 144.1085649 | CU16: 2 | CV16: =CV12+CY12*SIN(RADIANS(CU16)+CU14) ->  | CW16: =CW12+CY12*COS(RADIANS(CU16)+CU14) ->  | CX16: =IF(CV13>CV16,ATAN((CW13-CW16)/(CV13-CV16)),ATAN((CW13-CW16)/(CV16-CV13))) ->  | CY16: =IF(CV13>CV16,(CV13-CV16)/COS(CX16),(CV16-CV13)/COS(CX16)) ->  | DA16: نقطه اول از خط اول | DB16: f5 | DC16: =#REF! ->  | DD16: =#REF! -> 
F17: محاسبات | J17: =F34 -> 5 | K17: =G34 -> 101 | L17: j2 | N17: (d1 →d4) | O17: ='طراحی همه الگوها'!U178+'طراحی همه الگوها'!U177 -> 83.3 | R17: =N28 -> 5 | S17: =O28 -> 98.827075 | T17: j'2 | Y17: =Y16+'طراحی همه الگوها'!U192 -> 57.5 | Z17: =Z12 -> 0 | AA17: 8 | AC17: =Y16 -> 15.3 | AD17: =Z16 -> 0 | AE17: 5 | AG17: شبیه ساز 26 | AH17: =BK388 -> 5 | AI17: =BL388 -> 136.9993124 | AK17: =AK16+0.25*(AK19-AK16) -> 62.30557941 | AL17: =AL19+0.5*(AL16-AL19) -> 57.45797254 | AM17: s12' | AO17: s'11 | AP17: =AP27-'طراحی همه الگوها'!U226*SIN(AH15+RADIANS(AX38)) -> 55.09700859 | AQ17: =AQ27-'طراحی همه الگوها'!U226*COS(AH15+RADIANS(AX38)) -> 87.62015325 | AS17: 57.86491738 | AT17: 49.12082608 | AU17: s''13 | AZ17: =AZ24 -> 67.5 | BA17: =BA12+'طراحی همه الگوها'!U215 -> 96.7 | BB17: 7 | BD17: =W35+'طراحی همه الگوها'!U227 -> 36.672 | BE17: =BE15+'طراحی همه الگوها'!U228 -> 6.9 | BF17: 22 | BN17: =BJ30 -> -4.4 | BO17: =BK30 -> -7.4 | BP17: 3 | BR17: =BJ34 -> 72.01379442 | BS17: =BK34 -> 13.25463714 | BT17: 8 | BZ17: =BZ13 -> 0 | CA17: =CA15 -> 95.5 | CB17: 3 | CD17: =BZ32 -> 0 | CE17: =CA32 -> 119.8 | CF17: 18 | CH17: s''9 | CI17: =CI14+0.7*(CI18-CI14) -> 42.98825702 | CJ17: =CJ18+0.28*(CJ14-CJ18) -> 125.4082576 | CL17: =CI19 -> 67.89564133 | CM17: 100.418786 | CN17: k4 شبیه ساز | CU17: 4 | CV17: =CV12+CY12*SIN(RADIANS(CU17)+CU14) ->  | CW17: =CW12+CY12*COS(RADIANS(CU17)+CU14) ->  | CX17: =IF(CV13>CV17,ATAN((CW13-CW17)/(CV13-CV17)),ATAN((CW13-CW17)/(CV17-CV13))) ->  | CY17: =IF(CV13>CV17,(CV13-CV17)/COS(CX17),(CV17-CV13)/COS(CX17)) ->  | DA17: نقطه دوم از خط اول | DB17: f6 | DC17: =#REF! ->  | DD17: =#REF! -> 
F18: قد سرشانه تا زمین | G18: =0.5*(G14+G15+G16) -> 140.5 | J18: =F44 -> 17.4 | K18: =G44 -> 101 | L18: j13 | N18: (d5 →d6) | O18: =5+0.1*O17 -> 13.33 | Y18: =Y16+'طراحی همه الگوها'!U192 -> 57.5 | Z18: =Z12+'طراحی همه الگوها'!U193 -> 14.2 | AA18: 9 | AC18: ='طراحی همه الگوها'!U190+'طراحی همه الگوها'!U199 -> 36.4 | AD18: =Z12+'طراحی همه الگوها'!U200 -> 5 | AE18: 16 | AK18: =AK16+0.6*(AK19-AK16) -> 68.76630902 | AL18: =AL19+0.2*(AL16-AL19) -> 25.98318902 | AM18: s12'' | AO18: s'12 | AP18: =AP16-'طراحی همه الگوها'!U225*SIN(AH15+RADIANS(AX38)) -> 47.7784534 | AQ18: =AQ16-'طراحی همه الگوها'!U225*COS(AH15+RADIANS(AX38)) -> 93.24165216 | AS18: 66.27030403 | AT18: 27.06041304 | AU18: s'''13 | AZ18: =W35+'طراحی همه الگوها'!U216 -> 110 | BA18: =BA16+'طراحی همه الگوها'!U218 -> 124.1 | BB18: 10 | BD18: =W35+'طراحی همه الگوها'!U222 -> 61.12 | BE18: =BA13+'طراحی همه الگوها'!U223 -> 15.4 | BF18: 16 | BZ18: =BZ13 -> 0 | CA18: =CA17-'طراحی همه الگوها'!U252 -> 82.1 | CB18: 5 | CD18: =CD17+'طراحی همه الگوها'!U268 -> 25.3 | CE18: =CA31+'طراحی همه الگوها'!U269 -> 120.9 | CF18: 24 | CH18: s''10 | CI18: =AX39-0.2*'متغیرها '!U83*COS(AH15+RADIANS(AX38)) -> 59.2689386 | CJ18: =AY39+0.2*'متغیرها '!U83*SIN(AH15+RADIANS(AX38)) -> 109.0454887 | CL18: 56.15616077 | CM18: 74.42972209 | CN18: s''11 | CU18: 6 | CV18: =CV12+CY12*SIN(RADIANS(CU18)+CU14) ->  | CW18: =CW12+CY12*COS(RADIANS(CU18)+CU14) ->  | CX18: =IF(CV13>CV18,ATAN((CW13-CW18)/(CV13-CV18)),ATAN((CW13-CW18)/(CV18-CV13))) ->  | CY18: =IF(CV13>CV18,(CV13-CV18)/COS(CX18),(CV18-CV13)/COS(CX18)) ->  | DA18: نقطه اول از خط دوم | DB18: f7 | DC18: =#REF! ->  | DD18: =#REF! -> 
F19: تمام قد | G19: =ROUND(G18+IF(G13>51.5,0.35,IF(G13>50.5,0.33,0.31))*G13,0) -> 161 | N19: نقاط خروجی در مقنعه دراپه | R19: =N21 -> 5 | S19: =O21 -> 145.35 | T19: d2 | Y19: =Y16+'طراحی همه الگوها'!U192 -> 57.5 | Z19: =Z12+'طراحی همه الگوها'!U194 -> 36.1 | AA19: 10 | AC19: =Y18 -> 57.5 | AD19: =Z18 -> 14.2 | AE19: 9 | AG19: طراحی چادر شماره 2 | AK19: =AH28 -> 76.15 | AL19: =AI28 -> 5 | AM19: s13 | AO19: s''13 | AP19: =AP18+0.3*(AP21-AP18) -> 57.86491738 | AQ19: =AQ21+0.5*(AQ18-AQ21) -> 49.12082608 | AS19: 81.4 | AT19: 5 | AU19: s'13 | AZ19: =W35+'طراحی همه الگوها'!U216 -> 110 | BA19: =BA16 -> 69.3 | BB19: 9 | BD19: =BD18+0.5*(BD20-BD18) -> 85.56 | BE19: =BE20+0.8*(BE18-BE20) -> 13.62 | BF19: 14' | BN19: =BJ29 -> 5 | BO19: =BK35 -> 108.2605649 | BP19: 13 | BR19: =BJ31 -> 13.7 | BS19: =BK31 -> 5 | BT19: 5 | BZ19: =BZ13 -> 0 | CA19: =CA13 -> 0 | CB19: 1 | CD19: =CD17+'طراحی همه الگوها'!U270 -> 50.6 | CE19: =CA31+'طراحی همه الگوها'!U271 -> 125.6 | CF19: 26 | CH19: k4 شبیه ساز | CI19: =K384 -> 67.89564133 | CJ19: =L384 -> 100.418786 | CL19: 32.67719966 | CM19: 53.63847097 | CN19: s'11 | CU19: 8 | CV19: =CV12+CY12*SIN(RADIANS(CU19)+CU14) ->  | CW19: =CW12+CY12*COS(RADIANS(CU19)+CU14) ->  | CX19: =IF(CV13>CV19,ATAN((CW13-CW19)/(CV13-CV19)),ATAN((CW13-CW19)/(CV19-CV13))) ->  | CY19: =IF(CV13>CV19,(CV13-CV19)/COS(CX19),(CV19-CV13)/COS(CX19)) ->  | DA19: نقطه دوم از خط دوم | DB19: f8 | DC19: =#REF! ->  | DD19: =#REF! -> 
F20: j4 | G20: =IF('متغیرها '!C5<1,'متغیرها '!C5*'متغیرها '!U59,IF('متغیرها '!C5<2,'متغیرها '!U59+('متغیرها '!C5-1)*('متغیرها '!U60-'متغیرها '!U59),IF('متغیرها '!C5<3,'متغیرها '!U60+('متغیرها '!C5-2)*(I105-'متغیرها '!U60),I105+('متغیرها '!C5-3)*(H127-H126)))) -> 96 | J20: =F43 -> 17.4 | K20: =G43 -> 163 | L20: j12 | N20: مولفه افقی | O20: مولفه عمودی | P20: اسم نقطه | AC20: ='طراحی همه الگوها'!U190+'طراحی همه الگوها'!U192+'طراحی همه الگوها'!U202 -> 68.2 | AD20: =Z12+'طراحی همه الگوها'!U203 -> 20.6 | AE20: 19 | AG20: اسم نقطه | AH20: مولفه افقی | AI20: مولفه عمودی | AO20: s'''13 | AP20: =AP18+0.55*(AP21-AP18) -> 66.27030403 | AQ20: =AQ21+0.25*(AQ18-AQ21) -> 27.06041304 | BD20: =AZ14 -> 110 | BE20: =BA14+'طراحی همه الگوها'!U221 -> 6.5 | BF20: 14 | BN20: =BJ35 -> 37.43446464 | BO20: =BK35 -> 108.2605649 | BP20: 9 | BR20: =BJ33 -> 25.38396556 | BS20: =BK33 -> 5.612330688 | BT20: 7 | CD20: =BZ37 -> 63.3 | CE20: =CA37 -> 130.3 | CF20: 17 | CH20: s''11 | CI20: =CI22+0.8*(CI19-CI22) -> 56.15616077 | CJ20: =CJ22+0.5*(CJ19-CJ22) -> 74.42972209 | CL20: 9.198238553 | CM20: 48.44065819 | CN20: s11 | CU20: 10 | CV20: =CV12+CY12*SIN(RADIANS(CU20)+CU14) ->  | CW20: =CW12+CY12*COS(RADIANS(CU20)+CU14) ->  | CX20: =IF(CV13>CV20,ATAN((CW13-CW20)/(CV13-CV20)),ATAN((CW13-CW20)/(CV20-CV13))) ->  | CY20: =IF(CV13>CV20,(CV13-CV20)/COS(CX20),(CV20-CV13)/COS(CX20)) ->  | DA20: نقطه تقاطع | DB20: f10 | DC20: =(DD18-DD16+DC16*((DD17-DD16)/(DC17-DC16+0.0001))-DC18*((DD19-DD18)/(DC19-DC18+0.0001)))/(((DD17-DD16)/(DC17-DC16+0.0001))-((DD19-DD18)/(DC19-DC18+0.0001))) ->  | DD20: =DD16+(DC20-DC16)*((DD17-DD16)/(DC17-DC16+0.0001)) -> 
F21: رسم دستی چادر 1 یا مقنعه چانه دار(بر حسب سانتیمتر) | J21: =F35 -> 17.4 | K21: =G35 -> 171.9 | L21: j3 | N21: =N11 -> 5 | O21: =O13+0.1*'متغیرها '!U85-O16+O14 -> 145.35 | P21: d2 | T21: انحنا | Y21: =Y16+'طراحی همه الگوها'!U192 -> 57.5 | Z21: =Z12 -> 0 | AA21: 8 | AC21: =Y23 -> 78.8 | AD21: =Z23 -> 28.458 | AE21: 7 | AG21: s6 | AH21: =AH14 -> 5 | AI21: =1.003*AI14 -> 167.483949 | AK21: =AH32 -> 5 | AL21: =AI32 -> 164.945 | AM21: s17 | AO21: s'13 | AP21: =AH17+0.5*('طراحی همه الگوها'!U216+'طراحی همه الگوها'!U210-'طراحی همه الگوها'!U217-'طراحی همه الگوها'!U218) -> 81.4 | AQ21: =AX33+AH42 -> 5 | AS21: =AP25 -> 5 | AT21: =AQ25 -> 164.945 | AU21: s'17 | AZ21: =W35 -> 0 | BA21: =BA12 -> 91.7 | BB21: 4 | BZ21: =BZ13+'طراحی همه الگوها'!U249-'طراحی همه الگوها'!U253 -> 63.3 | CA21: =CA15 -> 95.5 | CB21: 6 | CH21: s'11 | CI21: =CI22+0.4*(CI19-CI22) -> 32.67719966 | CJ21: =CJ22+0.1*(CJ19-CJ22) -> 53.63847097 | CU21: 12 | CV21: =CV12+CY12*SIN(RADIANS(CU21)+CU14) ->  | CW21: =CW12+CY12*COS(RADIANS(CU21)+CU14) ->  | CX21: =IF(CV13>CV21,ATAN((CW13-CW21)/(CV13-CV21)),ATAN((CW13-CW21)/(CV21-CV13))) ->  | CY21: =IF(CV13>CV21,(CV13-CV21)/COS(CX21),(CV21-CV13)/COS(CX21)) -> 
N22: =N21 -> 5 | O22: =O21+1.41*O16 -> 182.7855 | P22: d3 | R22: =N24 -> 5 | S22: =O24 -> 92.5605 | T22: d6 | Y22: =W35+'طراحی همه الگوها'!U189 -> 78.8 | Z22: =Z12 -> 0 | AA22: 6 | AG22: s7 | AH22: =AH21+0.12*(AH25-AH21) -> 12.09074782 | AI22: =AI25+0.94*(AI21-AI25) -> 165.3741171 | AK22: =AH33 -> 8.61836 | AL22: =AI33 -> 162.731705 | AM22: s18 | AO22: s'14 | AP22: =AH11+AH40*COS(AH38) -> 12.23672 | AQ22: =AI11-AH40*SIN(AH38) -> 157.56735 | AS22: =AP26 -> 9.342032 | AT22: =AQ26 -> 162.731705 | AU22: s'18 | AZ22: =W35+'طراحی همه الگوها'!U213 -> 48.9 | BA22: =BA12 -> 91.7 | BB22: 5 | BD22: =BD18 -> 61.12 | BE22: =BE18 -> 15.4 | BF22: 16 | BN22: =BJ29 -> 5 | BO22: =BK37 -> 89.30992796 | BP22: 12 | BR22: =BJ33 -> 25.38396556 | BS22: =BK33 -> 5.612330688 | BT22: 7 | BZ22: =BZ13+'طراحی همه الگوها'!U249-'طراحی همه الگوها'!U253 -> 63.3 | CA22: =CA15-'طراحی همه الگوها'!U254 -> 71.6 | CB22: 7 | CD22: =BZ18 -> 0 | CE22: =CA18 -> 82.1 | CF22: 5 | CH22: s11 | CI22: =0.7*CI15 -> 9.198238553 | CJ22: =CJ15-'طراحی همه الگوها'!U263+1.2*SQRT(POWER(CI15-CI14,2)+POWER(CJ15-CJ14,2)) -> 48.44065819 | CL22: =CI28 -> 5 | CM22: =CJ28 -> 164.945 | CN22: s''17 | CU22: 14 | CV22: =CV12+CY12*SIN(RADIANS(CU22)+CU14) ->  | CW22: =CW12+CY12*COS(RADIANS(CU22)+CU14) ->  | CX22: =IF(CV13>CV22,ATAN((CW13-CW22)/(CV13-CV22)),ATAN((CW13-CW22)/(CV22-CV13))) ->  | CY22: =IF(CV13>CV22,(CV13-CV22)/COS(CX22),(CV22-CV13)/COS(CX22)) ->  | DD22: قرینه نقطه نسبت به خط با داشتن دو نقطه از یک خط
J23: =F42 -> 28 | K23: =G42 -> 171.9 | L23: j11 | N23: =0.7*(O17+O16)+N21 -> 81.895 | O23: =O22-0.7*(O16+O17) -> 105.8905 | P23: d4 | R23: =N25 -> 20.379 | S23: =O25 -> 92.5605 | T23: d7 | Y23: =W35+'طراحی همه الگوها'!U189 -> 78.8 | Z23: =Z12+'طراحی همه الگوها'!U191 -> 28.458 | AA23: 7 | AC23: =Y13 -> 0 | AD23: =Z13 -> 175.2 | AE23: 1 | AG23: s8 | AH23: =AH21+0.4*(AH25-AH21) -> 28.63582606 | AI23: =AI25+0.5*(AI21-AI25) -> 149.9020166 | AK23: =AH29 -> 12.23672 | AL23: =AI29 -> 157.56735 | AM23: s14 | AO23: s'16 | AP23: =AH13 -> 5 | AQ23: =AI13 -> 120.2 | AS23: =AP22 -> 12.23672 | AT23: =AQ22 -> 157.56735 | AU23: s'14 | AZ23: =W35+'طراحی همه الگوها'!U213+'طراحی همه الگوها'!U214 -> 67.5 | BA23: =BA12 -> 91.7 | BB23: 6 | BD23: =BD18 -> 61.12 | BE23: =BA13 -> 0 | BF23: 15 | BN23: =BJ37 -> 62.27564928 | BO23: =BK37 -> 89.30992796 | BP23: 11 | BR23: =BR22+0.3*(BR25-BR22) -> 39.37291422 | BS23: =MIN(BS22,BS25)+IF(BS25>BS22,0.15,0.9)*ABS(BS25-BS22) -> 6.758676656 | BT23: 7'' | CD23: =CD22+'طراحی همه الگوها'!U264 -> 25.3 | CE23: =CA17-'طراحی همه الگوها'!U265 -> 81 | CF23: 20 | CH23: s12 | CI23: =CI24 -> 32.495 | CJ23: =CJ24+'طراحی همه الگوها'!U257 -> 107.821203 | CL23: =CI29 -> 8.61836 | CM23: =CJ29 -> 162.731705 | CN23: s''18 | CU23: 16 | CV23: =CV12+CY12*SIN(RADIANS(CU23)+CU14) ->  | CW23: =CW12+CY12*COS(RADIANS(CU23)+CU14) ->  | CX23: =IF(CV13>CV23,ATAN((CW13-CW23)/(CV13-CV23)),ATAN((CW13-CW23)/(CV23-CV13))) ->  | CY23: =IF(CV13>CV23,(CV13-CV23)/COS(CX23),(CV23-CV13)/COS(CX23)) ->  | DA23: مولفه افقی | DB23: مولفه عمودی | DC23: اسم نقطه ورودی
J24: =F43 -> 17.4 | K24: =G43 -> 163 | L24: j12 | N24: =N21 -> 5 | O24: =O23-O18+'متغیرها '!C6*0.1*'متغیرها '!U85*0.7 -> 92.5605 | P24: d6 | R24: =N27 -> 58.8265 | S24: =O27 -> 93.8935 | T24: d9 | Y24: =W35+'طراحی همه الگوها'!U189 -> 78.8 | Z24: =Z13-'طراحی همه الگوها'!U198 -> 151.9 | AA24: 14 | AG24: s9 | AH24: =AH21+0.7*(AH25-AH21) -> 46.3626956 | AI24: =AI25+0.2*(AI21-AI25) -> 139.3528572 | AO24: s'15 | AP24: =AP23+0.7*(AP22-AP23) -> 10.065704 | AQ24: =AQ23+0.5*(AQ22-AQ23) -> 138.883675 | AS24: =AP24 -> 10.065704 | AT24: =AQ24 -> 138.883675 | AU24: s'15 | AZ24: =AZ23 -> 67.5 | BA24: =BA17 -> 96.7 | BB24: 7 | BR24: =BR22+0.7*(BR25-BR22) -> 58.02484576 | BS24: =MIN(BS22,BS25)+0.5*ABS(BS25-BS22) -> 9.433483915 | BT24: 7''' | BZ24: =BZ15 -> 94.5 | CA24: =CA15 -> 95.5 | CB24: 4 | CD24: =CD22+'طراحی همه الگوها'!U266 -> 50.6 | CE24: =CA17-'طراحی همه الگوها'!U267 -> 76.3 | CF24: 22 | CH24: 41 شبیه ساز | CI24: =BG395 -> 32.495 | CJ24: =BH395 -> 103.921203 | CL24: =CI12 -> 12.23672 | CM24: =CJ12 -> 157.56735 | CN24: s3 | CU24: 18 | CV24: =CV12+CY12*SIN(RADIANS(CU24)+CU14) ->  | CW24: =CW12+CY12*COS(RADIANS(CU24)+CU14) ->  | CX24: =IF(CV13>CV24,ATAN((CW13-CW24)/(CV13-CV24)),ATAN((CW13-CW24)/(CV24-CV13))) ->  | CY24: =IF(CV13>CV24,(CV13-CV24)/COS(CX24),(CV24-CV13)/COS(CX24)) ->  | DA24: 0 | DB24: 0 | DC24: 1 | DD24: نقطه اول خط تقارن | DE24: نقاط قرینه شده نسبت به خط تقارن
N25: =0.2*(N23-N21)+N21 -> 20.379 | O25: =O24 -> 92.5605 | P25: d7 | R25: =N26 -> 74.2055 | S25: =O26 -> 99.2255 | T25: d8 | Y25: =Y27+'طراحی همه الگوها'!U196 -> 98.9 | Z25: =Z13-'طراحی همه الگوها'!U197 -> 154.6 | AA25: 13 | AD25: صاف | AG25: s10 | AH25: =AH16-('طراحی همه الگوها'!U196-'متغیرها '!C13*'متغیرها '!U83)*COS(AH15) -> 64.08956515 | AI25: =AI16+('طراحی همه الگوها'!U196-'متغیرها '!C13*'متغیرها '!U83)*SIN(AH15) -> 132.3200843 | AK25: =AH29 -> 12.23672 | AL25: =AI29 -> 157.56735 | AM25: s14 | AO25: s'17 | AP25: =AO400 -> 5 | AQ25: =IF('متغیرها '!C22=-1,AL10,IF('متغیرها '!C22=0,AP400-0.1,AP400-0.25*(AP400-AP404))) -> 164.945 | AS25: =AP23 -> 5 | AT25: =AQ23 -> 120.2 | AU25: s'16 | AZ25: =AZ22 -> 48.9 | BA25: =BA22 -> 91.7 | BB25: 5 | BD25: =BD17 -> 36.672 | BE25: =BE15 -> 0 | BF25: 21 | BH25: (3 →6) | BI25: =ROUND(0.2*(BJ34-BJ30),1) -> 15.3 | BN25: =BJ29 -> 5 | BO25: =BK34 -> 13.25463714 | BP25: 14 | BR25: =BJ34 -> 72.01379442 | BS25: =BK34 -> 13.25463714 | BT25: 8 | BZ25: =BZ15 -> 94.5 | CA25: =CA15+'طراحی همه الگوها'!U257 -> 99.4 | CB25: 9 | CD25: =BZ22 -> 63.3 | CE25: =CA22 -> 71.6 | CF25: 7 | CH25: 41' | CI25: =CI24+0.5*(CI27-CI24) -> 42.3725 | CJ25: =CJ27+0.7*(CJ24-CJ27) -> 74.24484208 | CU25: 20 | CV25: =CV12+CY12*SIN(RADIANS(CU25)+CU14) ->  | CW25: =CW12+CY12*COS(RADIANS(CU25)+CU14) ->  | CX25: =IF(CV13>CV25,ATAN((CW13-CW25)/(CV13-CV25)),ATAN((CW13-CW25)/(CV25-CV13))) ->  | CY25: =IF(CV13>CV25,(CV13-CV25)/COS(CX25),(CV25-CV13)/COS(CX25)) ->  | DA25: =DE17 -> 0 | DB25: =DF17 -> 0 | DC25: 2 | DD25: نقطه دوم خط تقارن | DE25: مولفه افقی | DF25: مولفه عمودی | DG25: اسم نقطه
J26: =F37 -> 10.9 | K26: =G37 -> 171.9 | L26: j6 | N26: =0.9*(N23-N21)+N21 -> 74.2055 | O26: =O24+0.5*(O23-O24) -> 99.2255 | P26: d8 | R26: =N23 -> 81.895 | S26: =O23 -> 105.8905 | T26: d4 | Y26: =Y27+'طراحی همه الگوها'!U196 -> 98.9 | Z26: =Z13 -> 175.2 | AA26: 12 | AC26: =AC18 -> 36.4 | AD26: =Z12 -> 0 | AE26: 15 | AG26: s12 | AH26: =AH25-'طراحی همه الگوها'!U198*SIN(AH15) -> 57.69077254 | AI26: =AI25-'طراحی همه الگوها'!U198*COS(AH15) -> 109.9159451 | AK26: =AH31 -> 10.065704 | AL26: =AI31 -> 138.883675 | AM26: s15 | AO26: s'18 | AP26: =AP25+0.6*(AP22-AP25) -> 9.342032 | AQ26: =AQ25-0.3*(AQ25-AQ22) -> 162.731705 | BD26: =BD17 -> 36.672 | BE26: =BE17 -> 6.9 | BF26: 22 | BH26: (5 →7) | BI26: =ROUND(0.2*(BJ34-BJ31),1) -> 11.7 | BN26: =BJ34 -> 72.01379442 | BO26: =BK34 -> 13.25463714 | BP26: 8 | BZ26: =BZ13+'طراحی همه الگوها'!U249-'طراحی همه الگوها'!U256 -> -44 | CA26: =CA25 -> 99.4 | CB26: 10 | CH26: 41'' | CI26: =CI24+0.88*(CI27-CI24) -> 49.8794 | CJ26: =CJ27+0.3*(CJ24-CJ27) -> 34.67636089 | CL26: =CI12 -> 12.23672 | CM26: =CJ12 -> 157.56735 | CN26: s3 | CU26: 22 | CV26: =CV12+CY12*SIN(RADIANS(CU26)+CU14) ->  | CW26: =CW12+CY12*COS(RADIANS(CU26)+CU14) ->  | CX26: =IF(CV13>CV26,ATAN((CW13-CW26)/(CV13-CV26)),ATAN((CW13-CW26)/(CV26-CV13))) ->  | CY26: =IF(CV13>CV26,(CV13-CV26)/COS(CX26),(CV26-CV13)/COS(CX26)) ->  | DA26: 0 | DB26: 0 | DC26: 3 | DE26: =DA26+2*(SIN(ATAN((DA25-DA24)/(DB25-DB24)))*(DB26-DB24)+COS(ATAN((DA25-DA24)/(DB25-DB24)))*(DA24-DA26))*COS(ATAN((DA25-DA24)/(DB25-DB24))) ->  | DF26: =DB26-2*(SIN(ATAN((DA25-DA24)/(DB25-DB24)))*(DB26-DB24)+COS(ATAN((DA25-DA24)/(DB25-DB24)))*(DA24-DA26))*SIN(ATAN((DA25-DA24)/(DB25-DB24))) ->  | DG26: =DC26 -> 3
J27: =F39 -> 7.2 | K27: =G39 -> 155.4 | L27: j8 | N27: =0.7*(N23-N21)+N21 -> 58.8265 | O27: =O24+0.1*(O23-O24) -> 93.8935 | P27: d9 | Y27: =W35+'طراحی همه الگوها'!U189 -> 78.8 | Z27: =Z13 -> 175.2 | AA27: 3 | AC27: =AC18 -> 36.4 | AD27: =AD18 -> 5 | AE27: 16 | AG27: s11 | AH27: =AH34-'طراحی همه الگوها'!U197*SIN(AH15) -> 77.7594394 | AI27: =AI34-'طراحی همه الگوها'!U197*COS(AH15) -> 106.9921444 | AK27: =AH30 -> 5 | AL27: =AI30 -> 120.2 | AM27: s16 | AO27: s'19 | AP27: =AX39+('متغیرها '!C20*'متغیرها '!U83)*COS(AH15+RADIANS(AX38)) -> 67.89564133 | AQ27: =AY39-('متغیرها '!C20*'متغیرها '!U83)*SIN(AH15+RADIANS(AX38)) -> 100.418786 | AS27: =AP16 -> 61.42561428 | AT27: =AQ16 -> 106.888813 | AU27: s'10 | AZ27: =W35+'طراحی همه الگوها'!U216 -> 110 | BA27: =BA18 -> 124.1 | BB27: 10 | BI27: نقاط در چادر شماره 4 | BR27: =BJ29 -> 5 | BS27: =BK29 -> 171.9 | BT27: 1 | BZ27: =BZ26 -> -44 | CA27: =CA17 -> 95.5 | CB27: 11 | CD27: =CD23 -> 25.3 | CE27: =CA17 -> 95.5 | CF27: 19 | CH27: s13 | CI27: =CI30+0.5*'طراحی همه الگوها'!U249 -> 52.25 | CJ27: =CJ30 -> 5 | CL27: =CI33 -> 10.71747928 | CM27: =CJ33 -> 113.9166733 | CN27: s'3 | CU27: 24 | CV27: =CV12+CY12*SIN(RADIANS(CU27)+CU14) ->  | CW27: =CW12+CY12*COS(RADIANS(CU27)+CU14) ->  | CX27: =IF(CV13>CV27,ATAN((CW13-CW27)/(CV13-CV27)),ATAN((CW13-CW27)/(CV27-CV13))) ->  | CY27: =IF(CV13>CV27,(CV13-CV27)/COS(CX27),(CV27-CV13)/COS(CX27)) ->  | DA27: 0 | DB27: 0 | DC27: 4 | DE27: =DA27+2*(SIN(ATAN((DA25-DA24)/(DB25-DB24)))*(DB27-DB24)+COS(ATAN((DA25-DA24)/(DB25-DB24)))*(DA24-DA27))*COS(ATAN((DA25-DA24)/(DB25-DB24))) ->  | DF27: =DB27-2*(SIN(ATAN((DA25-DA24)/(DB25-DB24)))*(DB27-DB24)+COS(ATAN((DA25-DA24)/(DB25-DB24)))*(DA24-DA27))*SIN(ATAN((DA25-DA24)/(DB25-DB24))) ->  | DG27: =DC27 -> 4
N28: =N21 -> 5 | O28: =O12-1-0.013*(O22-O24) -> 98.827075 | P28: j'2 | Y28: =W35+'طراحی همه الگوها'!U189 -> 78.8 | Z28: =Z13-'طراحی همه الگوها'!U198 -> 151.9 | AA28: 14 | AC28: =AC12 -> 36.4 | AD28: =AD12 -> 30.6 | AE28: 17 | AG28: s13 | AH28: =AH17+'طراحی همه الگوها'!U189-0.5*'طراحی همه الگوها'!U190 -> 76.15 | AI28: =AH43+AH42 -> 5 | AO28: 2' | AP28: =AH17 -> 5 | AQ28: =AX33+AH42 -> 5 | AS28: =AP27 -> 67.89564133 | AT28: =AQ27 -> 100.418786 | AU28: s'19 | AZ28: =BD13 -> 172.8 | BA28: =BE13 -> 124.1 | BB28: 13 | BD28: =W35 -> 0 | BE28: =BA11 -> 166.9 | BF28: 1 | BH28: افقی شبیه ساز | BI28: اسم نقطه | BJ28: مولفه افقی | BK28: مولفه عمودی | BL28: عمودی شبیه ساز | BN28: =BL43 -> 59.8 | BO28: =BL44 -> 72.2 | BP28: 15 | BR28: =BJ36 -> 74.93286066 | BS28: =BK36 -> 101.9671393 | BT28: 10 | BZ28: =BZ16 -> 84 | CA28: =CA16 -> 95.5 | CB28: 8 | CD28: =CD23 -> 25.3 | CE28: =CE23 -> 81 | CF28: 20 | CH28: s''17 | CI28: =CI11 -> 5 | CJ28: =IF('متغیرها '!C40=-1,CJ14,IF('متغیرها '!C40=0,CJ11-0.1,CJ11-0.25*(CJ11-CJ13))) -> 164.945 | CL28: =CI22 -> 9.198238553 | CM28: =CJ22 -> 48.44065819 | CN28: s11 | CU28: 26 | CV28: =CV12+CY12*SIN(RADIANS(CU28)+CU14) ->  | CW28: =CW12+CY12*COS(RADIANS(CU28)+CU14) ->  | CX28: =IF(CV13>CV28,ATAN((CW13-CW28)/(CV13-CV28)),ATAN((CW13-CW28)/(CV28-CV13))) ->  | CY28: =IF(CV13>CV28,(CV13-CV28)/COS(CX28),(CV28-CV13)/COS(CX28)) ->  | DA28: =DE18 -> 0 | DB28: =DF18 -> 0 | DC28: 5 | DE28: =DA28+2*(SIN(ATAN((DA25-DA24)/(DB25-DB24)))*(DB28-DB24)+COS(ATAN((DA25-DA24)/(DB25-DB24)))*(DA24-DA28))*COS(ATAN((DA25-DA24)/(DB25-DB24))) ->  | DF28: =DB28-2*(SIN(ATAN((DA25-DA24)/(DB25-DB24)))*(DB28-DB24)+COS(ATAN((DA25-DA24)/(DB25-DB24)))*(DA24-DA28))*SIN(ATAN((DA25-DA24)/(DB25-DB24))) ->  | DG28: =DC28 -> 5
J29: =F39 -> 7.2 | K29: =G39 -> 155.4 | L29: j8 | AG29: s14 | AH29: =AH11+AH40*COS(AH38) -> 12.23672 | AI29: =AI11-AH40*SIN(AH38) -> 157.56735 | AK29: =AK23 -> 12.23672 | AL29: =AL23 -> 157.56735 | AM29: s14 | AZ29: =W35+'طراحی همه الگوها'!U211+'طراحی همه الگوها'!U219 -> 179.3 | BA29: =BA18 -> 124.1 | BB29: 12 | BD29: =W35+'طراحی همه الگوها'!U216 -> 110 | BE29: =BA31 -> 166.9 | BF29: 3 | BI29: 1 | BJ29: =AH17 -> 5 | BK29: ='طراحی همه الگوها'!U233+BL39+AH42 -> 171.9 | BN29: =BN28+'طراحی همه الگوها'!U242 -> 67.1 | BO29: =BO28 -> 72.2 | BP29: 16 | CH29: s''18 | CI29: =CI28+0.5*(CI12-CI28) -> 8.61836 | CJ29: =CJ28-0.3*(CJ28-CJ12) -> 162.731705 | CU29: 28 | CV29: =CV12+CY12*SIN(RADIANS(CU29)+CU14) ->  | CW29: =CW12+CY12*COS(RADIANS(CU29)+CU14) ->  | CX29: =IF(CV13>CV29,ATAN((CW13-CW29)/(CV13-CV29)),ATAN((CW13-CW29)/(CV29-CV13))) ->  | CY29: =IF(CV13>CV29,(CV13-CV29)/COS(CX29),(CV29-CV13)/COS(CX29)) -> 
J30: =F38 -> 5 | K30: =G38 -> 155.4 | L30: j7 | Y30: =Y27 -> 78.8 | Z30: =Z13 -> 175.2 | AA30: 3 | AC30: =AC20 -> 68.2 | AD30: =Z12 -> 0 | AE30: 18 | AG30: s16 | AH30: =AH13 -> 5 | AI30: =AI13 -> 120.2 | AK30: =AK29+0.32*(AK32-AK29) -> 28.36825828 | AL30: =AL32+0.5*(AL29-AL32) -> 142.4196457 | AS30: =AS28 -> 67.89564133 | AT30: =AT28 -> 100.418786 | AU30: s'19 | AW30: شیفت افقی مچ | AX30: =AZ18+10 -> 120 | AZ30: =AZ29 -> 179.3 | BA30: =BA11 -> 166.9 | BB30: 11 | BI30: 3 | BJ30: =BJ29-'طراحی همه الگوها'!U234 -> -4.4 | BK30: =BK29-'طراحی همه الگوها'!U232 -> -7.4 | BN30: =BN28+'طراحی همه الگوها'!U242 -> 67.1 | BO30: =BO28-'طراحی همه الگوها'!U245 -> 50.2 | BP30: 19 | BR30: =BJ36 -> 74.93286066 | BS30: =BK36 -> 101.9671393 | BT30: 10 | BZ30: =BZ13+'طراحی همه الگوها'!U260+'طراحی همه الگوها'!U262 -> 102.6 | CA30: =CA25+BW44 -> 106.4 | CB30: 13 | CD30: =CD24 -> 50.6 | CE30: =CA17 -> 95.5 | CF30: 21 | CH30: 2 | CI30: =CI14 -> 5 | CJ30: =BW42+AH42 -> 5 | CL30: =CI24 -> 32.495 | CM30: 103.921203 | CN30: 41شبیه ساز | CU30: 30 | CV30: =CV12+CY12*SIN(RADIANS(CU30)+CU14) ->  | CW30: =CW12+CY12*COS(RADIANS(CU30)+CU14) ->  | CX30: =IF(CV13>CV30,ATAN((CW13-CW30)/(CV13-CV30)),ATAN((CW13-CW30)/(CV30-CV13))) ->  | CY30: =IF(CV13>CV30,(CV13-CV30)/COS(CX30),(CV30-CV13)/COS(CX30)) ->  | DD30: یافتن راس سوم مثلث با داشتن دو راس و یک ضلع و یک زاویه
F31: نقاط خروجی | Y31: =Y14 -> 15.3 | Z31: =Z13 -> 175.2 | AA31: 4 | AC31: =AC20 -> 68.2 | AD31: =AD20 -> 20.6 | AE31: 19 | AG31: s15 | AH31: =AH30+0.7*(AH29-AH30) -> 10.065704 | AI31: =AI30+0.5*(AI29-AI30) -> 138.883675 | AK31: =AK29+0.67*(AK32-AK29) -> 46.01212827 | AL31: =AL32+0.2*(AL29-AL32) -> 133.3310231 | AS31: =AP17 -> 55.09700859 | AT31: =AQ17 -> 87.62015325 | AU31: s'11 | AW31: شیفت عمودی مچ | AX31: =BA18-10 -> 114.1 | AZ31: =W35+'طراحی همه الگوها'!U216 -> 110 | BA31: =BA11 -> 166.9 | BB31: 3 | BD31: =AZ19 -> 110 | BE31: =BA19 -> 69.3 | BF31: 9 | BI31: 5 | BJ31: =BJ29+'طراحی همه الگوها'!U235 -> 13.7 | BK31: =BK29-'طراحی همه الگوها'!U233 -> 5 | BR31: =BJ37 -> 62.27564928 | BS31: =BK37 -> 89.30992796 | BT31: 11 | BZ31: =BZ13 -> 0 | CA31: =CA30 -> 106.4 | CB31: 12 | CD31: =CD24 -> 50.6 | CE31: =CE24 -> 76.3 | CF31: 22 | CH31: s''12 | CI31: =CI30 -> 5 | CJ31: =CJ24 -> 103.921203 | CL31: 42.3725 | CM31: 74.24484208 | CN31: 41' | CU31: 32 | CV31: =CV12+CY12*SIN(RADIANS(CU31)+CU14) ->  | CW31: =CW12+CY12*COS(RADIANS(CU31)+CU14) ->  | CX31: =IF(CV13>CV31,ATAN((CW13-CW31)/(CV13-CV31)),ATAN((CW13-CW31)/(CV31-CV13))) ->  | CY31: =IF(CV13>CV31,(CV13-CV31)/COS(CX31),(CV31-CV13)/COS(CX31)) ->  | DA31: اطلاعات ورودی
F32: مولفه افقی | G32: مولفه عمودی | H32: اسم نقطه | J32: =F39 -> 7.2 | K32: =G39 -> 155.4 | L32: j8 | AA32: نقاب | AC32: =AC14 -> 68.2 | AD32: =AD14 -> 34.6 | AE32: 20 | AG32: s17 | AH32: =AO400 -> 5 | AI32: =IF('متغیرها '!C14=-1,AL10,IF('متغیرها '!C14=0,AP400-0.1,AP400-0.25*(AP400-AP404))) -> 164.945 | AK32: =AH35 -> 62.64777712 | AL32: =AI35 -> 127.2719413 | AM32: s20 | AW32: زاویه گشادی نسبی جلو به پشت | AX32: 33 | AZ32: =W35+'طراحی همه الگوها'!U216 -> 110 | BA32: =BA18 -> 124.1 | BB32: 10 | BD32: =BD20 -> 110 | BE32: =BE20 -> 6.5 | BF32: 14 | BI32: 6 | BJ32: =BJ30+BI25*COS(RADIANS('متغیرها '!C26)) -> 10.87903188 | BK32: =BK30-BI25*SIN(RADIANS('متغیرها '!C26)) -> -8.200740131 | BN32: =BN28+'طراحی همه الگوها'!U242 -> 67.1 | BO32: =BO28+'طراحی همه الگوها'!U244 -> 94.2 | BP32: 18 | BZ32: =BZ13 -> 0 | CA32: =CA31+'طراحی همه الگوها'!U258 -> 119.8 | CB32: 18 | CH32: s'12 | CI32: =CI30 -> 5 | CJ32: =CJ23 -> 107.821203 | CL32: 49.8794 | CM32: 34.67636089 | CN32: 41'' | CU32: 34 | CV32: =CV12+CY12*SIN(RADIANS(CU32)+CU14) ->  | CW32: =CW12+CY12*COS(RADIANS(CU32)+CU14) ->  | CX32: =IF(CV13>CV32,ATAN((CW13-CW32)/(CV13-CV32)),ATAN((CW13-CW32)/(CV32-CV13))) ->  | CY32: =IF(CV13>CV32,(CV13-CV32)/COS(CX32),(CV32-CV13)/COS(CX32)) ->  | DA32: مولفه افقی | DB32: مولفه عمودی | DC32: اسم نقطه | DE32: محاسبات
F33: =F11 -> 5 | G33: =G20+'طراحی همه الگوها'!U177+G12 -> 171.9 | H33: j1 | J33: =F41 -> 7.2 | K33: =G41 -> 117.7 | L33: j10 | Y33: =Y13 -> 0 | Z33: =Z13 -> 175.2 | AA33: 1 | AG33: s18 | AH33: =AH32+0.5*(AH29-AH32) -> 8.61836 | AI33: =AI32-0.3*(AI32-AI29) -> 162.731705 | AS33: =AS31 -> 55.09700859 | AT33: =AT31 -> 87.62015325 | AU33: s'11 | AW33: j4 | AX33: =IF('متغیرها '!C17<1,'متغیرها '!C17*'متغیرها '!U59,IF('متغیرها '!C17<2,'متغیرها '!U59+('متغیرها '!C17-1)*('متغیرها '!U60-'متغیرها '!U59),IF('متغیرها '!C17<3,'متغیرها '!U60+('متغیرها '!C17-2)*(I105-'متغیرها '!U60),I105+('متغیرها '!C17-3)*(H127-H126)))) -> 0 | AY33: چادر 3 | BI33: 7 | BJ33: =BJ31+BI26*COS(RADIANS('متغیرها '!C26)) -> 25.38396556 | BK33: =BK31+BI26*SIN(RADIANS('متغیرها '!C26)) -> 5.612330688 | BN33: =BN28+'طراحی همه الگوها'!U242 -> 67.1 | BO33: =BO28 -> 72.2 | BP33: 16 | BR33: =BJ37 -> 62.27564928 | BS33: =BK37 -> 89.30992796 | BT33: 11 | BZ33: =BZ13 -> 0 | CA33: =CA32+'طراحی همه الگوها'!U259 -> 217 | CB33: 14 | CD33: =CD18 -> 25.3 | CE33: =CA31 -> 106.4 | CF33: 23 | CH33: s'3 | CI33: =CI22+0.5*(CI12-CI22) -> 10.71747928 | CJ33: =CJ22+0.6*(CJ12-CJ22) -> 113.9166733 | CL33: 52.25 | CM33: 5 | CN33: s13 | CU33: 36 | CV33: =CV12+CY12*SIN(RADIANS(CU33)+CU14) ->  | CW33: =CW12+CY12*COS(RADIANS(CU33)+CU14) ->  | CX33: =IF(CV13>CV33,ATAN((CW13-CW33)/(CV13-CV33)),ATAN((CW13-CW33)/(CV33-CV13))) ->  | CY33: =IF(CV13>CV33,(CV13-CV33)/COS(CX33),(CV33-CV13)/COS(CX33)) ->  | DA33: 5 | DB33: 50 | DC33: 1 | DD33: راس بالا | DE33: =SQRT(POWER(DA34-DA33,2)+POWER(DB33-DB34,2)) -> 10.19803903 | DF33: m2
F34: =F33 -> 5 | G34: =G33-'طراحی همه الگوها'!U177 -> 101 | H34: j2 | V34: محاسبات | Y34: =Y13 -> 0 | Z34: =Z13-'طراحی همه الگوها'!U205 -> 169.3 | AA34: 21 | AG34: s19 | AH34: =AH16+'متغیرها '!C13*'متغیرها '!U83*COS(AH15) -> 83.41674102 | AI34: =AI16-'متغیرها '!C13*'متغیرها '!U83*SIN(AH15) -> 126.8000958 | AK34: =AH25 -> 64.08956515 | AL34: =AI25 -> 132.3200843 | AM34: s10 | AS34: =AP18 -> 47.7784534 | AT34: =AQ18 -> 93.24165216 | AU34: s'12 | AW34: (1 → 5) | AX34: =W36-'متغیرها '!C19*'متغیرها '!U83 -> 89.70097955 | AZ34: =AX30 -> 120 | BA34: =AX31 -> 114.1 | BB34: 17 | BD34: =AZ18 -> 110 | BE34: =BA18 -> 124.1 | BF34: 10 | BI34: 8 | BJ34: =BJ35+BL41*SIN(RADIANS('متغیرها '!C30)) -> 72.01379442 | BK34: =BK35-BL41*COS(RADIANS('متغیرها '!C30)) -> 13.25463714 | BN34: =BN28+'طراحی همه الگوها'!U242+'طراحی همه الگوها'!U243 -> 74.4 | BO34: =BO28 -> 72.2 | BP34: 17 | BR34: =BJ35 -> 37.43446464 | BS34: =BK35 -> 108.2605649 | BT34: 9 | BZ34: =BZ13+'طراحی همه الگوها'!U263 -> 126.5 | CA34: =CA33 -> 217 | CB34: 15 | CD34: =CD18 -> 25.3 | CE34: =CE18 -> 120.9 | CF34: 24 | CU34: 38 | CV34: =CV12+CY12*SIN(RADIANS(CU34)+CU14) ->  | CW34: =CW12+CY12*COS(RADIANS(CU34)+CU14) ->  | CX34: =IF(CV13>CV34,ATAN((CW13-CW34)/(CV13-CV34)),ATAN((CW13-CW34)/(CV34-CV13))) ->  | CY34: =IF(CV13>CV34,(CV13-CV34)/COS(CX34),(CV34-CV13)/COS(CX34)) ->  | DA34: 7 | DB34: 40 | DC34: 2 | DD34: راس پایین | DE34: =ATAN((DA34-DA33)/(DB33-DB34)) -> 0.1973955598 | DF34: γ18
F35: =F33+'طراحی همه الگوها'!U178 -> 17.4 | G35: =G33 -> 171.9 | H35: j3 | J35: =F41 -> 7.2 | K35: =G41 -> 117.7 | L35: j10 | V35: مولفه افقی نقطه 1 | W35: =0 -> 0 | Y35: =Y14 -> 15.3 | Z35: =Z14-'طراحی همه الگوها'!U206 -> 171.1 | AA35: 22 | AG35: s20 | AH35: =AH25-0.25*'متغیرها '!U84*SIN(AH15) -> 62.64777712 | AI35: =AI25-0.25*'متغیرها '!U84*COS(AH15) -> 127.2719413 | AK35: =AH34 -> 83.41674102 | AL35: =AI34 -> 126.8000958 | AM35: s19 | AW35: زاویه مچ | AX35: 15 | AZ35: =AX30+'طراحی همه الگوها'!U224 -> 129.2 | BA35: =AX31 -> 114.1 | BB35: 18 | BD35: =BD13 -> 172.8 | BE35: =BE13 -> 124.1 | BF35: 13 | BH35: =BH37-BL45*SIN(BL46-RADIANS(45)+BL42) -> 24.56154894 | BI35: 9 | BJ35: =BJ37-BL40*SIN(BL46-RADIANS(45)+BL42) -> 37.43446464 | BK35: =BK37+BL40*COS(BL46-RADIANS(45)+BL42) -> 108.2605649 | BL35: =BL37+BL45*COS(BL46-RADIANS(45)+BL42) -> 114.2248981 | CL35: =CI18 -> 59.2689386 | CM35: =CJ18 -> 109.0454887 | CN35: s''10 | CU35: 40 | CV35: =CV12+CY12*SIN(RADIANS(CU35)+CU14) ->  | CW35: =CW12+CY12*COS(RADIANS(CU35)+CU14) ->  | CX35: =IF(CV13>CV35,ATAN((CW13-CW35)/(CV13-CV35)),ATAN((CW13-CW35)/(CV35-CV13))) ->  | CY35: =IF(CV13>CV35,(CV13-CV35)/COS(CX35),(CV35-CV13)/COS(CX35)) ->  | DA35: 10 | DB35: m4 | DC35: ضلع بالا | DE35: =RADIANS(90)-RADIANS(DE34)-DA36 -> 1.829150512 | DF35: m5
F36: ='طراحی همه الگوها'!U178+'طراحی همه الگوها'!U177+F33 -> 88.3 | G36: =G33 -> 171.9 | H36: j5 | J36: =F40 -> 5 | K36: =G40 -> 117.7 | L36: j9 | V36: نوک سر تا مچ دست شبیه ساز a3 | W36: =1.03*(SQRT(POWER(0.5*H168,2)+POWER((0.47*'متغیرها '!U85+H167*SIN('متغیرها '!B245)),2)))+'متغیرها '!U83 -> 98.85097955 | AS36: =AS34 -> 47.7784534 | AT36: =AT34 -> 93.24165216 | AU36: s'12 | AW36: شبیه سازαk1 | AX36: =F423 -> 1.426305226 | AZ36: =AX30+'طراحی همه الگوها'!U224 -> 129.2 | BA36: =AX31-'طراحی همه الگوها'!U226 -> 96 | BB36: 20 | BH36: =BJ29+W36*COS(RADIANS(45)) -> 74.89819796 | BI36: 10 | BJ36: =BJ29+'طراحی همه الگوها'!U236*COS(RADIANS(45)) -> 74.93286066 | BK36: =BK29-'طراحی همه الگوها'!U236*SIN(RADIANS(45)) -> 101.9671393 | BL36: =BK29-W36*SIN(RADIANS(45)) -> 102.001802 | BN36: =BJ36 -> 74.93286066 | BO36: =BK36 -> 101.9671393 | BP36: 10 | BR36: =BJ35 -> 37.43446464 | BS36: =BK35 -> 108.2605649 | BT36: 9 | BZ36: =BZ31+'طراحی همه الگوها'!U260 -> 63.3 | CA36: =CA31 -> 106.4 | CB36: 16 | CD36: =CD19 -> 50.6 | CE36: =CA31 -> 106.4 | CF36: 25 | CL36: =CI19 -> 67.89564133 | CM36: =CJ19 -> 100.418786 | CN36: k4 شبیه ساز | CU36: 42 | CV36: =CV12+CY12*SIN(RADIANS(CU36)+CU14) ->  | CW36: =CW12+CY12*COS(RADIANS(CU36)+CU14) ->  | CX36: =IF(CV13>CV36,ATAN((CW13-CW36)/(CV13-CV36)),ATAN((CW13-CW36)/(CV36-CV13))) ->  | CY36: =IF(CV13>CV36,(CV13-CV36)/COS(CX36),(CV36-CV13)/COS(CX36)) ->  | DA36: =RADIANS(-15) -> -0.2617993878 | DB36: m1 | DC36: زاویه ضلع پایین با افق به رادیان ساعتگرزیر افق عدد مثبت | DE36: =DA35*COS(DE37)-DE33*COS(DE35) -> 4.275403846 | DF36: m7
F37: ='طراحی همه الگوها'!U179+F33 -> 10.9 | G37: =G33 -> 171.9 | H37: j6 | AG37: محاسبات طراحی چادر 2 | AK37: =AK35 -> 83.41674102 | AL37: =AL35 -> 126.8000958 | AM37: s19 | AS37: =AP16 -> 61.42561428 | AT37: =AQ16 -> 106.888813 | AU37: s'10 | AW37: (k4 →k5)شبیه ساز | AX37: =F425 -> 12.09893945 | AZ37: =AX30 -> 120 | BA37: =AX31-'طراحی همه الگوها'!U225 -> 94.8 | BB37: 19 | BD37: =AZ35 -> 129.2 | BE37: =BA35 -> 114.1 | BF37: 18 | BH37: =BH36-'متغیرها '!U84*COS(RADIANS(45)) -> 60.04895556 | BI37: 11 | BJ37: =BJ36-'طراحی همه الگوها'!U237*COS(RADIANS(45)) -> 62.27564928 | BK37: =BK36-'طراحی همه الگوها'!U237*SIN(RADIANS(45)) -> 89.30992796 | BL37: =BL36-'متغیرها '!U84*SIN(RADIANS(45)) -> 87.15255963 | BR37: =BJ34 -> 72.01379442 | BS37: =BK34 -> 13.25463714 | BT37: 8 | BZ37: =BZ36 -> 63.3 | CA37: =CA31+'طراحی همه الگوها'!U261 -> 130.3 | CB37: 17 | CD37: =CD19 -> 50.6 | CE37: =CE19 -> 125.6 | CF37: 26 | CU37: 44 | CV37: =CV12+CY12*SIN(RADIANS(CU37)+CU14) ->  | CW37: =CW12+CY12*COS(RADIANS(CU37)+CU14) ->  | CX37: =IF(CV13>CV37,ATAN((CW13-CW37)/(CV13-CV37)),ATAN((CW13-CW37)/(CV37-CV13))) ->  | CY37: =IF(CV13>CV37,(CV13-CV37)/COS(CX37),(CV37-CV13)/COS(CX37)) ->  | DA37: راس سوم | DE37: =ASIN(DE38/DA35) -> 1.403019319 | DF37: m8
F38: =F33 -> 5 | G38: =G39 -> 155.4 | H38: j7 | J38: =F40 -> 5 | K38: =G40 -> 117.7 | L38: j9 | AG38: αs2 | AH38: =ATAN((AI11-AI12)/(AH12-AH11)) -> 1.201449433 | AK38: =AH27 -> 77.7594394 | AL38: =AI27 -> 106.9921444 | AM38: s11 | AW38: زاویه خم بودن دست | AX38: =K390 -> 29.06025514 | AZ38: =AX30 -> 120 | BA38: =AX31 -> 114.1 | BB38: 17 | CL38: =CI27 -> 52.25 | CM38: =CJ27 -> 5 | CN38: s13 | CU38: 46 | CV38: =CV12+CY12*SIN(RADIANS(CU38)+CU14) ->  | CW38: =CW12+CY12*COS(RADIANS(CU38)+CU14) ->  | CX38: =IF(CV13>CV38,ATAN((CW13-CW38)/(CV13-CV38)),ATAN((CW13-CW38)/(CV38-CV13))) ->  | CY38: =IF(CV13>CV38,(CV13-CV38)/COS(CX38),(CV38-CV13)/COS(CX38)) ->  | DA38: =DA34+DE36*COS(DA36) -> 11.12972299 | DB38: =DB34-DE36*SIN(DA36) -> 41.10655594 | DC38: 3 | DE38: =DE33*SIN(DE35) -> 9.859584224 | DF38: m9
F39: ='طراحی همه الگوها'!U181+F33 -> 7.2 | G39: =G33-'طراحی همه الگوها'!U180 -> 155.4 | H39: j8 | J39: =F38 -> 5 | K39: =G38 -> 155.4 | L39: j7 | AG39: (s2 →s3) | AH39: =SQRT(POWER((AH12-AH11),2)+POWER((AI11-AI12),2)) -> 6.013787353 | AS39: =AP21 -> 81.4 | AT39: =AQ21 -> 5 | AU39: s'13 | AW39: دست خمیده شبیه ساز k4 | AX39: =K384 -> 67.89564133 | AY39: =L384 -> 100.418786 | BK39: j4 | BL39: =IF('متغیرها '!C25<1,'متغیرها '!C25*'متغیرها '!U59,IF('متغیرها '!C25<2,'متغیرها '!U59+('متغیرها '!C25-1)*('متغیرها '!U60-'متغیرها '!U59),IF('متغیرها '!C25<3,'متغیرها '!U60+('متغیرها '!C25-2)*(I105-'متغیرها '!U60),I105+('متغیرها '!C25-3)*(H127-H126)))) -> 0 | BR39: =BJ29 -> 5 | BS39: =BK29 -> 171.9 | BT39: 1 | BZ39: =BZ13 -> 0 | CA39: =CA33-BW43 -> 204.61 | CB39: 19' | CD39: =CD13 -> 120.525 | CE39: =CA33 -> 217 | CF39: 27 | CL39: =CI30 -> 5 | CM39: =CJ30 -> 5 | CN39: 2 | CU39: 48 | CV39: =CV12+CY12*SIN(RADIANS(CU39)+CU14) ->  | CW39: =CW12+CY12*COS(RADIANS(CU39)+CU14) ->  | CX39: =IF(CV13>CV39,ATAN((CW13-CW39)/(CV13-CV39)),ATAN((CW13-CW39)/(CV39-CV13))) ->  | CY39: =IF(CV13>CV39,(CV13-CV39)/COS(CX39),(CV39-CV13)/COS(CX39)) -> 
F40: =F33 -> 5 | G40: =G41 -> 117.7 | H40: j9 | L40: انحنا | AG40: (s2 →s14) | AH40: =AH39*2*('متغیرها '!C10-0.5) -> 6.013787353 | AK40: =AK38 -> 77.7594394 | AL40: =AL38 -> 106.9921444 | AM40: s11 | AS40: =AP28 -> 5 | AT40: =AQ28 -> 5 | AU40: 2' | BK40: (9→11) | BL40: ='متغیرها '!C29*BL45+'متغیرها '!C27*'متغیرها '!U83 -> 31.244377 | BR40: =BJ30 -> -4.4 | BS40: =BK30 -> -7.4 | BT40: 3 | CD40: =CD13 -> 120.525 | CE40: =CE13 -> 161.7 | CF40: 28 | CU40: 50 | CV40: =CV12+CY12*SIN(RADIANS(CU40)+CU14) ->  | CW40: =CW12+CY12*COS(RADIANS(CU40)+CU14) ->  | CX40: =IF(CV13>CV40,ATAN((CW13-CW40)/(CV13-CV40)),ATAN((CW13-CW40)/(CV40-CV13))) ->  | CY40: =IF(CV13>CV40,(CV13-CV40)/COS(CX40),(CV40-CV13)/COS(CX40)) -> 
F41: =F39 -> 7.2 | G41: =G38-'طراحی همه الگوها'!U182 -> 117.7 | H41: j10 | J41: =F36 -> 88.3 | K41: =G36 -> 171.9 | L41: j5 | AG41: شیفت افقی کل | AH41: ='متغیرها '!C51 -> 5 | AK41: =AH26 -> 57.69077254 | AL41: =AI26 -> 109.9159451 | AM41: s12 | BK41: (8→9) | BL41: =BL37+'متغیرها '!C29*BL45*COS(BL46-RADIANS(45)+BL42)-BK31 -> 101.1031966 | CL41: =CL39 -> 5 | CM41: =CM39 -> 5 | CN41: 2 | CU41: 52 | CV41: =CV12+CY12*SIN(RADIANS(CU41)+CU14) ->  | CW41: =CW12+CY12*COS(RADIANS(CU41)+CU14) ->  | CX41: =IF(CV13>CV41,ATAN((CW13-CW41)/(CV13-CV41)),ATAN((CW13-CW41)/(CV41-CV13))) ->  | CY41: =IF(CV13>CV41,(CV13-CV41)/COS(CX41),(CV41-CV13)/COS(CX41)) -> 
F42: =F35+'طراحی همه الگوها'!U183 -> 28 | G42: =G33 -> 171.9 | H42: j11 | J42: =F45 -> 86.173 | K42: 156.302 | L42: j5' | AG42: شیفت عمودی کل | AH42: ='متغیرها '!C52 -> 5 | AS42: =AS40 -> 5 | AT42: =AT40 -> 5 | AU42: 2' | BK42: α2 | BL42: ='متغیرها '!B245 -> 0.2782010298 | BR42: =BN28 -> 59.8 | BS42: =BO28 -> 72.2 | BT42: 15 | BV42: j4 | BW42: =IF('متغیرها '!C37<1,'متغیرها '!C37*'متغیرها '!U59,IF('متغیرها '!C37<2,'متغیرها '!U59+('متغیرها '!C37-1)*('متغیرها '!U60-'متغیرها '!U59),IF('متغیرها '!C37<3,'متغیرها '!U60+('متغیرها '!C37-2)*(I105-'متغیرها '!U60),I105+('متغیرها '!C37-3)*(H127-H126)))) -> 0 | CL42: =CI31 -> 5 | CM42: =CJ31 -> 103.921203 | CN42: s''12 | CU42: 54 | CV42: =CV12+CY12*SIN(RADIANS(CU42)+CU14) ->  | CW42: =CW12+CY12*COS(RADIANS(CU42)+CU14) ->  | CX42: =IF(CV13>CV42,ATAN((CW13-CW42)/(CV13-CV42)),ATAN((CW13-CW42)/(CV42-CV13))) ->  | CY42: =IF(CV13>CV42,(CV13-CV42)/COS(CX42),(CV42-CV13)/COS(CX42)) -> 
F43: =F35 -> 17.4 | G43: =G33-'طراحی همه الگوها'!U184 -> 163 | H43: j12 | J43: 77.665 | K43: 136.45 | L43: j5'' | AG43: j4 | AH43: =IF('متغیرها '!C9<1,'متغیرها '!C9*'متغیرها '!U59,IF('متغیرها '!C9<2,'متغیرها '!U59+('متغیرها '!C9-1)*('متغیرها '!U60-'متغیرها '!U59),IF('متغیرها '!C9<3,'متغیرها '!U60+('متغیرها '!C9-2)*(I105-'متغیرها '!U60),I105+('متغیرها '!C9-3)*(H127-H126)))) -> 0 | AI43: چادر 2 | AK43: =AK41 -> 57.69077254 | AL43: =AL41 -> 109.9159451 | AM43: s12 | AS43: =AH13 -> 5 | AT43: =AI13 -> 120.2 | AU43: خط سینه | BK43: شیفت افقی مرغک | BL43: ='متغیرها '!C33*0.5*('متغیرها '!U72-'متغیرها '!U73) -> 59.8 | BR43: =BN32 -> 67.1 | BS43: =BO32 -> 94.2 | BT43: 18 | BV43: (14 →19') | BW43: =AH45+0.1*'متغیرها '!C40 -> 12.39 | BZ43: رسم چادر شماره 5 برای پرینت | CU43: 56 | CV43: =CV12+CY12*SIN(RADIANS(CU43)+CU14) ->  | CW43: =CW12+CY12*COS(RADIANS(CU43)+CU14) ->  | CX43: =IF(CV13>CV43,ATAN((CW13-CW43)/(CV13-CV43)),ATAN((CW13-CW43)/(CV43-CV13))) ->  | CY43: =IF(CV13>CV43,(CV13-CV43)/COS(CX43),(CV43-CV13)/COS(CX43)) -> 
F44: =F35 -> 17.4 | G44: =G34 -> 101 | H44: j13 | J44: 59.94 | K44: 117.307 | L44: j5''' | AG44: (j1 → j2) | AH44: =ROUND(G19+0.1*'متغیرها '!U85-AH43,1) -> 166.9 | AK44: =AH25 -> 64.08956515 | AL44: =AI25 -> 132.3200843 | AM44: s10 | BK44: شیفت عمودی مرغک | BL44: =IF('متغیرها '!C34<1,'متغیرها '!C34*'متغیرها '!U59,IF('متغیرها '!C34<2,'متغیرها '!U59+('متغیرها '!C34-1)*('متغیرها '!U60-'متغیرها '!U59),IF('متغیرها '!C34<3,'متغیرها '!U60+('متغیرها '!C34-2)*(I105-'متغیرها '!U60),I105+('متغیرها '!C34-3)*(H127-H126))))+'طراحی همه الگوها'!U245 -> 72.2 | BV44: شیفت عمودی الگو دسته | BW44: 7 | CA44: صاف | CB44: برای پرینت | CE44: انحنا | CF44: برای پرینت | CL44: =CL42 -> 5 | CM44: =CM42 -> 103.921203 | CN44: s''12 | CU44: 58 | CV44: =CV12+CY12*SIN(RADIANS(CU44)+CU14) ->  | CW44: =CW12+CY12*COS(RADIANS(CU44)+CU14) ->  | CX44: =IF(CV13>CV44,ATAN((CW13-CW44)/(CV13-CV44)),ATAN((CW13-CW44)/(CV44-CV13))) ->  | CY44: =IF(CV13>CV44,(CV13-CV44)/COS(CX44),(CV44-CV13)/COS(CX44)) -> 
F45: =F44+0.97*(F36-F44) -> 86.173 | G45: =G44+0.78*(G36-G44) -> 156.302 | H45: j5' | J45: 35.125 | K45: 103.836 | L45: j5'''' | AG45: (j1 → j3) | AH45: =0.21*G13 -> 12.39 | AI45: بدون انتخاب | BK45: شبیه ساز آستین(3→19) | BL45: =BL516 -> 44.63482429 | BR45: =BN34 -> 74.4 | BS45: =BO34 -> 72.2 | BT45: 17 | BV45: شیفت عمودی الگو دسته برای پرینت | BW45: =-'متغیرها '!U56 -> -95.5 | BZ45: =BZ13+'طراحی همه الگوها'!U260+'طراحی همه الگوها'!U262 -> 102.6 | CA45: =CA25+BW45 -> 3.9 | CB45: 13 | CD45: =BZ45 -> 102.6 | CE45: =CA45 -> 3.9 | CF45: 13 | CL45: =CI32 -> 5 | CM45: =CJ32 -> 107.821203 | CN45: s'12 | CU45: 60 | CV45: =CV12+CY12*SIN(RADIANS(CU45)+CU14) ->  | CW45: =CW12+CY12*COS(RADIANS(CU45)+CU14) ->  | CX45: =IF(CV13>CV45,ATAN((CW13-CW45)/(CV13-CV45)),ATAN((CW13-CW45)/(CV45-CV13))) ->  | CY45: =IF(CV13>CV45,(CV13-CV45)/COS(CX45),(CV45-CV13)/COS(CX45)) -> 
F46: =F44+0.85*(F36-F44) -> 77.665 | G46: =G44+0.5*(G36-G44) -> 136.45 | H46: j5'' | J46: =F44 -> 17.4 | K46: =G44 -> 101 | L46: j13 | AK46: =AH28 -> 76.15 | AL46: =AI28 -> 5 | AM46: s13 | BK46: شبیه سازαk1 | BL46: =F423 -> 1.426305226 | BR46: =BN30 -> 67.1 | BS46: =BO30 -> 50.2 | BT46: 19 | BZ46: =BZ13 -> 0 | CA46: =CA45 -> 3.9 | CB46: 12 | CD46: =CD45+0.45*(CD49-CD45) -> 113.355 | CE46: =CE45+0.25*(CE49-CE45) -> 31.55 | CF46: 13' | CU46: 62 | CV46: =CV12+CY12*SIN(RADIANS(CU46)+CU14) ->  | CW46: =CW12+CY12*COS(RADIANS(CU46)+CU14) ->  | CX46: =IF(CV13>CV46,ATAN((CW13-CW46)/(CV13-CV46)),ATAN((CW13-CW46)/(CV46-CV13))) ->  | CY46: =IF(CV13>CV46,(CV13-CV46)/COS(CX46),(CV46-CV13)/COS(CX46)) -> 
F47: =F44+0.6*(F36-F44) -> 59.94 | G47: =G44+0.23*(G36-G44) -> 117.307 | H47: j5''' | J47: =F34 -> 5 | K47: =G34 -> 101 | L47: j2 | AK47: =AH17 -> 5 | AL47: =AI28 -> 5 | AM47: 2 | BZ47: =BZ13 -> 0 | CA47: =CA46+'طراحی همه الگوها'!U258 -> 17.3 | CB47: 18 | CD47: =CD45+0.75*(CD49-CD45) -> 120.525 | CE47: =CE45+0.5*(CE49-CE45) -> 59.2 | CF47: 13'' | CL47: =CL45 -> 5 | CM47: =CM45 -> 107.821203 | CN47: s'12 | CU47: 64 | CV47: =CV12+CY12*SIN(RADIANS(CU47)+CU14) ->  | CW47: =CW12+CY12*COS(RADIANS(CU47)+CU14) ->  | CX47: =IF(CV13>CV47,ATAN((CW13-CW47)/(CV13-CV47)),ATAN((CW13-CW47)/(CV47-CV13))) ->  | CY47: =IF(CV13>CV47,(CV13-CV47)/COS(CX47),(CV47-CV13)/COS(CX47)) -> 
F48: =F44+0.25*(F36-F44) -> 35.125 | G48: =G44+0.04*(G36-G44) -> 103.836 | H48: j5'''' | BR48: =BN28 -> 59.8 | BS48: =BO28 -> 72.2 | BT48: 15 | BZ48: =BZ13 -> 0 | CA48: =CA47+'طراحی همه الگوها'!U259 -> 114.5 | CB48: 14 | CD48: =CD45+0.95*(CD49-CD45) -> 125.305 | CE48: =CE45+0.8*(CE49-CE45) -> 92.38 | CF48: 13''' | CL48: =CI23 -> 32.495 | CM48: =CJ23 -> 107.821203 | CN48: s12 | CU48: بهینه α | CV48: =IF(CY13<CY16,CU16,IF(CY13<CY17,CU17,IF(CY13<CY18,CU18,IF(CY13<CY19,CU19,IF(CY13<CY20,CU20,IF(CY13<CY21,CU21,IF(CY13<CY22,CU22,IF(CY13<CY23,CU23,IF(CY13<CY24,CU24,IF(CY13<CY25,CU25,IF(CY13<CY26,CU26,IF(CY13<CY27,CU27,IF(CY13<CY28,CU28,IF(CY13<CY29,CU29,IF(CY13<CY30,CU30,IF(CY13<CY31,CU31,IF(CY13<CY32,CU32,IF(CY13<CY33,CU33,IF(CY13<CY34,CU34,IF(CY13<CY35,CU35,IF(CY13<CY36,CU36,IF(CY13<CY37,CU37,IF(CY13<CY38,CU38,IF(CY13<CY39,CU39,IF(CY13<CY40,CU40,IF(CY13<CY41,CU41,IF(CY13<CY42,CU42,IF(CY13<CY43,CU43,IF(CY13<CY44,CU44,IF(CY13<CY45,CU45,IF(CY13<CY46,CU46,CU47))))))))))))))))))))))))))))))) ->  | CW48: =RADIANS(CV48) ->  | CX48: c21 | CY48: =IF(CV13>CV50,ATAN((CW13-CW50)/(CV13-CV50)),ATAN((CW13-CW50)/(CV50-CV13))) -> 
AK49: =AK47 -> 5 | AL49: =AL47 -> 5 | AM49: 2 | BR49: =BN30 -> 67.1 | BS49: =BO30 -> 50.2 | BT49: 19 | BZ49: =BZ13+'طراحی همه الگوها'!U263 -> 126.5 | CA49: =CA48 -> 114.5 | CB49: 15 | CD49: =BZ49 -> 126.5 | CE49: =CA49 -> 114.5 | CF49: 15 | CV49: مولفه افقی | CW49: مولفه عمودی | DD49: پروسیجرها
AK50: =AH13 -> 5 | AL50: =AI13 -> 120.2 | AM50: خط سینه | CL50: =CL48 -> 32.495 | CM50: =CM48 -> 107.821203 | CN50: s12 | CU50: e23 | CV50: =CV12+CY12*SIN(CW48+CU14) ->  | CW50: =CW12+CY12*COS(CW48+CU14) ->  | CX50: راس سوم
K51: محاسبات بافت | BR51: =BN34 -> 74.4 | BS51: =BO34 -> 72.2 | BT51: 17 | BZ51: =CD54 -> 63.3 | CA51: =CA46 -> 3.9 | CB51: 16 | CD51: =BZ47 -> 0 | CE51: =CA47 -> 17.3 | CF51: 18 | CL51: =CI24 -> 32.495 | CM51: =CJ24 -> 103.921203 | CN51: 41 شبیه ساز
BR52: =BN32 -> 67.1 | BS52: =BO32 -> 94.2 | BT52: 18 | CD52: =CD18 -> 25.3 | CE52: =CA46+'طراحی همه الگوها'!U269 -> 18.4 | CF52: 24
E53: متغیرهای ورودی مربوط به ضخامت میل (متناسب با ضخامت نخ) | H53: متغیرهای ورودی یقه ب ب گرد بافت همه از زیر | K53: متغیرهای ورودی یقه شکاری کشباف | N53: متغیر محاسبه ای یقه انگلیسی | Q53: متغیرهای ورودی یقه شومیزیه بافت همه از زیر | CD53: =CD19 -> 50.6 | CE53: =CA46+'طراحی همه الگوها'!U271 -> 23.1 | CF53: 26 | CL53: =CL51 -> 32.495 | CM53: =CM51 -> 103.921203 | CN53: 41 شبیه ساز
E54: (بدون احتساب بافت انتخابی) a'0 ضریب تعداد رج | F54: =IF(F56=2,N68,IF(F56=3,O68,P68)) -> 2.8 | H54: =ROUND(I60*G167,1) -> 14.4 | I54: پهنا (cm)= | K54: =ROUND(L59*(0.4*G166+0.037*H131),1) -> 8 | L54: پهنا (cm)= | N54: d'3 | O54: ='متغیرها '!C167*H124 -> 4.64 | Q54: =ROUND(R61*R57,1) -> 2.9 | R54: پهنا (cm)= | BR54: =BJ29 -> 5 | BS54: =BK29 -> 171.9 | BT54: 1 | CD54: =BZ46+'طراحی همه الگوها'!U260 -> 63.3 | CE54: =CA46+'طراحی همه الگوها'!U261 -> 27.8 | CF54: 17 | CL54: =CI31 -> 5 | CM54: =CJ31 -> 103.921203 | CN54: s''12
E55: (بدون احتساب بافت انتخابی) b'0 ضریب تعداد دانه | F55: =IF(F56=2,N69,IF(F56=3,O69,P69)) -> 1.8 | H55: متغیر محاسبه ای یقه ب ب گرد | K55: متغیر محاسبه ای یقه شکاری | N55: d11 | O55: =(0.95+1.45*'متغیرها '!C164)*(0.4*G166+0.037*H131) -> 7.69305846 | Q55: =ROUND(R62*R57,1) -> 4.8 | R55: پهنا (cm)= | BR55: =BJ31 -> 13.7 | BS55: =BK31 -> 5 | BT55: 5
E56: انتخاب ضخامت میل بافتنی f1 | F56: ='متغیرها '!C43 -> 3 | H56: c6 | I56: =ROUNDUP(1.3*F54*I57,0) -> 53 | K56: a7 | L56: =F54*L59*(0.4*G166+0.037*H131) -> 22.43808717 | N56: d'12 | O56: =G275-G270 -> 29.28353911 | Q56: متغیر محاسبه ای شومیزیه
E57: جمع شوندگی عمودی بافت f2 | F57: ='متغیرها '!C44 -> 0 | H57: c'6 | I57: =I60*G167 -> 14.3632815 | N57: d12 | O57: =ROUND(F54*O56,0) -> 82 | Q57: e'1 | R57: =(0.4*G166+0.037*H131) -> 3.205441025
E58: جمع شوندگی افقی بافت f3 | F58: ='متغیرها '!C45 -> 0 | K58: متغیرهای ورودی یقه شکاری کشباف | N58: d''12 | O58: =G276+AX147 -> 7.51612786 | Q58: e''1 | R58: =R62*R57 -> 4.808161537
E59: از آستین رگلان γ9 | F59: =DE542 -> 0.6838202654 | H59: متغیرهای ورودی یقه ب ب گرد بافت همه از زیر | K59: ضریب پهنای یقه (1.5 الی 3) | L59: ='متغیرها '!C731 -> 2.5
E60: γ10 از آستین رگلان | F60: =DE543 -> 0.5028874097 | H60: ضریب پهنای یقه (0.6 الی 1.2) | I60: =1.9*'متغیرها '!C751 -> 1.14 | K60: یقه شکاری کشباف | N60: یقه انگلیسی بافت جودانه | Q60: متغیرهای ورودی یقه شومیزیه بافت همه از زیر
H61: یقه ب ب گرد | Q61: ضریب پهنای پایه یقه (1 الی 2) | R61: ='متغیرها '!C738 -> 0.9
E62: گشادی بالای مچ آستین (cm) b'11 | F62: =ROUND(DY522-DY523,0) -> 29 | N62: b'1 نوار باز شده گردن - دور تا دور گردن | O62: =CP680+CP681 -> 23.30178878 | Q62: ضریب پهنای برگرد یقه (1.5 الی 3) | R62: ='متغیرها '!C742 -> 1.5
E63: تعداد دانه ها در بالای مچ آستین b'12 | F63: =ROUND(O65*F62,0) -> 52 | N63: محاسبه شده (با احتساب بافت انتخابی) | Q63: یقه شومیزیه
E64: تعداد دانه های اضافه شده زیر بغل b8 | F64: =ROUNDUP(O65*(AX119+AX114+BI116),0) -> 11 | H64: b22 | I64: =SQRT(POWER(F84,2)-POWER(F67,2)) -> 44.18968652 | N64: a0 تعداد رج در یک سانت | O64: =F54+0.3*F57*F54 -> 2.8
E65: تعداد دانه های سرتاسر آستین در قسمت زیر بغل b20 | F65: =ROUNDUP(F64+O64*F80*COS(0.4*(F59+F60))+J86+0.5*F78,0) -> 98 | H65: b'22 | I65: =I64*O64 -> 123.7311223 | N65: تعداد دانه در یک سانتb0 | O65: =F55+0.68*F58*F55 -> 1.8
E66: تعداد دانه های اضافه شده در کنار آستین در هر طرف b21 | F66: =0.5*(F65-F63) -> 23 | H66: b12 | I66: =ROUND(F63/((F62-F88)*O65),0) -> 14
E67: طول اضافه شده در کنار آستین در هر طرف b'21 | F67: =F66/O65 -> 12.77777778 | N67: میل 2 و 2.5 | O67: میل 3 و 3.5 | P67: میل 4 و 4.5
E68: هر b11 رج در بافت آستین یکدانه از ابتدا و یکدانه از انتها کم شود | F68: =ROUND(I65/F66,0) -> 5 | N68: 3.5 | O68: 2.8 | P68: 2.6 | Q68: a''0
N69: 2.3 | O69: 1.8 | P69: 1.7 | Q69: b''0
J73: محاسبات بافت
E74: محاسبات در بافت بالاتنه و آستین (بافت انتخابی)
E75: تعداد دانه ها دور گردن + دو تا نیمه جادکمه که از خط مرکزی اضافه شده | F75: =F77+2*F76 -> 90 | H75: یقه ب ب گرد | K75: یقه شکاری | N75: یقه شومیزیه | Q75: یقه انگلیسی
E76: b2 تعداد دانه های اضافه شده از خط مرکزی تا خط جادکمه = نیمه جادکمه | F76: =ROUNDUP(F55*'متغیرها '!C66*(2*H129+H130),0) -> 4 | H76: بافت همه از زیر | K76: بافت کشباف | N76: بافت همه از زیر | Q76: بافت جودانه
E77: (بدون اعمال بافت اننتخابی) b1 تعداد دانه ها دور تا دور گردن | F77: =I87+2*I86+2*I85+I84 -> 82 | H77: c1 | I77: =F77+2*(I80+1)+1*(I79+1)-3 -> 131 | K77: a1 | L77: =2*F77 -> 164 | N77: e1 | O77: =F77-I84+O82+2*O78+15 -> 101 | Q77: d1 | R77: =I87+2*I86+2*ROUND(F55*O250,0)-2*R79 -> 80
E78: تعداد رج دوبل برای ایجاد گودی گردن جلو b13 | F78: =ROUNDDOWN(0.25*O64*((AX129-BI128)),0) -> 5 | H78: c2 | I78: =ROUND(0.25*1.3*F54*I57,0)-1 -> 12 | K78: a2 | L78: =IF((ROUND(0.6*L56,0)-6)<0," خطا - قد پشت یقه زیاد شود ",(ROUND(0.6*L56,0)-6)) -> 7 | N78: e2 | O78: =ROUNDDOWN(0.5*(1.3*F54*R58-9),0) -> 4 | Q78: d2 | R78: =ROUND(F54*O54,0) -> 13
E79: تعداد رج سوبل برای ایجاد گودی گردن جلو b'''13 | F79: =ROUND((1/8)*O64*((AX129-BI128)),0) -> 3 | H79: c3 | I79: =ROUND(0.45*1.3*F54*I57,0)-1 -> 23 | K79: a3 | L79: =ROUND(0.33*L81,0) -> 19 | N79: e3 | O79: =ROUND(0.15*(F77-I84+O82+13),0) -> 14 | Q79: d3 | R79: =ROUND(F55*O54,0) -> 8
E80: فاصله گردن تا محل جدا شدن آستین در قسمت جلو (cm) b7 | F80: =ROUNDUP(SQRT(POWER(CI103-CI121,2)+POWER(CJ103-CJ121,2)),0) -> 28 | H80: c4 | I80: =I56-I78-I79-5 -> 13 | K80: a4 | L80: =ROUND(0.66*L81,0) -> 38 | N80: e4 | O80: =ROUND(0.24*(F77-I84+O82+9),0) -> 21 | Q80: d4 | R80: =IF((ROUND(F54*O55,0)-R78-4)<0,"خطا - بزرگی پشت یقه زیاد شود",(ROUND(F54*O55,0)-R78-4)) -> 5
E81: تعداد دانه های اضافه شده زیر بغل b8 | F81: =F64 -> 11 | K81: a5 | L81: =ROUND(0.35*L77,0) -> 57 | N81: e5 | O81: =ROUND(0.35*(F77-I84+O82+3),0) -> 28 | Q81: d5 | R81: =R77+2*R79 -> 96
E82: تعداد دانه های سرتاسر آستین در قسمت زیر بغل b20 | F82: =F65 -> 98 | K82: a6 | L82: =ROUND(0.4*L56,0) -> 9 | N82: e6 | O82: =O78 -> 4 | Q82: d6 | R82: =I87 -> 22
E83: فاصله زیر بغل تا پایین لباس (cm) b9 | F83: =ROUND(AX113,0) -> 48 | H83: تقسیم بندی بالاتنه | I83: تعداد دانه ها (بافت جودانه یا ساده) | J83: تعداد دانه ها (بافت انتخابی) | N83: e7 | O83: =F76 -> 4 | Q83: d7 | R83: =I86 -> 14
E84: فاصله زیر بغل تا بالای مچ آستین (cm) b10 | F84: =ROUNDUP(SQRT(POWER(DY513-DY520,2)+POWER(DZ513-DZ520,2)),0) -> 46 | H84: b6 جادکمه | I84: =2*F76 -> 8 | N84: e8 | O84: =2*(F76-2) -> 4 | Q84: d8 | R84: =ROUND(F55*O250,0) -> 23
E85: گشادی لبه پایین آستین (cm) b'11 | F85: =F62 -> 29 | H85: b3 جلو بدون جادکمه | I85: =ROUNDUP(F55*(SQRT(POWER(AX129-AX131,2)+POWER(AX130,2))+SQRT(POWER(AX131-AX133,2)+POWER(AX132-AX130,2))),0)-F76 -> 12 | J85: =ROUNDUP(O65*(SQRT(POWER(AX129-AX131,2)+POWER(AX130,2))+SQRT(POWER(AX131-AX133,2)+POWER(AX132-AX130,2))),0)-F76 -> 12 | N85: e9 | O85: =ROUNDUP(R61*1.3*F54*R57,0)-O83-O84-3 -> 0 | Q85: d9 | R85: =ROUND((F54*O56)/(F55*O58),0) -> 6
E86: تعداد دانه ها در بالای مچ آستین b'12 | F86: =F63 -> 52 | H86: b4 آستین | I86: =ROUNDDOWN(F55*(DE534+DE535),0) -> 14 | J86: =ROUNDDOWN(O65*(DE534+DE535),0) -> 14 | Q86: d10 | R86: =IF(ROUND((F54*(G271-G270))/(F55*G272),0)>40,"----",ROUND((F54*(G271-G270))/(F55*G272),0)) -> 11
E87: پهنای مچ آستین (cm) b14 | F87: =ROUNDUP(CA513-CA511,0) -> 10 | H87: b5 پشت | I87: =ROUNDDOWN(F55*2*(SQRT(POWER(BI128-BI130,2)+POWER(BI129,2))+SQRT(POWER(BI130-BI132,2)+POWER(BI131-BI129,2))),0) -> 22 | J87: =ROUNDDOWN(O65*2*(SQRT(POWER(BI128-BI130,2)+POWER(BI129,2))+SQRT(POWER(BI130-BI132,2)+POWER(BI131-BI129,2))),0) -> 22 | Q87: d12 | R87: =O57 -> 82 | AF87: شبیه ساز بالاتنه پشت
E88: گشادی مچ جدار در پایین آستین (cm) b15 | F88: =ROUND(BZ520-BZ519,0) -> 27 | AF88: انحنا | AJ88: خطوط برش
E89: در بالای مچ هر b12 دانه یکی کم شود | F89: =I66 -> 14 | AF89: =Y146 -> 8.0408 | AG89: =Y114 -> 42.6 | AH89: 27 | AJ89: =Y146 -> 8.0408 | AK89: =Y114 -> 42.6 | AL89: 27
E90: هر b11 رج در بافت آستین یکدانه از ابتدا و یکدانه از انتها کم شود | F90: =F68 -> 5 | AF90: =Y150 -> 6.0306 | AG90: =Y114-Y151 -> 41.17733846 | AH90: 32 | AJ90: =Y146+Y153 -> 14.00221007 | AK90: =Y114-Y154 -> 41.33084869 | AL90: 34
AF91: =Y148 -> 3.21632 | AG91: =Y114-Y149 -> 40.46600769 | AH91: 30
AF92: 0 | AG92: =Y114-Y147 -> 40.22889744 | AH92: 28 | AJ92: =Y115-Y135+Y141-Y156 -> 15.56892435 | AK92: =Y130+Y136+Y142+Y157 -> 41.01475602 | AL92: 36
AJ93: =Y115-Y135+Y141 -> 21.04 | AK93: =Y130+Y136+Y142 -> 38.32840415 | AL93: 24 | AZ93: انحنای حلقه آستین جلو
AF94: =Y115-Y135+Y141 -> 21.04 | AG94: =Y130+Y136+Y142 -> 38.32840415 | AH94: 24 | AZ94: =AZ125+'متغیرها '!C55 -> 33.24992943 | BA94: =BA125 -> 140.0429161 | BB94: شیفت22
AF95: =Y115-Y135+Y143 -> 19.612 | AG95: =Y130+Y136+Y144 -> 32.93623937 | AH95: 26 | AJ95: =Y115 -> 23.2057629 | AK95: =Y130 -> 17.84581574 | AL95: 14 | AZ95: =AZ128+'متغیرها '!C55 -> 30.65178504 | BA95: =BA128 -> 134.0932101 | BB95: شیفت24 | BF95: جادکمه در پیراهن
L96: به دست آوردن نقطه تقاطع دو خط (نمونه کپی) | M96: مولفه افقی | N96: مولفه عمودی | Q96: شبیه ساز بالاتنه جلو | AF96: =Y115-Y135 -> 19 | AG96: =Y130+Y136 -> 26.34581574 | AH96: 18 | AJ96: =Y115 -> 23.2057629 | AK96: =Y130-Y132 -> 17.84581574 | AL96: 16 | AZ96: =AZ115+'متغیرها '!C55 -> 29.53829458 | BA96: =BA115 -> 128.1435042 | BB96: شیفت16 | BD96: =AZ106 -> 5 | BE96: =BA106 -> 71.58 | BF96: 1
K97: نقطه اول از خط اول | L97: اسم نقطه | M97: 1 | N97: 1 | Q97: انحنا | U97: خطوط برش | AF97: =Y115-Y139 -> 20.26172887 | AG97: =Y130+Y140 -> 21.24581574 | AH97: 22 | AJ97: =Y121+Y123+Y124+Y127 -> 22.69887774 | AK97: =Y128 -> 0.02470463248 | AL97: 13 | AZ97: =AZ121+'متغیرها '!C55 -> 30.79946478 | BA97: =BA121 -> 123.1789602 | BB97: شیفت20 | BD97: =AX147+AX99 -> 3.32006 | BE97: =0+AX98 -> 71.58 | BF97: 1' | BH97: شیفت عمودی پشت پیراهن | BI97: =BG148+'متغیرها '!U59-BI148+'متغیرها '!C54 -> 66.58
K98: نقطه دوم از خط اول | L98: اسم نقطه | M98: 2 | N98: 2 | Q98: =L143 -> 8.0408 | R98: =L114 -> 46.4 | S98: 25 | U98: 0 | V98: =L114-L144 -> 36.49931238 | W98: 26 | AF98: =Y115-Y137 -> 22.36461032 | AG98: =Y130+Y138 -> 18.69581574 | AH98: 20 | AJ98: =Y121+Y123+Y124 -> 11.75 | AK98: 0 | AL98: 11 | AW98: شیفت عمودی جلو پیراهن | AX98: =H114+'متغیرها '!C52+(I104-H104) -> 71.58 | AZ98: =AZ118+'متغیرها '!C55 -> 32.69122007 | BA98: =BA118 -> 121.1104002 | BB98: شیفت18 | BD98: =AX148+AX99 -> 3.32006 | BE98: =AX103-AX129+AX98 -> 136.3693439 | BF98: 26' | BH98: شیفت افقی پشت پیراهن | BI98: ='متغیرها '!C53 -> 15
E99: اندازه ها در دامن و شلوار | H99: اندازه محاسبه | I99: شبیه ساز | K99: نقطه اول از خط دوم | L99: اسم نقطه | M99: 3 | N99: 2 | Q99: =L147 -> 6.43264 | R99: =L114-L148 -> 41.44965619 | S99: 30 | U99: 0 | V99: 0 | W99: 1 | AF99: =Y115 -> 23.2057629 | AG99: =Y130 -> 17.84581574 | AH99: 14 | AW99: شیفت افقی جلو پیراهن | AX99: ='متغیرها '!C51 -> 5 | AZ99: =AZ113+'متغیرها '!C55 -> 35.84414556 | BA99: =BA113 -> 119.8692642 | BB99: شیفت12 | BD99: =AZ102 -> 5 | BE99: =BA102 -> 136.3693439 | BF99: 26 | BG99: =BG149+BG150+BG151+1*(IF('متغیرها '!U55>'متغیرها '!U53,0.5*'متغیرها '!U55,0.5*'متغیرها '!U53)-BG149-BG151+BG163)-1*BG142-IF('متغیرها '!C125=1,2*BG143,BG150) -> 26.8 | BH99: (1 → 41) با شرط x5=1 | BI99: =BI149+BI150+BI151+1*(IF(H103>H101,0.5*H103,0.5*H101)+'متغیرها '!C62*H120-BI149-BI151+BI163)-1*BI142-IF('متغیرها '!C125=1,2*BI143,BI150) -> 27.77244
E100: دور کمر | F100: a | H100: ='متغیرها '!U52+0.3*'متغیرها '!C60*('متغیرها '!U52+'متغیرها '!U54+'متغیرها '!U72) -> 98.848 | I100: ='متغیرها '!U52 -> 97 | K100: نقطه دوم از خط دوم | L100: اسم نقطه | M100: 4 | N100: 4 | Q100: =L145 -> 3.21632 | R100: =L114-L146 -> 37.48938114 | S100: 28 | U100: =L120 -> 11.11764 | V100: 0 | W100: 8 | AJ100: =Y121+Y123 -> 11.35 | AK100: 0 | AL100: 10 | AV100: =AV156+AV157+AV158+1*(IF(('متغیرها '!U54-'متغیرها '!U55)>('متغیرها '!U52-'متغیرها '!U53),0.5*('متغیرها '!U54-'متغیرها '!U55),0.5*('متغیرها '!U52-'متغیرها '!U53))-AV156-AV158)-IF('متغیرها '!C125=1,2*AV150,AV157) -> 26.2 | AW100: (1 → 44) با شرط x5=1 | AX100: =AX156+AX157+AX158+1*(IF((H102-H103)>(H100-H101),0.5*(H102-H103),0.5*(H100-H101))+'متغیرها '!C62*H120-AX156-AX158)-IF('متغیرها '!C125=1,2*AX150,AX157) -> 27.23004 | AZ100: =BD156 -> 37.56794556 | BA100: =BE156 -> 119.8692642 | BB100: شیفت13 | BD100: =AZ106 -> 5 | BE100: =BA106 -> 71.58 | BF100: 1 | BH100: زاویه خط پهلو پشت | BI100: =ATAN((BI106-BI108)/(BI110-BI112-BI107)) -> 0.001175122827 | BO100: انحنای حلقه آستین پشت | BS100: انتقال قسمتی از ساسون سرشانه به خط مرکزی جلو و حلقه آستین با ساسون زیر بغل و خط رگلان | CA100: انتقال قسمتی از ساسون سرشانه به خط مرکزی پشت و حلقه آستین با ساسون زیر بغل | CI100: حلقه آستین و سرشانه و رگلان بدون ساسون | CQ100: حلقه آستین و سرشانه و رگلان بدون ساسون | CY100: جیب با ساسون | DG100: تکه پهلو جدا | DT100: کنترل گودی حلقه آستین | EF100: حلقه آستین با ساسون متغیر | EJ100: انگلیسی و آرشال چرخیده | EN100: پهلو ترک | ER100: پهلو برای جیب با ساسون | EV100: اطلاعات اندام | EZ100: پهلو جدا در پیراهن | FD100: رسم انحنا جلو آستر کت | FH100: حلقه آستین با ساسون متغیر | FL100: یقه گرد | FP100: پهلو جدا و ترک وسط و نیمی از حلقه آستین عصایی | FT100: پهلو جدا و ترک وسط و حلقه آستین عصایی در آستر کت | GA100: رسم قرینه جلو پیراهن
E101: نوار کمر از پشت بین دو خط پهلو | F101: b | H101: ='متغیرها '!U53+0.3*'متغیرها '!C60*('متغیرها '!U53+'متغیرها '!U55+'متغیرها '!U73) -> 45.4664 | I101: ='متغیرها '!U53 -> 44.6 | K101: نقطه تقاطع | L101: اسم نقطه | M101: =(N99-N97+M97*((N98-N97)/(M98-M97))-M99*((N100-N99)/(M100-M99)))/(((N98-N97)/(M98-M97))-((N100-N99)/(M100-M99))) -> 4 | N101: =N97+(M101-M97)*((N98-N97)/(M98-M97)) -> 4 | Q101: =0 -> 0 | R101: =L114-L144 -> 36.49931238 | S101: 26 | AJ101: =Y121 -> 0 | AK101: 0 | AL101: 9 | AW101: زاویه خط پهلو جلو در پیراهن راسته با ساسون | AX101: =ATAN((AX110-AX104)/(AX113-AX115-AX111)) -> 0.001175122827 | AZ101: رسم جلو پیراهن | BD101: انحنای حلقه یقه جلو | BH101: زاویه متوسط سرشانه پشت و جلو مانتو راسته | BI101: =0.5*(P139+0.3*(P140-P139)+AE139+0.3*(AE140-AE139)) -> 0.2782010298 | BK101: =BI126+BI98 -> 28.67693565 | BL101: =BI125+BI97 -> 130.9189297 | BM101: 22 | BO101: =BK140 -> 35.64226427 | BP101: =BL140 -> 135.0225037 | BQ101: شیفت18 | BS101: نقاط ورودی | BW101: انتخاب c1 >1 | BX101: ='متغیرها '!C108 -> 0 | CA101: نقاط ورودی | CI101: نقاط ورودی | CO101: حلقه بدون ساسون | CQ101: نقاط ورودی | CV101: انحنا | CY101: نقاط ورودی | DC101: نقاط خروجی | DG101: نقاط ورودی | DK101: نقاط ورودی | DO101: نقاط خروجی | DT101: نقاط ورودی | DX101: نقاط ورودی | ED101: =BW139+BT130 -> 36.17413272 | EE101: =BX139 -> 127.5366024 | EF101: شیفت b14 | EL101: =BS140+BT130 -> 35.84414556 | EM101: =BT140 -> 115.3873842 | EN101: شیفت 14 | EP101: مولفه افقی | EQ101: مولفه عمودی | ER101: اسم نقطه | EV101: کمر | EX101: =DG103 -> 32.69122007 | EY101: =DH103 -> 121.1104002 | EZ101: =DI103 -> 18شیفت | FB101: =BW114 -> 11.99553017 | FC101: =BX114 -> 141.4427034 | FD101: e5 | FF101: =CE122+CB112 -> 40.8117746 | FG101: =CF122+CB113 -> 112.4737391 | FH101: شیفت b14 | FJ101: =CE105 -> 23.34842128 | FK101: 139.0322931 | FL101: 23 | FN101: =DL167 -> 34.78553803 | FO101: =DM167 -> 122.4708058 | FP101: شیفت12p یا 12 | FR101: =DK103 -> 34.78553803 | FS101: 122.4708058 | FT101: شیفت12p | FX101: مولفه افقی | FY101: مولفه عمودی | FZ101: اسم نقطه | GC101: =AZ106 -> 5 | GD101: مرجع | GH101: 12' | GK101: =-2*'متغیرها '!C51 -> -10 | GL101: شیفت افقی | GO101: ='متغیرها '!C52 -> 5 | GP101: شیفت عمودی | GT101: 14' | GX101: 19' | HB101: 48' | HF101: 81' | HJ101: 64' | HN101: 77'
E102: دور باسن | F102: c | H102: ='متغیرها '!U54+0.3*'متغیرها '!C60*('متغیرها '!U52+'متغیرها '!U54+'متغیرها '!U72) -> 106.848 | I102: ='متغیرها '!U54 -> 105 | U102: =L120+L121 -> 13.70764 | V102: 0 | W102: 9 | AJ102: 0 | AK102: =Y117 -> 31.95 | AL102: 5 | AV102: شبیه ساز | AW102: متغیرهای خروجی جلو پیراهن با ساسون کمر | AZ102: =AX99 -> 5 | BA102: =AX103-AX129+AX98 -> 136.3693439 | BB102: 26 | BD102: =AZ140 -> 13.35125318 | BE102: =BA140 -> 146.8467656 | BF102: 25 | BG102: شبیه ساز | BH102: متغیرهای خروجی پشت پیراهن با ساسون کمر (رسم کاربر) | BK102: =0+BI98 -> 15 | BL102: =BI125+BI97 -> 130.9189297 | BM102: 21 | BO102: =BK110 -> 35.0425559 | BP102: =BL110 -> 129.3742397 | BQ102: شیفت20 | BS102: مولفه افقی | BT102: مولفه عمودی | BU102: اسم نقطه | BW102: انتخاب عصایی | BX102: ='متغیرها '!C101 -> 0 | CA102: مولفه افقی | CB102: مولفه عمودی | CC102: اسم نقطه | CI102: مولفه افقی | CJ102: مولفه عمودی | CK102: اسم نقطه | CM102: =CI117+CJ105 -> 24.25469653 | CN102: =CJ117 -> 143.7326593 | CO102: شیفت 22f | CQ102: مولفه افقی | CR102: مولفه عمودی | CS102: اسم نقطه | CU102: =CQ120+CR105 -> 34.25186463 | CV102: =CR120+CR106 -> 135.9181867 | CW102: شیفت 18f | CY102: مولفه افقی | CZ102: مولفه عمودی | DA102: اسم نقطه | DC102: مولفه افقی | DD102: مولفه عمودی | DE102: اسم نقطه | DG102: مولفه افقی | DH102: مولفه عمودی | DI102: اسم نقطه | DK102: مولفه افقی | DL102: مولفه عمودی | DM102: اسم نقطه | DO102: =DK106+DH109 -> 42.24083201 | DP102: =DL106+DH110 -> 113.7139018 | DQ102: شیفت8m | DR102: پیراهن | DT102: مولفه افقی | DU102: مولفه عمودی | DV102: اسم نقطه | DX102: مولفه افقی | DY102: مولفه عمودی | DZ102: اسم نقطه | ED102: =BW140+BT130 -> 36.29703227 | EE102: =BX140 -> 122.7362242 | EF102: شیفت b2 | EH102: =BW105 -> 13.35125318 | EI102: =BX105 -> 146.8467656 | EJ102: چرخیده 25 | EL102: =AZ168+BT130 -> 33.52504 | EM102: =BA168 -> 103.921203 | EN102: شیفت 41 | EP102: =CY109 -> 16.30646911 | EQ102: =CZ109 -> 71.58 | ER102: 52 | ET102: =AZ165 -> 5 | EU102: =BA165 -> 100.5 | EV102: 38 | EX102: =DG121 -> 32.69122007 | EY102: 115.3873842 | EZ102: =DI121 -> 14شیفتm | FB102: =DP169 -> 14.02287793 | FC102: =DQ169 -> 130.5656431 | FD102: a4 | FF102: =CE116+CB112 -> 38.22743162 | FG102: =CF116+CB113 -> 113.473364 | FH102: شیفت b8 | FJ102: 21.26131596 | FK102: 137.4612652 | FL102: 28 | FN102: =DL168 -> 36.07624857 | FO102: =DM168 -> 116.4719818 | FP102: شیفت16p یا 16 | FR102: 36.07624857 | FS102: 116.4719818 | FT102: شیفت16p | FZ102: 6' | GB102: مولفه افقی | GC102: مولفه عمودی | GD102: اسم نقطه | GF102: =-EX101-GK101 -> -22.69122007 | GG102: =EY101 -> 121.1104002 | GH102: شیفت 18 | GL102: 3' | GP102: 10' | GR102: =-EP102-GK101 -> -6.306469112 | GS102: =EQ102 -> 71.58 | GT102: 52 | GV102: =-CR154-GK101 -> -7.601469112 | GW102: =CS154 -> 118.23 | GX102: 43 | GZ102: =-DY255-GK101 -> 6.67994 | HA102: =DZ255 -> 125.2195874 | HB102: p10 | HD102: =-AG277-GK101 -> -14.46347404 | HE102: =AH277 -> 144.5213593 | HF102: c22 | HH102: =-CP238-GK101 -> -0.28 | HI102: =CQ238 -> 75.38271983 | HJ102: m2 | HL102: =-DN238-GK101 -> -25.84414556 | HM102: =DO238 -> 115.3873842 | HN102: 14
E103: نوار باسن از پشت بین دو خط پهلو | F103: d | H103: ='متغیرها '!U55+0.3*'متغیرها '!C60*('متغیرها '!U53+'متغیرها '!U55+'متغیرها '!U73) -> 54.4664 | I103: ='متغیرها '!U55 -> 53.6 | K103: به دست آوردن مختصات قرینه یک نقطه نسبت به خط تقارن با داشتن دونقطه از خط تقارن (نمونه کپی) | Q103: =L115-L132+L138 -> 28.56 | R103: =L127+L133+L139 -> 39.22651835 | S103: 22 | U103: =L120+L121+L124 -> 28.79 | V103: =L125 -> 3.421202974 | W103: 11 | AJ103: 0 | AK103: =Y114-Y147 -> 40.22889744 | AL103: 28 | AV103: =L114+'متغیرها '!U56-H114 -> 75.32 | AW103: (1 → 2) | AX103: =K114+H104-H114 -> 75.26676563 | AZ103: =AX99 -> 5 | BA103: =AX105+AX98 -> 122.17 | BB103: 4 | BD103: =AZ148 -> 11.68100254 | BE103: =BA148 -> 141.6080548 | BF103: 30 | BG103: ='متغیرها '!U58-'متغیرها '!U59+Y114 -> 98 | BH103: (1 → 2) | BI103: =H106-H114+AA114 -> 72.45229312 | BK103: =0+BI98 -> 15 | BL103: =BI103+BI97 -> 139.0322931 | BM103: 2 | BO103: =BK112 -> 34.78553803 | BP103: =BL112 -> 122.4708058 | BQ103: شیفت12 | BT103: =('متغیرها '!C107/('متغیرها '!C106+0.001))*(BU143-BU142) -> 0 | BU103: زاویه چرخش به خط مرکزی جلو | BW103: نقاط خروجی چرخیده | CB103: =('متغیرها '!C112/('متغیرها '!C111+0.001))*(CC126-CC125) -> 0 | CC103: زاویه چرخش به خط مرکزی پشت | CE103: نقاط خروجی چرخیده | CI103: =BW106 -> 11.68100254 | CJ103: =BX106 -> 141.6080548 | CK103: 30 | CM103: =CI118+CJ105 -> 24.6549763 | CN103: =CJ118 -> 137.9200472 | CO103: شیفت 24f | CQ103: =BK135 -> 21.26131596 | CR103: =BL135 -> 137.4612652 | CS103: 28 | CU103: =CQ121+CR105 -> 33.47871673 | CV103: =CR121+CR106 -> 128.1811979 | CW103: شیفت 20f | CY103: =AZ161 -> 17.60146911 | CZ103: =BA161 -> 118.23 | DA103: 43 | DC103: =CY110-(CY106-CY109) -> 16.02502 | DD103: =CZ110 -> 71.58 | DE103: 50s | DG103: =AZ98 -> 32.69122007 | DH103: =BA98 -> 121.1104002 | DI103: 18شیفت | DJ103: پیراهن | DK103: =DL167 -> 34.78553803 | DL103: =DM167 -> 122.4708058 | DM103: شیفت12p | DN103: پیراهن | DO103: =DK107+DH109 -> 42.24083201 | DP103: =DL107 -> 107.9908858 | DQ103: شیفت10m | DT103: =DT151 -> 24.57310558 | DU103: =DU151 -> 145.3003782 | DV103: 22b | DW103: راس حلقه آستین | DX103: =DY152 -> 35.89129835 | DY103: =DZ152 -> 135.5582863 | DZ103: 18b | EA103: راس حلقه آستین | EH103: =BW113 -> 12.51612786 | EI103: =BX113 -> 143.7035391 | EJ103: e7 | EP103: =DC103 -> 16.02502 | EQ103: 71.58 | ER103: 50s | ET103: =AZ166 -> 16.95396911 | EU103: =BA166 -> 100.5 | EV103: 39 | EX103: 30.37211451 | EY103: 103.921203 | EZ103: =DI122 -> 41شیفتm | FB103: =DP168 -> 20.10492119 | FC103: =DQ168 -> 125.127113 | FD103: a3 | FF103: =IF('متغیرها '!C119=1,DX123,CE117)+CB112 -> 36.07603953 | FG103: =IF('متغیرها '!C119=1,DY123,CF117)+CB113 -> 116.472627 | FH103: شیفت b10 یا b'10p | FJ103: 18.33936851 | FK103: 136.6757512 | FL103: 26 | FN103: =DO109 -> 37.28091175 | FO103: =DP109 -> 114.2758606 | FP103: =DQ109 -> شیفت8''m | FR103: =DO109 -> 37.28091175 | FS103: =DP109 -> 114.2758606 | FT103: =DQ109 -> شیفت8''m | FX103: =-CM102-GK101 -> -14.25469653 | FY103: =CN102 -> 143.7326593 | FZ103: شیفت 22f | GD103: 7' | GF103: =-EX102-GK101 -> -22.69122007 | GG103: =EY102 -> 115.3873842 | GH103: شیفت 14m | GJ103: =-ED101-GK101 -> -26.17413272 | GK103: =EE101 -> 127.5366024 | GL103: شیفت b14 | GN103: =-EL101-GK101 -> -25.84414556 | GO103: =EM101 -> 115.3873842 | GP103: شیفت 14 | GR103: =-EP103-GK101 -> -6.02502 | GS103: 71.58 | GT103: 50s | GV103: =-CR155-GK101 -> -6.953969112 | GW103: =CS155 -> 100.5 | GX103: 39 یا d5 | GZ103: =-DY256-GK101 -> 6.67994 | HA103: =DZ256 -> 71.58 | HB103: 1' | HD103: =-AG278-GK101 -> -25.51008712 | HE103: =AH278 -> 137.9928795 | HF103: c4 | HH103: =-CP239-GK101 -> -1.8287528 | HI103: =CQ239 -> 79.13376789 | HJ103: m10 | HL103: =-DN239-GK101 -> -23.52504 | HM103: =DO239 -> 103.921203 | HN103: 41
E104: فاصله نوار کمر تا زمین، از قسمت جلو | F104: e | H104: ='متغیرها '!U56+'متغیرها '!C63*'متغیرها '!U56 -> 95.5 | I104: ='متغیرها '!U56 -> 95.5 | K104: مولفه افقی | L104: مولفه عمودی | M104: اسم نقطه | Q104: =L115-L132+L140 -> 25.228 | R104: =L127+L133+L141 -> 33.63441622 | S104: 24 | U104: =L115 -> 29.9 | V104: =L127-L129 -> 21.24231408 | W104: 14 | AV104: =L115 -> 29.9 | AW104: (1 → 3) | AX104: =K115 -> 30.84414556 | AZ104: =AX106+AX99 -> 17.60146911 | BA104: =AX105+AX98 -> 122.17 | BB104: 5 | BD104: =AZ145 -> 8.340501271 | BE104: =BA145 -> 137.4170861 | BF104: 28 | BH104: (1 → 3) | BI104: =BI106+(BI107-BI105)*TAN(BI100) -> 24.13845584 | BK104: =BI127+BI98 -> 23.34842128 | BL104: =BI103+BI97 -> 139.0322931 | BM104: 23 | BO104: =BK117 -> 36.07624857 | BP104: =BL117 -> 116.4719818 | BQ104: شیفت16 | BS104: =AZ165+AN119 -> 17.60146911 | BT104: =BA165+AO119 -> 120.2 | BU104: 5 بالاتنه | BV104: نقطه مرکزی چرخش | BW104: مولفه افقی | BX104: مولفه عمودی | BY104: اسم نقطه | CA104: =BO164 -> 26.7666 | CB104: =BP164 -> 113.4556109 | CC104: 40 | CD104: نقطه مرکزی چرخش | CE104: مولفه افقی | CF104: مولفه عمودی | CG104: اسم نقطه | CI104: =AZ104 -> 17.60146911 | CJ104: =BA104 -> 122.17 | CK104: 5پیراهن | CM104: =CI119+CJ105 -> 25.58896243 | CN104: =CJ119 -> 132.1074351 | CO104: شیفت 16f | CQ104: =BK154 -> 26.7666 | CR104: =BL154 -> 113.4556109 | CS104: 40 | CU104: =CQ122+CR105 -> 33.56104097 | CV104: =CR122+CR106 -> 123.0232053 | CW104: شیفت 12f | CY104: =BD168-CZ122 -> 18.24896911 | CZ104: =BE168 -> 100.5 | DA104: 40 | DC104: =CY111-(CY106-CY109) -> 20.109526 | DD104: 71.73824059 | DE104: 50's | DG104: =BD177 -> 35.84414556 | DH104: 115.3873842 | DI104: 14شیفت | DK104: =DL168 -> 36.07624857 | DL104: =DM168 -> 116.4719818 | DM104: شیفت16p | DO104: =DK108+DH109 -> 41.42536549 | DP104: =DL108 -> 96.52470463 | DQ104: شیفت36m | DT104: =BW105 -> 13.35125318 | DU104: =BX105 -> 146.8467656 | DV104: 25 | DW104: راس یقه | DX104: =CE105 -> 23.34842128 | DY104: =CF105 -> 139.0322931 | DZ104: 23 | EA104: راس یقه | ED104: =BW139+BT130 -> 36.17413272 | EE104: =BX139 -> 127.5366024 | EF104: شیفتb14 | EH104: =BW114 -> 11.99553017 | EI104: =BX114 -> 141.4427034 | EJ104: e5 | EL104: =AZ168+BT130 -> 33.52504 | EM104: =BA168 -> 103.921203 | EN104: شیفت 41 | EP104: 20.109526 | EQ104: 71.73824059 | ER104: 50's | EX104: 29.07711451 | EY104: 87.27120297 | EZ104: =DI123 -> 45شیفتm | FB104: =DP166 -> 32.26900772 | FC104: =DQ166 -> 123.3142696 | FD104: a1 | FF104: =IF('متغیرها '!C119=1,DX122,CE118)+CB112 -> 34.78491329 | FG104: =IF('متغیرها '!C119=1,DY122,CF118)+CB113 -> 122.4713615 | FH104: شیفت b6 یا b'6p | FJ104: 15 | FK104: 136.4139132 | FL104: 24 | FN104: =DO107 -> 39.08790652 | FO104: =DP107 -> 113.0933338 | FP104: =DQ107 -> شیفت8'm | FR104: =DO107 -> 39.08790652 | FS104: =DP107 -> 113.0933338 | FT104: =DQ107 -> شیفت8'm | FX104: =-CM103-GK101 -> -14.6549763 | FY104: 137.9200472 | FZ104: شیفت 24f | GB104: =-CM113-GK101 -> -14.25469653 | GC104: =CN113 -> 143.7326593 | GD104: شیفت22f | GF104: =-EX103-GK101 -> -20.37211451 | GG104: =EY103 -> 103.921203 | GH104: شیفت 41m | GJ104: =-ED102-GK101 -> -26.29703227 | GK104: =EE102 -> 122.7362242 | GL104: شیفت b2 | GN104: =-EL104-GK101 -> -23.52504 | GO104: =EM104 -> 103.921203 | GP104: شیفت 41 | GR104: =-EP104-GK101 -> -10.109526 | GS104: 71.73824059 | GT104: 50's | HD104: =-AG279-GK101 -> -34.54822509 | HE104: =AH279 -> 126.8768193 | HF104: c12 | HH104: =-CP240-GK101 -> -6.4750112 | HI104: =CQ240 -> 83.42067996 | HJ104: m8 | HL104: =-DN240-GK101 -> -22.23004 | HM104: =DO240 -> 87.27120297 | HN104: 45
E105: فاصله نوار کمر تا زمین، از قسمت پهلو | F105: f | H105: =ROUND(0.5*('متغیرها '!U56+'متغیرها '!U58),1)+'متغیرها '!C63*ROUND(0.5*('متغیرها '!U56+'متغیرها '!U58),1) -> 96 | I105: =ROUND(0.5*('متغیرها '!U56+'متغیرها '!U58),1) -> 96 | K105: 1 | L105: 1 | M105: e1 | N105: نقطه اول خط تقارن | Q105: =L115-L132 -> 23.8 | R105: =L127+L133 -> 28.04231408 | S105: 16 | U105: =L115 -> 29.9 | V105: =L127 -> 21.24231408 | W105: 12 | AJ105: انحنای حلقه آستین و ساسون سرشانه پشت | AW105: (1→ 4) | AX105: =H104-H114+V142 -> 50.59 | AZ105: =AZ103 -> 5 | BA105: =BA103 -> 122.17 | BB105: 4 | BD105: =AZ102 -> 5 | BE105: =BA102 -> 136.3693439 | BF105: 26 | BH105: (3→ 4) | BI105: =BI159 -> -1.605295368 | BK105: =BI127+BI134+BI98 -> 29.19322562 | BL105: =BI103+BI97 -> 139.0322931 | BM105: 29 | BO105: =BK120 -> 38.22743282 | BP105: =BL120 -> 113.4725698 | BQ105: شیفت14 | BS105: =BD102 -> 13.35125318 | BT105: 146.8467656 | BU105: 25 | BV105: نقطه یقه | BW105: =BS104+SQRT(POWER(BS105-BS104,2)+POWER(BT105-BT104,2))*SIN(BT103-ATAN((BS104-BS105)/(BT105-BT104))) -> 13.35125318 | BX105: =BT104+SQRT(POWER(BS105-BS104,2)+POWER(BT105-BT104,2))*COS(BT103-ATAN((BS104-BS105)/(BT105-BT104))) -> 146.8467656 | BY105: =BU105 -> 25 | CA105: =BK104 -> 23.34842128 | CB105: =BL104 -> 139.0322931 | CC105: 23 | CD105: نقطه یقه | CE105: =CA104+SQRT(POWER(CA105-CA104,2)+POWER(CB105-CB104,2))*SIN(CB103-ATAN((CA104-CA105)/(CB105-CB104))) -> 23.34842128 | CF105: =CB104+SQRT(POWER(CA105-CA104,2)+POWER(CB105-CB104,2))*COS(CB103-ATAN((CA104-CA105)/(CB105-CB104))) -> 139.0322931 | CG105: =CC105 -> 23 | CJ105: ='متغیرها '!C55 -> 0 | CK105: شیفت افقی تکه پهلو | CM105: =CI120+CJ105 -> 27.43592446 | CN105: =CJ120 -> 125.9883497 | CO105: شیفت 20f | CR105: ='متغیرها '!C56 -> 0 | CS105: شیفت افقی تکه پهلو | CU105: =CQ123+CR105 -> 34.59479208 | CV105: =CR123+CR106 -> 118.3341211 | CW105: شیفت 16f | CY105: =AZ180-CZ122 -> 18.89646911 | CZ105: =BA180 -> 84.3 | DA105: 47'' | DC105: =CY112-(CY106-CY109) -> 23.513281 | DD105: 72.01516164 | DE105: 50''s | DG105: 33.52504 | DH105: 103.921203 | DI105: 41شیفت | DK105: =BO126 -> 26.7666 | DL105: =BP126 -> 113.4556109 | DM105: شیفت40 | DO105: =DK109+DH109 -> 45.47536549 | DP105: =DL109 -> 79.87470463 | DQ105: شیفت42m | DT105: =BW136 -> 24.34041777 | DU105: =BX136 -> 138.0302721 | DV105: b12 | DW105: نقطه حلقه آستین | DX105: =CE119 -> 35.04145278 | DY105: =CF119 -> 129.3748131 | DZ105: b12 | EA105: نقطه حلقه آستین | ED105: =BW132+BT130 -> 34.58159617 | EE105: =BX132 -> 126.8768193 | EF105: شیفتb4 | EL105: =AZ172 -> 32.23004 | EM105: =BA172 -> 87.27120297 | EN105: شیفت 45 | EP105: 23.513281 | EQ105: 72.01516164 | ER105: 50''s | ET105: =AZ179 -> 18.24896911 | EU105: =BA179 -> 100.5 | EV105: شیفت 40 | EX105: 29.07711451 | EY105: 71.97560149 | EZ105: =DI124 -> 49'شیفتm | FF105: =IF('متغیرها '!C119=1,DX121,CE119)+CB112 -> 35.04145278 | FG105: =IF('متغیرها '!C119=1,DY121,CF119)+CB113 -> 129.3748131 | FH105: شیفت b12 یا b'12p | FN105: =DO102 -> 42.24083201 | FO105: =DP102 -> 113.7139018 | FP105: =DQ102 -> شیفت8m | FR105: =DO102 -> 42.24083201 | FS105: =DP102 -> 113.7139018 | FT105: =DQ102 -> شیفت8m | FX105: =-CM104-GK101 -> -15.58896243 | FY105: 132.1074351 | FZ105: شیفت 16f | GB105: =-CM114-GK101 -> -8.802974853 | GC105: =CN114 -> 145.2897124 | GD105: شیفت وسط 22f | GF105: =-EX104-GK101 -> -19.07711451 | GG105: =EY104 -> 87.27120297 | GH105: شیفت 45m | GR105: =-EP105-GK101 -> -13.513281 | GS105: 72.01516164 | GT105: 50''s | GV105: =-CR155-GK101 -> -6.953969112 | GW105: =CS155 -> 100.5 | GX105: 39 یا d5 | GZ105: =-DY258-GK101 -> 6.67994 | HA105: =DZ258 -> 71.58 | HB105: 1' | HD105: =-AG280-GK101 -> -52.54398807 | HE105: =AH280 -> 81.86856402 | HF105: c2 | HH105: =-CP241-GK101 -> -14.661276 | HI105: =CQ241 -> 85.8856544 | HJ105: m6 | HL105: =-DN241-GK101 -> -20.85723762 | HM105: =DO241 -> 72.064 | HN105: p7
E106: فاصله نوار کمر تا زمین، از قسمت پشت | F106: g | H106: ='متغیرها '!U58+'متغیرها '!C63*'متغیرها '!U58 -> 96.5 | I106: ='متغیرها '!U58 -> 96.5 | K106: 2 | L106: 2 | M106: e10 | N106: نقطه دوم خط تقارن | Q106: =L115-L136 -> 25.02 | R106: =L127+L137 -> 23.96231408 | S106: 20 | AF106: انحنا ساسون کمر | AJ106: =AR152 -> 15.81212393 | AK106: 40.92391791 | AL106: 36 | AW106: (4 → 5) | AX106: =U142 -> 12.60146911 | AZ106: =AX99 -> 5 | BA106: =0+AX98 -> 71.58 | BB106: 1 | BG106: =BG108+0.5*(AV100-AV104+BG99-BG108) -> 23.15288145 | BH106: (1 → 5) | BI106: =BI108+0.5*(AX100-AX104+BI99-BI108) -> 24.12312048 | BK106: =BI127+BI134+BI98 -> 29.19322562 | BL106: =BI103-BI135+BI97 -> 137.7458625 | BM106: 30 | BO106: =BK114 -> 40.81170652 | BP106: =BL114 -> 112.4727658 | BQ106: شیفت9 | BS106: 11.68100254 | BT106: 141.6080548 | BU106: 30 | BV106: نقطه یقه | BW106: =BS104+SQRT(POWER(BS106-BS104,2)+POWER(BT106-BT104,2))*SIN(BT103-ATAN((BS104-BS106)/(BT106-BT104))) -> 11.68100254 | BX106: =BT104+SQRT(POWER(BS106-BS104,2)+POWER(BT106-BT104,2))*COS(BT103-ATAN((BS104-BS106)/(BT106-BT104))) -> 141.6080548 | BY106: 30 | CA106: =BK135 -> 21.26131596 | CB106: =BL135 -> 137.4612652 | CC106: 28 | CD106: نقطه یقه | CE106: =CA104+SQRT(POWER(CA106-CA104,2)+POWER(CB106-CB104,2))*SIN(CB103-ATAN((CA104-CA106)/(CB106-CB104))) -> 21.26131596 | CF106: =CB104+SQRT(POWER(CA106-CA104,2)+POWER(CB106-CB104,2))*COS(CB103-ATAN((CA104-CA106)/(CB106-CB104))) -> 137.4612652 | CG106: 28 | CI106: نقاط ورودی | CM106: =CI121+CJ105 -> 31.02523855 | CN106: =CJ121 -> 121.7049898 | CO106: شیفت 18f | CR106: ='متغیرها '!C57 -> 0 | CS106: شیفت عمودی تکه پهلو | CU106: =CQ124+CR105 -> 37.13252503 | CV106: =CR124+CR106 -> 114.5828537 | CW106: شیفت 14f | CY106: =AZ181-CZ122 -> 18.89646911 | CZ106: =BA181 -> 71.58 | DA106: 53 | DC106: =CY113-(CY106-CY109) -> 26.917036 | DD106: 72.29208268 | DE106: 50'''s | DG106: 32.23004 | DH106: 87.27120297 | DI106: 45شیفت | DK106: =BK122 -> 39.08790652 | DL106: =BL122 -> 112.4727658 | DM106: شیفت8 | DO106: =DK110+DH109 -> 45.47536549 | DP106: =DL110-0.5*(CZ114-CZ106) -> 64.57910315 | DQ106: شیفت43''m | DT106: =BW135 -> 25.58896243 | DU106: =BX135 -> 132.1074351 | DV106: b6 | DW106: نقطه حلقه آستین | DX106: =CE118 -> 34.78491329 | DY106: =CF118 -> 122.4713615 | DZ106: b6 | EA106: نقطه حلقه آستین | ED106: =BW133+BT130 -> 31.19371493 | EE106: =BX133 -> 126.8166658 | EF106: شیفتb8 | EH106: =BW114 -> 11.99553017 | EI106: =BX114 -> 141.4427034 | EJ106: e5 | EP106: 26.917036 | EQ106: 72.29208268 | ER106: 50'''s | ET106: =BD178 -> 33.52504 | EU106: =BE178 -> 103.921203 | EV106: شیفت 41 | FB106: =DP167 -> 33.52951329 | FC106: =DQ167 -> 118.0544176 | FD106: a2 | FF106: =DY152+CB112 -> 35.89129835 | FG106: =DZ152+CB113 -> 135.5582863 | FH106: شیفت 18b | FL106: پهلو ترک | FX106: =-CM105-GK101 -> -17.43592446 | FY106: 125.9883497 | FZ106: شیفت 20f | GF106: =-EX105-GK101 -> -19.07711451 | GG106: =EY105 -> 71.97560149 | GH106: شیفت 49'm | GJ106: =-ED104-GK101 -> -26.17413272 | GK106: =EE104 -> 127.5366024 | GL106: شیفتb14 | GN106: =-EL104-GK101 -> -23.52504 | GO106: =EM104 -> 103.921203 | GP106: شیفت 41 | GR106: =-EP106-GK101 -> -16.917036 | GS106: 72.29208268 | GT106: 50'''s | GV106: =-CR158-GK101 -> -6.647006149 | GW106: =CS158 -> 92.82 | GX106: d5 | GZ106: =-DY259-GK101 -> -6.306469112 | HA106: =DZ259 -> 71.58 | HB106: 52 | HH106: =-CP242-GK101 -> -22.40504 | HI106: =CQ242 -> 86.1 | HJ106: m4
E107: فاصله نوار زانو تا زمین | F107: h | H107: ='متغیرها '!U59+'متغیرها '!C63*'متغیرها '!U59 -> 41.1 | I107: ='متغیرها '!U59 -> 41.1 | K107: 1 | L107: 2 | M107: e3 | N107: نقطه قرینه خواسته | Q107: =L115-L134 -> 26.85 | R107: =L127+L135 -> 22.26231408 | S107: 18 | U107: =L143 -> 8.0408 | V107: =L114 -> 46.4 | W107: 25 | AF107: =AR130 -> 24.04873684 | AG107: =AS130 -> 11.50069879 | AH107: 16 | AJ107: 14.95804862 | AK107: 38.64717204 | AL107: 36- | AW107: (1 → 6) | AX107: =AX110+(AX111-AX108)*TAN(AX101) -> 30.89469488 | AZ107: =AX107+AX99 -> 35.89469488 | BA107: =0+AX98 -> 71.58 | BB107: 6 | BD107: =J248 -> 3.32006 | BE107: =K248 -> 114.42 | BF107: e1 | BH107: (5 → 6) | BI107: =H108-H114+Y128+0.5*(H106-H104) -> 11.44470463 | BS107: 8.340501271 | BT107: 137.4170861 | BU107: 28 | BV107: نقطه یقه | BW107: =BS104+SQRT(POWER(BS107-BS104,2)+POWER(BT107-BT104,2))*SIN(BT103-ATAN((BS104-BS107)/(BT107-BT104))) -> 8.340501271 | BX107: =BT104+SQRT(POWER(BS107-BS104,2)+POWER(BT107-BT104,2))*COS(BT103-ATAN((BS104-BS107)/(BT107-BT104))) -> 137.4170861 | BY107: 28 | CA107: =BK132 -> 18.33936851 | CB107: =BL132 -> 136.6757512 | CC107: 26 | CD107: نقطه یقه | CE107: =CA104+SQRT(POWER(CA107-CA104,2)+POWER(CB107-CB104,2))*SIN(CB103-ATAN((CA104-CA107)/(CB107-CB104))) -> 18.33936851 | CF107: =CB104+SQRT(POWER(CA107-CA104,2)+POWER(CB107-CB104,2))*COS(CB103-ATAN((CA104-CA107)/(CB107-CB104))) -> 136.6757512 | CG107: 26 | CI107: مولفه افقی | CJ107: مولفه عمودی | CK107: اسم نقطه | CM107: =CI110+CJ105 -> 35.84414556 | CN107: =CJ110 -> 119.8692642 | CO107: شیفت 12 | CR107: ='متغیرها '!C71 -> 0.05 | CS107: x6 | CU107: =CQ113+CR105 -> 40.81170652 | CV107: =CR113+CR106 -> 112.4727658 | CW107: شیفت 9 | CY107: =AZ166 -> 16.95396911 | CZ107: =BA166 -> 100.5 | DA107: 39 | DC107: =CY114-(CY106-CY109) -> 29.64004 | DD107: 72.37120297 | DE107: 49's | DG107: 32.23004 | DH107: 72.37120297 | DI107: 49'شیفت | DK107: =BO170 -> 39.08790652 | DL107: =BP170 -> 107.9908858 | DM107: شیفت10 | DO107: =DK106 -> 39.08790652 | DP107: =DL106+0.5*(DP102-DL106) -> 113.0933338 | DQ107: شیفت8'm | DT107: =BW134 -> 28.65427276 | DU107: =BX134 -> 128.0036418 | DV107: b10 | DW107: نقطه حلقه آستین | DX107: =CE117 -> 36.07603953 | DY107: =CF117 -> 116.472627 | DZ107: b10 | EA107: نقطه حلقه آستین | ED107: =IF('متغیرها '!C119=1,DT123,BW134)+BT130 -> 28.65427276 | EE107: =IF('متغیرها '!C119=1,DU123,BX134) -> 128.0036418 | EF107: شیفت b10 یا b'10g | EH107: =BW117 -> 4.495739963 | EI107: =BX117 -> 138.2073016 | EJ107: e9 | EL107: =AZ172 -> 32.23004 | EM107: =BA172 -> 87.27120297 | EN107: شیفت 45 | EP107: 29.64004 | EQ107: 72.37120297 | ER107: 49's | EV107: باسن | EX107: =DG124 -> 29.07711451 | EY107: =DH124 -> 71.97560149 | EZ107: =DI124 -> 49'شیفتm | FB107: =DP171 -> 21.26891745 | FC107: =DQ171 -> 113.4069759 | FD107: a6 | FJ107: =BO170 -> 39.08790652 | FK107: =BP170 -> 107.9908858 | FL107: شیفت 10 | FN107: =DO102 -> 42.24083201 | FO107: 113.7139018 | FP107: =DQ102 -> شیفت8m | FR107: =DO102 -> 42.24083201 | FS107: 113.7139018 | FT107: شیفت8m | FX107: =-CM106-GK101 -> -21.02523855 | FY107: 121.7049898 | FZ107: شیفت 18f | GB107: =-CM116-GK101 -> -8.802974853 | GC107: =CN116 -> 145.2897124 | GD107: شیفت وسط 22f | GJ107: =-ED105-GK101 -> -24.58159617 | GK107: 126.8768193 | GL107: شیفتb4 | GN107: =-EL107-GK101 -> -22.23004 | GO107: =EM107 -> 87.27120297 | GP107: شیفت 45 | GR107: =-EP107-GK101 -> -19.64004 | GS107: 72.37120297 | GT107: 49's | HD107: =-AG282-GK101 -> -7.954541134 | HE107: =AH282 -> 71.58 | HF107: 3' | HL107: =-DN243-GK101 -> -20.85723762 | HM107: =DO243 -> 72.064 | HN107: p7
E108: فاصله نوار باسن تا زمین | F108: j | H108: ='متغیرها '!U60+'متغیرها '!C63*'متغیرها '!U60 -> 77.5 | I108: ='متغیرها '!U60 -> 77.5 | K108: =K107+2*(SIN(ATAN((K106-K105)/(L106-L105)))*(L107-L105)+COS(ATAN((K106-K105)/(L106-L105)))*(K105-K107))*COS(ATAN((K106-K105)/(L106-L105))) -> 2 | L108: =L107-2*(SIN(ATAN((K106-K105)/(L106-L105)))*(L107-L105)+COS(ATAN((K106-K105)/(L106-L105)))*(K105-K107))*SIN(ATAN((K106-K105)/(L106-L105))) -> 1 | M108: e11 | N108: نقطه قرینه شده نسبت به خط تقارن | Q108: =L115 -> 29.9 | R108: =L127 -> 21.24231408 | S108: 12 | U108: =L143+L150 -> 14.08235551 | V108: =L114-L151 -> 45.5945423 | W108: 32 | AF108: =AR126+0.5*(AR130-AR126) -> 23.86058842 | AG108: =IF(G151>0,AS126+0.65*(AS130-AS126),AS126) -> 7.475454213 | AJ108: 14.31749213 | AK108: 36.69567558 | AL108: 36-- | AW108: (6 → 7) | AX108: =AX166 -> 0.7912029738 | AZ108: =AX107+AX99 -> 35.89469488 | BA108: =AX108+AX98 -> 72.37120297 | BB108: 7 | BD108: =J244 -> 12.51612786 | BE108: =K244 -> 143.7035391 | BF108: e7 | BG108: =0.5*'متغیرها '!U73+AE127 -> 23.2057629 | BH108: (1 → 7) | BI108: =0.5*H121+'متغیرها '!C61*H120+AD127 -> 24.08790652 | BO108: =BK150 -> 15 | BP108: =BL150 -> 112.8 | BQ108: سینه | BS108: =BD105 -> 5 | BT108: =BE105 -> 136.3693439 | BU108: 26 | BV108: نقطه یقه | BW108: =BS104+SQRT(POWER(BS108-BS104,2)+POWER(BT108-BT104,2))*SIN(BT103-ATAN((BS104-BS108)/(BT108-BT104))) -> 5 | BX108: =BT104+SQRT(POWER(BS108-BS104,2)+POWER(BT108-BT104,2))*COS(BT103-ATAN((BS104-BS108)/(BT108-BT104))) -> 136.3693439 | BY108: 26 | CA108: =BK138 -> 15 | CB108: =BL138 -> 136.4139132 | CC108: 24 | CD108: نقطه یقه | CE108: =CA104+SQRT(POWER(CA108-CA104,2)+POWER(CB108-CB104,2))*SIN(CB103-ATAN((CA104-CA108)/(CB108-CB104))) -> 15 | CF108: =CB104+SQRT(POWER(CA108-CA104,2)+POWER(CB108-CB104,2))*COS(CB103-ATAN((CA104-CA108)/(CB108-CB104))) -> 136.4139132 | CG108: 24 | CI108: =BW163 -> 25.58896243 | CJ108: =BX163 -> 132.1074351 | CK108: b6 | CL108: با چرخش کامل | CM108: =CI111+CJ105 -> 37.56794556 | CN108: =CJ111 -> 119.8692642 | CO108: شیفت 13 | CR108: ='متغیرها '!C76 -> 0.35 | CS108: x8 | CY108: =AZ176 -> 16.30646911 | CZ108: =BA176 -> 84.3 | DA108: 47' | DC108: =CY115-(CY106-CY109) -> 29.64004 | DD108: 87.27120297 | DE108: 45s | DG108: =AZ181 -> 18.89646911 | DH108: =BA181 -> 71.58 | DI108: 53شیفت | DK108: =BK162 -> 38.27244 | DL108: =BL162 -> 96.52470463 | DM108: شیفت36 | DO108: =DK103+0.35*(DK104-DK103) -> 35.23728672 | DP108: =DL104+0.45*(DL103-DL104) -> 119.1714526 | DQ108: شیفت12m | DT108: =BW133 -> 31.19371493 | DU108: =BX133 -> 126.8166658 | DV108: b8 | DW108: نقطه حلقه آستین | DX108: =CE116 -> 38.22743162 | DY108: =CF116 -> 113.473364 | DZ108: b8 | EA108: نقطه حلقه آستین | ED108: =IF('متغیرها '!C119=1,DT122,BW135)+BT130 -> 25.58896243 | EE108: =IF('متغیرها '!C119=1,DU122,BX135) -> 132.1074351 | EF108: شیفت b6 یا b'6g | EL108: =BD180 -> 32.23004 | EM108: =BE180 -> 72.37120297 | EN108: شیفت49' … | ET108: =ET102 -> 5 | EU108: =EU102-(H104-H108) -> 82.5 | EV108: g46 | EX108: =EX110+0.8*(EX107-EX110) -> 27.04098543 | EY108: =EY110+0.8*(EY107-EY110) -> 71.89648119 | FB108: =DP172 -> 14.96346816 | FC108: =DQ172 -> 99.46465059 | FD108: a7 | FF108: =CE122+CB112 -> 40.8117746 | FG108: =CF122+CB113 -> 112.4737391 | FH108: شیفت b14 | FJ108: =BK162 -> 38.27244 | FK108: =BL162 -> 96.52470463 | FL108: شیفت 36 | FN108: 42.24083201 | FO108: 107.9908858 | FP108: =DQ103 -> شیفت10m | FR108: 42.24083201 | FS108: 107.9908858 | FT108: شیفت10m | FX108: =-CM107-GK101 -> -25.84414556 | FY108: 119.8692642 | FZ108: شیفت 12 | GB108: =-CM117-GK101 -> -7.601469112 | GC108: =CN117 -> 122.17 | GD108: شیفت5 پیراهن | GF108: =-EX107-GK101 -> -19.07711451 | GG108: =EY107 -> 71.97560149 | GH108: شیفت 49'm | GJ108: =-ED106-GK101 -> -21.19371493 | GK108: 126.8166658 | GL108: شیفتb8 | GV108: =-CR158-GK101 -> -6.647006149 | GW108: =CS158 -> 92.82 | GX108: d5 | GZ108: =-DY261-GK101 -> 5 | HA108: =DZ261 -> 125.2195874 | HB108: p26 | HD108: =-AG283-GK101 -> -30.2492646 | HE108: =AH283 -> 74.66656921 | HF108: c5 | HH108: =-CP244-GK101 -> 5 | HI108: =CQ244 -> 75.38271983 | HJ108: m1 | HL108: =-DN244-GK101 -> -20.85723762 | HM108: =DO244 -> 71.58 | HN108: p8
E109: دور زانو | F109: L | H109: ='متغیرها '!U61 -> 41 | I109: ='متغیرها '!U61 -> 41 | AF109: =AR126+0.15*(AR130-AR126) -> 23.72888453 | AG109: =IF(G151>0,AS126+0.3*(AS130-AS126),AS126) -> 3.450209637 | AJ109: =AR156 -> 13.67693565 | AK109: =AS156 -> 34.41892971 | AL109: 38 | AW109: (3 → 7) | AX109: هلال وصل | BH109: (4 → 7) | BI109: هلال وصل | BK109: =BI108-BI114+BI122+BI98+'متغیرها '!C56 -> 35.0425559 | BL109: =BI110+BI115+BI97+'متغیرها '!C57 -> 122.4708058 | BM109: شیفت19 | BO109: =BK151 -> 20.8833 | BP109: =BL151 -> 112.8 | BS109: =AZ138 -> 19.24986356 | BT109: =BA138 -> 145.8353126 | BU109: 32 | BV109: نقطه ساسون سرشانه | BW109: =BS104+SQRT(POWER(BS109-BS104,2)+POWER(BT109-BT104,2))*SIN(BT103-ATAN((BS104-BS109)/(BT109-BT104))) -> 19.24986356 | BX109: =BT104+SQRT(POWER(BS109-BS104,2)+POWER(BT109-BT104,2))*COS(BT103-ATAN((BS104-BS109)/(BT109-BT104))) -> 145.8353126 | BY109: 32 | CA109: =BK106 -> 29.19322562 | CB109: =BL106 -> 137.7458625 | CC109: 30 | CD109: نقطه ساسون سرشانه | CE109: =CA104+SQRT(POWER(CA109-CA104,2)+POWER(CB109-CB104,2))*SIN(CB103-ATAN((CA104-CA109)/(CB109-CB104))) -> 29.19322562 | CF109: =CB104+SQRT(POWER(CA109-CA104,2)+POWER(CB109-CB104,2))*COS(CB103-ATAN((CA104-CA109)/(CB109-CB104))) -> 137.7458625 | CG109: 30 | CI109: =BW105 -> 13.35125318 | CJ109: =BX105 -> 146.8467656 | CK109: 25 | CL109: نقطه اتصال سرشانه به گردن | CR109: ='متغیرها '!C78 -> 0.2 | CS109: x10 | CU109: =CQ113+CR105 -> 40.81170652 | CV109: =CR113+CR106 -> 112.4727658 | CW109: شیفت 9 | CY109: =AZ177 -> 16.30646911 | CZ109: =BA177 -> 71.58 | DA109: 52 | DC109: =CY118+CZ122 -> 31.19371493 | DD109: =CZ118 -> 126.8166658 | DE109: b8s | DH109: =AX119 -> 3.152925488 | DI109: (12 →17) | DK109: =BK165 -> 42.32244 | DL109: =BL165 -> 79.87470463 | DM109: شیفت42 | DO109: =DK104+0.4*(DO107-DK104) -> 37.28091175 | DP109: =DP107+0.35*(DL104-DP107) -> 114.2758606 | DQ109: شیفت8''m | DU109: ='متغیرها '!C120*F137 -> 0.16 | DV109: g0 | ED109: =IF('متغیرها '!C119=1,DT121,BW136)+BT130 -> 24.34041777 | EE109: =IF('متغیرها '!C119=1,DU121,BX136) -> 138.0302721 | EF109: شیفت b12 یا b'12g | EH109: =BW117 -> 4.495739963 | EI109: =BX117 -> 138.2073016 | EJ109: e9 | EN109: چیب | EP109: =DC107 -> 29.64004 | EQ109: =DD107 -> 72.37120297 | ER109: 49's | ET109: =AZ176 -> 16.30646911 | EU109: =EU108 -> 82.5 | EV109: g47' | EX109: =EX110+0.5*(EX107-EX110) -> 23.98679181 | EY109: =EY110+0.2*(EY107-EY110) -> 71.6591203 | FB109: =DP170 -> 16.01437637 | FC109: =DQ170 -> 71.58 | FD109: a5 | FF109: =CE123+CB112 -> 39.08828518 | FG109: =CF123+CB113 -> 107.9917397 | FH109: شیفت b2 | FN109: 41.42536549 | FO109: 96.52470463 | FP109: =DQ104 -> شیفت36m | FR109: =DO105 -> 45.47536549 | FS109: 79.87470463 | FT109: شیفت42m | FX109: =-CM108-GK101 -> -27.56794556 | FY109: 119.8692642 | FZ109: شیفت 13 | GF109: =-EX108-GK101 -> -17.04098543 | GG109: =EY108 -> 71.89648119 | GJ109: =-ED107-GK101 -> -18.65427276 | GK109: 128.0036418 | GL109: شیفت b10 یا b'10g | GN109: =-EL107-GK101 -> -22.23004 | GO109: =EM107 -> 87.27120297 | GP109: شیفت 45 | GR109: =-EP109-GK101 -> -19.64004 | GS109: =EQ109 -> 72.37120297 | GT109: 49's | GV109: =-CR161-GK101 -> 5 | GW109: =CS161 -> 95.7 | GX109: _u5 | GZ109: =-DY262-GK101 -> 5 | HA109: =DZ262 -> 71.58 | HB109: 1 | HD109: =-AG284-GK101 -> -52.54398807 | HE109: =AH284 -> 81.86856402 | HF109: c2 | HH109: =-CP245-GK101 -> -0.28 | HI109: =CQ245 -> 75.38271983 | HJ109: m2
E110: بلندی فاق | F110: m | H110: =1.06*'متغیرها '!U62+0.03*'متغیرها '!U56*'متغیرها '!U66*IF('متغیرها '!U66=1,0.2,0.6)+'متغیرها '!C63*'متغیرها '!U62 -> 26.5 | I110: =1.06*'متغیرها '!U62+0.03*'متغیرها '!U56*'متغیرها '!U66*IF('متغیرها '!U66=1,0.2,0.6) -> 26.5 | U110: =L115-L132+L138-L153 -> 23.52799481 | V110: =L127+L133+L139+L154 -> 42.66571576 | W110: 34 | AF110: =AR126 -> 23.67244 | AG110: =AS126 -> 0 | AH110: 12 | AJ110: =AR150 -> 13.98670963 | AK110: =AS150 -> 37.8323961 | AL110: 34-- | AV110: =AV104+0.5*(AV100-AV104+BG99-BG108) -> 29.84711855 | AW110: (1 → 8) | AX110: =AX104+0.5*(AX100-AX104+BI99-BI108) -> 30.87935952 | AZ110: =0+AX99 -> 5 | BA110: =H104-H114+AX98 -> 100.5 | BB110: کمر | BD110: =AZ131 -> 30.48417223 | BE110: =BA131 -> 91.75 | BF110: 35شیفت | BG110: ='متغیرها '!U58-'متغیرها '!U59+H153*(I127-I126)+Y128 -> 73.24581574 | BH110: (7→ 8) | BI110: =H106-H114+G153*(H127-H126)-AX118*'متغیرها '!C77/(1+'متغیرها '!C77)+Y128 -> 45.89276585 | BK110: =BI108-BI114+BI122+BI98+'متغیرها '!C56 -> 35.0425559 | BL110: =BI110+BI115+BI123+BI97+'متغیرها '!C57 -> 129.3742397 | BM110: شیفت20 | BO110: انحنای حلقه یقه پشت | BS110: =BD98 -> 3.32006 | BT110: =BE98 -> 136.3693439 | BU110: 26' | BV110: نقطه جادکمه | BW110: =BS104+SQRT(POWER(BS110-BS104,2)+POWER(BT110-BT104,2))*SIN(BT103-ATAN((BS104-BS110)/(BT110-BT104))) -> 3.32006 | BX110: =BT104+SQRT(POWER(BS110-BS104,2)+POWER(BT110-BT104,2))*COS(BT103-ATAN((BS104-BS110)/(BT110-BT104))) -> 136.3693439 | BY110: 26' | CA110: =BK153 -> 15 | CB110: =BL153 -> 113.4556109 | CC110: 39 | CD110: امتداد نقطه مرکزی چرخش | CE110: =CA104+SQRT(POWER(CA110-CA104,2)+POWER(CB110-CB104,2))*SIN(CB103-ATAN((CA104-CA110)/(CB110-CB104+0.001))) -> 15.00000004 | CF110: =CB104+SQRT(POWER(CA110-CA104,2)+POWER(CB110-CB104,2))*COS(CB103-ATAN((CA104-CA110)/(CB110-CB104+0.001))) -> 113.4566109 | CG110: 39 | CI110: =AZ113 -> 35.84414556 | CJ110: =BA113 -> 119.8692642 | CK110: 12 | CM110: =CM108 -> 37.56794556 | CN110: =CN108 -> 119.8692642 | CO110: شیفت13 | CQ110: =BK103 -> 15 | CR110: =BL103 -> 139.0322931 | CS110: 2 | CU110: =CQ115 -> 39.08790652 | CV110: =CR115 -> 107.9908858 | CW110: شیفت 10 | CY110: =BD186-CZ122 -> 18.61502 | CZ110: =BE186 -> 71.58 | DA110: 50 | DC110: =CY119+CZ122 -> 34.58159617 | DD110: =CZ119 -> 126.8768193 | DE110: b4s | DH110: =AX120 -> 1.241136 | DI110: (17 →18) | DK110: =BK172 -> 42.32244 | DL110: =BL172 -> 64.97470463 | DM110: شیفت43'' | DO110: =CE108 -> 15 | DP110: =CF108 -> 136.4139132 | DQ110: 24m | DU110: ='متغیرها '!C121 -> 2 | DV110: g1 | ED110: =DT151+BT130 -> 24.57310558 | EE110: =DU151 -> 145.3003782 | EF110: شیفت22b | EH110: =BW127 -> 0.01368287202 | EI110: =BX127 -> 137.9460957 | EJ110: e10 | EL110: =EP178 -> 27.70354846 | EM110: =EQ178 -> 99.38970101 | EN110: 37شیفت | EP110: =IF(DD108>DD120,DC120,DC108) -> 28.87952666 | EQ110: =IF(DD108>DD120,DD120,DD108) -> 77.49113344 | ER110: 45s یا s2 | EX110: =DG108 -> 18.89646911 | EY110: =DH108 -> 71.58 | EZ110: =DI108 -> 53شیفت | FJ110: =BK162 -> 38.27244 | FK110: =BL162 -> 96.52470463 | FL110: شیفت 36 | FN110: 45.47536549 | FO110: 79.87470463 | FP110: =DQ105 -> شیفت42m | FR110: 45.47536549 | FS110: 64.57910315 | FT110: شیفت43''m | GB110: =-CM119-GK101 -> -7.601469112 | GC110: =CN119 -> 122.17 | GD110: شیفت 5 پیراهن | GF110: =-EX109-GK101 -> -13.98679181 | GG110: =EY109 -> 71.6591203 | GJ110: =-ED108-GK101 -> -15.58896243 | GK110: 132.1074351 | GL110: شیفت b6 یا b'6g | GN110: =-EL108-GK101 -> -22.23004 | GO110: =EM108 -> 72.37120297 | GP110: شیفت49' … | GR110: =-EP110-GK101 -> -18.87952666 | GS110: =EQ110 -> 77.49113344 | GT110: 45s یا s2 | HL110: =-DN246-GK101 -> -20.85723762 | HM110: =DO246 -> 71.58 | HN110: p8
E111: آنفورشور | F111: q | H111: =1*'متغیرها '!U63+0.6*'متغیرها '!C63*'متغیرها '!U63+0.3*'متغیرها '!C60*'متغیرها '!U63 -> 69.2128 | I111: =1*'متغیرها '!U63 -> 68.8 | J111: s3 | K111: =((I124-I123-I127+I126)-0.5*(1-H154)*('متغیرها '!U70-'متغیرها '!U71)*TAN(0.5*IF(L121=0,0,H162))+(0.5-G148)*'متغیرها '!U71*TAN(0.5*H157)) -> 3.173673198 | L111: =(I124-I123-I127+I126-0.5*(1-H154)*('متغیرها '!U70-'متغیرها '!U71)*TAN(0.5*IF(L121=0,0,H162))+(0.5-G148)*'متغیرها '!U71*TAN(0.5*H157)) -> 3.173673198 | U111: =L115-L132+L138 -> 28.56 | V111: =L127+L133+L139 -> 39.22651835 | W111: 22 | AJ111: =AR149 -> 14.08996763 | AK111: =AS149 -> 39.19778266 | AL111: 34- | AO111: شیفت عمودی جلو بالاتنه به سانتیمتر | AP111: =0 -> 0 | AS111: شیفت عمودی پشت بالاتنه به سانتیمتر | AT111: =0 -> 0 | AW111: (8 → 9) | AX111: =H108-H114+L125-0.5*(H106-H104) -> 13.84120297 | BD111: =AZ155 -> 27.70354846 | BE111: =BA155 -> 99.38970101 | BF111: 37شیفت | BH111: (8 →9) | BI111: =AA131 -> 1.7238 | BO111: =BK104 -> 23.34842128 | BP111: =BL104 -> 139.0322931 | BQ111: 23 | BS111: =AZ103 -> 5 | BT111: =BT104 -> 120.2 | BU111: 4 | BV111: امتداد نقطه مرکزی چرخش | BW111: =BS104+SQRT(POWER(BS111-BS104,2)+POWER(BT111-BT104,2))*SIN(BT103-ATAN((BS104-BS111)/(BT111-BT104+0.001))) -> 5.00000004 | BX111: =BT104+SQRT(POWER(BS111-BS104,2)+POWER(BT111-BT104,2))*COS(BT103-ATAN((BS104-BS111)/(BT111-BT104+0.001))) -> 120.201 | BY111: 4 | CA111: انتقال قسمتی از ساسون سرشانه به ساسون زیر بغل به روش چرخش | CI111: =BD156-CJ105 -> 37.56794556 | CJ111: =BE156 -> 119.8692642 | CK111: 13 | CL111: نقطه انتهایی زیر حلقه | CM111: =CI112 -> 35.84414556 | CN111: =CJ112 -> 115.3873842 | CO111: شیفت14 | CQ111: کارور پشت | CR111: =H129 -> 38.76 | CS111: v3 | CY111: =BD185-CZ122 -> 22.699526 | CZ111: =BE185 -> 71.73824059 | DA111: 50' | DC111: =CY120+CZ122 -> 36.17413272 | DD111: =CZ120 -> 127.5366024 | DE111: b14s | DG111: =O168 -> 0 | DH111: =P168 -> 0 | DI111: 25 | DK111: =BK177 -> 25.8416 | DL111: =BL177 -> 66.58 | DM111: شیفت50 | DO111: =CE105 -> 23.34842128 | DP111: =CF105 -> 139.0322931 | DQ111: 23m | DT111: =BS135 -> 29.53829458 | DU111: =BT135 -> 128.1435042 | DV111: 16 | DW111: نقطه حلقه آستین بدون چرخش | DX111: =CA118 -> 34.78553803 | DY111: =CB118 -> 122.4708058 | DZ111: 12 | EA111: نقطه حلقه آستین بدون چرخش | EL111: =EP179 -> 33.26479599 | EM111: =EQ179 -> 84.11029899 | EN111: شیفت37' | ET111: =AZ180 -> 18.89646911 | EU111: =EU109 -> 82.5 | EV111: g47'' | EZ111: کمر | FB111: =DC126-DT171 -> 31.42867068 | FC111: =DD126 -> 126.8208375 | FD111: بدون شیفتb'8s | FF111: =CE123+CB112 -> 39.08828518 | FG111: =CF123+CB113 -> 107.9917397 | FH111: شیفت b2 | FJ111: =BK165 -> 42.32244 | FK111: =BL165 -> 79.87470463 | FL111: شیفت 42 | FN111: 45.47536549 | FO111: 64.57910315 | FP111: =DQ106 -> شیفت43''m | FX111: =-CM110-GK101 -> -27.56794556 | FY111: =CN110 -> 119.8692642 | FZ111: شیفت13 | GB111: =-CM120-GK101 -> -7.601469112 | GC111: =CN120 -> 120.2 | GD111: شیفت 5 بالاتنه | GF111: =-EX110-GK101 -> -8.896469112 | GG111: =EY110 -> 71.58 | GH111: شیفت 53 | GJ111: =-ED109-GK101 -> -14.34041777 | GK111: 138.0302721 | GL111: شیفت b12 یا b'12g | GP111: چیب | GV111: =-CR161-GK101 -> 5 | GW111: =CS161 -> 95.7 | GX111: _u5 | HB111: 49' | HH111: =-CP247-GK101 -> -0.28 | HI111: =CQ247 -> 75.38271983 | HJ111: m2 | HL111: =-DN247-GK101 -> 7.201035401 | HM111: =DO247 -> 71.58 | HN111: p6
E112: دور مچ پا | F112: r | H112: ='متغیرها '!U64 -> 29.4 | I112: =0.8*'متغیرها '!U61 -> 32.8 | J112: فاصله لبه دامن یا پیراهن تا زمین (به سانتیمتر) k | K112: =IF('متغیرها '!C67<1,'متغیرها '!C67*'متغیرها '!U59,IF('متغیرها '!C67<2,'متغیرها '!U59+('متغیرها '!C67-1)*('متغیرها '!U60-'متغیرها '!U59),IF('متغیرها '!C67<3,'متغیرها '!U60+('متغیرها '!C67-2)*(I105-'متغیرها '!U60),I105+('متغیرها '!C67-3)*(H127-H126)))) -> 66.58 | AJ112: =AR148 -> 14.19322562 | AK112: =AS148 -> 41.24586249 | AL112: 34 | AW112: (1 → 10) | AX112: =AX104-0.85*AX117 -> 25.48417223 | AZ112: =AX104+AX99 -> 35.84414556 | BA112: =0+AX98 -> 71.58 | BB112: 3 | BH112: (8 → 10) | BI112: =AA132 -> 4.48188 | BK112: =BI108-BI114+BI98+'متغیرها '!C56 -> 34.78553803 | BL112: =BI110+BI115+BI97+'متغیرها '!C57 -> 122.4708058 | BM112: شیفت12 | BO112: =BK135 -> 21.26131596 | BP112: =BL135 -> 137.4612652 | BQ112: 28 | BS112: =BD98 -> 3.32006 | BT112: =BT104 -> 120.2 | BU112: 4' | BW112: =BS104+SQRT(POWER(BS112-BS104,2)+POWER(BT112-BT104,2))*SIN(BT103-ATAN((BS104-BS112)/(BT112-BT104+0.001))) -> 3.320060035 | BX112: =BT104+SQRT(POWER(BS112-BS104,2)+POWER(BT112-BT104,2))*COS(BT103-ATAN((BS104-BS112)/(BT112-BT104+0.001))) -> 120.201 | BY112: 4' | CB112: ='متغیرها '!C56 -> 0 | CC112: شیفت افقی | CI112: =BD155 -> 35.84414556 | CJ112: =BE155 -> 115.3873842 | CK112: شیفت14 | CO112: سرشانه بدون ساسون | CQ112: =BK104 -> 23.34842128 | CR112: =BL104 -> 139.0322931 | CS112: 23 | CT112: نقطه اتصال سرشانه به گردن | CU112: =CU102 -> 34.25186463 | CV112: =CV102 -> 135.9181867 | CW112: شیفت 18f | CY112: =BD184-CZ122 -> 26.103281 | CZ112: =BE184 -> 72.01516164 | DA112: 50'' | DC112: =CY121+CZ122 -> 36.29703227 | DD112: =CZ121 -> 122.7362242 | DE112: b2s | DG112: =BW144 -> 24.46347404 | DH112: =BX144 -> 144.5213593 | DI112: b16 | DK112: =BK161 -> 26.7666 | DL112: =BL161 -> 96.5 | DM112: شیفت35 | DO112: =CE107 -> 18.33936851 | DP112: =CF107 -> 136.6757512 | DQ112: 26m | DT112: =BS134 -> 30.79946478 | DU112: =BT134 -> 123.1789602 | DV112: 20 | DW112: نقطه حلقه آستین بدون چرخش | DX112: =CA117 -> 36.07624857 | DY112: =CB117 -> 116.4719818 | DZ112: 16 | EA112: نقطه حلقه آستین بدون چرخش | EF112: سرشانه با ساسون متغیر | EH112: =BW118 -> 18.29221214 | EI112: =BX118 -> 154.3543711 | EJ112: a2 | EP112: =EP110 -> 28.87952666 | EQ112: =EQ110 -> 77.49113344 | ER112: =ER110 -> 45s یا s2 | ET112: =AZ172 -> 32.23004 | EU112: =BE178-(H105-H108) -> 85.42120297 | EV112: g45 | EX112: =DG122 -> 30.37211451 | EY112: =DH122 -> 103.921203 | EZ112: =DI122 -> 41شیفتm | FB112: =DP173 -> 30.75711451 | FC112: =DQ173 -> 71.97560149 | FD112: a8 | FF112: =CE125+CB112 -> 30.46299196 | FG112: =CF125+CB113 -> 111.8163466 | FH112: شیفت b | FR112: =DO106 -> 45.47536549 | FS112: =DP106 -> 64.57910315 | FT112: =DQ106 -> شیفت43''m | FX112: =-CM111-GK101 -> -25.84414556 | FY112: =CN111 -> 115.3873842 | FZ112: شیفت14 | GH112: کمر | GJ112: =-ED110-GK101 -> -14.57310558 | GK112: 145.3003782 | GL112: شیفت22b | GN112: =-EP178-GK101 -> -17.70354846 | GO112: =EQ178 -> 99.38970101 | GP112: 37شیفت | GR112: =-EP112-GK101 -> -18.87952666 | GS112: =EQ112 -> 77.49113344 | GT112: =GT110 -> 45s یا s2 | GV112: =-CR164-GK101 -> 5 | GW112: =CS164 -> 95.7 | GX112: d4 | GZ112: =-DY265-GK101 -> 6.67994 | HA112: =DZ265 -> 125.2195874 | HB112: p10 | HF112: 92' | HH112: =-CP248-GK101 -> -0.28 | HI112: =CQ248 -> 73.38271983 | HJ112: m12
J113: متغیرهای خروجی جلو (رسم کاربر) | L113: شبیه ساز | Q113: =AN120 -> 12.60146911 | R113: =AO120 -> 21.67 | S113: 6 | Y113: شبیه ساز | Z113: متغیرهای خروجی پشت بالاتنه (رسم کاربر) | AF113: =AR121 -> 11.7666 | AG113: =AS121 -> 24.22230121 | AH113: 7 | AN113: نقاط جلو بالاتنه | AR113: نقاط پشت بالاتنه | AV113: ='متغیرها '!U56-H114+H153*(I127-I126)+L125 -> 50.16231408 | AW113: (3 → 12) | AX113: =H104-H114+G153*(H127-H126)-AX118*'متغیرها '!C77/(1+'متغیرها '!C77)+L125 -> 48.28926419 | AZ113: =AX104+AX99 -> 35.84414556 | BA113: =AX113+AX98 -> 119.8692642 | BB113: 12 | BD113: =AZ131 -> 30.48417223 | BE113: =BA131 -> 91.75 | BF113: 35شیفت | BH113: (9 → 10→ 6→ 4) | BI113: وصل | BK113: =BI108-BI114+BI98+'متغیرها '!C56 -> 34.78553803 | BL113: =BI110+BI97+'متغیرها '!C57 -> 112.4727658 | BM113: شیفت11 | BO113: =BK132 -> 18.33936851 | BP113: =BL132 -> 136.6757512 | BQ113: 26 | BS113: =J244 -> 12.51612786 | BT113: =K244 -> 143.7035391 | BU113: e7 | BW113: =BS104+SQRT(POWER(BS113-BS104,2)+POWER(BT113-BT104,2))*SIN(BT103-ATAN((BS104-BS113)/(BT113-BT104))) -> 12.51612786 | BX113: =BT104+SQRT(POWER(BS113-BS104,2)+POWER(BT113-BT104,2))*COS(BT103-ATAN((BS104-BS113)/(BT113-BT104))) -> 143.7035391 | BY113: e7 | CB113: ='متغیرها '!C57 -> 0 | CC113: شیفت عمودی | CI113: α2 | CJ113: =0.5*(P139+0.3*(P140-P139)+AE139+0.3*(AE140-AE139)) -> 0.2782010298 | CK113: زاویه سرشانه با افق | CM113: =CM102 -> 24.25469653 | CN113: =CN102 -> 143.7326593 | CO113: شیفت22f | CQ113: =BK114-CR105 -> 40.81170652 | CR113: =BL114-CR106 -> 112.4727658 | CS113: 9 | CT113: نقطه انتهایی زیر حلقه | CU113: =CU119+CR105 -> 28.80014296 | CV113: =CV119+CR106 -> 137.4752399 | CW113: شیفت وسط 18f | CY113: =BD183-CZ122 -> 29.507036 | CZ113: =BE183 -> 72.29208268 | DA113: 50''' | DC113: =CY103+CZ122 -> 17.60146911 | DD113: =CZ103 -> 118.23 | DE113: 43s | DG113: =DD572 -> 33.18943706 | DH113: 85.40973525 | DI113: 10r | DJ113: شلوار | DK113: =BO191 -> 25.8416 | DL113: =BP191 -> 79.4 | DM113: شیفت38'' | DO113: =CE106 -> 21.26131596 | DP113: =CF106 -> 137.4612652 | DQ113: 28m | DV113: محاسبات | DZ113: محاسبات | ED113: =DT150+BT130 -> 19.28557382 | EE113: =DU150 -> 146.146052 | EF113: شیفت 34b | EH113: =BW119 -> 15.32763676 | EI113: =BX119 -> 150.6005684 | EJ113: a13 | EN113: ترک وسط با ساسون | EP113: =DC120 -> 28.87952666 | EQ113: =DD120 -> 77.49113344 | ER113: s2 | EV113: زانو | EX113: =AZ167+BT130 -> 18.24896911 | EY113: =BA167 -> 100.5 | EZ113: شیفت 40 | FJ113: =BK165 -> 42.32244 | FK113: =BL165 -> 79.87470463 | FL113: شیفت 42 | FN113: =DO106 -> 45.47536549 | FO113: =DP106 -> 64.57910315 | FP113: =DQ106 -> شیفت43''m | FR113: =FR115+0.6*(FR112-FR115) -> 37.62185929 | FS113: =FS115+0.8*(FS112-FS115) -> 64.97928252 | GB113: =-CM122-GK101 -> -7.601469112 | GC113: =CN122 -> 120.2 | GD113: شیفت 5 بالاتنه | GF113: =-EX112-GK101 -> -20.37211451 | GG113: =EY112 -> 103.921203 | GH113: شیفت 41m | GN113: =-EP179-GK101 -> -23.26479599 | GO113: =EQ179 -> 84.11029899 | GP113: شیفت37' | GR113: =-EP113-GK101 -> -18.87952666 | GS113: =EQ113 -> 77.49113344 | GT113: s2 | GZ113: =-DY266-GK101 -> 6.67994 | HA113: =DZ266 -> 95.7 | HB113: 26'' | HD113: =-EP151-GK101 -> 6.67994 | HE113: =EQ151 -> 114.42 | HF113: e1 | HL113: =-DN249-GK101 -> 7.201035401 | HM113: =DO249 -> 71.58 | HN113: p6
E114: شلوار زنانه و بچگانه = 0 مردانه=1 بچه با پوشک=2 | H114: =K112 -> 66.58 | I114: K | J114: (1 → 2) | K114: =H124-('متغیرها '!C71)*0.5*G167*SIN(O139) -> 46.34676563 | L114: =I124 -> 46.4 | Q114: =AN121 -> 12.60146911 | R114: =AO121 -> 17.73 | S114: 7 | U114: انحنای حلقه آستین جلو | Y114: =I127 -> 42.6 | Z114: (1 → 2) | AA114: =H127-('متغیرها '!C71)*0.5*G167*SIN(AD139) -> 42.53229312 | AF114: =AR122 -> 11.7666 | AG114: =AS122 -> 16.95561085 | AH114: 8 | AN114: مولفه افقی | AO114: مولفه عمودی | AP114: اسم نقطه | AR114: مولفه افقی | AS114: مولفه عمودی | AT114: اسم نقطه | AW114: (12 → 13) | AX114: =K128 -> 1.7238 | AZ114: =AX104-AX117+AX99 -> 29.53829458 | BA114: =AX113+AX98 -> 119.8692642 | BB114: 15 | BD114: =AX112+AX144+AX99+'متغیرها '!C55 -> 33.26479599 | BE114: =AX143-AX145+AX98 -> 84.11029899 | BF114: شیفت 37' | BG114: =Y135 -> 4.205762895 | BH114: (8 → 11) | BI114: =AA135 -> 4.302368497 | BK114: =BI108+BI111+BI98+'متغیرها '!C56 -> 40.81170652 | BL114: =BI110+BI97+'متغیرها '!C57 -> 112.4727658 | BM114: شیفت9 | BO114: =BK138 -> 15 | BP114: =BL138 -> 136.4139132 | BQ114: 24 | BS114: =J245 -> 11.99553017 | BT114: =K245 -> 141.4427034 | BU114: e5 | BW114: =BS104+SQRT(POWER(BS114-BS104,2)+POWER(BT114-BT104,2))*SIN(BT103-ATAN((BS104-BS114)/(BT114-BT104))) -> 11.99553017 | BX114: =BT104+SQRT(POWER(BS114-BS104,2)+POWER(BT114-BT104,2))*COS(BT103-ATAN((BS104-BS114)/(BT114-BT104))) -> 141.4427034 | BY114: e5 | CB114: =(CC126-CC125) -> 6.929591539e-05 | CC114: زاویه چرخش به ساسون زیر بغل | CI114: =H167 -> 12.19002134 | CJ114: =G167 -> 12.59936974 | CK114: W | CM114: =CM132+CJ105 -> 18.80297485 | CN114: =CN132 -> 145.2897124 | CO114: شیفت وسط 22f | CQ114: =BK122-CR105 -> 39.08790652 | CR114: =BL122-CR106 -> 112.4727658 | CS114: 8 | CY114: =BD180-CZ122 -> 32.23004 | CZ114: =BE180 -> 72.37120297 | DA114: 49' | DC114: =CY117+CZ122 -> 35.84414556 | DD114: =CZ117 -> 115.3873842 | DE114: 14s | DG114: 28.61227796 | DH114: 46.1 | DI114: 7r | DK114: =BO114 -> 15 | DL114: =BP114 -> 136.4139132 | DM114: 24 | DO114: =DX103 -> 35.89129835 | DP114: =DY103 -> 135.5582863 | DQ114: 18m | DT114: (b12→22g) | DU114: =SQRT(POWER(DT105-DT103,2)+POWER(DU105-DU103,2)) -> 7.273828862 | DX114: (b12→18p) | DY114: =SQRT(POWER(DX105-DX103,2)+POWER(DY105-DY103,2)) -> 6.241600539 | ED114: =DT151+BT130 -> 24.57310558 | EE114: =DU151 -> 145.3003782 | EF114: شیفت22b | EH114: =BW105 -> 13.35125318 | EI114: =BX105 -> 146.8467656 | EJ114: چرخیده 25 | EL114: =AZ181 -> 18.89646911 | EM114: =BA181 -> 71.58 | EN114: شیفت 53 | ET114: =ET108 -> 5 | EU114: =BA165-(H104-H107) -> 46.1 | EV114: g1 | EZ114: چیب | FB114: =DP173 -> 30.75711451 | FC114: =DQ173 -> 71.97560149 | FD114: a8 | FF114: =CE125+CB112 -> 30.46299196 | FG114: =CF125+CB113 -> 111.8163466 | FH114: شیفت b | FJ114: =BK172 -> 42.32244 | FK114: =BL172 -> 64.97470463 | FL114: شیفت 43'' | FN114: =FN116+0.6*(FN113-FN116) -> 37.62185929 | FO114: =FO116+0.8*(FO113-FO116) -> 64.97928252 | FR114: =FR115+0.3*(FR112-FR115) -> 31.73172965 | FS114: =FS115+0.2*(FS112-FS115) -> 66.17982063 | FZ114: 8' | GB114: =-CM123-GK101 -> -7.601469112 | GC114: =CN123 -> 118.23 | GD114: شیفت 43 | GF114: =-EX113-GK101 -> -8.248969112 | GG114: =EY113 -> 100.5 | GH114: شیفت 40 | GL114: 5' | GV114: =-CR166-GK101 -> -7.601469112 | GW114: =CS166 -> 118.23 | GX114: شیفت 43 | HD114: =-EP152-GK101 -> 6.67994 | HE114: 114.0012048 | HF114: 8n | HH114: =-CP250-GK101 -> -0.28 | HI114: =CQ250 -> 73.38271983 | HJ114: m12 | HL114: =-DN250-GK101 -> 7.201035401 | HM114: =DO250 -> 72.064 | HN114: p5
J115: (1 → 3) | K115: =0.5*(H120-H121)+'متغیرها '!C61*H120-'متغیرها '!C77*O128*H130*((L115-L120-L121-L124)/(L127-L125)) -> 30.84414556 | L115: =0.5*('متغیرها '!U72-'متغیرها '!U73) -> 29.9 | Q115: =AN119 -> 12.60146911 | R115: =AO119 -> 19.7 | S115: 5 | U115: =AN136 -> 28.24992943 | V115: =AO136 -> 39.5429161 | W115: 22 | Y115: =0.5*'متغیرها '!U73+AE127 -> 23.2057629 | Z115: (1 → 3) | AA115: =0.5*H121+'متغیرها '!C61*H120+AD127-'متغیرها '!C77*O128*H130*((Y115-Y121-Y123-Y124-Y127)/(Y130)) -> 24.04873684 | AF115: =AR120 -> 11.7666 | AG115: =AS120 -> 16.3 | AH115: 6 | AJ115: =AR138 -> 20.60309459 | AK115: =AS138 -> 38.53231669 | AL115: 24 | AN115: 0 | AO115: =0+AP111 -> 0 | AP115: 1 | AR115: 0 | AS115: =AT111 -> 0 | AT115: 1 | AV115: =L129 -> 0 | AW115: (12 → 14) | AX115: =K129 -> 4.48188 | AZ115: =AX104-AX117+AX99 -> 29.53829458 | BA115: =AX113+AX118+AX98 -> 128.1435042 | BB115: 16 | BG115: 8.5 | BH115: (11 →12) | BI115: 9.99804 | BS115: =J262 -> 0.2352808882 | BT115: =K262 -> 136.3693439 | BU115: e3 | BW115: =BS104+SQRT(POWER(BS115-BS104,2)+POWER(BT115-BT104,2))*SIN(BT103-ATAN((BS104-BS115)/(BT115-BT104))) -> 0.2352808882 | BX115: =BT104+SQRT(POWER(BS115-BS104,2)+POWER(BT115-BT104,2))*COS(BT103-ATAN((BS104-BS115)/(BT115-BT104))) -> 136.3693439 | BY115: e3 | CA115: =BK122-CB112 -> 39.08790652 | CB115: =BL122-CB113 -> 112.4727658 | CC115: 8 | CD115: نقطه حلقه آستین | CE115: =CA104+SQRT(POWER(CA115-CA104,2)+POWER(CB115-CB104,2))*SIN(IF(CB115=CB104,RADIANS(90)-CB114,ATAN((CA115-CA104)/ABS(CB115-CB104))+IF(CB115>CB104,-1,1)*CB114)) -> 39.0879746 | CF115: =CB104+IF(CB115<CB104,-1,1)*SQRT(POWER(CA115-CA104,2)+POWER(CB115-CB104,2))*COS(IF(CB115=CB104,RADIANS(90)-CB114,ATAN((CA115-CA104)/ABS(CB115-CB104))+IF(CB115>CB104,-1,1)*CB114)) -> 112.4736197 | CG115: b4 | CI115: نقاط حلقه آستین جلو بدون ساسون سرشانه | CQ115: =BO170 -> 39.08790652 | CR115: =BP170 -> 107.9908858 | CS115: شیفت10 | CU115: =CU113 -> 28.80014296 | CV115: =CV113 -> 137.4752399 | CW115: شیفت وسط 18f | CY115: =AZ172-CZ122 -> 32.23004 | CZ115: =BA172 -> 87.27120297 | DA115: 45 | DC115: =DC113+CZ127*SIN(CZ123+CZ131) -> 24.98580723 | DD115: =DD113-CZ127*COS(CZ123+CZ131) -> 102.0979292 | DE115: 40s | DG115: 27.31000524 | DH115: 5 | DI115: 5r | DK115: =BO113 -> 18.33936851 | DL115: =BP113 -> 136.6757512 | DM115: 26 | DO115: =DX121 -> 34.87984116 | DP115: =DY121 -> 129.3991847 | DQ115: 20m | DT115: α22g1 | DU115: =ATAN((DU104-DU103)/(DT103-DT104)) -> 0.1369389943 | DX115: α18p1 | DY115: =ATAN((DY104-DY103)/(DX103-DX104)) -> 0.2701972394 | EL115: =AZ180 -> 18.89646911 | EM115: =BA180 -> 84.3 | EN115: شیفت 47'' | EP115: =DC120 -> 28.87952666 | EQ115: =DD120 -> 77.49113344 | ER115: s2 | ET115: =ET109 -> 16.30646911 | EU115: =EU114 -> 46.1 | EV115: g52 | EX115: =EP178 -> 27.70354846 | EY115: =EQ178 -> 99.38970101 | EZ115: 37شیفت | FB115: =EX105-'متغیرها '!C55 -> 29.07711451 | FC115: =EY105 -> 71.97560149 | FD115: 49'm | FF115: =BO170 -> 39.08790652 | FG115: =BP170 -> 107.9908858 | FH115: شیفت 10 | FL115: پایین لباس پهلو | FN115: =FN116+0.3*(FN113-FN116) -> 31.73172965 | FO115: =FO116+0.2*(FO113-FO116) -> 66.17982063 | FR115: =DK111 -> 25.8416 | FS115: =DL111 -> 66.58 | FT115: =DM111 -> شیفت50 | FX115: =-DD153-GK101 -> -14.57310558 | FY115: =DE153 -> 145.3003782 | FZ115: 39 | GH115: چیب | GJ115: =-ED113-GK101 -> -9.285573818 | GK115: =EE113 -> 146.146052 | GL115: شیفت 34b | GP115: 17' | GR115: =-EP115-GK101 -> -18.87952666 | GS115: =EQ115 -> 77.49113344 | GT115: s2 | GV115: =-CR167-GK101 -> -8.248969112 | GW115: =CS167 -> 100.5 | GX115: شیفت40 یا dd5 | GZ115: =-DY268-GK101 -> 6.67994 | HA115: =DZ268 -> 95.7 | HB115: 26'' | HD115: =-EP153-GK101 -> 4.600936401 | HE115: 102.8374699 | HF115: 7n | HH115: =-CP251-GK101 -> 5 | HI115: =CQ251 -> 73.38271983 | HJ115: m11
J116: (1→ 4) | K116: =H124-H123 -> 19.7 | L116: =I124-I123 -> 19.7 | Q116: =AN118 -> 0 | R116: =AO118 -> 19.7 | S116: 4 | U116: =AN138 -> 25.65178504 | V116: =AO138 -> 33.59321014 | W116: 24 | Y116: =I127-I126 -> 16.3 | Z116: (1→ 4) | AA116: =H127-H126 -> 16.3 | AF116: =AR118 -> 0 | AG116: =AS118 -> 16.3 | AH116: 4 | AJ116: =AR140 -> 20.00338622 | AK116: =AS140 -> 32.88405263 | AL116: 26 | AN116: 0 | AO116: =K114+AP111 -> 46.34676563 | AP116: 2 | AR116: 0 | AS116: =AA114+AT111 -> 42.53229312 | AT116: 2 | AW116: (13 → 14→ 9→ 7) | AX116: وصل | BD116: =BD155 -> 35.84414556 | BE116: =BE155 -> 115.3873842 | BF116: 14شیفت | BG116: 0.8411525791 | BH116: (8 → 13) | BI116: 0.8604736994 | BK116: =BI108-BI118+BI98+'متغیرها '!C56 -> 36.07624857 | BL116: =BI110+BI97+'متغیرها '!C57 -> 112.4727658 | BM116: شیفت15 | BO116: =BK101 -> 28.67693565 | BP116: =BL101 -> 130.9189297 | BQ116: 22 | BS116: =J248 -> 3.32006 | BT116: =K248 -> 114.42 | BU116: e1 | CA116: =BO105-CB112 -> 38.22743282 | CB116: =BP105-CB113 -> 113.4725698 | CC116: 14 | CD116: نقطه حلقه آستین | CE116: =CA104+SQRT(POWER(CA116-CA104,2)+POWER(CB116-CB104,2))*SIN(IF(CB116=CB104,RADIANS(90)-CB114,ATAN((CA116-CA104)/ABS(CB116-CB104))+IF(CB116>CB104,-1,1)*CB114)) -> 38.22743162 | CF116: =CB104+IF(CB116<CB104,-1,1)*SQRT(POWER(CA116-CA104,2)+POWER(CB116-CB104,2))*COS(IF(CB116=CB104,RADIANS(90)-CB114,ATAN((CA116-CA104)/ABS(CB116-CB104))+IF(CB116>CB104,-1,1)*CB114)) -> 113.473364 | CG116: b8 | CI116: مولفه افقی | CJ116: مولفه عمودی | CK116: اسم نقطه | CM116: =CM114 -> 18.80297485 | CN116: =CN114 -> 145.2897124 | CO116: شیفت وسط 22f | CQ116: α4 | CR116: =0.5*(P139+0.3*(P140-P139)+AE139+0.3*(AE140-AE139)) -> 0.2782010298 | CS116: زاویه سرشانه با افق | CU116: =CQ104+CR105 -> 26.7666 | CV116: =CR104+CR106 -> 113.4556109 | CW116: شیفت40 | CY116: =AZ168 -> 33.52504 | CZ116: =BA168 -> 103.921203 | DA116: 41 | DC116: =DC115+CZ128*SIN(CZ123-CZ132) -> 31.78453904 | DD116: =DD115-CZ128*COS(CZ123-CZ132) -> 87.37935248 | DE116: 47''s | DG116: 27.31000524 | DH116: 5 | DI116: 1r | DK116: =BO112 -> 21.26131596 | DL116: =BP112 -> 137.4612652 | DM116: 28 | DO116: =DK122 -> 15 | DP116: =DL122+0.5*DL121 -> 131.6654417 | DQ116: 21m | DT116: α22g2 | DU116: =ATAN((DU103-DU105)/(DT103-DT105)) -> 1.53880114 | DX116: α18p2 | DY116: =ATAN((DY103-DY105)/(DX103-DX105)) -> 1.434213794 | ED116: =DT150+BT130 -> 19.28557382 | EE116: =DU150 -> 146.146052 | EF116: شیفت 34b | EH116: =BW118 -> 18.29221214 | EI116: =BX118 -> 154.3543711 | EJ116: a2 | EP116: =CY108 -> 16.30646911 | EQ116: =CZ108 -> 84.3 | ER116: 47' | EX116: =EP179 -> 33.26479599 | EY116: =EQ179 -> 84.11029899 | EZ116: شیفت37' | FJ116: =BK172 -> 42.32244 | FK116: 64.97470463 | FL116: شیفت43'' | FN116: =DK111 -> 25.8416 | FO116: =DL111 -> 66.58 | FP116: =DM111 -> شیفت50 | FX116: =-DD154-GK101 -> -14.34041777 | FY116: =DE154 -> 138.0302721 | FZ116: 37 | GB116: =-CM125-GK101 -> -7.601469112 | GC116: =CN125 -> 118.23 | GD116: 43 | GF116: =-EX115-GK101 -> -17.70354846 | GG116: =EY115 -> 99.38970101 | GH116: 37شیفت | GJ116: =-ED114-GK101 -> -14.57310558 | GK116: =EE114 -> 145.3003782 | GL116: شیفت22b | GN116: =-EL114-GK101 -> -8.896469112 | GO116: =EM114 -> 71.58 | GP116: شیفت 53 | GR116: =-EP116-GK101 -> -6.306469112 | GS116: =EQ116 -> 84.3 | GT116: 47' | GZ116: =-DY269-GK101 -> 5 | HA116: =DZ269 -> 95.7 | HB116: d4 | HD116: =-EP154-GK101 -> 1.135930402 | HE116: 98.07915662 | HF116: 6n | HL116: =-DN252-GK101 -> 7.201035401 | HM116: =DO252 -> 72.064 | HN116: p5
E117: اندازه ها در بالاتنه | H117: اندازه محاسبه | J117: (4 → 5) | K117: =0.5*G154*(H120-H121) -> 12.60146911 | L117: =0.5*H154*('متغیرها '!U72-'متغیرها '!U73) -> 12.41264 | Q117: =AN115 -> 0 | R117: =AO115 -> 0 | S117: 1 | U117: =AN130 -> 24.53829458 | V117: =AO130 -> 27.64350419 | W117: 16 | Y117: =0.75*I127 -> 31.95 | Z117: (1 → 5) | AA117: ='متغیرها '!C83*H127 -> 31.95 | AF117: =AR115 -> 0 | AG117: =AS115 -> 0 | AH117: 1 | AJ117: =AR132 -> 19.74636834 | AK117: =AS132 -> 25.98061879 | AL117: 18 | AN117: =K115 -> 30.84414556 | AO117: =0+AP111 -> 0 | AP117: 3 | AR117: =AA115 -> 24.04873684 | AS117: =AT111 -> 0 | AT117: 3 | AV117: =L132 -> 6.1 | AW117: (12 → 15) | AX117: =K132 -> 6.305850975 | AZ117: =AX104-AX119+AX99 -> 32.69122007 | BA117: =AX113+AX98 -> 119.8692642 | BB117: 17 | BD117: =BW148+'متغیرها '!C55 -> 19.42573676 | BE117: =BX148 -> 120.0875759 | BF117: شیفت b | BG117: 0.85 | BH117: (13 → 14) | BI117: 0.999804 | BK117: =BI108-BI118+BI98+'متغیرها '!C56 -> 36.07624857 | BL117: =BI110+BI119+BI97+'متغیرها '!C57 -> 116.4719818 | BM117: شیفت16 | BO117: =BK154 -> 26.7666 | BP117: =BL154 -> 113.4556109 | BQ117: 40 | BS117: =J246 -> 4.495739963 | BT117: =K246 -> 138.2073016 | BU117: e9 | BW117: =BS104+SQRT(POWER(BS117-BS104,2)+POWER(BT117-BT104,2))*SIN(BT103-ATAN((BS104-BS117)/(BT117-BT104))) -> 4.495739963 | BX117: =BT104+SQRT(POWER(BS117-BS104,2)+POWER(BT117-BT104,2))*COS(BT103-ATAN((BS104-BS117)/(BT117-BT104))) -> 138.2073016 | BY117: =BU117 -> e9 | CA117: =BO104-CB112 -> 36.07624857 | CB117: =BP104-CB113 -> 116.4719818 | CC117: 16 | CD117: نقطه حلقه آستین | CE117: =CA104+SQRT(POWER(CA117-CA104,2)+POWER(CB117-CB104,2))*SIN(IF(CB117=CB104,RADIANS(90)-CB114,ATAN((CA117-CA104)/ABS(CB117-CB104))+IF(CB117>CB104,-1,1)*CB114)) -> 36.07603953 | CF117: =CB104+IF(CB117<CB104,-1,1)*SQRT(POWER(CA117-CA104,2)+POWER(CB117-CB104,2))*COS(IF(CB117=CB104,RADIANS(90)-CB114,ATAN((CA117-CA104)/ABS(CB117-CB104))+IF(CB117>CB104,-1,1)*CB114)) -> 116.472627 | CG117: b10 | CI117: =CI109+CJ114*(1-0.5*'متغیرها '!C76+0.5*'متغیرها '!C78-0.5*'متغیرها '!C71)*COS(CJ113) -> 24.25469653 | CJ117: =CJ109-CJ114*(1-0.5*'متغیرها '!C76+0.5*'متغیرها '!C78-0.5*'متغیرها '!C71)*SIN(CJ113) -> 143.7326593 | CK117: 22f | CM117: =CI104+CJ105 -> 17.60146911 | CN117: =CJ104 -> 122.17 | CO117: شیفت5 پیراهن | CR117: =G167 -> 12.59936974 | CS117: w | CY117: =BD177-CZ122 -> 35.84414556 | CZ117: =BE177 -> 115.3873842 | DA117: 14 | DC117: =DC112+CZ129*SIN(CZ123-CZ134) -> 38.5431933 | DD117: =DD112-CZ129*COS(CZ123-CZ134) -> 111.2555307 | DE117: 41s | DG117: =DD569 -> 18.89646911 | DH117: =DE569 -> 5 | DI117: 53r | DK117: =BO111 -> 23.34842128 | DL117: =BP111 -> 139.0322931 | DM117: 23 | DO117: =DO118-CZ146*COS(CZ140) -> 40.56850917 | DP117: =DP118+CZ146*SIN(CZ140) -> 77.69600282 | DQ117: s''2m | DR117: امتداد جیب | DT117: α22g | DU117: =DU115+DU116 -> 1.675740135 | DX117: α18p | DY117: =DY115+DY116 -> 1.704411034 | ED117: =BS128+BT130 -> 17.60146911 | EE117: =BT128 -> 122.17 | EF117: شیفت 5 پیراهن | EH117: =BW120 -> 13.17957059 | EI117: =BX120 -> 160.1027661 | EJ117: a4 | EL117: =AZ180 -> 18.89646911 | EM117: =BA180 -> 84.3 | EN117: شیفت 47'' | ET117: =ET111 -> 18.89646911 | EU117: =EU114 -> 46.1 | EV117: g53 | FB117: =FB109 -> 16.01437637 | FC117: =FC109 -> 71.58 | FD117: a5 | FH117: سرشانه با ساسون | FJ117: 39.590196 | FK117: 65.13523417 | FL117: 41'''' | FX117: =-DD155-GK101 -> -15.58896243 | FY117: =DE155 -> 132.1074351 | FZ117: 35 | GB117: =-CM126-GK101 -> -7.601469112 | GC117: =CN126 -> 120.2 | GD117: 5 بالاتنه | GF117: =-EX116-GK101 -> -23.26479599 | GG117: =EY116 -> 84.11029899 | GH117: شیفت37' | GN117: =-EL115-GK101 -> -8.896469112 | GO117: =EM115 -> 84.3 | GP117: شیفت 47'' | GV117: =-CR167-GK101 -> -8.248969112 | GW117: =CS167 -> 100.5 | GX117: شیفت40 یا dd5 | HD117: =-EP155-GK101 -> -3.981616919 | HE117: 95.7 | HF117: 5n | HH117: =-CP253-GK101 -> 5 | HI117: =CQ253 -> 73.38271983 | HJ117: m11 | HL117: =-DN253-GK101 -> 2.8622 | HM117: =DO253 -> 72.9311 | HN117: p4
E118: دور کمر | F118: a | H118: ='متغیرها '!U70+0.3*'متغیرها '!C60*('متغیرها '!U52+'متغیرها '!U54+'متغیرها '!U72) -> 98.848 | J118: (5 → 6) | K118: ='متغیرها '!C90*(H124-H123) -> 1.97 | L118: =0.2*(H124-H123) -> 3.94 | Q118: =AN122 -> 11.30646911 | R118: 0 | S118: 8 | U118: =AN134 -> 25.79946478 | V118: =AO134 -> 22.67896019 | W118: 20 | Y118: =H148*'متغیرها '!U73 -> 11.55 | Z118: (4 → 6) | AA118: =G148*H121 -> 11.7666 | AF118: =AR123 -> 0 | AG118: 0 | AH118: 9 | AJ118: =AR136 -> 21.03707889 | AK118: =AS136 -> 19.98179479 | AL118: 22 | AN118: 0 | AO118: =K116+AP111 -> 19.7 | AP118: 4 | AR118: 0 | AS118: =AA116+AT111 -> 16.3 | AT118: 4 | AV118: 6.8 | AW118: (15 → 16) | AX118: 8.27424 | AZ118: =AX104-AX119+AX99 -> 32.69122007 | BA118: =AX113+AX120+AX98 -> 121.1104002 | BB118: 18 | BF118: کش سویشرت | BG118: 2.944034027 | BH118: (8 → 15) | BI118: 3.011657948 | BS118: =J251 -> 18.29221214 | BT118: =K251 -> 154.3543711 | BU118: a2 | BW118: =BS104+SQRT(POWER(BS118-BS104,2)+POWER(BT118-BT104,2))*SIN(BT103-ATAN((BS104-BS118)/(BT118-BT104))) -> 18.29221214 | BX118: =BT104+SQRT(POWER(BS118-BS104,2)+POWER(BT118-BT104,2))*COS(BT103-ATAN((BS104-BS118)/(BT118-BT104))) -> 154.3543711 | BY118: a2 | CA118: =BO103-CB112 -> 34.78553803 | CB118: =BP103-CB113 -> 122.4708058 | CC118: 12 | CD118: نقطه حلقه آستین | CE118: =CA104+SQRT(POWER(CA118-CA104,2)+POWER(CB118-CB104,2))*SIN(ATAN((CA118-CA104)/(CB118-CB104))-CB114) -> 34.78491329 | CF118: =CB104+SQRT(POWER(CA118-CA104,2)+POWER(CB118-CB104,2))*COS(ATAN((CA118-CA104)/(CB118-CB104))-CB114) -> 122.4713615 | CG118: b6 | CI118: =CI119+IF(CI117>CI119,0.3,0.7)*(CI117-CI119) -> 24.6549763 | CJ118: =CJ119+0.5*(CJ117-CJ119) -> 137.9200472 | CK118: 24f | CQ118: نقاط حلقه آستین پشت بدون ساسون سرشانه | CU118: =CQ104 -> 26.7666 | CV118: =CR104 -> 113.4556109 | CW118: 40 | CY118: =BW133 -> 31.19371493 | CZ118: =BX133 -> 126.8166658 | DA118: b8 | DC118: =CY105+(CY115-CY105+3)*COS(CZ136-RADIANS('متغیرها '!C187)) -> 33.25916059 | DD118: =CZ105-(CY115-CY105+3)*SIN(CZ136-RADIANS('متغیرها '!C187)) -> 76.52191339 | DE118: s''2 | DH118: ='متغیرها '!C55 -> 0 | DI118: شیفت افقی | DK118: =BO101-DL120 -> 35.64226427 | DL118: =BP101 -> 135.0225037 | DM118: 18 | DO118: =DO104+CZ148*SIN(CZ143) -> 45.37250426 | DP118: =DP104-CZ148*COS(CZ143) -> 80.29757856 | DQ118: s'2m | DT118: αb12g | DU118: =DU110*DY118 -> -0.05237234306 | DX118: αb12p | DY118: =(RADIANS(180)-DU117-DY117+DU109)*(1/(1+DU110)) -> -0.02618617153 | EL118: =AZ167+BT130 -> 18.24896911 | EM118: =BA167 -> 100.5 | EN118: شیفت 40 | EP118: =DC112 -> 36.29703227 | EQ118: =DD112 -> 122.7362242 | ER118: b2s | ET118: =ET112 -> 32.23004 | EU118: =BE178-(H105-H107) -> 49.02120297 | EV118: g49 | EZ118: پهلو جدا روی جیب با ساسون | FB118: =FB115 -> 29.07711451 | FC118: =FC115 -> 71.97560149 | FD118: 49'm | FF118: =CE105 -> 23.34842128 | FG118: =CF105 -> 139.0322931 | FH118: 23 | FJ118: 36.174891 | FK118: 65.69708755 | FL118: 41''' | FN118: =DK105 -> 26.7666 | FO118: =DL105 -> 113.4556109 | FP118: =DM105 -> شیفت40 | FR118: =DK103 -> 34.78553803 | FS118: =DL103 -> 122.4708058 | FT118: =DM103 -> شیفت12p | GJ118: =-ED116-GK101 -> -9.285573818 | GK118: =EE116 -> 146.146052 | GL118: شیفت 34b | GR118: =-EP118-GK101 -> -26.29703227 | GS118: =EQ118 -> 122.7362242 | GT118: b2s | GV118: =-CR170-GK101 -> -8.555932075 | GW118: =CS170 -> 92.82 | GX118: dd5 | GZ118: =-DY271-GK101 -> 5 | HA118: =DZ271 -> 125.2195874 | HB118: p26 | HD118: =-EP156-GK101 -> -6.647006149 | HE118: 92.82 | HF118: d5 | HH118: =-CP254-GK101 -> 5 | HI118: =CQ254 -> 79.13376789 | HJ118: m9 | HL118: =-DN254-GK101 -> 5 | HM118: =DO254 -> 74 | HN118: p3
E119: نوار کمر از پشت بین دو خط پهلو | F119: b | H119: ='متغیرها '!U71+0.3*'متغیرها '!C60*('متغیرها '!U53+'متغیرها '!U55+'متغیرها '!U73) -> 45.4664 | J119: (5 → 7) | K119: ='متغیرها '!C88*(H124-H123) -> 1.97 | L119: =0*(I124-I123) -> 0 | Q119: 13.89646911 | R119: 0 | S119: 9 | U119: =AN132 -> 27.69122007 | V119: =AO132 -> 20.61040019 | W119: 18 | Y119: =(H153-1)*(I127-I126)+0.2*'متغیرها '!U82 -> 8.321111111 | Z119: (6 → 7) | AA119: =(G153-1)*(H127-H126)+0.2*H130 -> 7.922301215 | AF119: 11.5666 | AG119: 0 | AH119: 10 | AJ119: =AR134 -> 23.18826314 | AK119: =AS134 -> 16.98238279 | AL119: 20 | AN119: =K117 -> 12.60146911 | AO119: =K116+AP111 -> 19.7 | AP119: 5 | AR119: 0 | AS119: =AA117+AT111 -> 31.95 | AT119: 5 | AV119: 3.05 | AW119: (12 → 17) | AX119: 3.152925488 | BD119: =AZ106 -> 5 | BE119: =BA151+'متغیرها '!C278*('متغیرها '!U60-'متغیرها '!U59) -> 74.50120297 | BG119: 3.4 | BH119: (15 →16) | BI119: 3.999216 | BK119: =BI108-BI116+BI98+'متغیرها '!C56 -> 38.22743282 | BL119: =BI110+BI97+'متغیرها '!C57 -> 112.4727658 | BM119: شیفت13 | BO119: =BK155 -> 26.7666 | BP119: =BL155 -> 79.4 | BQ119: 38 | BS119: =J257 -> 15.32763676 | BT119: =K257 -> 150.6005684 | BU119: a13 | BW119: =BS104+SQRT(POWER(BS119-BS104,2)+POWER(BT119-BT104,2))*SIN(BT103-ATAN((BS104-BS119)/(BT119-BT104))) -> 15.32763676 | BX119: =BT104+SQRT(POWER(BS119-BS104,2)+POWER(BT119-BT104,2))*COS(BT103-ATAN((BS104-BS119)/(BT119-BT104))) -> 150.6005684 | BY119: a13 | CA119: =BO102-CB112 -> 35.0425559 | CB119: =BP102-CB113 -> 129.3742397 | CC119: 20 | CD119: نقطه حلقه آستین | CE119: =CA104+SQRT(POWER(CA119-CA104,2)+POWER(CB119-CB104,2))*SIN(ATAN((CA119-CA104)/(CB119-CB104))-CB114) -> 35.04145278 | CF119: =CB104+SQRT(POWER(CA119-CA104,2)+POWER(CB119-CB104,2))*COS(ATAN((CA119-CA104)/(CB119-CB104))-CB114) -> 129.3748131 | CG119: b12 | CI119: =CI108 -> 25.58896243 | CJ119: =CJ108 -> 132.1074351 | CK119: 16f | CM119: =BS128+BT130 -> 17.60146911 | CN119: =BT128 -> 122.17 | CO119: شیفت 5 پیراهن | CQ119: مولفه افقی | CR119: مولفه عمودی | CS119: اسم نقطه | CU119: =CU122+0.5*(CQ120-CU122) -> 28.80014296 | CV119: =CR120+0.5*(CV122-CR120) -> 137.4752399 | CW119: وسط 18f | CY119: =BW132 -> 34.58159617 | CZ119: =BX132 -> 126.8768193 | DA119: b4 | DC119: =DD134 -> 31.46952666 | DD119: =DE134 -> 77.49113344 | DE119: s'2 | DG119: نقاط خروجی | DK119: =BO102-DL120 -> 35.0425559 | DL119: =BP102 -> 129.3742397 | DM119: 20 | DO119: =CE109 -> 29.19322562 | DP119: =CF109 -> 137.7458625 | DQ119: 30m | DT119: نقاط خروجی | DX119: نقاط خروجی | ED119: =BS104+BT130 -> 17.60146911 | EE119: =BT104 -> 120.2 | EF119: شیفت 5 بالاتنه | EH119: =BW120 -> 13.17957059 | EI119: 160.1027661 | EJ119: a4 | EP119: =DC117 -> 38.5431933 | EQ119: =DD117 -> 111.2555307 | ER119: 41s | EV119: سینه | EX119: =DC126 -> 31.42867068 | EY119: =DD126 -> 126.8208375 | EZ119: b'8s | FD119: انگلیسی | FF119: =DY150 -> 29.2525421 | FG119: =DZ150 -> 138.0535189 | FH119: 30b | FJ119: 32.759586 | FK119: 66.25894093 | FL119: 41'' | FN119: =DK112 -> 26.7666 | FO119: 96.5 | FP119: شیفت35 | FR119: =EE337 -> 21.8416 | FS119: =EF337-0.3*DZ168 -> 58.1 | FT119: e215 | FX119: =-DD157-GK101 -> -15.58896243 | FY119: =DE157 -> 132.1074351 | FZ119: 35 | GB119: =-CM128-GK101 -> -7.601469112 | GC119: =CN128 -> 120.2 | GD119: 5 بالاتنه | GH119: 13' | GJ119: =-ED117-GK101 -> -7.601469112 | GK119: =EE117 -> 122.17 | GL119: شیفت 5 پیراهن | GN119: =-EL115-GK101 -> -8.896469112 | GO119: =EM115 -> 84.3 | GP119: شیفت 47'' | GR119: =-EP119-GK101 -> -28.5431933 | GS119: =EQ119 -> 111.2555307 | GT119: 41s | GZ119: =-DY272-GK101 -> 5 | HA119: =DZ272 -> 95.7 | HB119: d4
E120: دور سینه : از برجسته ترین قسمت سینه | F120: s1 | H120: ='متغیرها '!U72+0.3*'متغیرها '!C60*('متغیرها '!U52+'متغیرها '!U54+'متغیرها '!U72) -> 107.848 | J120: (1 → 8) | K120: =0.5*G154*(H120-H121)-IF(G152>0,G152,0) -> 11.30646911 | L120: =0.5*H154*('متغیرها '!U72-'متغیرها '!U73)-IF(H152>0,H152,0) -> 11.11764 | Q120: 29.82004 | R120: 0 | S120: 10 | U120: =AN126 -> 30.84414556 | V120: =AO126 -> 19.36926419 | W120: 12 | Y120: =(H153*(I127-I126)+0.2*'متغیرها '!U82)*0.9-(I127-I126) -> 5.859 | Z120: (6 → 8) | AA120: =(G153*(H127-H126)+0.2*H130)*'متغیرها '!C85-(H127-H126) -> 0.6556108503 | AF120: 11.9666 | AG120: 0 | AH120: 11 | AJ120: =AR129 -> 25.77253684 | AK120: =AS129 -> 15.98257879 | AL120: 15 | AN120: =K117 -> 12.60146911 | AO120: =K116+K118+AP111 -> 21.67 | AP120: 6 | AR120: =AA118 -> 11.7666 | AS120: =AA116+AT111 -> 16.3 | AT120: 6 | AV120: 1.02 | AW120: (17 → 18) | AX120: 1.241136 | AZ120: =AX104-AX121+AX99 -> 30.79946478 | BA120: =AX113+AX98 -> 119.8692642 | BB120: 19 | BD120: =BD154 -> 35.87935952 | BE120: =BE119 -> 74.50120297 | BG120: 2.04 | BH120: (12 → 17) | BI120: 0.8567262452 | BK120: =BI108-BI116+BI98+'متغیرها '!C56 -> 38.22743282 | BL120: =BI110+BI117+BI97+'متغیرها '!C57 -> 113.4725698 | BM120: شیفت14 | BO120: =BO119 -> 26.7666 | BP120: =BL168 -> 66.58 | BQ120: 38''' | BS120: =J252 -> 13.17957059 | BT120: =K252 -> 160.1027661 | BU120: a4 | BW120: =BS104+SQRT(POWER(BS120-BS104,2)+POWER(BT120-BT104,2))*SIN(BT103-ATAN((BS104-BS120)/(BT120-BT104))) -> 13.17957059 | BX120: =BT104+SQRT(POWER(BS120-BS104,2)+POWER(BT120-BT104,2))*COS(BT103-ATAN((BS104-BS120)/(BT120-BT104))) -> 160.1027661 | BY120: a4 | CA120: =BO101-CB112 -> 35.64226427 | CB120: =BP101-CB113 -> 135.0225037 | CC120: 18 | CD120: نقطه حلقه آستین | CE120: =CA104+SQRT(POWER(CA120-CA104,2)+POWER(CB120-CB104,2))*SIN(ATAN((CA120-CA104)/(CB120-CB104))-CB114) -> 35.64076975 | CF120: =CB104+SQRT(POWER(CA120-CA104,2)+POWER(CB120-CB104,2))*COS(ATAN((CA120-CA104)/(CB120-CB104))-CB114) -> 135.0231187 | CG120: b16 | CI120: =CI110-0.85*(CI110-CI119)+CJ114*0.07*'متغیرها '!C76 -> 27.43592446 | CJ120: =CJ110+0.5*(CJ119-CJ110) -> 125.9883497 | CK120: 20f | CM120: =BS104+BT130 -> 17.60146911 | CN120: =BT104 -> 120.2 | CO120: شیفت 5 بالاتنه | CQ120: =CQ112+CR117*(1-0.5*CR108+0.5*CR109-0.5*CR107)*COS(CR116) -> 34.25186463 | CR120: =CR112-CR117*(1-0.5*CR108+0.5*CR109-0.5*CR107)*SIN(CR116) -> 135.9181867 | CS120: 18f | CY120: =BW139 -> 36.17413272 | CZ120: =BX139 -> 127.5366024 | DA120: b14 | DC120: =DC119-CY106+CY109 -> 28.87952666 | DD120: =DD119 -> 77.49113344 | DE120: s2 | DG120: مولفه افقی | DH120: مولفه عمودی | DI120: اسم نقطه | DL120: ='متغیرها '!C56 -> 0 | DM120: شیفت افقی | DO120: =CE121 -> 30.84963338 | DP120: =CF121 -> 137.414388 | DQ120: 32m | DT120: مولفه افقی | DU120: مولفه عمودی | DV120: اسم نقطه | DX120: مولفه افقی | DY120: مولفه عمودی | DZ120: اسم نقطه | ED120: =BS128+BT130 -> 17.60146911 | EE120: =BT128 -> 122.17 | EF120: شیفت 5 پیراهن | EH120: 8.243909224 | EI120: 154.8743184 | EJ120: a6 | EL120: =AZ167+BT130 -> 18.24896911 | EM120: =BA167 -> 100.5 | EN120: شیفت 40 | ET120: =ET108 -> 5 | EU120: =BA165+(H124-H123) -> 120.2 | EV120: g4 | EX120: =DC124 -> 35.63035591 | EY120: =DD124 -> 109.2879978 | EZ120: 41m | FB120: =DU176 -> 3.32006 | FC120: 106.545 | FD120: e''1 | FJ120: 28.66122 | FK120: 66.58 | FL120: شیفت41' | FN120: 25.8416 | FO120: 79.4 | FP120: شیفت38'' | FX120: =-DD158-GK101 -> -11.99459044 | FY120: =DE158 -> 128.6380764 | FZ120: 33 | GB120: =-CM129-GK101 -> -7.601469112 | GC120: =CN129 -> 122.17 | GD120: 5 پیراهن | GF120: =-EX119-GK101 -> -21.42867068 | GG120: =EY119 -> 126.8208375 | GH120: b'8s | GN120: =-EL118-GK101 -> -8.248969112 | GO120: =EM118 -> 100.5 | GP120: شیفت 40 | GV120: =-CR170-GK101 -> -8.555932075 | GW120: =CS170 -> 92.82 | GX120: dd5 | HF120: 69' | HH120: =-CP256-GK101 -> 5 | HI120: =CQ256 -> 73.38271983 | HJ120: m11 | HL120: =-DN256-GK101 -> 5 | HM120: =DO256 -> 74 | HN120: p3
E121: پشت نوار سینه، بین دو خط پهلو | F121: s2 | H121: ='متغیرها '!U73+0.3*'متغیرها '!C60*('متغیرها '!U53+'متغیرها '!U55+'متغیرها '!U73) -> 47.0664 | J121: (8 → 9) | K121: =IF(G152>0,2*G152,0) -> 2.59 | L121: =2*IF(H152>0,H152,0) -> 2.59 | Q121: 29.82004 | R121: 3.463954518 | S121: 11 | U121: =AN127 -> 32.56794556 | V121: =AO127 -> 19.36926419 | W121: 13 | Y121: =H147 -> 0 | Z121: (1→ 9) | AA121: =G147 -> 0 | AF121: 23.67244 | AG121: 0 | AH121: 12 | AN121: =K117 -> 12.60146911 | AO121: =K116-K119+AP111 -> 17.73 | AP121: 7 | AR121: =AA118 -> 11.7666 | AS121: =AA116+AA119+AT111 -> 24.22230121 | AT121: 7 | AV121: 4.88 | AW121: (12 → 19) | AX121: 5.04468078 | AZ121: =AX104-AX121+AX99 -> 30.79946478 | BA121: =AX113+AX122+AX98 -> 123.1789602 | BB121: 20 | BG121: 11.98258841 | BH121: (17 → 18) | BI121: 12.5516979 | BS121: =J253 -> 8.243909224 | BT121: =K253 -> 154.8743184 | BU121: a6 | BW121: =BS104+SQRT(POWER(BS121-BS104,2)+POWER(BT121-BT104,2))*SIN(BT103-ATAN((BS104-BS121)/(BT121-BT104))) -> 8.243909224 | BX121: =BT104+SQRT(POWER(BS121-BS104,2)+POWER(BT121-BT104,2))*COS(BT103-ATAN((BS104-BS121)/(BT121-BT104))) -> 154.8743184 | BY121: a6 | CA121: =BK146-CB112 -> 30.85129361 | CB121: =BL146-CB113 -> 137.414105 | CC121: 32 | CD121: نقطه ساسون سرشانه | CE121: =CA104+SQRT(POWER(CA121-CA104,2)+POWER(CB121-CB104,2))*SIN(ATAN((CA121-CA104)/(CB121-CB104))-CB114) -> 30.84963338 | CF121: =CB104+SQRT(POWER(CA121-CA104,2)+POWER(CB121-CB104,2))*COS(ATAN((CA121-CA104)/(CB121-CB104))-CB114) -> 137.414388 | CG121: 32 | CI121: =CI110-0.5*(CI110-CI119)+CJ114*0.07*'متغیرها '!C76 -> 31.02523855 | CJ121: =CJ110+0.15*(CJ119-CJ110) -> 121.7049898 | CK121: 18f | CQ121: =CQ122+0.2*(CQ120-CQ122)-CR117*0.05*CR108 -> 33.47871673 | CR121: =CR122+0.4*(CR120-CR122) -> 128.1811979 | CS121: 20f | CU121: =CU119 -> 28.80014296 | CV121: =CV119 -> 137.4752399 | CW121: وسط 18f | CY121: =BW140 -> 36.29703227 | CZ121: =BX140 -> 122.7362242 | DA121: b2 | DC121: =DC117+CZ130*SIN(CZ123+CZ133) -> 43.71957921 | DD121: =DD117-CZ130*COS(CZ123+CZ133) -> 95.37773006 | DE121: 45ss | DG121: =DG104-DH109 -> 32.69122007 | DH121: =DH104 -> 115.3873842 | DI121: 14شیفتm | DL121: =H170 -> 1.493024074 | DM121: m' | DO121: =DX122 -> 34.59097934 | DP121: =DY122 -> 122.4713615 | DQ121: =DZ122 -> b'6p | DR121: چرخیده | DT121: =DT103-DU114*COS(DU116+DU118) -> 23.96015836 | DU121: =DU103-DU114*SIN(DU116+DU118) -> 138.0524212 | DV121: b'12g | DX121: =DX103-DY114*COS(DY116+DY118) -> 34.87984116 | DY121: =DY103-DY114*SIN(DY116+DY118) -> 129.3991847 | DZ121: b'12p | EH121: 2.637869389 | EI121: 145.6218312 | EJ121: a8 | EL121: =AZ161+BT130 -> 17.60146911 | EM121: =BA161 -> 118.23 | EN121: شیفت 43 | EP121: =DC117 -> 38.5431933 | EQ121: =DD117 -> 111.2555307 | ER121: 41s | ET121: =AZ104 -> 17.60146911 | EU121: =EU120 -> 120.2 | EV121: g5 | FB121: 2.92006 | FC121: 114.42 | FD121: e'1 | FF121: =DY150 -> 29.2525421 | FG121: =DZ150 -> 138.0535189 | FH121: 30b | FJ121: 25.8416 | FK121: 66.58 | FL121: شیفت50 | FN121: =DK111 -> 25.8416 | FO121: =DL111 -> 66.58 | FP121: =DM111 -> شیفت50 | FR121: =EE337 -> 21.8416 | FS121: =EF337-0.3*DZ168 -> 58.1 | FT121: e215 | FX121: =-DD159-GK101 -> -8.959342975 | FY121: =DE159 -> 123.7809741 | FZ121: 23 | GF121: =-EX120-GK101 -> -25.63035591 | GG121: =EY120 -> 109.2879978 | GH121: 41m | GJ121: =-ED119-GK101 -> -7.601469112 | GK121: =EE119 -> 120.2 | GL121: شیفت 5 بالاتنه | GR121: =-EP121-GK101 -> -28.5431933 | GS121: =EQ121 -> 111.2555307 | GT121: 41s | GV121: =-CR173-GK101 -> -22.77837333 | GW121: =CS173 -> 94.32120297 | GX121: d3 | HB121: 52' | HD121: =-CL286-GK101 -> 5 | HE121: =CM286 -> 96 | HF121: s1 | HH121: =-CP257-GK101 -> 6.67994 | HI121: =CQ257 -> 73.38271983 | HJ121: m'11 | HL121: =-DN257-GK101 -> 6.67994 | HM121: =DO257 -> 74 | HN121: p'3
E122: فاصله عمودی از خط سینه جلو تا خط سینه پشت که از کنار حلقه آستین بگذرد | F122: t1 | H122: =('متغیرها '!U74-'متغیرها '!U77)-0.5*'متغیرها '!C60*('متغیرها '!U74-'متغیرها '!U77)+'متغیرها '!C63*('متغیرها '!U75-'متغیرها '!U78) -> 20.394 | I122: =('متغیرها '!U74-'متغیرها '!U77) -> 20.6 | J122: (7 → 8) | K122: وصل | Q122: =AN124 -> 29.82004 | R122: =AO124 -> 0 | S122: 10 | Z122: (9 →5) | AA122: وصل | AF122: 23.67244 | AG122: 0.0345175741 | AH122: 13 | AN122: =K120 -> 11.30646911 | AO122: =0+AP111 -> 0 | AP122: 8 | AR122: =AA118 -> 11.7666 | AS122: =AA116+AA120+AT111 -> 16.95561085 | AT122: 8 | AV122: 2.72 | AW122: (19 → 20) | AX122: 3.309696 | BD122: =AZ162 -> 17.60146911 | BE122: =BE119 -> 74.50120297 | BG122: 0.612 | BH122: (12 → 19) | BI122: 0.2570178735 | BK122: =BI108+BI98+'متغیرها '!C56 -> 39.08790652 | BL122: =BI110+BI97+'متغیرها '!C57 -> 112.4727658 | BM122: شیفت8 | BO122: =BO153 -> 39.08790652 | BP122: =BP153 -> 107.9908858 | BQ122: 10 شیفت | BS122: =J261 -> 2.637869389 | BT122: =K261 -> 145.6218312 | BU122: a8 | BW122: =BS104+SQRT(POWER(BS122-BS104,2)+POWER(BT122-BT104,2))*SIN(BT103-ATAN((BS104-BS122)/(BT122-BT104))) -> 2.637869389 | BX122: =BT104+SQRT(POWER(BS122-BS104,2)+POWER(BT122-BT104,2))*COS(BT103-ATAN((BS104-BS122)/(BT122-BT104))) -> 145.6218312 | BY122: a8 | CA122: =BO106-CB112 -> 40.81170652 | CB122: =BP106-CB113 -> 112.4727658 | CC122: 9 | CD122: نقطه حلقه آستین | CE122: =CA104+SQRT(POWER(CA122-CA104,2)+POWER(CB122-CB104,2))*SIN(IF(CB122=CB104,RADIANS(90)-CB114,ATAN((CA122-CA104)/ABS(CB122-CB104))+IF(CB122>CB104,-1,1)*CB114)) -> 40.8117746 | CF122: =CB104+IF(CB122<CB104,-1,1)*SQRT(POWER(CA122-CA104,2)+POWER(CB122-CB104,2))*COS(IF(CB122=CB104,RADIANS(90)-CB114,ATAN((CA122-CA104)/ABS(CB122-CB104))+IF(CB122>CB104,-1,1)*CB114)) -> 112.4737391 | CG122: b14 | CM122: =BS104+BT130 -> 17.60146911 | CN122: =BT104 -> 120.2 | CO122: شیفت 5 بالاتنه | CQ122: =CQ110+0.5*CR111+CR117*(0.2*CR109-0.3*CR108) -> 33.56104097 | CR122: =CR113+0.45*(CR120-CR113) -> 123.0232053 | CS122: 12f | CU122: =CQ112 -> 23.34842128 | CV122: =CR112 -> 139.0322931 | CW122: 23 | CZ122: ='متغیرها '!C55 -> 0 | DA122: شیفت افقی | DC122: =DC121-CZ135*SIN(CZ123+CZ133) -> 46.7601408 | DD122: =DD121+CZ135*COS(CZ123+CZ133) -> 86.05125561 | DE122: ss2 | DG122: =DG105-DH109 -> 30.37211451 | DH122: =DH105 -> 103.921203 | DI122: 41شیفتm | DK122: =BK102 -> 15 | DL122: =BL102 -> 130.9189297 | DM122: 21 | DO122: =DK129+DH109 -> 41.92413847 | DP122: =DL129 -> 78.05179721 | DQ122: p10rm | DR122: شلوار | DT122: =DT106+1.2*(DT121-DT105) -> 25.13265113 | DU122: =DU106 -> 132.1074351 | DV122: b'6g | DX122: =DX106+1.2*(DX121-DX105) -> 34.59097934 | DY122: =DY106 -> 122.4713615 | DZ122: b'6p | ED122: =BS104+BT130 -> 17.60146911 | EE122: =BT104 -> 120.2 | EF122: شیفت 5 بالاتنه | EH122: =BW115 -> 0.2352808882 | EI122: =BX115 -> 136.3693439 | EJ122: e3 | EP122: =DC122 -> 46.7601408 | EQ122: =DD122 -> 86.05125561 | ER122: ss2 | EX122: =DC124 -> 35.63035591 | EY122: =DD124 -> 109.2879978 | EZ122: 41m | FB122: 1.728146862 | FC122: 121.4778287 | FD122: e''10 | FF122: =BK101 -> 28.67693565 | FG122: =BL101 -> 130.9189297 | FH122: 22 | FJ122: =BO176 -> 15 | FK122: =BP176 -> 66.58 | FL122: 47 | FR122: =EE341 -> 21.8416 | FS122: =EF341 -> 66.58 | FT122: e216 | FX122: =-DD160-GK101 -> -7.601469112 | FY122: =DE160 -> 118.23 | FZ122: 43 | GB122: =-CM131-GK101 -> -7.601469112 | GC122: =CN131 -> 122.17 | GD122: 5پیراهن | GJ122: =-ED120-GK101 -> -7.601469112 | GK122: =EE120 -> 122.17 | GL122: شیفت 5 پیراهن | GN122: =-EL118-GK101 -> -8.248969112 | GO122: =EM118 -> 100.5 | GP122: شیفت 40 | GR122: =-EP122-GK101 -> -36.7601408 | GS122: =EQ122 -> 86.05125561 | GT122: ss2 | GZ122: =-AW268-GK101 -> -3.351253178 | HA122: =AX268 -> 146.8467656 | HB122: 25 | HD122: =-CL287-GK101 -> 5 | HE122: =CM287 -> 125.2195874 | HF122: p26
E123: فاصله عمودی از خط سینه جلو تا خط سینه پشت که از کنارگردن بگذرد | F123: t2 | H123: ='متغیرها '!U75-'متغیرها '!U78+'متغیرها '!C63*('متغیرها '!U75-'متغیرها '!U78) -> 26.7 | I123: ='متغیرها '!U75-'متغیرها '!U78 -> 26.7 | J123: (7 → 9) | K123: وصل | Q123: =AN117 -> 30.84414556 | R123: =AO117 -> 0 | S123: 3 | Y123: =Y118-H151-H147 -> 11.35 | Z123: (9 → 10) | AA123: =AA118-AA121-G151 -> 11.5666 | AF123: =AR126 -> 23.67244 | AG123: =AS126 -> 0 | AH123: 12 | AN123: =K120+K121 -> 13.89646911 | AO123: =0+AP111 -> 0 | AP123: 9 | AR123: =AA121 -> 0 | AS123: =AT111 -> 0 | AT123: 9 | AV123: 4.76 | AW123: (16 → 21) | AX123: 3.711634843 | AZ123: =AZ115 -> 29.53829458 | BA123: =BA115 -> 128.1435042 | BB123: 16 | BD123: =BD122 -> 17.60146911 | BE123: =BA106 -> 71.58 | BG123: 6.590423625 | BH123: (19 → 20) | BI123: 6.903433845 | BK123: =BI108+BI98+'متغیرها '!C56 -> 39.08790652 | BL123: =0+BI97+'متغیرها '!C57 -> 66.58 | BM123: شیفت7 | BO123: =#REF!+'متغیرها '!C56 ->  | BP123: =#REF!+'متغیرها '!C57 ->  | BQ123: b شیفت | BS123: =J263 -> 1.160714622 | BT123: =K263 -> 125.3946719 | BU123: a11 | BW123: =IF(BS116>BW115,BS116-0.7*(BS116-BW115),BW115-0.7*(BW115-BS116)) -> 1.160714622 | BX123: =BT123 -> 125.3946719 | BY123: a11 | CA123: =BO122-CB112 -> 39.08790652 | CB123: =BP122-CB113 -> 107.9908858 | CC123: 10 | CD123: نقطه زیر حلقه آستین | CE123: =CA104+SQRT(POWER(CA123-CA104,2)+POWER(CB123-CB104,2))*SIN(IF(CB123=CB104,RADIANS(90)-CB114,ATAN((CA123-CA104)/ABS(CB123-CB104))+IF(CB123>CB104,-1,1)*CB114)) -> 39.08828518 | CF123: =CB104+IF(CB123<CB104,-1,1)*SQRT(POWER(CA123-CA104,2)+POWER(CB123-CB104,2))*COS(IF(CB123=CB104,RADIANS(90)-CB114,ATAN((CA123-CA104)/ABS(CB123-CB104))+IF(CB123>CB104,-1,1)*CB114)) -> 107.9917397 | CG123: b2 | CJ123: به دست آوردن نقطه تقاطع دو خط (وسط 20f) | CK123: مولفه افقی | CL123: مولفه عمودی | CM123: =AZ161+BT130 -> 17.60146911 | CN123: =BA161 -> 118.23 | CO123: شیفت 43 | CQ123: =CQ113-0.9*(CQ113-CQ122)+CR117*0.07*CR108 -> 34.59479208 | CR123: =CR113+0.25*(CR120-CR113) -> 118.3341211 | CS123: 16f | CW123: رگلان | CZ123: =BU143-BU142 -> 0.392770297 | DA123: ζ'2-ζ'1 | DC123: =DC112-CZ125*COS(CZ123) -> 33.38419487 | DD123: =DD112-CZ125*COS(CZ123)*TAN(CZ138) -> 122.0341379 | DE123: b2m | DG123: =DG106-DH109 -> 29.07711451 | DH123: =DH106 -> 87.27120297 | DI123: 45شیفتm | DK123: =BK159 -> 26.7666 | DL123: =BL159 -> 96.5 | DM123: 34 | DO123: =DK130+DH109 -> 37.32949537 | DP123: =DL130 -> 42.1892359 | DQ123: p7rm | DT123: =DT107+0.5*(DT121-DT105) -> 28.46414305 | DU123: =DU107 -> 128.0036418 | DV123: b'10g | DX123: =DX107+0.5*(DX121-DX105) -> 35.99523372 | DY123: =DY107 -> 116.472627 | DZ123: b'10p | ED123: =AZ161+BT130 -> 17.60146911 | EE123: =BA161 -> 118.23 | EF123: شیفت 43 | EH123: =BW123 -> 1.160714622 | EI123: =BX123 -> 125.3946719 | EJ123: a11 | EL123: =AZ161 -> 17.60146911 | EM123: =BA161 -> 118.23 | EN123: 43 | ET123: =BD166 -> 17.60146911 | EU123: =EU120 -> 120.2 | EV123: g'5 | EX123: =DC125 -> 43.84730341 | EY123: =DD125 -> 86.3095778 | EZ123: ss2m | FB123: 0.8362337232 | FC123: 128.5356574 | FD123: e'10 | FL123: ترک وسط | FN123: =DK105-DL120 -> 26.7666 | FO123: =DL105-DL128 -> 113.4556109 | FP123: بدون شیفت40 | GB123: =-CM132-GK101 -> -8.802974853 | GC123: =CN132 -> 145.2897124 | GD123: وسط 22f | GF123: =-EX122-GK101 -> -25.63035591 | GG123: =EY122 -> 109.2879978 | GH123: 41m | GN123: =-EL121-GK101 -> -7.601469112 | GO123: =EM121 -> 118.23 | GP123: شیفت 43 | GV123: =-CR173-GK101 -> -22.77837333 | GW123: =CS173 -> 94.32120297 | GX123: d3 | GZ123: =-AW269-GK101 -> -3.351253178 | HA123: =AX269 -> 155.8343802 | HB123: 1n | HH123: =-CP259-GK101 -> 6.67994 | HI123: =CQ259 -> 73.38271983 | HJ123: m'11 | HL123: =-DN259-GK101 -> 6.67994 | HM123: =DO259 -> 74 | HN123: p'3
E124: فاصله عمودی از خط کمر جلو تا خط کمر پشت که از کنار گردن بگذرد | F124: t3 | H124: ='متغیرها '!U76-'متغیرها '!U79+'متغیرها '!C63*('متغیرها '!U76-'متغیرها '!U79) -> 46.4 | I124: ='متغیرها '!U76-'متغیرها '!U79 -> 46.4 | J124: (9 → 10) | K124: =K115-K120-2*G152-0.5*(H120-H121-H118+H119)*(1-2*'متغیرها '!C87)+'متغیرها '!C77*O128*H130*((L115-L120-L121-L124)/(L127-L125)) -> 15.92357089 | L124: =L115-L120-2*H152-0.5*('متغیرها '!U72-'متغیرها '!U73-'متغیرها '!U70+'متغیرها '!U71)*(1-2*'متغیرها '!C87) -> 15.08236 | N124: متغیرهای محاسبه ای بالاتنه جلو | P124: شبیه ساز | Q124: =AN126 -> 30.84414556 | R124: =AO126 -> 19.36926419 | S124: 12 | W124: انحنای حلقه یقه جلو | Y124: =2*H151 -> 0.4 | Z124: (10 → 11) | AA124: =2*G151 -> 0.4 | AF124: =AR117 -> 24.04873684 | AG124: =AS117 -> 0 | AH124: 3 | AL124: انحنای حلقه یقه پشت | AN124: =K120+K121+K124 -> 29.82004 | AO124: =0+AP111 -> 0 | AP124: 10 | AR124: =AA121+AA123 -> 11.5666 | AS124: =AT111 -> 0 | AT124: 10 | AV124: 11.18420426 | AW124: (21 → 22) | AX124: 11.89941191 | AZ124: =AX104-AX117+AX123+AX99 -> 33.24992943 | BA124: =AX113+AX118+AX98 -> 128.1435042 | BB124: 21 | BH124: (18 → 20→ 12→ 16→ 14→ 8→ 9) | BI124: هلال وصل | BS124: =N267 -> 17.09926245 | BT124: =O267 -> 155.6956633 | BU124: a14 | BW124: =BS104+SQRT(POWER(BS124-BS104,2)+POWER(BT124-BT104,2))*SIN(BT103-ATAN((BS104-BS124)/(BT124-BT104))) -> 17.09926245 | BX124: =BT104+SQRT(POWER(BS124-BS104,2)+POWER(BT124-BT104,2))*COS(BT103-ATAN((BS104-BS124)/(BT124-BT104))) -> 155.6956633 | BY124: a14 | CB124: متغیرهای محاسبه ای ساسون زیر بغل | CI124: نقطه اول از خط اول | CJ124: 30 | CK124: =CM137 -> 11.68100254 | CL124: =CN137 -> 141.6080548 | CQ124: =CQ113-0.55*(CQ113-CQ122)+CR117*0.07*CR108 -> 37.13252503 | CR124: =CR113+0.09*(CR120-CR113) -> 114.5828537 | CS124: 14f | CU124: =CQ103 -> 21.26131596 | CV124: =CR103 -> 137.4612652 | CW124: 28 | CY124: =BD160 -> 17.60146911 | CZ124: =BE160 -> 122.17 | DA124: شیفت 5 | DC124: =DC117-CZ125*COS(CZ123) -> 35.63035591 | DD124: =DD117-CZ125*COS(CZ123)*TAN(CZ137) -> 109.2879978 | DE124: 41m | DG124: =DG107-DH109 -> 29.07711451 | DH124: =CZ114-0.5*(CZ114-CZ106) -> 71.97560149 | DI124: 49'شیفتm | DJ124: پیراهن | DK124: =BO187 -> 27.6916 | DL124: =BP187 -> 79.4 | DM124: 38' | DO124: =DK131+DH109 -> 39.36255217 | DP124: =DL131 -> 1.089235898 | DQ124: p5rm | DT124: =DT111+DT122-DT106 -> 29.08198329 | DU124: =DU111 -> 128.1435042 | DV124: 16g | DW124: در مدل عصایی | DX124: =DX111+DX122-DX106 -> 34.59160408 | DY124: =DY111 -> 122.4708058 | DZ124: 12p | EA124: در مدل عصایی | EH124: =BS116 -> 3.32006 | EI124: =BT116 -> 114.42 | EJ124: e1 | EL124: =AZ166 -> 16.95396911 | EM124: =BA166 -> 100.5 | EN124: 39 | EP124: =DC122 -> 46.7601408 | EQ124: =DD122 -> 86.05125561 | ER124: ss2 | ET124: =CM105 -> 27.43592446 | EU124: =EU120 -> 120.2 | EV124: g''5 | FB124: =DP178 -> 0.01368287202 | FC124: =DQ178 -> 137.9460957 | FD124: e10 | FF124: =BK101 -> 28.67693565 | FG124: =BL101 -> 130.9189297 | FH124: 22 | FJ124: =BK179 -> 26.7666 | FK124: =BL179 -> 113.4556109 | FL124: شیفت 40 | FN124: =DK123 -> 26.7666 | FO124: 96.5 | FP124: 34 | FR124: =DO121 -> 34.59097934 | FS124: =DP121 -> 122.4713615 | FT124: =DQ121 -> b'6p | FX124: =-DD162-GK101 -> -7.601469112 | FY124: =DE162 -> 118.23 | FZ124: 43 | GF124: =-EX123-GK101 -> -33.84730341 | GG124: =EY123 -> 86.3095778 | GH124: ss2m | GJ124: =-ED122-GK101 -> -7.601469112 | GK124: =EE122 -> 120.2 | GL124: شیفت 5 پیراهن | GR124: =-EP124-GK101 -> -36.7601408 | GS124: =EQ124 -> 86.05125561 | GT124: ss2 | GV124: =-CR176-GK101 -> -23.52504 | GW124: =CS176 -> 103.921203 | GX124: شیفت41 یا d3 | HD124: =-CL287-GK101 -> 5 | HE124: =CM287 -> 125.2195874 | HF124: p26 | HH124: =-CP260-GK101 -> 6.67994 | HI124: =CQ260 -> 96 | HJ124: s'1 | HL124: =-DN260-GK101 -> 6.67994 | HM124: =DO260 -> 96 | HN124: s'1
E125: فاصله عمودی بین خط سینه پشت و سرشانه، نزدیک دست | F125: t4 | H125: ='متغیرها '!U77-0.5*'متغیرها '!C60*'متغیرها '!U77+'متغیرها '!C63*('متغیرها '!U78) -> 22.077 | I125: ='متغیرها '!U77 -> 22.3 | J125: (10 → 11) | K125: =K124*TAN(0.5*IF(K121=0,0,G162))+K111 -> 3.463954518 | L125: =L124*TAN(0.5*IF(L121=0,0,H162))+L111 -> 3.421202974 | N125: γ5 | O125: 1.3 | Q125: =AN129 -> 24.53829458 | R125: =AO129 -> 19.36926419 | S125: 15 | U125: =AN139 -> 8.351253178 | V125: =AO139 -> 46.34676563 | W125: 25 | Z125: (10 → 8) | AA125: وصل | AF125: =AR128 -> 24.04873684 | AG125: =AS128 -> 15.98257879 | AH125: 14 | AJ125: =AR141 -> 8.348421281 | AK125: =AS141 -> 42.53229312 | AL125: 27 | AN125: =K120+K121+K124 -> 29.82004 | AO125: =K125+AP111 -> 3.463954518 | AP125: 11 | AR125: =AA121+AA123+AA124 -> 11.9666 | AS125: =AT111 -> 0 | AT125: 11 | AV125: 1.428 | AW125: (16 → 23) | AX125: 1.113490453 | AZ125: =AX104-AX117+AX123+AX99 -> 33.24992943 | BA125: =AX113+AX118+AX124+AX98 -> 140.0429161 | BB125: 22 | BD125: =AZ106 -> 5 | BE125: =BA106-2 -> 69.58 | BH125: (1 → 21) | BI125: =H106-H114+AG147 -> 64.33892971 | BK125: =BI106+BI98+'متغیرها '!C56 -> 39.12312048 | BL125: =0+BI97+'متغیرها '!C57 -> 66.58 | BM125: شیفت5 | BO125: =BO123 ->  | BP125: =BP123 ->  | BQ125: b شیفت | BS125: =N269 -> 13.75142813 | BT125: =O269 -> 151.271396 | BU125: a16 | BW125: =BS104+SQRT(POWER(BS125-BS104,2)+POWER(BT125-BT104,2))*SIN(BT103-ATAN((BS104-BS125)/(BT125-BT104))) -> 13.75142813 | BX125: =BT104+SQRT(POWER(BS125-BS104,2)+POWER(BT125-BT104,2))*COS(BT103-ATAN((BS104-BS125)/(BT125-BT104))) -> 151.271396 | BY125: a16 | CB125: ζ'1 | CC125: =('متغیرها '!C111+0.001)*ATAN((CA109-CA104)/(CB109-CB104)) -> 9.957084346e-05 | CE125: =CA104+(1-'متغیرها '!C116)*(CA123-CA104) -> 30.46299196 | CF125: =CB104+(1-'متغیرها '!C116)*(CA123-CA104)*TAN(0.5*CB114-CC127) -> 111.8163466 | CG125: b | CI125: نقطه دوم از خط اول | CJ125: 20f | CK125: =CI120 -> 27.43592446 | CL125: =CJ120 -> 125.9883497 | CM125: =AZ161 -> 17.60146911 | CN125: =BA161 -> 118.23 | CO125: 43 | CR125: به دست آوردن نقطه تقاطع دو خط (وسط 16f) | CS125: مولفه افقی | CT125: مولفه عمودی | CU125: =CS130 -> 27.98265964 | CV125: =CT130 -> 127.8193602 | CW125: وسط 16f | CZ125: =AX119 -> 3.152925488 | DA125: (12→17) | DC125: =DC122-CZ125*COS(CZ123) -> 43.84730341 | DD125: =DD122-CZ125*COS(CZ123)*TAN(CZ139) -> 86.3095778 | DE125: ss2m | DG125: =DG113-DH109 -> 30.03651157 | DH125: =DH113 -> 85.40973525 | DI125: 10rm | DJ125: شلوار | DK125: =BO188 -> 27.6916 | DL125: =BP188 -> 66.58 | DM125: 49 | DO125: =DK132+DH109 -> 39.36255217 | DP125: =DL132 -> 1.089235898 | DQ125: p1rm | DT125: =DT112+DT123-DT107 -> 30.60933507 | DU125: =DU112 -> 123.1789602 | DV125: 20g | DW125: در مدل عصایی | DX125: =DX112+DX123-DX107 -> 35.99544276 | DY125: =DY112 -> 116.4719818 | DZ125: 16p | EA125: در مدل عصایی | ED125: =AZ161 -> 17.60146911 | EE125: =BA161 -> 118.23 | EF125: 43 | EP125: =DC116 -> 31.78453904 | EQ125: =DD116 -> 87.37935248 | ER125: 47''s | EV125: باسن | EX125: =DC127 -> 25.96668927 | EY125: =DD127 -> 79.06856367 | EZ125: s2m | FF125: =BK154 -> 26.7666 | FG125: =BL154 -> 113.4556109 | FH125: 40 | FJ125: =BK180 -> 26.7666 | FK125: =BL180 -> 96.5 | FL125: شیفت 35 | FN125: 27.6916 | FO125: 79.4 | FP125: 38' | FR125: =CE163 -> 23.6916 | FS125: =CF163-0.3*DZ168 -> 58.1 | FT125: e'215 | FX125: =-DD163-GK101 -> -9.630729442 | FY125: =DE163 -> 122.1954017 | FZ125: 21 | GB125: =-CM134-GK101 -> -8.802974853 | GC125: =CN134 -> 145.2897124 | GD125: وسط 22f | GJ125: =-ED123-GK101 -> -7.601469112 | GK125: =EE123 -> 118.23 | GL125: شیفت 43 | GN125: =-EL123-GK101 -> -7.601469112 | GO125: =EM123 -> 118.23 | GP125: 43 | GR125: =-EP125-GK101 -> -21.78453904 | GS125: =EQ125 -> 87.37935248 | GT125: 47''s | GZ125: =-AW269-GK101 -> -3.351253178 | HA125: =AX269 -> 155.8343802 | HB125: 1n | HD125: =-CL290-GK101 -> 6.67994 | HE125: =CM290 -> 125.2195874 | HF125: p10 | HJ125: خط مرغک در جلو
E126: فاصله عمودی بین خط سینه پشت و سرشانه، نزدیک گردن | F126: t5 | H126: ='متغیرها '!U78+'متغیرها '!C63*'متغیرها '!U78 -> 26.3 | I126: ='متغیرها '!U78 -> 26.3 | J126: (9 → 11) | K126: وصل | N126: γ4 | O126: 0.3 | Q126: =AN130 -> 24.53829458 | R126: =AO130 -> 27.64350419 | S126: 16 | U126: =AN144 -> 6.681002542 | V126: =AO144 -> 41.10805476 | W126: 30 | Z126: (11 → 8) | AA126: وصل | AC126: متغیرهای محاسبه ای بالاتنه پشت | AE126: شبیه ساز | AF126: =AR131 -> 19.74636834 | AG126: =AS131 -> 15.98257879 | AH126: 17 | AJ126: =AR146 -> 6.261315961 | AK126: =AS146 -> 40.96126517 | AL126: 32 | AN126: =K115 -> 30.84414556 | AO126: =K127+AP111 -> 19.36926419 | AP126: 12 | AR126: =AA121+AA123+AA124+AA127 -> 23.67244 | AS126: =AT111 -> 0 | AT126: 12 | AV126: 5.592102132 | AW126: (23 → 24) | AX126: 5.949705954 | BD126: =BD125+'متغیرها '!C279*(AZ151-BD125) -> 25.07158369 | BE126: =BE125 -> 69.58 | BH126: (21 → 22) | BI126: =AF147 -> 13.67693565 | BK126: =BI106+BI98+'متغیرها '!C56 -> 39.12312048 | BL126: =BI107+BI97+'متغیرها '!C57 -> 78.02470463 | BM126: شیفت6 | BO126: =BK154+'متغیرها '!C56 -> 26.7666 | BP126: =BL179 -> 113.4556109 | BQ126: 40 شیفت | BS126: =N268 -> 12.63548336 | BT126: =O268 -> 147.6515409 | BU126: a15 | BW126: =BS104+SQRT(POWER(BS126-BS104,2)+POWER(BT126-BT104,2))*SIN(BT103-ATAN((BS104-BS126)/(BT126-BT104))) -> 12.63548336 | BX126: =BT104+SQRT(POWER(BS126-BS104,2)+POWER(BT126-BT104,2))*COS(BT103-ATAN((BS104-BS126)/(BT126-BT104))) -> 147.6515409 | BY126: a15 | CB126: ζ'2 | CC126: =('متغیرها '!C111+0.001)*ATAN((CA121-CA104)/(CB121-CB104)) -> 0.0001688667589 | CI126: نقطه اول از خط دوم | CJ126: 5 | CK126: =CM131 -> 17.60146911 | CL126: =CN131 -> 122.17 | CM126: =BS104 -> 17.60146911 | CN126: =BT104 -> 120.2 | CO126: 5 بالاتنه | CQ126: نقطه اول از خط اول | CR126: 28 | CS126: =CU124 -> 21.26131596 | CT126: =CV124 -> 137.4612652 | CY126: محاسبات | DC126: =DC110-CZ125 -> 31.42867068 | DD126: =DD110+CZ125*TAN(CZ141) -> 126.8208375 | DE126: b'8s | DG126: =DG114-DH109 -> 25.45935248 | DH126: =DH114 -> 46.1 | DI126: 7rm | DK126: =BK101 -> 28.67693565 | DL126: =BL101 -> 130.9189297 | DM126: 22 | ED126: =BS104 -> 17.60146911 | EE126: =BT104 -> 120.2 | EF126: 5 بالاتنه | EH126: =BW124 -> 17.09926245 | EI126: 155.6956633 | EJ126: a14 | EL126: =AZ166 -> 16.95396911 | EM126: =BA166 -> 100.5 | EN126: 39 | ET126: =ET108 -> 5 | EU126: =EU108 -> 82.5 | EV126: g46 | EX126: =CY108 -> 16.30646911 | EY126: =CZ108 -> 84.3 | EZ126: 47' | FB126: =EH102 -> 13.35125318 | FC126: 146.8467656 | FD126: چرخیده 25 | FN126: =BO188 -> 27.6916 | FO126: =BP188 -> 66.58 | FP126: =DM125 -> 49 | FX126: =-DD164-GK101 -> -14.16672312 | FY126: =DE164 -> 125.6651281 | FZ126: 31 | GB126: =-CM135-GK101 -> -3.351253178 | GC126: =CN135 -> 146.8467656 | GD126: 25 | GF126: =-EX125-GK101 -> -15.96668927 | GG126: =EY125 -> 79.06856367 | GH126: s2m | GN126: =-EL124-GK101 -> -6.953969112 | GO126: =EM124 -> 100.5 | GP126: 39 | GV126: =-CR176-GK101 -> -23.52504 | GW126: =CS176 -> 103.921203 | GX126: شیفت41 یا d3 | GZ126: =-AW272-GK101 -> -14.25469653 | HA126: =AX272 -> 155.8343802 | HB126: 2n | HH126: =-CP280-GK101 -> -1.8287528 | HI126: =CQ280 -> 79.13376789 | HJ126: m10 | HL126: =-DN262-GK101 -> 5 | HM126: =DO262 -> 96 | HN126: s1
E127: فاصله عمودی بین خط کمر پشت و سرشانه، نزدیک گردن | F127: t6 | H127: ='متغیرها '!U79+'متغیرها '!C63*'متغیرها '!U79 -> 42.6 | I127: ='متغیرها '!U79 -> 42.6 | J127: (3 → 12) | K127: =L125+G153*(H127-H126)-('متغیرها '!C77/(1+'متغیرها '!C77))*K133 -> 19.36926419 | L127: =L125+H153*(I127-I126) -> 21.24231408 | N127: γ3 | O127: =0.5*O125*H130-0.89*O128*H130+0.11*AD128*H130+0.5*(H122-H125)-0.39*O126*H130 -> 12.34557 | P127: =0.5*O125*'متغیرها '!U82-0.89*O128*'متغیرها '!U82+0.11*AD128*'متغیرها '!U82+0.5*(I122-I125)-0.39*O126*'متغیرها '!U82 -> 12.155 | U127: =AN142 -> 3.340501271 | V127: =AO142 -> 36.91708607 | W127: 28 | Y127: =Y115-Y121-Y123-Y124-(0.5*('متغیرها '!U73-'متغیرها '!U71)-2*H151-H147)+(0-0.5*H151)*H151/(H153*(I127-I126)-Y132)-AE127 -> 10.94887774 | Z127: (11 → 12) | AA127: =AA115-AA121-AA123-AA124-0.5*(H121-H119)*(1-'متغیرها '!C82-'متغیرها '!C84)-AD127+'متغیرها '!C77*O128*H130*((Y115-Y121-Y123-Y124-Y127)/(Y130)) -> 11.70584 | AC127: ساسون پشت روی خط سینه | AD127: =IF(((AA117-AA116)*AA121/AA117)>0,(AA117-AA116)*AA121/AA117,0)+IF(AA120>0,2*AA120*TAN(2*G157),0) -> 0.0154665227 | AE127: =IF(((Y117-Y116)*Y121/Y117)>0,(Y117-Y116)*Y121/Y117,0)+IF(Y120>0,2*Y120*TAN(2*H157),0) -> 0.1057628954 | AF127: =AR132 -> 19.74636834 | AG127: =AS132 -> 25.98061879 | AH127: 18 | AJ127: =AR144 -> 3.339368512 | AK127: =AS144 -> 40.17575119 | AL127: 30 | AN127: =K115+K128 -> 32.56794556 | AO127: =K127+AP111 -> 19.36926419 | AP127: 13 | AR127: =AA121+AA123+AA124+AA127 -> 23.67244 | AS127: =AA128+AT111 -> 0.0345175741 | AT127: 13 | AW127: (22→24→16→20→18→12→13) | AX127: هلال وصل | AZ127: =AX104-AX117+AX125+AX99 -> 30.65178504 | BA127: =AX113+AX118+AX98 -> 128.1435042 | BB127: 23 | BG127: =Y146 -> 8.0408 | BH127: (2 → 23) | BI127: =AA146 -> 8.348421281 | BS127: =J247 -> 0.01368287202 | BT127: =K247 -> 137.9460957 | BU127: e10 | BW127: =BS104+SQRT(POWER(BS127-BS104,2)+POWER(BT127-BT104,2))*SIN(BT103-ATAN((BS104-BS127)/(BT127-BT104))) -> 0.01368287202 | BX127: =BT104+SQRT(POWER(BS127-BS104,2)+POWER(BT127-BT104,2))*COS(BT103-ATAN((BS104-BS127)/(BT127-BT104))) -> 137.9460957 | BY127: e10 | CB127: ζ1 | CC127: =ATAN((CB104-CB123)/(CA123-CA104)) -> 0.4174506909 | CI127: نقطه دوم از خط دوم | CJ127: وسط 22f | CK127: =CM132 -> 18.80297485 | CL127: =CN132 -> 145.2897124 | CQ127: نقطه دوم از خط اول | CR127: 16f | CS127: =CQ123 -> 34.59479208 | CT127: =CR123 -> 118.3341211 | CU127: =CU125+CR105 -> 27.98265964 | CV127: =CV125+CR106 -> 127.8193602 | CW127: شیفت وسط 16f | CY127: (43→40) | CZ127: =SQRT(POWER((CY103-CY104),2)+POWER((CZ103-CZ104),2)) -> 17.74181942 | DC127: =DC120-CZ125*COS(CZ123) -> 25.96668927 | DD127: =DD120-CZ125*COS(CZ123)*TAN(CZ140) -> 79.06856367 | DE127: s2m | DG127: =DG115-DH109 -> 24.15707975 | DH127: =DH115 -> 5 | DI127: 5rm | DK127: =BK167 -> 15 | DL127: =BL167 -> 128.45 | DM127: 45 | DQ127: پهلو جدا در شلوار و نیمی از حلقه عصایی | DT127: اپل جلو روی سرشانه با ساسون | DY127: اپل پشت روی سرشانه با ساسون | EH127: 13.75142813 | EI127: 151.271396 | EJ127: a16 | EL127: =AZ176 -> 16.30646911 | EM127: =BA176 -> 84.3 | EN127: 47' | ER127: کمر | FB127: 12.51612786 | FC127: 143.7035391 | FD127: e7 | FF127: =DY152+CB112 -> 35.89129835 | FG127: =DZ152+CB113 -> 135.5582863 | FH127: شیفت 18b | FJ127: =BK180 -> 26.7666 | FK127: =BL180 -> 96.5 | FL127: شیفت 35 | FR127: =CE163 -> 23.6916 | FS127: =CF163-0.3*DZ168 -> 58.1 | FT127: e'215 | FX127: =-DD165-GK101 -> -19.53829458 | FY127: =DE165 -> 128.1435042 | FZ127: 16g | GF127: =-EX126-GK101 -> -6.306469112 | GG127: =EY126 -> 84.3 | GH127: 47' | GJ127: =-ED125-GK101 -> -7.601469112 | GK127: =EE125 -> 118.23 | GL127: 43 | GT127: کمر | GV127: =-CR179-GK101 -> -25.84414556 | GW127: =CS179 -> 115.3873842 | GX127: شیفت 14 | HD127: =-CL290-GK101 -> 6.67994 | HE127: =CM290 -> 125.2195874 | HF127: p10 | HH127: =-CP281-GK101 -> 7.73150112 | HI127: =CQ281 -> 79.13376789 | HJ127: m9' | HL127: =-DN263-GK101 -> 5 | HM127: =DO263 -> 74 | HN127: p3
E128: دور گردن (متر به طور عمودی دور گردن قرار می گیرد و از روی استخوان ترقوه می گذرد) | F128: v | H128: =1*'متغیرها '!U80 -> 46 | J128: (12 → 13) | K128: ='متغیرها '!C79*0.05*H130 -> 1.7238 | N128: γ1 | O128: =(1-'متغیرها '!C101)*0.2+'متغیرها '!C101*'متغیرها '!C102 -> 0.2 | Q128: =AN131 -> 27.69122007 | R128: =AO131 -> 19.36926419 | S128: 17 | U128: =AN140 -> 0 | V128: =AO140 -> 35.86934389 | W128: 26 | Y128: =Y127*TAN(0.5*H157) -> 0.02470463248 | Z128: (12 → 13) | AA128: =AA127*TAN(0.5*G157) -> 0.0345175741 | AC128: γ2 | AD128: =(1-'متغیرها '!C101)*0.25+'متغیرها '!C101*'متغیرها '!C103 -> 0.25 | AJ128: =AR142 -> 0 | AK128: =AS142 -> 39.91391319 | AL128: 28 | AN128: =Q124 -> 30.84414556 | AO128: =K127-K129+AP111 -> 14.88738419 | AP128: 14 | AR128: =AA115 -> 24.04873684 | AS128: =AA130+AT111 -> 15.98257879 | AT128: 14 | AV128: =L143 -> 8.0408 | AW128: (2 → 25) | AX128: =K143 -> 8.351253178 | AZ128: =AX104-AX117+AX125+AX99 -> 30.65178504 | BA128: =AX113+AX118+AX126+AX98 -> 134.0932101 | BB128: 24 | BD128: =BD126 -> 25.07158369 | BE128: =BE126 -> 69.58 | BG128: 2.371102562 | BH128: (2 → 24) | BI128: 2.61837993 | BK128: =BI104+BI98+'متغیرها '!C56 -> 39.13845584 | BL128: =0+BI97+'متغیرها '!C57 -> 66.58 | BM128: شیفت3 | BO128: =BO158 -> 28.67693565 | BP128: =BP158 -> 130.9189297 | BQ128: 22شیفت | BS128: =AZ104 -> 17.60146911 | BT128: =BA104 -> 122.17 | BU128: 5 پیراهن | CI128: نقطه تقاطع | CJ128: g1 | CK128: =(CL126-CL124+CK124*((CL125-CL124)/(CK125-CK124))-CK126*((CL127-CL126)/(CK127-CK126)))/(((CL125-CL124)/(CK125-CK124))-((CL127-CL126)/(CK127-CK126))) -> 18.27205338 | CL128: =CL124+(CK128-CK124)*((CL125-CL124)/(CK125-CK124)) -> 135.0735717 | CM128: =BS104 -> 17.60146911 | CN128: =BT104 -> 120.2 | CO128: 5 بالاتنه | CQ128: نقطه اول از خط دوم | CR128: 40 | CS128: =CU118 -> 26.7666 | CT128: =CV118 -> 113.4556109 | CU128: =CU105 -> 34.59479208 | CV128: =CV105 -> 118.3341211 | CW128: شیفت 16f | CY128: (40→47'') | CZ128: =SQRT(POWER((CY104-CY105),2)+POWER((CZ104-CZ105),2)) -> 16.21293484 | DC128: =DC108-CZ125 -> 26.48711451 | DD128: =DD108 -> 87.27120297 | DE128: 45m | DG128: =DG116-DH109 -> 24.15707975 | DH128: =DH116 -> 5 | DI128: 1rm | DL128: ='متغیرها '!C57 -> 0 | DM128: شیفت عمودی | DO128: =DO102 -> 42.24083201 | DP128: 113.7139018 | DQ128: شیفت 8m | DT128: نقاط ورودی | DY128: نقاط ورودی | ED128: =BS128 -> 17.60146911 | EE128: =BT128 -> 122.17 | EF128: 5 پیراهن | EH128: 12.63548336 | EI128: 147.6515409 | EJ128: a15 | EP128: =DC115 -> 24.98580723 | EQ128: =DD115 -> 102.0979292 | ER128: 40s | ET128: =ET111 -> 18.89646911 | EU128: =EU111 -> 82.5 | EV128: g47'' | EX128: =DC127 -> 25.96668927 | EY128: =DD127 -> 79.06856367 | EZ128: s2m | FB128: 11.99553017 | FC128: 141.4427034 | FD128: e5 | FF128: =DY151+CB112 -> 30.9815787 | FG128: =DZ151+CB113 -> 137.6955296 | FH128: شیفت 32b | FJ128: =BO191 -> 25.8416 | FK128: =BP191 -> 79.4 | FL128: شیفت 38'' | FN128: =BO188 -> 27.6916 | FO128: =BP188 -> 66.58 | FP128: 49 | FR128: =CE169 -> 23.6916 | FS128: =CF169 -> 66.58 | FT128: e'216 | GD128: 33' | GJ128: =-ED126-GK101 -> -7.601469112 | GK128: =EE126 -> 120.2 | GL128: 5 بالاتنه | GN128: =-EL124-GK101 -> -6.953969112 | GO128: =EM124 -> 100.5 | GP128: 39 | GR128: =-EP128-GK101 -> -14.98580723 | GS128: =EQ128 -> 102.0979292 | GT128: 40s | GZ128: =-AW272-GK101 -> -14.25469653 | HA128: =AX272 -> 155.8343802 | HB128: 2n | HD128: =-CL293-GK101 -> 6.67994 | HE128: =CM293 -> 96 | HF128: s'1
E129: کارور پشت (بین دو خط امتداد زیر بغل) | F129: v3 | H129: ='متغیرها '!U81+1*'متغیرها '!C60*'متغیرها '!U81 -> 38.76 | I129: ='متغیرها '!U81 -> 38 | J129: (12 → 14) | K129: ='متغیرها '!C79*0.13*H130 -> 4.48188 | L129: =0 -> 0 | N129: فاصله افقی بین 36 و 32' | O129: =O152-0.5*G169*COS(G160) -> 1.381084281 | P129: =P152-0.5*H169*COS(H160) -> 1.381706656 | Q129: =AN132 -> 27.69122007 | R129: =AO132 -> 20.61040019 | S129: 18 | Z129: (11 → 13) | AA129: وصل | AC129: فاصله افقی بین 38 و 34' | AD129: =AD152-0.5*G170*COS(G158) -> 0.3881115731 | AE129: =AE152-0.5*H170*COS(H158) -> 0.3984772888 | AF129: =AR133 -> 23.18826314 | AG129: =AS133 -> 15.98257879 | AH129: 19 | AN129: =K115-K132 -> 24.53829458 | AO129: =K127+AP111 -> 19.36926419 | AP129: 15 | AR129: =AA115+AA131 -> 25.77253684 | AS129: =AA130+AT111 -> 15.98257879 | AT129: 15 | AV129: 9.900687621 | AW129: (2 → 26) | AX129: 10.47742174 | BD129: =BD126 -> 25.07158369 | BE129: =BE126-BE122+BE123 -> 66.65879703 | BG129: 3.21632 | BH129: (2 → 25) | BI129: 3.339368512 | BK129: =BI104+BI98+'متغیرها '!C56 -> 39.13845584 | BL129: =BI105+BI97+'متغیرها '!C57 -> 64.97470463 | BM129: شیفت4 | BO129: =BK154+'متغیرها '!C56 -> 26.7666 | BP129: =BL179 -> 113.4556109 | BQ129: 40شیفت | BS129: انتقال قسمتی از ساسون سرشانه به ساسون زیر بغل به روش چرخش | CA129: حلقه آستین با ساسون زیر بغل | CM129: =BS128 -> 17.60146911 | CN129: =BT128 -> 122.17 | CO129: 5 پیراهن | CQ129: نقطه دوم از خط دوم | CR129: وسط 18f | CS129: =CU119 -> 28.80014296 | CT129: =CV119 -> 137.4752399 | CW129: رگلان با درز | CY129: (14→41) | CZ129: =SQRT(POWER((CY117-CY116),2)+POWER((CZ117-CZ116),2)) -> 11.69835725 | DC129: به دست آوردن نقطه تقاطع دو خط | DD129: مولفه افقی | DE129: مولفه عمودی | DG129: =DC103 -> 16.02502 | DH129: =DD103 -> 71.58 | DI129: 50sm | DK129: =DH608 -> 38.77121298 | DL129: 78.05179721 | DM129: p10r | DN129: شلوار | DO129: 42.24083201 | DP129: 107.9908858 | DQ129: شیفت 10m | DT129: مولفه افقی | DU129: مولفه عمودی | DV129: اسم نقطه | DY129: مولفه افقی | DZ129: مولفه عمودی | EA129: اسم نقطه | ED129: =BS104 -> 17.60146911 | EE129: =BT104 -> 120.2 | EF129: 5 بالاتنه | EH129: =BW113 -> 12.51612786 | EI129: =BX113 -> 143.7035391 | EJ129: e7 | EL129: =AZ176 -> 16.30646911 | EM129: =BA176 -> 84.3 | EN129: 47' | EP129: =DC117 -> 38.5431933 | EQ129: =DD117 -> 111.2555307 | ER129: 41s | EV129: زمین | EX129: =IF(DD128>DD127,DC127,DC128) -> 25.96668927 | EY129: =IF(DD128>DD127,DD127,DD128) -> 79.06856367 | EZ129: s2m یا 45m | FN129: =BO176 -> 15 | FO129: =BP176 -> 66.58 | FP129: 47 | FX129: =-DD167-GK101 -> -27.56794556 | FY129: =DE167 -> 119.8692642 | FZ129: 13 | GB129: =-CM137-GK101 -> -1.681002542 | GC129: =CN137 -> 141.6080548 | GD129: 30 | GF129: =-EX128-GK101 -> -15.96668927 | GG129: =EY128 -> 79.06856367 | GH129: s2m | GN129: =-EL127-GK101 -> -6.306469112 | GO129: =EM127 -> 84.3 | GP129: 47' | GR129: =-EP129-GK101 -> -28.5431933 | GS129: =EQ129 -> 111.2555307 | GT129: 41s | GX129: 26' | GZ129: =-AW275-GK101 -> -14.25469653 | HA129: =AX275 -> 143.7326593 | HB129: 22f | HH129: =-CP283-GK101 -> 7.73150112 | HI129: =CQ283 -> 79.13376789 | HJ129: m9' | HN129: 72'
E130: دور بازو از ناحیه زیر بغل | F130: w2 | H130: ='متغیرها '!U82+0.7*'متغیرها '!C60*'متغیرها '!U82 -> 34.476 | J130: (13 →14) | K130: وصل | N130: فاصله عمودی بین 36 و 32' | O130: =O151+0.5*G169*SIN(G160) -> 22.63677377 | P130: =P151+0.5*H169*SIN(H160) -> 20.74856869 | W130: خطوط برش | Y130: =H153*(I127-I126)+Y128 -> 17.84581574 | Z130: (3 →14) | AA130: =G153*(H127-H126)+AA128-K133*'متغیرها '!C77/(1+'متغیرها '!C77) -> 15.98257879 | AC130: فاصله عمودی بین 38 و 34' | AD130: =AD151+0.5*G170*SIN(G158) -> 6.30272146 | AE130: =AE151+0.5*H170*SIN(H158) -> 6.101520607 | AF130: =AR134 -> 23.18826314 | AG130: =AS134 -> 16.98238279 | AH130: 20 | AJ130: خطوط برش | AN130: =K115-K132 -> 24.53829458 | AO130: =K127+K133+AP111 -> 27.64350419 | AP130: 16 | AR130: =AA115 -> 24.04873684 | AS130: =AA130-AA132+AT111 -> 11.50069879 | AT130: 16 | AV130: 3.21632 | AW130: (2 → 27) | AX130: 3.340501271 | AZ130: =AX112+AX99+'متغیرها '!C55 -> 30.48417223 | BA130: =0+AX98 -> 71.58 | BB130: 10شیفت | BG130: 2.133992306 | BH130: (25 → 26) | BI130: 2.356541937 | BQ130: کش سویشرت | BT130: ='متغیرها '!C55 -> 0 | BU130: شیفت افقی | BW130: نقاط خروجی چرخیده | CB130: =(CC142-CC141) -> 0.06936521131 | CC130: زاویه چرخش کامل به ساسون زیر بغل | CJ130: به دست آوردن نقطه تقاطع دو خط (وسط 16f) | CK130: مولفه افقی | CL130: مولفه عمودی | CQ130: نقطه تقاطع | CR130: g1 | CS130: =(CT128-CT126+CS126*((CT127-CT126)/(CS127-CS126))-CS128*((CT129-CT128)/(CS129-CS128)))/(((CT127-CT126)/(CS127-CS126))-((CT129-CT128)/(CS129-CS128))) -> 27.98265964 | CT130: =CT126+(CS130-CS126)*((CT127-CT126)/(CS127-CS126)) -> 127.8193602 | CU130: =CQ103 -> 21.26131596 | CV130: =CR103 -> 137.4612652 | CW130: 28 | CY130: (41→45) | CZ130: =SQRT(POWER((CY116-CY115),2)+POWER((CZ116-CZ115),2)) -> 16.70028518 | DB130: نقطه اول از خط اول | DC130: 41 | DD130: =CY116 -> 33.52504 | DE130: =CZ116 -> 103.921203 | DG130: =DC104 -> 20.109526 | DH130: =DD104 -> 71.73824059 | DI130: 50'sm | DK130: 34.17656989 | DL130: 42.1892359 | DM130: p7r | DO130: 41.42536549 | DP130: 96.52470463 | DQ130: =DQ104 -> شیفت36m | DT130: =BW137 -> 24.46347404 | DU130: =BX137 -> 144.5213593 | DV130: 22 | DW130: راس حلقه آستین | DY130: =CE120 -> 35.64076975 | DZ130: =CF120 -> 135.0231187 | EA130: 18 | EB130: راس حلقه آستین | EL130: =AZ177 -> 16.30646911 | EM130: =BA177 -> 71.58 | EN130: 52 | ET130: ='متغیرها '!C51 -> 5 | EU130: ='متغیرها '!C52 -> 5 | FB130: =EH106 -> 11.99553017 | FC130: =EI106 -> 141.4427034 | FD130: e5 | FF130: =DY151+CB112 -> 30.9815787 | FG130: =DZ151+CB113 -> 137.6955296 | FH130: شیفت 32b | FJ130: =BO191 -> 25.8416 | FK130: =BP191 -> 79.4 | FL130: شیفت 38'' | FR130: =DK111 -> 25.8416 | FS130: =DL111 -> 66.58 | FT130: شیفت 50 | FX130: =-DD168-GK101 -> -25.84414556 | FY130: =DE168 -> 119.8692642 | FZ130: 12 | GB130: =-CM138-GK101 -> -8.272053381 | GC130: =CN138 -> 135.0735717 | GD130: وسط 20f | GF130: =-EX129-GK101 -> -15.96668927 | GG130: =EY129 -> 79.06856367 | GH130: s2m یا 45m | GJ130: =-ED128-GK101 -> -7.601469112 | GK130: =EE128 -> 122.17 | GL130: 5 پیراهن | GV130: =-CR182-GK101 -> 5 | GW130: =CS182 -> 95.7 | GX130: d4 | HD130: =-CL293-GK101 -> 6.67994 | HE130: =CM293 -> 96 | HF130: s'1 | HH130: =-CP284-GK101 -> 7.321775952 | HI130: =CQ284 -> 84.19363752 | HJ130: m9'' | HL130: =-DP460-GK101 -> -18.04556861 | HM130: =DQ460 -> 98.45000839 | HN130: β13
E131: قد آستین (دست به طور خمیده، قد از سرشانه تا مچ) | F131: w10 | H131: ='متغیرها '!U83+'متغیرها '!C63*'متغیرها '!U83+'متغیرها '!U83*'متغیرها '!C517 -> 61 | J131: (14 → 11) | K131: وصل | N131: فاصله افقی بین 36 و 34' | O131: =O152+0.5*G169*COS(G160) -> 10.4846175 | P131: =P152+0.5*H169*COS(H160) -> 10.39381334 | Q131: =AN133 -> 25.79946478 | R131: =AO133 -> 19.36926419 | S131: 19 | U131: =AN140 -> 0 | V131: =AO140 -> 35.86934389 | W131: 26 | Y131: 0 | Z131: (14 → 15) | AA131: =K128 -> 1.7238 | AC131: فاصله افقی بین 38 و 36' | AD131: =AD152+0.5*G170*COS(G158) -> 1.848545252 | AE131: =AE152+0.5*H170*COS(H158) -> 1.816883642 | AJ131: =AR142 -> 0 | AK131: =AS142 -> 39.91391319 | AL131: 28 | AN131: =K115-K134 -> 27.69122007 | AO131: =K127+AP111 -> 19.36926419 | AP131: 17 | AR131: =AA115-AA135 -> 19.74636834 | AS131: =AA130+AT111 -> 15.98257879 | AT131: 17 | AV131: 8.910618859 | AW131: (27 → 28) | AX131: 9.429679565 | AZ131: =AX112+AX99+'متغیرها '!C55 -> 30.48417223 | BA131: =AX143+AX98 -> 91.75 | BB131: 35شیفت | BD131: =BD129 -> 25.07158369 | BE131: =BE129 -> 66.65879703 | BG131: 6.0306 | BH131: (2→27) | BI131: 6.261315961 | BK131: =BI129+BI98 -> 18.33936851 | BL131: =BI103+BI97 -> 139.0322931 | BM131: 25 | BO131: =BK169 -> 15 | BP131: =BL126+'متغیرها '!C278*('متغیرها '!U60-'متغیرها '!U59) -> 67.10470463 | BT131: =(BU143-BU142) -> 0.392770297 | BU131: زاویه چرخش به ساسون زیر بغل | BW131: مولفه افقی | BX131: مولفه عمودی | BY131: اسم نقطه | CA131: =BK122-CB112 -> 39.08790652 | CB131: =BL122-CB113 -> 112.4727658 | CC131: 8 | CD131: نقطه حلقه آستین | CE131: =CA104+SQRT(POWER(CA131-CA104,2)+POWER(CB131-CB104,2))*SIN(IF(CB131=CB104,RADIANS(90)-CB130,ATAN((CA131-CA104)/ABS(CB131-CB104))+IF(CB131>CB104,-1,1)*CB130)) -> 39.12639682 | CF131: =CB104+IF(CB131<CB104,-1,1)*SQRT(POWER(CA131-CA104,2)+POWER(CB131-CB104,2))*COS(IF(CB131=CB104,RADIANS(90)-CB130,ATAN((CA131-CA104)/ABS(CB131-CB104))+IF(CB131>CB104,-1,1)*CB130)) -> 113.3291142 | CG131: b4 | CI131: نقطه اول از خط اول | CJ131: 30 | CK131: =CM137 -> 11.68100254 | CL131: =CN137 -> 141.6080548 | CM131: =CI104 -> 17.60146911 | CN131: =CJ104 -> 122.17 | CO131: 5پیراهن | CU131: =CS137 -> 28.11758178 | CV131: =CT137 -> 129.4130221 | CW131: وسط 12f | CY131: α43 | CZ131: =ATAN((CY104-CY103)/(CZ103-CZ104)) -> 0.03650379981 | DB131: نقطه دوم از خط اول | DC131: 45 | DD131: =CY115 -> 32.23004 | DE131: =CZ115 -> 87.27120297 | DG131: =DC105 -> 23.513281 | DH131: =DD105-0.15*(CZ114-CZ106) -> 71.89648119 | DI131: 50''sm | DK131: 36.20962668 | DL131: 1.089235898 | DM131: p5r | DO131: =DO122 -> 41.92413847 | DP131: 78.05179721 | DQ131: =DQ122 -> p10rm | DT131: =BW138 -> 19.2274478 | DU131: =BX138 -> 145.6426022 | DV131: 34 | DW131: نقطه ساسون سرشانه | DY131: =CE121 -> 30.84963338 | DZ131: =CF121 -> 137.414388 | EA131: 32 | EB131: نقطه ساسون سرشانه | ED131: =BS128 -> 17.60146911 | EE131: =BT128 -> 122.17 | EF131: 5 پیراهن | EH131: =BW127 -> 0.01368287202 | EI131: =BX127 -> 137.9460957 | EJ131: e10 | ER131: ترک وسط برای جیب با ساسون | ET131: ='متغیرها '!C51+10 -> 15 | EU131: ='متغیرها '!C52 -> 5 | EX131: =EX129 -> 25.96668927 | EY131: =EY129 -> 79.06856367 | EZ131: =EZ129 -> s2m یا 45m | FB131: =EH107 -> 4.495739963 | FC131: =EI107 -> 138.2073016 | FD131: e9 | FF131: =BO158 -> 28.67693565 | FG131: =BP158 -> 130.9189297 | FH131: شیفت 22 | FJ131: =BO192 -> 25.8416 | FK131: =BP192 -> 66.58 | FL131: شیفت 50 | FN131: =DO118 -> 45.37250426 | FO131: =DP118 -> 80.29757856 | FP131: =DQ118 -> s'2m | FR131: =EE341 -> 21.8416 | FS131: =EF341 -> 66.58 | FT131: e216 | FX131: =-DD169-GK101 -> -22.69122007 | FY131: =DE169 -> 121.1104002 | FZ131: 18 | GJ131: =-ED129-GK101 -> -7.601469112 | GK131: =EE129 -> 120.2 | GL131: 5 بالاتنه | GN131: =-EL127-GK101 -> -6.306469112 | GO131: =EM127 -> 84.3 | GP131: 47' | GT131: 62' | GV131: =-CR183-GK101 -> 6.67994 | GW131: =CS183 -> 95.7 | GX131: 26'' | GZ131: =-AW277-GK101 -> 5 | HA131: =AX277 -> 85.91941091 | HB131: 3n | HD131: =-CL296-GK101 -> 5 | HE131: =CM296 -> 96 | HF131: s1 | HH131: =-CP285-GK101 -> 6.229175504 | HI131: =CQ285 -> 90.94013037 | HJ131: m9''' | HL131: =-DP461-GK101 -> -22.92277585 | HM131: =DQ461 -> 85.04999161 | HN131: β7
E132: دور مچ دست | F132: w11 | H132: ='متغیرها '!U84+0.9*'متغیرها '!C60*'متغیرها '!U84 -> 21.378 | J132: (12 → 15) | K132: =G156+0.25*G167*'متغیرها '!C76*COS(O140)+'متغیرها '!C61*H120-1.2*0.5*G167*'متغیرها '!C78*COS(O140)-'متغیرها '!C77*O128*H130*((L115-L120-L121-L124)/(L127-L125)) -> 6.305850975 | L132: =H156 -> 6.1 | N132: فاصله عمودی بین 36 و 34' | O132: =O151-0.5*G169*SIN(G160) -> 19.42968096 | P132: =P151-0.5*H169*SIN(H160) -> 17.59794966 | Q132: =AN134 -> 25.79946478 | R132: =AO134 -> 22.67896019 | S132: 20 | U132: =AN115 -> 0 | V132: =AO115 -> 0 | W132: 1 | Y132: =L129 -> 0 | Z132: (14 → 16) | AA132: =K129 -> 4.48188 | AC132: فاصله عمودی بین 38 و 36' | AD132: =AD151-0.5*G170*SIN(G158) -> 5.813679759 | AE132: =AE151-0.5*H170*SIN(H158) -> 5.635425872 | AF132: =AR135 -> 21.03707889 | AG132: =AS135 -> 15.98257879 | AH132: 21 | AJ132: =AR119 -> 0 | AK132: =AS119 -> 31.95 | AL132: 5 | AN132: =K115-K134-0.6*P123 -> 27.69122007 | AO132: =K127+K135+AP111 -> 20.61040019 | AP132: 18 | AR132: =AA115-AA135 -> 19.74636834 | AS132: =AA130+AA136+AT111 -> 25.98061879 | AT132: 18 | AV132: 6.43264 | AW132: (2 → 29) | AX132: 6.681002542 | BD132: =BD125 -> 5 | BE132: =BE129 -> 66.65879703 | BG132: 1.422661537 | BH132: (27 → 28) | BI132: 1.571027958 | BK132: =BI129+BI98 -> 18.33936851 | BL132: =BI103-BI130+BI97 -> 136.6757512 | BM132: 26 | BO132: =BK126 -> 39.12312048 | BP132: =BP131 -> 67.10470463 | BS132: =AZ99-BT130 -> 35.84414556 | BT132: =BA99 -> 119.8692642 | BU132: 12 | BV132: نقطه حلقه آستین | BW132: =BS104+SQRT(POWER(BS132-BS104,2)+POWER(BT132-BT104,2))*SIN(IF(BT132=BT104,RADIANS(90)-BT131,ATAN((BS132-BS104)/ABS(BT132-BT104))+IF(BT132>BT104,-1,1)*IF(AND(BX101=1,BX102=0),(ATAN((BS138-BS104)/(BT138-BT104))-ATAN((BS109-BS104)/(BT109-BT104))),BT131))) -> 34.58159617 | BX132: =BT104+IF(BT132<BT104,-1,1)*SQRT(POWER(BS132-BS104,2)+POWER(BT132-BT104,2))*COS(IF(BT132=BT104,RADIANS(90)-BT131,ATAN((BS132-BS104)/ABS(BT132-BT104))+IF(BT132>BT104,-1,1)*IF(AND(BX101=1,BX102=0),(ATAN((BS138-BS104)/(BT138-BT104))-ATAN((BS109-BS104)/(BT109-BT104))),BT131))) -> 126.8768193 | BY132: b4 | CA132: =BO105-CB112 -> 38.22743282 | CB132: =BP105-CB113 -> 113.4725698 | CC132: 14 | CD132: نقطه حلقه آستین | CE132: =CA104+SQRT(POWER(CA132-CA104,2)+POWER(CB132-CB104,2))*SIN(IF(CB132=CB104,RADIANS(90)-CB130,ATAN((CA132-CA104)/ABS(CB132-CB104))+IF(CB132>CB104,-1,1)*CB130)) -> 38.19869637 | CF132: =CB104+IF(CB132<CB104,-1,1)*SQRT(POWER(CA132-CA104,2)+POWER(CB132-CB104,2))*COS(IF(CB132=CB104,RADIANS(90)-CB130,ATAN((CA132-CA104)/ABS(CB132-CB104))+IF(CB132>CB104,-1,1)*CB130)) -> 114.2668748 | CG132: b8 | CI132: نقطه دوم از خط اول | CJ132: 16f | CK132: =CI119 -> 25.58896243 | CL132: =CJ119 -> 132.1074351 | CM132: =CM135+0.5*(CI117-CM135) -> 18.80297485 | CN132: =CJ117+0.5*(CN135-CJ117) -> 145.2897124 | CO132: وسط 22f | CR132: به دست آوردن نقطه تقاطع دو خط (وسط 12f) | CS132: مولفه افقی | CT132: مولفه عمودی | CY132: α40 | CZ132: =ATAN((CY104-CY105)/(CZ104-CZ105)) -> -0.03994787219 | DB132: نقطه اول از خط دوم | DC132: 47'' | DD132: =CY105 -> 18.89646911 | DE132: =CZ105 -> 84.3 | DK132: 36.20962668 | DL132: 1.089235898 | DM132: p1 r | DO132: 37.32949537 | DP132: 42.1892359 | DQ132: =DQ123 -> p7rm | DT132: =BS128 -> 17.60146911 | DU132: =BT128 -> 122.17 | DV132: 5 | DW132: نقطه مرکزساسون | DY132: =BK101 -> 28.67693565 | DZ132: =BL101 -> 130.9189297 | EA132: 22 | EB132: نقطه مرکزساسون | ED132: =DT149 -> 19.29471508 | EE132: =DU149 -> 146.1454082 | EF132: چرخیده32b | EH132: =BS116 -> 3.32006 | EI132: =BT116 -> 114.42 | EJ132: e1 | EN132: جادکمه یقه گرد در پیراهن | EP132: =CY108 -> 16.30646911 | EQ132: =CZ108 -> 84.3 | ER132: 47' | EX132: =DG124-DH118 -> 29.07711451 | EY132: =DH124 -> 71.97560149 | EZ132: 49'm | FN132: =DO117 -> 40.56850917 | FO132: =DP117 -> 77.69600282 | FP132: =DQ117 -> s''2m | FX132: =-DD170-GK101 -> -20.79946478 | FY132: =DE170 -> 123.1789602 | FZ132: 20g | GB132: =-CM140-GK101 -> -8.272053381 | GC132: =CN140 -> 135.0735717 | GD132: شیفت وسط 20f | GF132: =-EX131-GK101 -> -15.96668927 | GG132: =EY131 -> 79.06856367 | GH132: =GH130 -> s2m یا 45m | GN132: =-EL130-GK101 -> -6.306469112 | GO132: =EM130 -> 71.58 | GP132: 52 | GR132: =-ET134-GK101 -> -6.306469112 | GS132: =EU134 -> 71.58 | GT132: 52 | GZ132: =-AW278-GK101 -> -15.47880111 | HA132: =AX278 -> 85.91941091 | HB132: 4n | HH132: =-CP286-GK101 -> 5 | HI132: =CQ286 -> 96 | HJ132: s1
E133: دور سر | F133: w12 | H133: ='متغیرها '!U85 -> 59 | J133: (15 → 16) | K133: =(1+'متغیرها '!C77)*O128*H130 -> 8.27424 | L133: =O128*'متغیرها '!U82 -> 6.8 | N133: β1 | O133: =ATAN(O129/O130) -> 0.06093511862 | P133: =ATAN(P129/P130) -> 0.06649468939 | U133: =AN122 -> 11.30646911 | V133: =AO122 -> 0 | W133: 8 | Z133: (15 → 16) | AA133: وصل | AC133: β5 | AD133: =ATAN(AD129/AD130) -> 0.06150075463 | AE133: =ATAN(AE129/AE130) -> 0.06521525408 | AF133: =AR136 -> 21.03707889 | AG133: =AS136 -> 19.98179479 | AH133: 22 | AJ133: =AR123 -> 0 | AK133: =AS123 -> 0 | AL133: 9 | AN133: =K115-K136 -> 25.79946478 | AO133: =K127+AP111 -> 19.36926419 | AP133: 19 | AR133: =AA115-AA137 -> 23.18826314 | AS133: =AA130+AT111 -> 15.98257879 | AT133: 19 | AV133: 4.95034381 | AW133: (29 → 30) | AX133: 5.238710869 | BH133: (24 → 26→ 28→ 23) | BI133: هلال وصل | BS133: =AZ98-BT130 -> 32.69122007 | BT133: =BA98 -> 121.1104002 | BU133: 18 | BV133: نقطه حلقه آستین | BW133: =BS104+SQRT(POWER(BS133-BS104,2)+POWER(BT133-BT104,2))*SIN(IF(BT133=BT104,RADIANS(90)-BT131,ATAN((BS133-BS104)/ABS(BT133-BT104))+IF(BT133>BT104,-1,1)*IF(AND(BX101=1,BX102=0),(ATAN((BS138-BS104)/(BT138-BT104))-ATAN((BS109-BS104)/(BT109-BT104))),BT131))) -> 31.19371493 | BX133: =BT104+IF(BT133<BT104,-1,1)*SQRT(POWER(BS133-BS104,2)+POWER(BT133-BT104,2))*COS(IF(BT133=BT104,RADIANS(90)-BT131,ATAN((BS133-BS104)/ABS(BT133-BT104))+IF(BT133>BT104,-1,1)*IF(AND(BX101=1,BX102=0),(ATAN((BS138-BS104)/(BT138-BT104))-ATAN((BS109-BS104)/(BT109-BT104))),BT131))) -> 126.8166658 | BY133: b8 | CA133: =BO104-CB112 -> 36.07624857 | CB133: =BP104-CB113 -> 116.4719818 | CC133: 16 | CD133: نقطه حلقه آستین | CE133: =CA104+SQRT(POWER(CA133-CA104,2)+POWER(CB133-CB104,2))*SIN(IF(CB133=CB104,RADIANS(90)-CB130,ATAN((CA133-CA104)/ABS(CB133-CB104))+IF(CB133>CB104,-1,1)*CB130)) -> 35.84479725 | CF133: =CB104+IF(CB133<CB104,-1,1)*SQRT(POWER(CA133-CA104,2)+POWER(CB133-CB104,2))*COS(IF(CB133=CB104,RADIANS(90)-CB130,ATAN((CA133-CA104)/ABS(CB133-CB104))+IF(CB133>CB104,-1,1)*CB130)) -> 117.1099761 | CG133: b10 | CI133: نقطه اول از خط دوم | CJ133: 5 | CK133: =CM131 -> 17.60146911 | CL133: =CN131 -> 122.17 | CQ133: نقطه اول از خط اول | CR133: 28 | CS133: =CU124 -> 21.26131596 | CT133: =CV124 -> 137.4612652 | CU133: =CS137+CR105 -> 28.11758178 | CV133: =CT137+CR106 -> 129.4130221 | CW133: شیفت وسط 12f | CY133: α41 | CZ133: =ATAN((CY115-CY116)/(CZ116-CZ115)) -> -0.07762150874 | DB133: نقطه دوم از خط دوم | DC133: s''2 | DD133: =DC118 -> 33.25916059 | DE133: =DD118 -> 76.52191339 | DI133: پهلو جدا در شلوار | DO133: 39.36255217 | DP133: 1.089235898 | DQ133: =DQ124 -> p5rm | DT133: =BW109 -> 19.24986356 | DU133: =BX109 -> 145.8353126 | DV133: 32 | DW133: نقطه ساسون سرشانه | DY133: =CE109 -> 29.19322562 | DZ133: =CF109 -> 137.7458625 | EA133: 30 | EB133: نقطه ساسون سرشانه | EJ133: رسم انحنا پایه | EL133: =CY109 -> 16.30646911 | EM133: =CZ109 -> 71.58 | EN133: 52 | EP133: =CY107 -> 16.95396911 | EQ133: =CZ107 -> 100.5 | ER133: 39 | EV133: جادکمه یقه پشت گردنی یا آرشال در پیراهن | FB133: =EH109 -> 4.495739963 | FC133: =EI109 -> 138.2073016 | FD133: e9 | FF133: =BO158 -> 28.67693565 | FG133: =BP158 -> 130.9189297 | FH133: شیفت 22 | FJ133: =BK154 -> 26.7666 | FK133: =BL154 -> 113.4556109 | FL133: 40 | FP133: کمر | FR133: =BO176 -> 15 | FS133: =BP176 -> 66.58 | FT133: 47 | FX133: =-DD171-GK101 -> -19.53829458 | FY133: =DE171 -> 128.1435042 | FZ133: 16g | GB133: =-CM141-GK101 -> -17.43592446 | GC133: =CN141 -> 125.9883497 | GD133: 20f | GF133: =-EX132-GK101 -> -19.07711451 | GG133: =EY132 -> 71.97560149 | GH133: 49'm | GJ133: =-ED131-GK101 -> -7.601469112 | GK133: =EE131 -> 122.17 | GL133: 5 پیراهن | GR133: =-ET135-GK101 -> 6.67994 | GS133: =EU135 -> 71.58 | GT133: 1' | GV133: =-CR183-GK101 -> 6.67994 | GW133: =CS183 -> 95.7 | GX133: 26'' | HF133: 71' | HL133: =-DP463-GK101 -> -18.64324108 | HM133: =DQ463 -> 99.73172115 | HN133: β11
F134: رادیان | G134: درجه | J134: (12 → 17) | K134: =0.5*K132 -> 3.152925488 | L134: =0.5*L132 -> 3.05 | N134: β2 | O134: =ATAN(O131/O132) -> 0.494837934 | P134: =ATAN(P131/P132) -> 0.5334986236 | Q134: =AN130 -> 24.53829458 | R134: =AO130 -> 27.64350419 | S134: 16 | U134: =AN121 -> 12.60146911 | V134: =AO121 -> 17.73 | W134: 7 | Z134: (16 → 13) | AA134: وصل | AC134: β6 | AD134: =ATAN(AD131/AD132) -> 0.3078556594 | AE134: =ATAN(AE131/AE132) -> 0.3118820848 | AJ134: =AR124 -> 11.5666 | AK134: =AS124 -> 0 | AL134: 10 | AN134: =K115-K136-0.4*P123 -> 25.79946478 | AO134: =K127+K137+AP111 -> 22.67896019 | AP134: 20 | AR134: =AA115-AA137 -> 23.18826314 | AS134: =AA130+AA138+AT111 -> 16.98238279 | AT134: 20 | AW134: (25→30→28→26) | AX134: هلال وصل | AZ134: =AZ125 -> 33.24992943 | BA134: =BA125 -> 140.0429161 | BB134: 22 | BD134: =BD132 -> 5 | BE134: =BE132 -> 66.65879703 | BG134: =Y153 -> 5.961410067 | BH134: (23→29) | BI134: =AA153 -> 5.844804343 | BK134: =BI131+BI98 -> 21.26131596 | BL134: =BI103+BI97 -> 139.0322931 | BM134: 27 | BO134: =BK168 -> 15 | BP134: =BL168-2 -> 64.58 | BS134: =AZ97-BT130 -> 30.79946478 | BT134: =BA97 -> 123.1789602 | BU134: 20 | BV134: نقطه حلقه آستین | BW134: =BS104+SQRT(POWER(BS134-BS104,2)+POWER(BT134-BT104,2))*SIN(IF(BT134=BT104,RADIANS(90)-BT131,ATAN((BS134-BS104)/ABS(BT134-BT104))+IF(BT134>BT104,-1,1)*IF(AND(BX101=1,BX102=0),(ATAN((BS138-BS104)/(BT138-BT104))-ATAN((BS109-BS104)/(BT109-BT104))),BT131))) -> 28.65427276 | BX134: =BT104+IF(BT134<BT104,-1,1)*SQRT(POWER(BS134-BS104,2)+POWER(BT134-BT104,2))*COS(IF(BT134=BT104,RADIANS(90)-BT131,ATAN((BS134-BS104)/ABS(BT134-BT104))+IF(BT134>BT104,-1,1)*IF(AND(BX101=1,BX102=0),(ATAN((BS138-BS104)/(BT138-BT104))-ATAN((BS109-BS104)/(BT109-BT104))),BT131))) -> 128.0036418 | BY134: b10 | CA134: =BO103-CB112 -> 34.78553803 | CB134: =BP103-CB113 -> 122.4708058 | CC134: 12 | CD134: نقطه حلقه آستین | CE134: =CA104+SQRT(POWER(CA134-CA104,2)+POWER(CB134-CB104,2))*SIN(ATAN((CA134-CA104)/(CB134-CB104))-CB130) -> 34.14141452 | CF134: =CB104+SQRT(POWER(CA134-CA104,2)+POWER(CB134-CB104,2))*COS(ATAN((CA134-CA104)/(CB134-CB104))-CB130) -> 123.0049155 | CG134: b6 | CI134: نقطه دوم از خط دوم | CJ134: وسط 22f | CK134: =CM132 -> 18.80297485 | CL134: =CN132 -> 145.2897124 | CM134: =CM132 -> 18.80297485 | CN134: =CN132 -> 145.2897124 | CO134: وسط 22f | CQ134: نقطه دوم از خط اول | CR134: 12f | CS134: =CQ122 -> 33.56104097 | CT134: =CR122 -> 123.0232053 | CU134: =CQ122-0.05*(CQ122-CQ103)+CR105 -> 32.94605472 | CV134: =CR122-0.15*(CR122-CR123)+CR106 -> 122.3198426 | CW134: 12fشیفت | CY134: α14 | CZ134: =ATAN((CY117-CY116)/(CZ117-CZ116)) -> 0.1995639814 | DB134: نقطه تقاطع | DC134: s'2 | DD134: =(DE132-DE130+DD130*((DE131-DE130)/(DD131-DD130+0.0001))-DD132*((DE133-DE132)/(DD133-DD132+0.0001)))/(((DE131-DE130)/(DD131-DD130+0.0001))-((DE133-DE132)/(DD133-DD132+0.0001))) -> 31.46952666 | DE134: =DE130+(DD134-DD130)*((DE131-DE130)/(DD131-DD130+0.0001)) -> 77.49113344 | DG134: =DG103 -> 32.69122007 | DH134: =DH103 -> 121.1104002 | DI134: شیفت 18 | DM134: محاسبات | DO134: 39.36255217 | DP134: 1.089235898 | DQ134: =DQ125 -> p1rm | DT134: =BW105 -> 13.35125318 | DU134: =BX105 -> 146.8467656 | DV134: 25 | DW134: نقطه یقه | DY134: =CE105 -> 23.34842128 | DZ134: =CF105 -> 139.0322931 | EA134: 23 | EB134: نقطه یقه | ED134: =DT149 -> 19.29471508 | EE134: =DU149 -> 146.1454082 | EF134: چرخیده32b | EH134: =J272 -> 0 | EI134: 161.8978131 | EJ134: p3 | EL134: =BD150 -> 5 | EM134: =BE150 -> 71.58 | EN134: 1 | ET134: =CY109 -> 16.30646911 | EU134: =CZ109 -> 71.58 | EV134: 52 | EX134: =DC126 -> 31.42867068 | EY134: =DD126 -> 126.8208375 | EZ134: =DE126 -> b'8s | FB134: =EH110 -> 0.01368287202 | FC134: =EI110 -> 137.9460957 | FD134: e10 | FF134: =BK179 -> 26.7666 | FG134: =BL179 -> 113.4556109 | FH134: شیفت 40 | FJ134: =BK159 -> 26.7666 | FK134: =BL159 -> 96.5 | FL134: 34 | FN134: =BO178 -> 15 | FO134: =BP178 -> 96.5 | FP134: 44 | FR134: =CE169 -> 23.6916 | FS134: =CF169 -> 66.58 | FT134: e'216 | GD134: رگلان با درز | GJ134: =-ED132-GK101 -> -9.294715075 | GK134: =EE132 -> 146.1454082 | GL134: چرخیده32b | GP134: 23' | GV134: =-CR186-GK101 -> 6.67994 | GW134: =CS186 -> 120.2 | GX134: 4' | GZ134: =-AW278-GK101 -> -15.47880111 | HA134: =AX278 -> 85.91941091 | HB134: 4n | HD134: =-CP289-GK101 -> 5 | HE134: =CQ289 -> 96 | HF134: s1 | HJ134: 65' | HL134: =-DP464-GK101 -> -24.20448861 | HM134: =DQ464 -> 84.45231914 | HN134: β5
E135: زاویه خام سرشانه پشت | F135: =ATAN((I126-I125)/(0.52*H168-H163)) -> 0.3130898107 | G135: =ROUND(DEGREES(F135),0) -> 18 | J135: (17 → 18) | K135: =0.15*K133 -> 1.241136 | L135: =0.15*L133 -> 1.02 | N135: (36 → 32') | O135: =O130/COS(O133) -> 22.67886506 | P135: =P130/COS(P133) -> 20.7945237 | Q135: =AN135 -> 28.24992943 | R135: =AO135 -> 27.64350419 | S135: 21 | U135: =AN123 -> 13.89646911 | V135: =AO123 -> 0 | W135: 9 | Y135: =H155+AE127 -> 4.205762895 | Z135: (14 → 17) | AA135: =G155+0.25*'متغیرها '!C76*G167*COS(AD140)+'متغیرها '!C61*H120-1.2*0.5*'متغیرها '!C78*G167*COS(AD140)+AD127-'متغیرها '!C77*O128*H130*((Y115-Y121-Y123-Y124-Y127)/(Y130)) -> 4.302368497 | AC135: (38 → 34') | AD135: =AD130/COS(AD133) -> 6.314659801 | AE135: =AE130/COS(AE133) -> 6.114518613 | AF135: =AR132 -> 19.74636834 | AG135: =AS132 -> 25.98061879 | AH135: 18 | AJ135: =AR122 -> 11.7666 | AK135: =AS122 -> 16.95561085 | AL135: 8 | AN135: =K115-K132+K138 -> 28.24992943 | AO135: =K127+K133+AP111 -> 27.64350419 | AP135: 21 | AR135: =AA115-AA139 -> 21.03707889 | AS135: =AA130+AT111 -> 15.98257879 | AT135: 21 | AV135: =L150 -> 6.041555507 | AW135: (25 → 31) | AX135: =K150 -> 5.898610377 | AZ135: =AX104-AX117+AX123-AX138+AX99 -> 28.8417695 | BA135: =AX113+AX118+AX124+AX98 -> 140.0429161 | BB135: 33 | BD135: =BD125 -> 5 | BE135: =BE125 -> 69.58 | BG135: =Y154 -> 1.269151314 | BH135: (29 → 30) | BI135: =AA154 -> 1.286430631 | BK135: =BI131+BI98 -> 21.26131596 | BL135: =BI103-BI132+BI97 -> 137.4612652 | BM135: 28 | BO135: =BO134+'متغیرها '!C279*(BK126-BO126+BO117-BO134) -> 30.68002831 | BP135: =BP134 -> 64.58 | BS135: =AZ96-BT130 -> 29.53829458 | BT135: =BA96 -> 128.1435042 | BU135: 16 | BV135: نقطه حلقه آستین | BW135: =BS104+SQRT(POWER(BS135-BS104,2)+POWER(BT135-BT104,2))*SIN(ATAN((BS135-BS104)/(BT135-BT104))-IF(AND(BX101=1,BX102=0),(ATAN((BS138-BS104)/(BT138-BT104))-ATAN((BS109-BS104)/(BT109-BT104))),BT131)) -> 25.58896243 | BX135: =BT104+SQRT(POWER(BS135-BS104,2)+POWER(BT135-BT104,2))*COS(ATAN((BS135-BS104)/(BT135-BT104))-IF(AND(BX101=1,BX102=0),(ATAN((BS138-BS104)/(BT138-BT104))-ATAN((BS109-BS104)/(BT109-BT104))),BT131)) -> 132.1074351 | BY135: b6 | CA135: =BO102-CB112 -> 35.0425559 | CB135: =BP102-CB113 -> 129.3742397 | CC135: 20 | CD135: نقطه حلقه آستین | CE135: =CA104+SQRT(POWER(CA135-CA104,2)+POWER(CB135-CB104,2))*SIN(ATAN((CA135-CA104)/(CB135-CB104))-CB130) -> 33.91934008 | CF135: =CB104+SQRT(POWER(CA135-CA104,2)+POWER(CB135-CB104,2))*COS(ATAN((CA135-CA104)/(CB135-CB104))-CB130) -> 129.9095617 | CG135: b12 | CI135: نقطه تقاطع | CJ135: g1 | CK135: =(CL133-CL131+CK131*((CL132-CL131)/(CK132-CK131))-CK133*((CL134-CL133)/(CK134-CK133)))/(((CL132-CL131)/(CK132-CK131))-((CL134-CL133)/(CK134-CK133))) -> 18.37403847 | CL135: =CL131+(CK135-CK131)*((CL132-CL131)/(CK132-CK131)) -> 137.0359975 | CM135: =CI109 -> 13.35125318 | CN135: =CJ109 -> 146.8467656 | CO135: 25 | CQ135: نقطه اول از خط دوم | CR135: 40 | CS135: =CU118 -> 26.7666 | CT135: =CV118 -> 113.4556109 | CU135: =CU105 -> 34.59479208 | CV135: =CV105 -> 118.3341211 | CW135: 16fشیفت | CY135: (45→s'2) | CZ135: =SQRT(POWER((CY115-DC119),2)+POWER((CZ115-DD119),2))*IF('متغیرها '!C187>0,1,-1) -> -9.809594314 | DG135: =DG121 -> 32.69122007 | DH135: =DH121 -> 115.3873842 | DI135: شیفت 14m | DL135: =SQRT(POWER(DG112-DG111,2)+POWER(DH112-DH111,2)) -> 146.5772317 | DM135: m'' | DT135: =BW136 -> 24.34041777 | DU135: =BX136 -> 138.0302721 | DV135: 24 | DW135: نقطه حلقه آستین | DY135: =CE119 -> 35.04145278 | DZ135: =CF119 -> 129.3748131 | EA135: 20 | EB135: نقطه حلقه آستین | ED135: =BW105 -> 13.35125318 | EE135: =BX105 -> 146.8467656 | EF135: چرخیده25 | EH135: 6.119945914 | EI135: 161.8978131 | EJ135: p6 | EP135: =CY107 -> 16.95396911 | EQ135: =CZ107 -> 100.5 | ER135: 39 | ET135: =BD97 -> 3.32006 | EU135: =BE97 -> 71.58 | EV135: 1' | EX135: =DC109 -> 31.19371493 | EY135: =DD109 -> 126.8166658 | EZ135: =DE109 -> b8s | FN135: =BK159 -> 26.7666 | FO135: =BL159 -> 96.5 | FP135: 34 | FX135: =FX129 -> -27.56794556 | FY135: =DE173 -> 119.8692642 | FZ135: 13 | GB135: =-CM143-GK101 -> -1.681002542 | GC135: =CN143 -> 141.6080548 | GD135: 30 | GF135: =-EX134-GK101 -> -21.42867068 | GG135: =EY134 -> 126.8208375 | GH135: b'8s | GN135: =GN132 -> -6.306469112 | GO135: =GO132 -> 71.58 | GP135: 52 | GR135: =-ET135-GK101 -> 6.67994 | GS135: =EU135 -> 71.58 | GT135: 1' | GZ135: =-AW281-GK101 -> 5 | HA135: =AX281 -> 71.58 | HB135: 1 | HD135: =-CP290-GK101 -> 5 | HE135: =CQ290 -> 114.42 | HF135: e'1 | HH135: =-CT275-GK101 -> 5 | HI135: =CU275 -> 96 | HJ135: s1
E136: زاویه خام سرشانه جلو | F136: =ATAN((I123-I122-0.3*(0.5*('متغیرها '!U72-2*'متغیرها '!U73)))/(0.52*H168-H163)) -> 0.3174789382 | G136: =ROUND(DEGREES(F136),0) -> 18 | H136: =ROUND((محاسبات!H111-2*محاسبات!H110-0.03*محاسبات!H102)/محاسبات!H102,2) -> 0.12 | J136: (12 → 19) | K136: =0.8*K132 -> 5.04468078 | L136: =0.8*L132 -> 4.88 | N136: (36 → 34') | O136: =O132/COS(O134) -> 22.07803674 | P136: =P132/COS(P134) -> 20.43817967 | Q136: =AN136 -> 28.24992943 | R136: =AO136 -> 39.5429161 | S136: 22 | U136: =AN125 -> 29.82004 | V136: =AO125 -> 3.463954518 | W136: 11 | Y136: =(AD128)*'متغیرها '!U82 -> 8.5 | Z136: (17 → 18) | AA136: =(AD128+O128*'متغیرها '!C77)*H130 -> 9.99804 | AC136: (38 → 36') | AD136: =AD132/COS(AD134) -> 6.100491119 | AE136: =AE132/COS(AE134) -> 5.921071772 | AF136: =AR137 -> 20.60309459 | AG136: =AS137 -> 25.98061879 | AH136: 23 | AJ136: =AR125 -> 11.9666 | AK136: =AS125 -> 0 | AL136: 11 | AN136: =K115-K132+K138 -> 28.24992943 | AO136: =K127+K133+K139+AP111 -> 39.5429161 | AP136: 22 | AR136: =AA115-AA139 -> 21.03707889 | AS136: =AA130+AA140+AT111 -> 19.98179479 | AT136: 22 | AV136: =L151 -> 0.8054576979 | AW136: (31 → 32) | AX136: =K151 -> 1.011453008 | AZ136: =AX104-AX117+AX123-AX138+AX99 -> 28.8417695 | BA136: =AX113+AX118+AX124+AX139+AX98 -> 143.0828639 | BB136: 34 | BG136: =Y156 -> 5.471075646 | BH136: (18 → 31) | BI136: =AA156 -> 4.790970659 | BS136: =AZ95-BT130 -> 30.65178504 | BT136: =BA95 -> 134.0932101 | BU136: 24 | BV136: نقطه حلقه آستین | BW136: =BS104+SQRT(POWER(BS136-BS104,2)+POWER(BT136-BT104,2))*SIN(ATAN((BS136-BS104)/(BT136-BT104))-IF(BX101=1,(ATAN((BS138-BS104)/(BT138-BT104))-ATAN((BS109-BS104)/(BT109-BT104))),BT131)) -> 24.34041777 | BX136: =BT104+SQRT(POWER(BS136-BS104,2)+POWER(BT136-BT104,2))*COS(ATAN((BS136-BS104)/(BT136-BT104))-IF(BX101=1,(ATAN((BS138-BS104)/(BT138-BT104))-ATAN((BS109-BS104)/(BT109-BT104))),BT131)) -> 138.0302721 | BY136: b12 | CA136: =BO101-CB112 -> 35.64226427 | CB136: =BP101-CB113 -> 135.0225037 | CC136: 18 | CD136: نقطه حلقه آستین | CE136: =CA104+SQRT(POWER(CA136-CA104,2)+POWER(CB136-CB104,2))*SIN(ATAN((CA136-CA104)/(CB136-CB104))-CB130) -> 34.12612735 | CF136: =CB104+SQRT(POWER(CA136-CA104,2)+POWER(CB136-CB104,2))*COS(ATAN((CA136-CA104)/(CB136-CB104))-CB130) -> 135.5858084 | CG136: b16 | CO136: رگلان | CQ136: نقطه دوم از خط دوم | CR136: وسط 18f | CS136: =CU119 -> 28.80014296 | CT136: =CV119 -> 137.4752399 | CY136: α45 | CZ136: =ATAN((CZ105-CZ115)/(CY115-CY105)) -> -0.2192540048 | DG136: =DG122 -> 30.37211451 | DH136: =DH122 -> 103.921203 | DI136: شیفت 41m | DL136: =ATAN((DP111-DL118)/(DK118-DO111)) -> 0.3152828938 | DM136: αm | DO136: =DO125 -> 39.36255217 | DP136: =DP125 -> 1.089235898 | DQ136: p1 rm | DT136: =BW135 -> 25.58896243 | DU136: =BX135 -> 132.1074351 | DV136: 16 | DW136: نقطه حلقه آستین | DY136: =CE118 -> 34.78491329 | DZ136: =CF118 -> 122.4713615 | EA136: 12 | EB136: نقطه حلقه آستین | EH136: 10.40390805 | EI136: 161.2695466 | EJ136: p7 | EL136: =BD150 -> 5 | EM136: =BE150 -> 71.58 | EN136: 1 | EP136: =CY103 -> 17.60146911 | EQ136: =CZ103 -> 118.23 | ER136: 43 | FD136: آرشال | FH136: رگلان با درز | FJ136: =BK159 -> 26.7666 | FK136: =BL159 -> 96.5 | FL136: 34 | FR136: =DO114 -> 35.89129835 | FS136: =DP114 -> 135.5582863 | FT136: 18m | FX136: =-DD174-GK101 -> -25.84414556 | FY136: =DE174 -> 115.3873842 | FZ136: 14 | GB136: =-CM144-GK101 -> -8.374038469 | GC136: =CN144 -> 137.0359975 | GD136: وسط 16f | GF136: =-EX135-GK101 -> -21.19371493 | GG136: =EY135 -> 126.8166658 | GH136: b8s | GJ136: =-ED134-GK101 -> -9.294715075 | GK136: =EE134 -> 146.1454082 | GL136: چرخیده32b | GN136: =-EL134-GK101 -> 5 | GO136: =EM134 -> 71.58 | GP136: 1 | GR136: =-ET138-GK101 -> 6.67994 | GS136: =EU138 -> 114.42 | GT136: e1 | GV136: =-CR186-GK101 -> 6.67994 | GW136: =CS186 -> 120.2 | GX136: 4' | HH136: =-CT276-GK101 -> -23.17504 | HI136: =CU276 -> 96 | HJ136: s2 | HL136: =-DP466-GK101 -> -24.20448861 | HM136: =DQ466 -> 84.45231914 | HN136: β5
E137: زاویه خام سرشانه متوسط | F137: =ROUND(0.5*(F135+F136),2) -> 0.32 | G137: =ROUND(0.5*(G135+G136),1) -> 18 | J137: (19 → 20) | K137: =0.4*K133 -> 3.309696 | L137: =0.4*L133 -> 2.72 | N137: فاصله افقی بین 22 و 25 بعد از بسته شدن ساسون | O137: =0.5*G167*COS(G160)+0.5*G167*COS(O134-O133-G160) -> 12.21291957 | P137: =0.5*H167*COS(H160)+0.5*H167*COS(P134-P133-H160) -> 11.79658287 | U137: =AN128 -> 30.84414556 | V137: =AO128 -> 14.88738419 | W137: 14 | Y137: =0.2*Y135 -> 0.8411525791 | Z137: (14 → 19) | AA137: =0.2*AA135 -> 0.8604736994 | AC137: فاصله افقی بین 24 و 27 بعد از بسته شدن ساسون | AD137: =0.5*G167*COS(G158)+0.5*G167*COS(AD134-AD133-G158) -> 12.25479334 | AE137: =0.5*H167*COS(H158)+0.5*H167*COS(AE134-AE133-H158) -> 11.87012844 | AF137: =AR138 -> 20.60309459 | AG137: =AS138 -> 38.53231669 | AH137: 24 | AJ137: =AR127 -> 23.67244 | AK137: =AS127 -> 0.0345175741 | AL137: 13 | AN137: =K115-K132+K140 -> 25.65178504 | AO137: =K127+K133+AP111 -> 27.64350419 | AP137: 23 | AR137: =AA115-AA135+AA141 -> 20.60309459 | AS137: =AA130+AA136+AT111 -> 25.98061879 | AT137: 23 | AW137: (25 → 32) | AX137: وصل | BF137: یقه هفت | BG137: =Y157 -> 2.686351862 | BH137: (31 → 32) | BI137: =AA157 -> 2.391601225 | BK137: =0+BI98 -> 15 | BL137: =BI125+BI97 -> 130.9189297 | BM137: 21 | BO137: =BO135 -> 30.68002831 | BP137: =BP135 -> 64.58 | BS137: =AZ94-BT130 -> 33.24992943 | BT137: =BA94 -> 140.0429161 | BU137: 22 | BV137: نقطه حلقه آستین | BW137: =BS104+SQRT(POWER(BS137-BS104,2)+POWER(BT137-BT104,2))*SIN(ATAN((BS137-BS104)/(BT137-BT104))-IF(BX101=1,(ATAN((BS138-BS104)/(BT138-BT104))-ATAN((BS109-BS104)/(BT109-BT104))),BT131)) -> 24.46347404 | BX137: =BT104+SQRT(POWER(BS137-BS104,2)+POWER(BT137-BT104,2))*COS(ATAN((BS137-BS104)/(BT137-BT104))-IF(BX101=1,(ATAN((BS138-BS104)/(BT138-BT104))-ATAN((BS109-BS104)/(BT109-BT104))),BT131)) -> 144.5213593 | BY137: b16 | CA137: =BK146-CB112 -> 30.85129361 | CB137: =BL146-CB113 -> 137.414105 | CC137: 32 | CD137: نقطه ساسون سرشانه | CE137: =CA104+SQRT(POWER(CA137-CA104,2)+POWER(CB137-CB104,2))*SIN(ATAN((CA137-CA104)/(CB137-CB104))-CB130) -> 29.18091711 | CF137: =CB104+SQRT(POWER(CA137-CA104,2)+POWER(CB137-CB104,2))*COS(ATAN((CA137-CA104)/(CB137-CB104))-CB130) -> 137.639598 | CG137: 32 | CM137: =CI103 -> 11.68100254 | CN137: =CJ103 -> 141.6080548 | CO137: 30 | CQ137: نقطه تقاطع | CR137: g1 | CS137: =(CT135-CT133+CS133*((CT134-CT133)/(CS134-CS133))-CS135*((CT136-CT135)/(CS136-CS135)))/(((CT134-CT133)/(CS134-CS133))-((CT136-CT135)/(CS136-CS135))) -> 28.11758178 | CT137: =CT133+(CS137-CS133)*((CT134-CT133)/(CS134-CS133)) -> 129.4130221 | CY137: α41m | CZ137: =ATAN((DD117-DD115)/(DC117-DC115)) -> 0.5940721734 | DG137: =DG125 -> 30.03651157 | DH137: 85.40973525 | DI137: =DI125 -> 10rm | DO137: =DH607 -> 25.8416 | DP137: =DI607 -> 0.2002727632 | DQ137: 50r | DU137: ='متغیرها '!C122 -> 3 | DV137: b | DW137: زاویه اپل | DZ137: ='متغیرها '!C122 -> 3 | EA137: b | EB137: زاویه اپل | EF137: رگلان با درز | EH137: 12.23989183 | EI137: 160.1027661 | EJ137: p2 | EL137: =BS111 -> 5 | EM137: =BT111 -> 120.2 | EN137: 4 | ET137: =BD97 -> 3.32006 | EU137: =BE97 -> 71.58 | EV137: 1' | EX137: =DC125 -> 43.84730341 | EY137: =DD125 -> 86.3095778 | EZ137: =DE125 -> ss2m | FB137: =DU176 -> 3.32006 | FC137: =DV176 -> 106.545 | FD137: e''1 | FF137: =CC150+CB112 -> 28.51329255 | FG137: =CD150+CB113 -> 129.4229875 | FH137: شیفت b'6 | FJ137: =BO187 -> 27.6916 | FK137: =BP187 -> 79.4 | FL137: 38' | FN137: =DO104 -> 41.42536549 | FO137: =DP104 -> 96.52470463 | FP137: =DQ104 -> شیفت36m | FR137: =DO115 -> 34.87984116 | FS137: =DP115 -> 129.3991847 | FT137: 20m | GJ137: =-ED135-GK101 -> -3.351253178 | GK137: =EE135 -> 146.8467656 | GL137: چرخیده25 | GV137: =-CR189-GK101 -> -7.601469112 | GW137: =CS189 -> 120.2 | GX137: بالاتنه 5 | GZ137: =GZ122 -> -3.351253178 | HA137: =HA122 -> 146.8467656 | HB137: =HB122 -> 25 | HD137: =-CP290-GK101 -> 5 | HE137: =CQ290 -> 114.42 | HF137: e'1 | HL137: =-DP467-GK101 -> -22.92277585 | HM137: =DQ467 -> 85.04999161 | HN137: β7
J138: (16 → 21) | K138: =G174-0.25*G167*'متغیرها '!C76*COS(O140)+(1-1.2)*0.5*G167*'متغیرها '!C78*COS(O140) -> 3.711634843 | L138: =H174 -> 4.76 | N138: فاصله عمودی بین 22 و 25 بعد از بسته شدن ساسون | O138: =0.5*G167*SIN(G160)+(O135-O136)*COS(O133)-0.5*G167*SIN(O134-O133-G160) -> 2.09418718 | P138: =0.5*H167*SIN(H160)+(P135-P136)*COS(P133)-0.5*H167*SIN(P134-P133-H160) -> 1.572715581 | Q138: =AN137 -> 25.65178504 | R138: =AO137 -> 27.64350419 | S138: 23 | U138: =AN127 -> 32.56794556 | V138: =AO127 -> 19.36926419 | W138: 13 | Y138: =0.1*Y136 -> 0.85 | Z138: (19 → 20) | AA138: =0.1*AA136 -> 0.999804 | AC138: فاصله عمودی بین 24 و 27 بعد از بسته شدن ساسون | AD138: =0.5*G167*SIN(G158)+(AD135-AD136)*COS(AD133)-0.5*G167*SIN(AD134-AD133-G158) -> 2.69725736 | AE138: =0.5*H167*SIN(H158)+(AE135-AE136)*COS(AE133)-0.5*H167*SIN(AE134-AE133-H158) -> 2.527084857 | AJ138: =AR130 -> 24.04873684 | AK138: =AS130 -> 11.50069879 | AL138: 16 | AN138: =K115-K132+K140 -> 25.65178504 | AO138: =K127+K133+K141+AP111 -> 33.59321014 | AP138: 24 | AR138: =AA115-AA135+AA141 -> 20.60309459 | AS138: =AA130+AA136+AA142+AT111 -> 38.53231669 | AT138: 24 | AV138: =L153 -> 5.032005187 | AW138: (22 → 33) | AX138: =K153 -> 4.408159922 | AZ138: =AX128+AX135+AX99 -> 19.24986356 | BA138: =AX103-AX136+AX98 -> 145.8353126 | BB138: 32 | BD138: =AZ140 -> 13.35125318 | BE138: =BA140 -> 146.8467656 | BF138: 25 | BH138: (23 →30→22→32→18) | BI138: وصل | BK138: =0+BI98 -> 15 | BL138: =BI103-BI128+BI97 -> 136.4139132 | BM138: 24 | BO138: =BO137 -> 30.68002831 | BP138: =BP137-BE122+BE123 -> 61.65879703 | BS138: =BD159-BT130 -> 28.8417695 | BT138: =BE159 -> 143.0828639 | BU138: 34 | BV138: نقطه ساسون سرشانه | BW138: =BS104+SQRT(POWER(BS138-BS104,2)+POWER(BT138-BT104,2))*SIN(ATAN((BS138-BS104)/(BT138-BT104))-BT131) -> 19.2274478 | BX138: =BT104+SQRT(POWER(BS138-BS104,2)+POWER(BT138-BT104,2))*COS(ATAN((BS138-BS104)/(BT138-BT104))-BT131) -> 145.6426022 | BY138: 34 | CA138: =BO106-CB112 -> 40.81170652 | CB138: =BP106-CB113 -> 112.4727658 | CC138: 9 | CD138: نقطه حلقه آستین | CE138: =CA104+SQRT(POWER(CA138-CA104,2)+POWER(CB138-CB104,2))*SIN(IF(CB138=CB104,RADIANS(90)-CB130,ATAN((CA138-CA104)/ABS(CB138-CB104))+IF(CB138>CB104,-1,1)*CB130)) -> 40.84605142 | CF138: =CB104+IF(CB138<CB104,-1,1)*SQRT(POWER(CA138-CA104,2)+POWER(CB138-CB104,2))*COS(IF(CB138=CB104,RADIANS(90)-CB130,ATAN((CA138-CA104)/ABS(CB138-CB104))+IF(CB138>CB104,-1,1)*CB130)) -> 113.4485901 | CG138: b14 | CM138: =CK128 -> 18.27205338 | CN138: =CL128 -> 135.0735717 | CO138: وسط 20f | CY138: αb2m | CZ138: =ATAN((DD112-DD113)/(DC112-DC113)) -> 0.2365203051 | DG138: 25.45935248 | DH138: 46.1 | DI138: =DI126 -> 7rm | DU138: ='متغیرها '!C55 -> 0 | DV138: شیفت افقی | DZ138: ='متغیرها '!C56 -> 0 | EA138: شیفت افقی | ED138: =BW175+BT130 -> 18.66448162 | EE138: =BX175 -> 136.8335539 | EF138: شیفت34'' | EJ138: برش پایه | EP138: =CY108 -> 16.30646911 | EQ138: =CZ108 -> 84.3 | ER138: 47' | ET138: =BS116 -> 3.32006 | EU138: =BT116 -> 114.42 | EV138: e1 | EX138: =DC116 -> 31.78453904 | EY138: =DD116 -> 87.37935248 | EZ138: =DE116 -> 47''s | FB138: =DU177 -> 2.92006 | FC138: =DV177 -> 114.42 | FD138: e'1 | FF138: =CC151+CB112 -> 34.47133225 | FG138: =CD151+CB113 -> 121.2716146 | FH138: شیفتb''6 | FN138: =DK112 -> 26.7666 | FO138: =DL112 -> 96.5 | FP138: =DM112 -> شیفت35 | FR138: =DO121 -> 34.59097934 | FS138: =DP121 -> 122.4713615 | FT138: =DQ121 -> b'6p | FZ138: 9' | GB138: =-CM146-GK101 -> -8.374038469 | GC138: =CN146 -> 137.0359975 | GD138: شیفت وسط 16f | GF138: =-EX137-GK101 -> -33.84730341 | GG138: =EY137 -> 86.3095778 | GH138: ss2m | GN138: =-EL134-GK101 -> 5 | GO138: =EM134 -> 71.58 | GP138: 1 | GR138: =-ET138-GK101 -> 6.67994 | GS138: =EU138 -> 114.42 | GT138: e1 | GZ138: =GZ129 -> -14.25469653 | HA138: =HA129 -> 143.7326593 | HB138: =HB129 -> 22f | HD138: =-CP293-GK101 -> 6.67994 | HE138: =CQ293 -> 114.42 | HF138: e1 | HH138: =-CT278-GK101 -> -23.17504 | HI138: =CU278 -> 96 | HJ138: s2
J139: (21 → 22) | K139: =SQRT(POWER(O127,2)-G174*G174)+0.5*G167*'متغیرها '!C76*SIN(O140)-0.5*G167*'متغیرها '!C78*SIN(O140) -> 11.89941191 | L139: =SQRT(POWER(P127,2)-H174*H174) -> 11.18420426 | N139: β3 | O139: =ATAN(O138/O137) -> 0.1698215311 | P139: =ATAN(P138/P137) -> 0.1325380281 | Q139: =AN138 -> 25.65178504 | R139: =AO138 -> 33.59321014 | S139: 24 | Y139: =0.7*Y135 -> 2.944034027 | Z139: (14 → 21) | AA139: =0.7*AA135 -> 3.011657948 | AC139: β7 | AD139: =ATAN(AD138/AD137) -> 0.2166439232 | AE139: =ATAN(AE138/AE137) -> 0.2097628019 | AF139: =AR139 -> 20.00338622 | AG139: =AS139 -> 25.98061879 | AH139: 25 | AJ139: =AR129 -> 25.77253684 | AK139: =AS129 -> 15.98257879 | AL139: 15 | AN139: =K143 -> 8.351253178 | AO139: =K114+AP111 -> 46.34676563 | AP139: 25 | AR139: =AA115-AA135+AA143 -> 20.00338622 | AS139: =AA130+AA136+AT111 -> 25.98061879 | AT139: 25 | AV139: =L154 -> 3.439197412 | AW139: (33 → 34) | AX139: =K154 -> 3.039947759 | AZ139: =AX128+AX135+AX99 -> 19.24986356 | BA139: =AX103+AX98 -> 146.8467656 | BB139: 31 | BD139: =AE708+'متغیرها '!C51 -> 3.32006 | BE139: =AF708+'متغیرها '!C52 -> 136.3693439 | BF139: m9 | BS139: =AZ100-BT130 -> 37.56794556 | BT139: =BA100 -> 119.8692642 | BU139: 13 | BV139: نقطه حلقه آستین | BW139: =BS104+SQRT(POWER(BS139-BS104,2)+POWER(BT139-BT104,2))*SIN(IF(BT139=BT104,RADIANS(90)-BT131,ATAN((BS139-BS104)/ABS(BT139-BT104))+IF(BT139>BT104,-1,1)*IF(AND(BX101=1,BX102=0),(ATAN((BS138-BS104)/(BT138-BT104))-ATAN((BS109-BS104)/(BT109-BT104))),BT131))) -> 36.17413272 | BX139: =BT104+IF(BT139<BT104,-1,1)*SQRT(POWER(BS139-BS104,2)+POWER(BT139-BT104,2))*COS(IF(BT139=BT104,RADIANS(90)-BT131,ATAN((BS139-BS104)/ABS(BT139-BT104))+IF(BT139>BT104,-1,1)*IF(AND(BX101=1,BX102=0),(ATAN((BS138-BS104)/(BT138-BT104))-ATAN((BS109-BS104)/(BT109-BT104))),BT131))) -> 127.5366024 | BY139: b14 | CA139: =BO122-CB112 -> 39.08790652 | CB139: =BP122-CB113 -> 107.9908858 | CC139: 10 | CD139: نقطه زیر حلقه آستین | CE139: =CA104+SQRT(POWER(CA139-CA104,2)+POWER(CB139-CB104,2))*SIN(IF(CB139=CB104,RADIANS(90)-CB130,ATAN((CA139-CA104)/ABS(CB139-CB104))+IF(CB139>CB104,-1,1)*CB130)) -> 39.43703412 | CF139: =CB104+IF(CB139<CB104,-1,1)*SQRT(POWER(CA139-CA104,2)+POWER(CB139-CB104,2))*COS(IF(CB139=CB104,RADIANS(90)-CB130,ATAN((CA139-CA104)/ABS(CB139-CB104))+IF(CB139>CB104,-1,1)*CB130)) -> 108.8580122 | CG139: b2 | CY139: αss2m | CZ139: =ATAN((DD122-DD116)/(DC122-DC116)) -> -0.08845263572 | DG139: 24.15707975 | DH139: 5 | DI139: =DI127 -> 5rm | DO139: =DK112 -> 26.7666 | DP139: =DL112 -> 96.5 | DQ139: =DM112 -> شیفت35 | DV139: محاسبات | DZ139: ='متغیرها '!C57 -> 0 | EA139: شیفت عمودی | ED139: =BS178+BT130 -> 25.45047281 | EE139: =BT178 -> 131.2866765 | EF139: شیفتb'6 | EH139: =J277 -> 0 | EI139: =K277 -> 160.1027661 | EJ139: p1 | EL139: =BS111 -> 5 | EM139: =BT111 -> 120.2 | EN139: 4 | EP139: =CY109 -> 16.30646911 | EQ139: =CZ109 -> 71.58 | ER139: 52 | FB139: =DU180 -> 0.6607146217 | FC139: 125.3946719 | FD139: a'11 | FF139: =CE117+CB112 -> 36.07603953 | FG139: =CF117+CB113 -> 116.472627 | FH139: شیفتb10 | FJ139: =BO187 -> 27.6916 | FK139: =BP187 -> 79.4 | FL139: 38' | FX139: =-DD177-GK101 -> -14.57310558 | FY139: =DE177 -> 145.3003782 | FZ139: 39 | GB139: =-CM147-GK101 -> -14.89356443 | GC139: =CN147 -> 131.1895723 | GD139: شیفت 16f | GF139: =-EX138-GK101 -> -21.78453904 | GG139: =EY138 -> 87.37935248 | GH139: 47''s | GL139: 32' | GN139: =-EL137-GK101 -> 5 | GO139: =EM137 -> 120.2 | GP139: 4 | GR139: =-ET141-GK101 -> 5 | GS139: =EU141 -> 114.42 | GT139: e'1 | GV139: =-CR189-GK101 -> -7.601469112 | GW139: =CS189 -> 120.2 | GX139: بالاتنه 5 | HH139: =-CT279-GK101 -> -22.40504 | HI139: =CU279 -> 86.1 | HJ139: m4 | HL139: =-DP469-GK101 -> -22.92277585 | HM139: =DQ469 -> 85.04999161 | HN139: β7
J140: (16 → 23) | K140: =0.3*K138 -> 1.113490453 | L140: =0.3*L138 -> 1.428 | N140: β4 | O140: =O139-O133+O134 -> 0.6037243465 | P140: =P139-P133+P134 -> 0.5995419624 | U140: =AN136 -> 28.24992943 | V140: =AO136 -> 39.5429161 | W140: 22 | Y140: =0.4*Y136 -> 3.4 | Z140: (21 → 22) | AA140: =0.4*AA136 -> 3.999216 | AC140: β8 | AD140: =AD139-AD133+AD134 -> 0.462998828 | AE140: =AE139-AE133+AE134 -> 0.4564296327 | AF140: =AR140 -> 20.00338622 | AG140: =AS140 -> 32.88405263 | AH140: 26 | AN140: 0 | AO140: =K114-K144+AP111 -> 35.86934389 | AP140: 26 | AR140: =AA115-AA135+AA143 -> 20.00338622 | AS140: =AA130+AA136+AA144+AT111 -> 32.88405263 | AT140: 26 | AW140: (22 → 34) | AX140: وصل | AZ140: =AX128+AX99 -> 13.35125318 | BA140: =AX103+AX98 -> 146.8467656 | BB140: 25 | BH140: متغیرهای محاسبه ای ساسون کمر در پیراهن راسته پشت | BK140: =BI108-BI114+BI120+BI98+'متغیرها '!C56 -> 35.64226427 | BL140: =BI110+BI115+BI121+BI97+'متغیرها '!C57 -> 135.0225037 | BM140: شیفت18 | BO140: =BO138 -> 30.68002831 | BP140: =BP138 -> 61.65879703 | BS140: =BD155-BT130 -> 35.84414556 | BT140: =BE155 -> 115.3873842 | BU140: 14 | BV140: نقطه زیر حلقه آستین | BW140: =BS104+SQRT(POWER(BS140-BS104,2)+POWER(BT140-BT104,2))*SIN(IF(BT140=BT104,RADIANS(90)-BT131,ATAN((BS140-BS104)/ABS(BT140-BT104))+IF(BT140>BT104,-1,1)*BT131)) -> 36.29703227 | BX140: =BT104+IF(BT140<BT104,-1,1)*SQRT(POWER(BS140-BS104,2)+POWER(BT140-BT104,2))*COS(IF(BT140=BT104,RADIANS(90)-BT131,ATAN((BS140-BS104)/ABS(BT140-BT104))+IF(BT140>BT104,-1,1)*BT131)) -> 122.7362242 | BY140: b2 | CB140: متغیرهای محاسبه ای ساسون زیر بغل با چرخش کامل | CM140: =CM138+CJ105 -> 18.27205338 | CN140: =CN138 -> 135.0735717 | CO140: شیفت وسط 20f | CY140: αs2m | CZ140: =ATAN((DD120-CZ108)/(DC120-CY108)) -> -0.4963280731 | DG140: 24.15707975 | DH140: 5 | DI140: =DI128 -> 1rm | DO140: =DO104 -> 41.42536549 | DP140: =DP104 -> 96.52470463 | DQ140: =DQ104 -> شیفت36m | DT140: (25→32) | DU140: =SQRT(POWER(DT134-DT133,2)+POWER(DU134-DU133,2)) -> 5.984700625 | EA140: محاسبات | ED140: =BW134+BT130 -> 28.65427276 | EE140: =BX134 -> 128.0036418 | EF140: شیفتb10 | EH140: =J278 -> 12.23989183 | EI140: =K278 -> 160.1027661 | EJ140: p2 | EL140: =BS112 -> 3.32006 | EM140: =BT112 -> 120.2 | EN140: 4' | ET140: =BS116 -> 3.32006 | EU140: =BT116 -> 114.42 | EV140: e1 | EX140: =CY109 -> 16.30646911 | EY140: =CZ109 -> 71.58 | EZ140: 52 | FB140: -0.3147191118 | FC140: 136.3693439 | FD140: e'3 | FJ140: =BO188 -> 27.6916 | FK140: =BP188 -> 66.58 | FL140: 49 | FP140: لبه برگرد پایین کت در پهلو جدا | FT140: اطلاعات اندام | FX140: =-DD178-GK101 -> -3.351253178 | FY140: =DE178 -> 146.8467656 | FZ140: 25 | GB140: =-CM148-GK101 -> -17.43592446 | GC140: =CN148 -> 125.9883497 | GD140: شیفت 20f | GJ140: =-ED138-GK101 -> -8.664481617 | GK140: =EE138 -> 136.8335539 | GL140: شیفت34'' | GV140: =-CR192-GK101 -> 6.679939965 | GW140: =CS192 -> 120.201 | GX140: 4' | HB140: 51' | HD140: =-CP293-GK101 -> 6.67994 | HE140: =CQ293 -> 114.42 | HF140: e1 | HL140: =-DP470-GK101 -> -22.32510337 | HM140: =DQ470 -> 83.76827885 | HN140: β3
J141: (23 → 24) | K141: =0.5*K139 -> 5.949705954 | L141: =0.5*L139 -> 5.592102132 | N141: β9 | O141: =ATAN(K138/K139) -> 0.3023541065 | P141: =ATAN(L138/L139) -> 0.4023789448 | Q141: =AN136 -> 28.24992943 | R141: =AO136 -> 39.5429161 | S141: 22 | U141: =AN148 -> 23.8417695 | V141: =AO148 -> 42.58286386 | W141: 34 | Y141: =H173 -> 2.04 | Z141: (18 → 23) | AA141: =G173-0.25*'متغیرها '!C76*G167*COS(AD140)+(1-1.2)*0.5*'متغیرها '!C78*G167*COS(AD140) -> 0.8567262452 | AC141: β10 | AD141: =ATAN(AA141/AA142) -> 0.06815010242 | AE141: =ATAN(Y141/Y142) -> 0.1686302315 | AJ141: =AR138 -> 20.60309459 | AK141: =AS138 -> 38.53231669 | AL141: 24 | AN141: =K145 -> 3.340501271 | AO141: =K114+AP111 -> 46.34676563 | AP141: 27 | AR141: =AA146 -> 8.348421281 | AS141: =AA114+AT111 -> 42.53229312 | AT141: 27 | AW141: (32 → 5) | AX141: وصل | AZ141: =0+AX99 -> 5 | BA141: =AX103+AX98 -> 146.8467656 | BB141: 2 | BD141: =AE708+'متغیرها '!C51 -> 3.32006 | BE141: =AF708+'متغیرها '!C52 -> 136.3693439 | BF141: m9 | BG141: =IF('متغیرها '!C125=1,H147,IF(H147>0,H147,0)) -> 0 | BH141: x''11 | BI141: =IF('متغیرها '!C125=1,G147,IF(G147>0,G147,0)) -> 0 | BK141: =BI108-BI114+BI120+BI98+'متغیرها '!C56 -> 35.64226427 | BL141: =BI110+BI115+BI97+'متغیرها '!C57 -> 122.4708058 | BM141: شیفت17 | BO141: =BO134 -> 15 | BP141: =BP140 -> 61.65879703 | BT141: متغیرهای محاسبه ای کمی چرخش به ساسون زیر بغل | CB141: ζ'1 | CC141: =(1+0.001)*ATAN((CA109-CA104)/(CB109-CB104)) -> 0.09967041431 | CE141: =CA104+(1-'متغیرها '!C116)*(CA139-CA104) -> 30.46299196 | CF141: =CB104+(1-'متغیرها '!C116)*(CA139-CA104)*TAN(0.5*CB130-CC143) -> 111.9673475 | CG141: b | CM141: =CM105 -> 27.43592446 | CN141: =CN105 -> 125.9883497 | CO141: 20f | CY141: αb4s | CZ141: =ATAN((DD109-DD110)/(DC110-DC109)) -> -0.01775361799 | DT141: (34→22) | DU141: =SQRT(POWER(DT131-DT130,2)+POWER(DU131-DU130,2)) -> 5.354732138 | DY141: (23→30) | DZ141: =SQRT(POWER(DY134-DY133,2)+POWER(DZ134-DZ133,2)) -> 5.984700625 | EP141: =DC116 -> 31.78453904 | EQ141: =DD116 -> 87.37935248 | ER141: 47''s | ET141: =BD150 -> 5 | EU141: =BT116 -> 114.42 | EV141: e'1 | EX141: =DC103 -> 16.02502 | EY141: 71.58 | EZ141: 50s | FB141: 2.087869389 | FC141: 145.6218312 | FD141: a'8 | FF141: =CE106 -> 21.26131596 | FG141: =CF106 -> 137.4612652 | FH141: 28 | FN141: =DY178 -> 31.6916 | FO141: =DZ178 -> 70.58 | FP141: a'23 | FT141: کمر | GF141: =-EX140-GK101 -> -6.306469112 | GG141: =EY140 -> 71.58 | GH141: 52 | GJ141: =-ED139-GK101 -> -15.45047281 | GK141: =EE139 -> 131.2866765 | GL141: شیفتb'6 | GN141: =-EL137-GK101 -> 5 | GO141: =EM137 -> 120.2 | GP141: 4 | GR141: =-ET141-GK101 -> 5 | GS141: =EU141 -> 114.42 | GT141: e'1 | GZ141: =-AW287-GK101 -> -25.84414556 | HA141: =AX287 -> 115.3873842 | HB141: 14 | HD141: =-CP296-GK101 -> 6.67994 | HE141: =CQ296 -> 96 | HF141: s'1 | HJ141: 66'
J142: (22→24→16→20→18→12→13) | K142: هلال وصل | N142: (16 → 6) | O142: =SQRT((Q126-Q113)*(Q126-Q113)+(R126-R113)*(R126-R113)) -> 13.34805434 | P142: =SQRT((N161-N162)*(N161-N162)+(O161-O162)*(O161-O162)) -> 12.20869924 | Q142: =AN147 -> 23.8417695 | R142: =AO147 -> 39.5429161 | S142: 33 | U142: =AN150 -> 12.60146911 | V142: =AO150 -> 21.67 | W142: 36 | Y142: =SQRT(POWER(I125-I122+(O128-AD128)*'متغیرها '!U82+P127,2)-H173*H173) -> 11.98258841 | Z142: (23→24) | AA142: =SQRT(POWER(H125-H122+(O128-AD128)*H130+O127,2)-G173*G173)+'متغیرها '!C76*0.5*G167*SIN(AD140)-'متغیرها '!C78*0.5*G167*SIN(AD140) -> 12.5516979 | AC142: (18 → 7) | AD142: =SQRT((AG135-AG113)*(AG135-AG113)+(AF135-AF113)*(AF135-AF113)) -> 8.171192295 | AE142: =SQRT((AD159-AD160)*(AD159-AD160)+(AC159-AC160)*(AC159-AC160)) -> 7.647032501 | AF142: =AR138 -> 20.60309459 | AG142: =AS138 -> 38.53231669 | AH142: 24 | AJ142: =AR152 -> 15.81212393 | AK142: =AS152 -> 40.92391791 | AL142: 36 | AN142: =K145 -> 3.340501271 | AO142: =K114-K146+AP111 -> 36.91708607 | AP142: 28 | AR142: 0 | AS142: =AA114-AA147+AT111 -> 39.91391319 | AT142: 28 | AW142: (34 → 5) | AX142: وصل | AZ142: =AZ102 -> 5 | BA142: =BA102 -> 136.3693439 | BB142: 26 | BD142: =BD98 -> 3.32006 | BE142: =BE98 -> 136.3693439 | BF142: 26' | BG142: =IF('متغیرها '!C125=1,H146,IF(H146>0,H146,0)) -> 0 | BH142: x11 | BI142: =IF('متغیرها '!C125=1,G146,IF(G146>0,G146,0)) -> 0 | BK142: =BI108-BI114+BI98+'متغیرها '!C56 -> 34.78553803 | BL142: =BI110+BI115+BI97+'متغیرها '!C57 -> 122.4708058 | BM142: شیفت12 | BT142: ζ'1 | BU142: =('متغیرها '!C106+0.001)*ATAN((BS109-BS104)/(BT109-BT104)) -> 0.06427751976 | BW142: =BS104+(1-'متغیرها '!C115)*(BS140-BS104) -> 19.42573676 | BX142: =BT104+(1-'متغیرها '!C115)*(BS140-BS104)*TAN(0.5*BT131-BU144) -> 120.0875759 | BY142: b | CB142: ζ'2 | CC142: =(1+0.001)*ATAN((CA137-CA104)/(CB137-CB104)) -> 0.1690356256 | CO142: رگلان با درز | CZ142: امتداد جیب روی تکه پهلو جدا | DG142: =DG128 -> 24.15707975 | DH142: =DH128 -> 5 | DI142: =DI128 -> 1rm | DO142: =DO102 -> 42.24083201 | DP142: =DP102 -> 113.7139018 | DQ142: شیفت 8m | DT142: (32b→5) | DU142: =SQRT(POWER(DT149-DT132,2)+POWER(DU149-DU132,2)) -> 24.03512597 | DY142: (32→18) | DZ142: =SQRT(POWER(DY131-DY130,2)+POWER(DZ131-DZ130,2)) -> 5.354732138 | ED142: =BW106 -> 11.68100254 | EE142: =BX106 -> 141.6080548 | EF142: 30 | EH142: =J280 -> 0 | EI142: =K280 -> 160.1027661 | EJ142: p1 | EL142: =BS112 -> 3.32006 | EM142: =BT112 -> 120.2 | EN142: 4' | EP142: =DC115 -> 24.98580723 | EQ142: =DD115 -> 102.0979292 | ER142: 40s | EX142: 20.109526 | EY142: 71.73824059 | EZ142: 50's | FB142: 7.643909224 | FC142: 154.8743184 | FD142: a'6 | FF142: =CC150 -> 28.51329255 | FG142: =CD150 -> 129.4229875 | FH142: b'6 | FJ142: =BO188 -> 27.6916 | FK142: =BP188 -> 66.58 | FL142: 49 | FN142: =DY180 -> 23.6916 | FO142: =DZ180 -> 62.58 | FP142: a''23 | FR142: =BK180 -> 26.7666 | FS142: =BL180 -> 96.5 | FT142: شیفت 35 | FZ142: 47' | GD142: 59' | GF142: =-EX141-GK101 -> -6.02502 | GG142: =EY141 -> 71.58 | GH142: 50s | GJ142: =-ED140-GK101 -> -18.65427276 | GK142: =EE140 -> 128.0036418 | GL142: شیفتb10 | GN142: =-EL140-GK101 -> 6.67994 | GO142: =EM140 -> 120.2 | GP142: 4' | GR142: =-ET144-GK101 -> 5 | GS142: =EU144 -> 71.58 | GT142: 1 | GV142: =-CR192-GK101 -> 6.679939965 | GW142: =CS192 -> 120.201 | GX142: 4' | GZ142: =-AW288-GK101 -> -25.87503301 | HA142: 89.10295368 | HB142: 8n | HH142: =-CL281-GK101 -> -25.84414556 | HI142: =CM281 -> 115.3873842 | HJ142: شیفت 14 | HL142: =-DP472-GK101 -> -22.32510337 | HM142: =DQ472 -> 83.76827885 | HN142: β3
J143: (2 → 25) | K143: =G163+'متغیرها '!C71*0.5*G167*COS(O139) -> 8.351253178 | L143: =H163 -> 8.0408 | N143: β'1 | O143: =ATAN((Q149-Q147)/(R149-R147)) -> 0.06954213289 | P143: =ATAN((N163-N162)/(O163-O162)) -> 0.07590717859 | Q143: =AN148 -> 23.8417695 | R143: =AO148 -> 42.58286386 | S143: 34 | U143: =AN146 -> 14.24986356 | V143: =AO146 -> 45.33531262 | W143: 32 | Y143: =0.3*Y141 -> 0.612 | Z143: (18 → 25) | AA143: =0.3*AA141 -> 0.2570178735 | AC143: β11 | AD143: =ATAN((AG127-AG113)/(AF127-AF113)) -> 0.2168812087 | AE143: =ATAN((AD159-AD160)/(AC159-AC160)) -> 0.2274963323 | AF143: =AR151 -> 15.81212393 | AG143: =AS151 -> 38.53231669 | AH143: 35 | AN143: =K147 -> 6.681002542 | AO143: =K114+AP111 -> 46.34676563 | AP143: 29 | AR143: =AA148 -> 3.339368512 | AS143: =AA114+AT111 -> 42.53229312 | AT143: 29 | AW143: (10 → 35) | AX143: =H108-H114+0.5*(H105-H108) -> 20.17 | BG143: =IF('متغیرها '!C125=1,H149,IF(H149>0,H149,0)) -> 1.125 | BH143: x | BI143: =IF('متغیرها '!C125=1,G149,IF(G149>0,G149,0)) -> 1.125 | BO143: =BO141 -> 15 | BP143: =BP141 -> 61.65879703 | BT143: ζ'2 | BU143: =('متغیرها '!C106+0.001)*ATAN((BS138-BS104)/(BT138-BT104)) -> 0.4570478168 | CB143: ζ1 | CC143: =ATAN((CB104-CB139)/(CA139-CA104)) -> 0.4174506909 | CM143: =CI103 -> 11.68100254 | CN143: =CJ103 -> 141.6080548 | CO143: 30 | CY143: α36m | CZ143: =ATAN((DO105-DO104)/(DP104-DP105)) -> 0.2386093225 | DG143: =DG117 -> 18.89646911 | DH143: =DH117 -> 5 | DI143: =DI117 -> 53r | DO143: =DO107 -> 39.08790652 | DP143: =DP107 -> 113.0933338 | DQ143: شیفت 8'm | DT143: b1 | DU143: =ATAN((DT131-DT132)/(DU131-DU132))-ATAN((DT133-DT132)/(DU133-DU132)) -> -0.0003812712497 | DY143: (30b→22) | DZ143: =SQRT(POWER(DY150-DY132,2)+POWER(DZ150-DZ132,2)) -> 7.157771031 | ED143: =BS175 -> 18.67100817 | EE143: =BT175 -> 136.8331356 | EF143: 34' | EH143: =J281 -> 0 | EI143: =K281 -> 161.8978131 | EJ143: p3 | EL143: =BD97 -> 3.32006 | EM143: =BE97 -> 71.58 | EN143: 1' | ET143: =BD150 -> 5 | EU143: =BT116 -> 114.42 | EV143: e'1 | EX143: 23.513281 | EY143: 72.01516164 | EZ143: 50''s | FB143: 12.78082347 | FC143: 160.5510972 | FD143: a'4 | FH143: رگلان بدون درز | FJ143: =BO176 -> 15 | FK143: =BP176 -> 66.58 | FL143: 47 | FR143: =BK162 -> 38.27244 | FS143: =BL162 -> 96.52470463 | FT143: شیفت 36 | FX143: =-(0+AX99)+2*GC101 -> 5 | FY143: =DS238-DS239+AX98 -> 125.2195874 | FZ143: p26 | GB143: =-(AL281)+2*GC101 -> -3.351253178 | GC143: =AM281 -> 146.8467656 | GD143: =AN281 -> 25 | GF143: =-EX142-GK101 -> -10.109526 | GG143: =EY142 -> 71.73824059 | GH143: 50's | GV143: =-CR195-GK101 -> 6.67994 | GW143: =CS195 -> 136.3693439 | GX143: 26' | GZ143: =-AW289-GK101 -> -24.88554935 | HA143: 80.56051376 | HB143: 7n | HD143: =-CP296-GK101 -> 6.67994 | HE143: =CQ296 -> 96 | HF143: s'1 | HH143: =-CL282-GK101 -> -23.52504 | HI143: =CM282 -> 103.921203 | HJ143: شیفت 41 | HL143: =-DP473-GK101 -> -24.20448861 | HM143: =DQ473 -> 84.45231914 | HN143: β5
J144: (2 → 26) | K144: =G165+'متغیرها '!C72*0.5*G167-('متغیرها '!C71)*0.5*G167*SIN(O139) -> 10.47742174 | L144: =H165 -> 9.900687621 | N144: β'2 | O144: =ATAN((Q143-Q147)/(R143-R147)) -> 0.4931821553 | P144: =ATAN((N164-N162)/(O164-O162)) -> 0.5287416705 | U144: =AN139 -> 8.351253178 | V144: =AO139 -> 46.34676563 | W144: 25 | Y144: =0.55*Y142 -> 6.590423625 | Z144: (25 → 26) | AA144: =0.55*AA142 -> 6.903433845 | AC144: (18' → 18'') | AD144: =AD142*SIN(AD147-AD146+AD143) -> 2.515531096 | AE144: =AE142*SIN(AE147-AE146+AE143) -> 2.421414601 | AF144: =AR152 -> 15.81212393 | AG144: =AS152 -> 40.92391791 | AH144: 36 | AJ144: =AR148 -> 14.19322562 | AK144: =AS148 -> 41.24586249 | AL144: 34 | AN144: =K147 -> 6.681002542 | AO144: =K114-K148+AP111 -> 41.10805476 | AP144: 30 | AR144: =AA148 -> 3.339368512 | AS144: =AA114-AA149+AT111 -> 40.17575119 | AT144: 30 | AW144: (35 → 36) | AX144: =0.5*SIN(RADIANS('متغیرها '!C198))*(0.5*'متغیرها '!U84+0.06*H105) -> 2.780623765 | AZ144: =AX130+AX99 -> 8.340501271 | BA144: =AX103+AX98 -> 146.8467656 | BB144: 27 | BD144: =BD98 -> 3.32006 | BE144: =BE98 -> 136.3693439 | BF144: 26' | BG144: =IF('متغیرها '!C125=1,H151,IF(H151>0,H151,0)) -> 0.2 | BH144: x'' | BI144: =IF('متغیرها '!C125=1,G151,IF(G151>0,G151,0)) -> 0.2 | BK144: =BK140 -> 35.64226427 | BL144: =BL140 -> 135.0225037 | BM144: 18 | BO144: =BO134 -> 15 | BP144: =BP134 -> 64.58 | BT144: ζ1 | BU144: =ATAN((BT104-BT140)/(BS140-BS104)) -> 0.2579342736 | BW144: =BW137 -> 24.46347404 | BX144: =BX137 -> 144.5213593 | BY144: b16 | CM144: =CK135 -> 18.37403847 | CN144: =CL135 -> 137.0359975 | CO144: وسط 16f | CY144: (s2m→45m) | CZ144: =SQRT(POWER((EX129-DC127),2)+POWER((EY129-DD127),2)) -> 0 | DO144: =DO109 -> 37.28091175 | DP144: =DP109 -> 114.2758606 | DQ144: شیفت 8''m | DT144: α25 | DU144: =ATAN((DU134-DU133)/(DT133-DT134)) -> 0.1698215311 | DY144: b1 | DZ144: =ATAN((DY131-DY132)/(DZ131-DZ132))-ATAN((DY133-DY132)/(DZ133-DZ132)) -> 0.2473138227 | EF144: رگلان بدون درز | EP144: =DC115 -> 24.98580723 | EQ144: =DD115 -> 102.0979292 | ER144: 40s | ET144: =BD150 -> 5 | EU144: =BE150 -> 71.58 | EV144: 1 | EX144: =EX132 -> 29.07711451 | EY144: =EY132 -> 71.97560149 | EZ144: 49'm | FF144: =CC157+CB112 -> 28.30152411 | FG144: =CD157+CB113 -> 127.487108 | FH144: شیفتb'10 | FN144: =DY180 -> 23.6916 | FO144: =DZ180 -> 62.58 | FP144: a''23 | FX144: =-(DU241)+2*GC101 -> 0.497152 | FY144: =DV241 -> 125.8136287 | FZ144: p28 | GB144: =-(AL283)+2*GC101 -> -0.9323497733 | GC144: =AM283 -> 136.3693439 | GD144: sq2 | GF144: =-EX143-GK101 -> -13.513281 | GG144: =EY143 -> 72.01516164 | GH144: 50''s | GJ144: =-ED142-GK101 -> -1.681002542 | GK144: =EE142 -> 141.6080548 | GL144: 30 | GN144: =-EL140-GK101 -> 6.67994 | GO144: =EM140 -> 120.2 | GP144: 4' | GT144: 0' | GZ144: =-AW290-GK101 -> -21.54604202 | HA144: 75.43504981 | HB144: 6n | HD144: =-CP299-GK101 -> 5 | HE144: =CQ299 -> 96 | HF144: s1 | HH144: =-CL283-GK101 -> -22.40504 | HI144: =CM283 -> 86.1 | HJ144: m4
F145: متغیرهای محاسبه شده پیراهن اندامی | H145: شبیه ساز | J145: (2 → 27) | K145: =0.4*K143 -> 3.340501271 | L145: =0.4*L143 -> 3.21632 | N145: β12 | O145: =ATAN((R134-R147)/(Q134-Q147)) -> 0.4639887774 | P145: =ATAN((O161-O162)/(N161-N162)) -> 0.3688985475 | Q145: =AN149 -> 18.53432 | R145: =AO149 -> 42.70322736 | S145: 35 | Z145: (15→14→20→22→18→26→24) | AA145: هلال وصل | AC145: (18''→ 7) | AD145: =AD142*COS(AD147-AD146+AD143) -> 7.774348 | AE145: =AE142*COS(AE147-AE146+AE143) -> 7.253541025 | AJ145: =AR141 -> 8.348421281 | AK145: =AS141 -> 42.53229312 | AL145: 27 | AN145: =K143+K150 -> 14.24986356 | AO145: =K114+AP111 -> 46.34676563 | AP145: 31 | AR145: =AA150 -> 6.261315961 | AS145: =AA114+AT111 -> 42.53229312 | AT145: 31 | AW145: (36 → 37) | AX145: =0.5*COS(RADIANS('متغیرها '!C198))*(0.5*'متغیرها '!U84+0.06*H105) -> 7.639701007 | AZ145: =AX130+AX99 -> 8.340501271 | BA145: =AX103-AX131+AX98 -> 137.4170861 | BB145: 28 | BD145: =BD97 -> 3.32006 | BE145: =BE97 -> 71.58 | BF145: 1' | BG145: =MIN(BG144,BG143)+0.5*ABS((BG144-BG143)) -> 0.6625 | BH145: * | BI145: =MIN(BI144,BI143)+0.5*ABS((BI144-BI143)) -> 0.6625 | BK145: =BI108-BI114+BI120-BI136+BI98+'متغیرها '!C56 -> 30.85129361 | BL145: =BI110+BI115+BI121+BI97+'متغیرها '!C57 -> 135.0225037 | BM145: شیفت31 | BT145: به دست آوردن نقطه تقاطع دو خط (رگلان با درز) | BU145: مولفه افقی | BV145: مولفه عمودی | CB145: به دست آوردن نقطه تقاطع دو خط (رگلان با درز) | CC145: مولفه افقی | CD145: مولفه عمودی | CY145: (47'→s2m) | CZ145: =SQRT(POWER((DC127-CY108),2)+POWER((DD127-CZ108),2)) -> 10.985799 | DO145: =DK104 -> 36.07624857 | DP145: =DL104 -> 116.4719818 | DQ145: شیفت 16p | DT145: α32b | DU145: =ATAN((DT149-DT132)/(DU149-DU132)) -> 0.07050721139 | DY145: α23 | DZ145: =ATAN((DZ134-DZ133)/(DY133-DY134)) -> 0.2166439232 | ED145: =BW106 -> 11.68100254 | EE145: =BX106 -> 141.6080548 | EF145: 30 | EJ145: خط متصل به یقه ملوانی | EL145: =BD97 -> 3.32006 | EM145: =BE97 -> 71.58 | EN145: 1' | EP145: =DC113 -> 17.60146911 | EQ145: =DD113 -> 118.23 | ER145: 43s | EZ145: کمر | FB145: =DU184 -> 12.78082347 | FC145: =DV184 -> 160.5510972 | FD145: a'4 | FF145: =CE117+CB112 -> 36.07603953 | FG145: =CF117+CB113 -> 116.472627 | FH145: شیفتb10 | FL145: پهلو صاف و پایین لباس | FN145: =DY179 -> 15 | FO145: =DZ179 -> 62.58 | FP145: a'6 | FR145: =BO178 -> 15 | FS145: =BP178 -> 96.5 | FT145: 44 | FX145: =-(DU243)+2*GC101 -> -4.005696 | FY145: =DV243 -> 128.1897937 | FZ145: p30 | GF145: =-EX144-GK101 -> -19.07711451 | GG145: =EY144 -> 71.97560149 | GH145: 49'm | GJ145: =-ED143-GK101 -> -8.671008175 | GK145: =EE143 -> 136.8331356 | GL145: 34' | GN145: =-EL143-GK101 -> 6.67994 | GO145: =EM143 -> 71.58 | GP145: 1' | GT145: کمر | GV145: =-CR195-GK101 -> 6.67994 | GW145: =CS195 -> 136.3693439 | GX145: 26' | GZ145: =-AW291-GK101 -> -13.50648733 | HA145: 72.01807384 | HB145: 5n | HL145: =-DP475-GK101 -> -22.32510337 | HM145: =DQ475 -> 83.76827885 | HN145: β3
E146: نصف پهنای ساسون روی خط مرکزی پشت دامن | F146: x11 | G146: ='متغیرها '!C93*0.25*(H103-H101) -> 0 | H146: ='متغیرها '!C93*0.25*('متغیرها '!U55-'متغیرها '!U53) -> 0 | J146: (27 → 28) | K146: =0.9*K144 -> 9.429679565 | L146: =0.9*L144 -> 8.910618859 | N146: (16' →16'') | O146: =O142*SIN(O144-O143+O145) -> 10.35244531 | P146: =P142*SIN(P144-P143+P145) -> 8.940760665 | Q146: =AN150 -> 12.60146911 | R146: =AO150 -> 21.67 | S146: 36 | U146: =AN115 -> 0 | V146: =AO115 -> 0 | W146: 1 | Y146: =H163 -> 8.0408 | Z146: (2 → 27) | AA146: =G163+'متغیرها '!C71*0.5*G167*COS(AD139) -> 8.348421281 | AC146: β'5 | AD146: =ATAN((AF150-AF113)/(AG150-AG113)) -> 0.1415912611 | AE146: =ATAN((AC161-AC160)/(AD161-AD160)) -> 0.1457132433 | AF146: =AR155 -> 14.79526406 | AG146: =AS155 -> 40.47713032 | AH146: 37 | AN146: =K143+K150 -> 14.24986356 | AO146: =K114-K151+AP111 -> 45.33531262 | AP146: 32 | AR146: =AA150 -> 6.261315961 | AS146: =AA114-AA151+AT111 -> 40.96126517 | AT146: 32 | AW146: (37' → 37) | AX146: =(0.5*'متغیرها '!U84+0.06*H105) -> 16.26 | BK146: =BI108-BI114+BI120-BI136+BI98+'متغیرها '!C56 -> 30.85129361 | BL146: =BI110+BI115+BI121+BI137+BI97+'متغیرها '!C57 -> 137.414105 | BM146: شیفت32 | BQ146: خطوط برش | BS146: نقطه اول از خط اول | BT146: 30 | BU146: =BW106 -> 11.68100254 | BV146: =BX106 -> 141.6080548 | BW146: =BW139 -> 36.17413272 | BX146: =BX139 -> 127.5366024 | BY146: b14 | CA146: نقطه اول از خط اول | CB146: 28 | CC146: =CE106 -> 21.26131596 | CD146: =CF106 -> 137.4612652 | CM146: =CK135+CJ105 -> 18.37403847 | CN146: =CL135 -> 137.0359975 | CO146: شیفت وسط 16f | CY146: (s''2m→s'2m) | CZ146: =IF('متغیرها '!C188*(0.5*H132+0.06*I105)>CZ145,'متغیرها '!C188*(0.5*H132+0.06*I105)-CZ145,0) -> 5.463201004 | DO146: =DK103 -> 34.78553803 | DP146: =DL103 -> 122.4708058 | DQ146: شیفت 12p | DT146: α34 | DU146: =ATAN((DU131-DU130)/(DT130-DT131)) -> 0.2109540495 | DY146: α30b | DZ146: =ATAN((DY150-DY132)/(DZ150-DZ132)) -> 0.08050392453 | ED146: =BS176 -> 18.62039369 | EE146: =BT176 -> 136.045995 | EF146: 5' | EH146: =BW113 -> 12.51612786 | EI146: =BX113 -> 143.7035391 | EJ146: e7 | EL146: =BD150 -> 5 | EM146: =BE150 -> 71.58 | EN146: 1 | ER146: کمر | EV146: انحنا ساسون کمر | EX146: =DC124 -> 35.63035591 | EY146: =DD124 -> 109.2879978 | EZ146: 41m | FB146: =DP179 -> 13.17957059 | FC146: =DQ179 -> 160.1027661 | FD146: a4 | FJ146: =BO170 -> 39.08790652 | FK146: =BP170 -> 107.9908858 | FL146: 10شیفت | FR146: =BK159 -> 26.7666 | FS146: =BL159 -> 96.5 | FT146: 34 | FX146: =-(DU239)+2*GC101 -> -6.25712 | FY146: =DV239 -> 131.16 | FZ146: p25 | GB146: =-(AL283)+2*GC101 -> -0.9323497733 | GC146: =AM283 -> 136.3693439 | GD146: sq2 | GH146: کمر | GL146: رگلان بدون درز | GR146: =-ET102-GK101 -> 5 | GS146: =EU102 -> 100.5 | GT146: 38 | GV146: =-CR198-GK101 -> 5 | GW146: =CS198 -> 136.3693439 | GX146: 26 | GZ146: =-AW292-GK101 -> 5 | HA146: 71.58 | HB146: 1 | HF146: 41' | HJ146: 67' | HL146: =HL148 -> -16.76385584 | HM146: =DQ476 -> 99.04768086 | HN146: β9
E147: نصف پهنای ساسون روی خط مرکزی پشت بالاتنه | F147: x''11 | G147: =('متغیرها '!C82*1/2)*(H121-H119) -> 0 | H147: =('متغیرها '!C82*1/2)*('متغیرها '!U73-'متغیرها '!U71) -> 0 | J147: (2 → 29) | K147: =0.8*K143 -> 6.681002542 | L147: =0.8*L143 -> 6.43264 | N147: (6 →16'') | O147: =O142*COS(O144-O143+O145) -> 8.425997317 | P147: =P142*COS(P144-P143+P145) -> 8.313551335 | Q147: =AN120 -> 12.60146911 | R147: =AO120 -> 21.67 | S147: 6 | U147: =AN151 -> -1.67994 | V147: =AO151 -> 0 | W147: 37 | Y147: =H166 -> 2.371102562 | Z147: (2 → 28) | AA147: =G166+'متغیرها '!C73*0.5*G167-('متغیرها '!C71)*0.5*G167*SIN(AD139) -> 2.61837993 | AC147: β'6 | AD147: =ATAN((AF144-AF113)/(AG144-AG113)) -> 0.2376463121 | AE147: =ATAN((AC162-AC160)/(AD162-AD160)) -> 0.2404100575 | AF147: =AR156 -> 13.67693565 | AG147: =AS156 -> 34.41892971 | AH147: 38 | AN147: =K115-K132+K138-K153 -> 23.8417695 | AO147: =K127+K133+K139+AP111 -> 39.5429161 | AP147: 33 | AR147: =AA146+AA153 -> 14.19322562 | AS147: =AA114+AT111 -> 42.53229312 | AT147: 33 | AW147: (1 → 1') | AX147: =-'متغیرها '!C66*(2*H129+H130) -> -1.67994 | AZ147: =AX132+AX99 -> 11.68100254 | BA147: =AX103+AX98 -> 146.8467656 | BB147: 29 | BC147: 3' | BD147: =BD152 -> 17.95454113 | BE147: =BE152 -> 71.58 | BF147: خطوط برش | BH147: متغیرهای خروجی ساسون کمر در پیراهن راسته پشت | BO147: =BK138 -> 15 | BP147: =BL138 -> 136.4139132 | BQ147: 24 | BS147: نقطه دوم از خط اول | BT147: b6 | BU147: =BW163 -> 25.58896243 | BV147: =BX163 -> 132.1074351 | BW147: =BW140 -> 36.29703227 | BX147: =BX140 -> 122.7362242 | BY147: b2 | CA147: نقطه دوم از خط اول | CB147: b6 | CC147: =CE118 -> 34.78491329 | CD147: =CF118 -> 122.4713615 | CM147: =CI119-0.05*(CI119-CI103)+CJ105 -> 24.89356443 | CN147: =CJ119-0.15*(CJ119-CJ120) -> 131.1895723 | CO147: شیفت 16f | CY147: (41m→45m) | CZ147: =SQRT(POWER((DG122-DG123),2)+POWER((DH122-DH123),2)) -> 16.70028518 | DT147: نقاط خروجی | DY147: α32b | DZ147: =ATAN((DZ131-DZ130)/(DY130-DY131)) -> 0.4629295321 | EH147: =BS116 -> 3.32006 | EI147: =BT116 -> 114.42 | EJ147: e1 | EP147: =AZ165 -> 5 | EQ147: =BA165 -> 100.5 | ER147: 38 | ET147: =BD174+'متغیرها '!C55 -> 18.24896911 | EU147: =BE174 -> 100.5 | EV147: 40شیفت | EX147: =DC115 -> 24.98580723 | EY147: =DD115 -> 102.0979292 | EZ147: 40s | FF147: =CE106 -> 21.26131596 | FG147: =CF106 -> 137.4612652 | FH147: 28 | FJ147: =BK126 -> 39.12312048 | FK147: =BL126 -> 78.02470463 | FL147: 6شیفت | FN147: =DY179 -> 15 | FO147: =DZ179 -> 62.58 | FP147: a'6 | FT147: باسن | GB147: =-(AL282)+2*GC101 -> 5 | GC147: =AM282 -> 136.3693439 | GD147: =AN282 -> 26 | GF147: =-EX146-GK101 -> -25.63035591 | GG147: =EY146 -> 109.2879978 | GH147: 41m | GJ147: =-ED145-GK101 -> -1.681002542 | GK147: =EE145 -> 141.6080548 | GL147: 30 | GN147: =-EL143-GK101 -> 6.67994 | GO147: =EM143 -> 71.58 | GP147: 1' | GR147: =-ET103-GK101 -> -6.953969112 | GS147: =EU103 -> 100.5 | GT147: 39 | HD147: =-AL474-GK101 -> -1.681002542 | HE147: =AM474 -> 141.6080548 | HF147: 30 | HH147: =-CX270-GK101 -> 5 | HI147: =CY270 -> 136.3693439 | HJ147: 26 چرخیده
E148: نسبت فاصله دو ساسون پشت به نوار سینه از پشت (بین دو خط پهلو) | F148: z'2 | G148: ='متغیرها '!C86*0.5 -> 0.25 | H148: =0.5*0.5 -> 0.25 | J148: (29 → 30) | K148: =0.5*K144 -> 5.238710869 | L148: =0.5*L144 -> 4.95034381 | N148: (22 → 35') | O148: =0.5*G179-0.5*G167*'متغیرها '!C76*COS(O140)+0.5*G167*'متغیرها '!C78*COS(O140) -> 9.715609426 | P148: =COS(H160)*(0.5*H169+0.5*H167*(1)) -> 10.2596 | U148: =AN152 -> -1.67994 | V148: =AO152 -> 35.86934389 | W148: 38 | Y148: =0.4*Y146 -> 3.21632 | Z148: (2 → 29) | AA148: =0.4*AA146 -> 3.339368512 | AC148: (24 → 37') | AD148: =COS(G158)*(0.5*G170+0.5*G167*(1-'متغیرها '!C76+'متغیرها '!C78)) -> 5.807830526 | AE148: =COS(H158)*(0.5*H170+0.5*H167) -> 6.4996 | AF148: =AR121 -> 11.7666 | AG148: =AS121 -> 24.22230121 | AH148: 7 | AN148: =K115-K132+K138-K153 -> 23.8417695 | AO148: =K127+K133+K139+K154+AP111 -> 42.58286386 | AP148: 34 | AR148: =AA146+AA153 -> 14.19322562 | AS148: =AA114-AA154+AT111 -> 41.24586249 | AT148: 34 | AW148: (26 → 26') | AX148: =AX147 -> -1.67994 | AZ148: =AX132+AX99 -> 11.68100254 | BA148: =AX103-AX133+AX98 -> 141.6080548 | BB148: 30 | BD148: =AZ102 -> 5 | BE148: =BA102 -> 136.3693439 | BF148: 26 | BG148: ='متغیرها '!U58-'متغیرها '!U59 -> 55.4 | BH148: (1 → 33) | BI148: =H106-H114 -> 29.92 | BK148: =0+BI98 -> 15 | BL148: =0+'متغیرها '!C54 -> 0 | BM148: زمین | BO148: =BK168 -> 15 | BP148: =BL168 -> 66.58 | BQ148: 1 | BS148: نقطه اول از خط دوم | BT148: 5 بالاتنه | BU148: =BS104 -> 17.60146911 | BV148: =BT104 -> 120.2 | BW148: =BW142 -> 19.42573676 | BX148: =BX142 -> 120.0875759 | BY148: b | CA148: نقطه اول از خط دوم | CB148: 22 | CC148: =BK101 -> 28.67693565 | CD148: =BL101 -> 130.9189297 | CM148: =CM105 -> 27.43592446 | CN148: =CN105 -> 125.9883497 | CO148: شیفت 20f | CY148: (41m→s2m) | CZ148: =CZ147-CZ144 -> 16.70028518 | DA148: (36m→s'2m) | DT148: مولفه افقی | DU148: مولفه عمودی | DV148: اسم نقطه | DY148: نقاط خروجی | ED148: =BW176+BT130 -> 18.61417599 | EE148: =BX176 -> 136.0463936 | EF148: 5''شیفت | EL148: =BW108 -> 5 | EM148: =BX108 -> 136.3693439 | EN148: 26 چرخیده | EP148: =AZ166 -> 16.95396911 | EQ148: =BA166 -> 100.5 | ER148: 39 | ET148: =IF(AX152>0,ET150+0.95*(ET147-ET150),ET150) -> 18.21659411 | EU148: =IF(AX152>0,EU150-0.4*(EU150-EU147),EU147) -> 111.138 | EV148: 40a | FB148: =EH112 -> 18.29221214 | FC148: 154.3543711 | FD148: a2 | FF148: =CC157 -> 28.30152411 | FG148: =CD157 -> 127.487108 | FH148: b'10 | FN148: =DY161 -> 15 | FO148: =DZ161 -> 66.58 | FP148: 47 | FR148: =BK170 -> 15 | FS148: =BP178-(H106-H108) -> 77.5 | FT148: b48 | FX148: =-(DU244)+2*GC101 -> -13.73223356 | FY148: =DV244 -> 129.0250507 | FZ148: p16 | GF148: =-EX147-GK101 -> -14.98580723 | GG148: =EY147 -> 102.0979292 | GH148: 40s | GJ148: =-ED146-GK101 -> -8.620393691 | GK148: =EE146 -> 136.045995 | GL148: 5' | GN148: =-EL146-GK101 -> 5 | GO148: =EM146 -> 71.58 | GP148: 1 | GV148: =-CR198-GK101 -> 5 | GW148: =CS198 -> 136.3693439 | GX148: 26 | HB148: 60' | HD148: =-AL475-GK101 -> -8.869557087 | HE148: =AM475 -> 140.375411 | HF148: g2 | HH148: =-CX271-GK101 -> 6.67994 | HI148: =CY271 -> 136.3693439 | HJ148: چرخیده 26' | HL148: =-DP478-GK101 -> -16.76385584 | HM148: =DQ478 -> 99.04768086 | HN148: β9
E149: نصف پهنای ساسون میانی پشت کمر دامن | F149: x | G149: ='متغیرها '!C95*0.25*(H103-H101) -> 1.125 | H149: ='متغیرها '!C95*0.25*('متغیرها '!U55-'متغیرها '!U53) -> 1.125 | J149: (25→30→28→26) | K149: هلال وصل | N149: (35' → 35) | O149: =0.5*G180-0.5*G167*'متغیرها '!C76*SIN(O140)+0.5*G167*'متغیرها '!C78*SIN(O140) -> 3.160311267 | P149: =SIN(H160)*(0.5*H169+0.5*H167*(1)) -> 3.586740826 | Q149: =AN146 -> 14.24986356 | R149: =AO146 -> 45.33531262 | S149: 32 | U149: =AN140 -> 0 | V149: =AO140 -> 35.86934389 | W149: 26 | Y149: =0.9*Y147 -> 2.133992306 | Z149: (29→30) | AA149: =0.9*AA147 -> 2.356541937 | AC149: (37 ' → 37) | AD149: =SIN(G158)*(0.5*G170+0.5*G167*(1-'متغیرها '!C76+'متغیرها '!C78)) -> 1.944813627 | AE149: =SIN(H158)*(0.5*H170+0.5*H167) -> 2.135797923 | AN149: =K115-K132+K138-O148 -> 18.53432 | AO149: =K127+K133+K139+O149+AP111 -> 42.70322736 | AP149: 35 | AR149: =AR156+0.8*(AR148-AR156) -> 14.08996763 | AS149: =AS156+0.7*(AS148-AS156) -> 39.19778266 | AT149: 34- | AW149: محاسبه ات ساسون کمر در پیراهن جلو | BD149: =AZ102 -> 5 | BE149: =BA102 -> 136.3693439 | BF149: 26 | BG149: =BG155-0.5*BG150 -> 11.55 | BH149: (33 → 34) | BI149: =BI155-0.5*BI150 -> 11.7666 | BS149: نقطه دوم از خط دوم | BT149: 32 | BU149: =BW109 -> 19.24986356 | BV149: =BX109 -> 145.8353126 | BW149: =BS104 -> 17.60146911 | BX149: =BT104 -> 120.2 | BY149: 5 بالاتنه | CA149: نقطه دوم از خط دوم | CB149: 40 | CC149: =CA104 -> 26.7666 | CD149: =CB104 -> 113.4556109 | DT149: =DT134+DU140*COS(DU144-RADIANS(DU137)) -> 19.29471508 | DU149: =DU134-DU140*SIN(DU144-RADIANS(DU137)) -> 146.1454082 | DV149: 32b | DY149: مولفه افقی | DZ149: مولفه عمودی | EA149: اسم نقطه | ED149: =BW134+BT130 -> 28.65427276 | EE149: =BX134 -> 128.0036418 | EF149: شیفتb10 | EJ149: یقه گرد چرخیده | EL149: =BW110 -> 3.32006 | EM149: =BX110 -> 136.3693439 | EN149: چرخیده 26' | ET149: =IF(AX152>0,ET150+0.2*(ET147-ET150),ET150) -> 17.73096911 | EU149: =IF(AX152>0,EU150-0.15*(EU150-EU147),EU147) -> 115.5705 | EV149: 40aa | EZ149: لبه برگرد پایین کت در پهلو جدا | FB149: 15.32763676 | FC149: 150.6005684 | FD149: a13 | FJ149: =BK126 -> 39.12312048 | FK149: =BL126 -> 78.02470463 | FL149: 6شیفت | FR149: =BO187 -> 27.6916 | FS149: =FS148 -> 77.5 | FT149: b49 | FX149: =-(DU247)+2*GC101 -> -15.54902036 | FY149: =DV247 -> 124.4471574 | FZ149: p20 | GD149: 18' | GR149: =-ET105-GK101 -> -8.248969112 | GS149: =EU105 -> 100.5 | GT149: شیفت 40 | GV149: =-CR201-GK101 -> 4.99999996 | GW149: =CS201 -> 120.201 | GX149: 4 | GZ149: =-AU239-GK101 -> -3.351253178 | HA149: =AV239 -> 146.8467656 | HB149: 25 | HL149: =HL151 -> -18.04556861 | HM149: =DQ479 -> 98.45000839 | HN149: β13
E150: نصف پهنای ساسون جلو کمر دامن | F150: y | G150: ='متغیرها '!C97*0.5*(H102-H103-H100+H101) -> -0.1 | H150: ='متغیرها '!C97*0.5*('متغیرها '!U54-'متغیرها '!U55-'متغیرها '!U52+'متغیرها '!U53) -> -0.1 | J150: (25 → 31) | K150: =(1-'متغیرها '!C71)*0.5*G167*COS(O139) -> 5.898610377 | L150: =0.5*H167*COS(P139) -> 6.041555507 | N150: (35 → 6) | O150: وصل | Q150: =AN145 -> 14.24986356 | R150: =AO145 -> 46.34676563 | S150: 31 | Y150: =0.75*Y146 -> 6.0306 | Z150: (2 → 31) | AA150: =0.75*AA146 -> 6.261315961 | AC150: (37 → 7) | AD150: وصل | AF150: =AR148 -> 14.19322562 | AG150: =AS148 -> 41.24586249 | AH150: 34 | AN150: =K115-K132+K138-O148-O152 -> 12.60146911 | AO150: =K127+K133+K139+O149-O151+AP111 -> 21.67 | AP150: 36 | AR150: =AR156+0.6*(AR148-AR156) -> 13.98670963 | AS150: =AS156+0.5*(AS148-AS156) -> 37.8323961 | AT150: 34-- | AV150: =IF('متغیرها '!C125=1,H150,IF(H150>0,H150,0)) -> 0 | AW150: y | AX150: =IF('متغیرها '!C125=1,G150,IF(G150>0,G150,0)) -> 0 | AZ150: =AX110+AX99 -> 35.87935952 | BA150: =0+AX98 -> 71.58 | BB150: 8 | BD150: =0+AX99 -> 5 | BE150: =0+AX98 -> 71.58 | BF150: 1 | BG150: =2*IF(BG144<0.3,0,IF(BG145>0.3,BG145,0)) -> 0 | BH150: (34 → 35) | BI150: =IF('متغیرها '!C125=0,2*IF(BI144<0.3,0,IF(BI145>0.3,BI145,0)),2*BI144) -> 0 | BK150: =0+BI98 -> 15 | BL150: =I127-I126+BI148+BI97 -> 112.8 | BM150: سینه | BO150: =BO192 -> 25.8416 | BP150: =BP192 -> 66.58 | BQ150: شیفت50 | BS150: نقطه تقاطع | BT150: 32' | BU150: =(BV148-BV146+BU146*((BV147-BV146)/(BU147-BU146))-BU148*((BV149-BV148)/(BU149-BU148)))/(((BV147-BV146)/(BU147-BU146))-((BV149-BV148)/(BU149-BU148))) -> 18.67100817 | BV150: =BV146+(BU150-BU146)*((BV147-BV146)/(BU147-BU146)) -> 136.8331356 | BW150: انحنا | CA150: نقطه تقاطع | CB150: b'6 | CC150: =(CD148-CD146+CC146*((CD147-CD146)/(CC147-CC146))-CC148*((CD149-CD148)/(CC149-CC148)))/(((CD147-CD146)/(CC147-CC146))-((CD149-CD148)/(CC149-CC148))) -> 28.51329255 | CD150: =CD146+(CC150-CC146)*((CD147-CD146)/(CC147-CC146)) -> 129.4229875 | DT150: =DT132+DU142*SIN(DU145+DU143) -> 19.28557382 | DU150: =DU132+DU142*COS(DU145+DU143) -> 146.146052 | DV150: 34b | DY150: =DY134+DZ141*COS(DZ145-RADIANS(DZ137)) -> 29.2525421 | DZ150: =DZ134-DZ141*SIN(DZ145-RADIANS(DZ137)) -> 138.0535189 | EA150: 30b | EH150: =BW105 -> 13.35125318 | EI150: 146.8467656 | EJ150: =BY105 -> 25 | ER150: انحنا لبه روی خط مرکزی جلو بالاتنه | ET150: =BD175+'متغیرها '!C55 -> 17.60146911 | EU150: =BE175 -> 118.23 | EV150: 43شیفت | EX150: =DP170 -> 16.01437637 | EY150: =DQ170 -> 71.58 | EZ150: آستر a5 | FB150: 13.35125318 | FC150: 146.8467656 | FD150: چرخیده 25 | FH150: ساسون کمر بدون شیفت | FJ150: =BK129 -> 39.13845584 | FK150: =BL129 -> 64.97470463 | FL150: 4شیفت | FN150: =DY163 -> 21.8416 | FO150: =DZ163 -> 66.58 | FP150: پهلوe216 | FX150: =-(DU249)+2*GC101 -> -19.78818956 | FY150: =DV249 -> 121.2426322 | FZ150: p18 | GB150: =-EP132-GK101 -> -6.306469112 | GC150: =EQ132 -> 84.3 | GD150: 47' | GH150: 31' | GJ150: =-ED148-GK101 -> -8.614175994 | GK150: =EE148 -> 136.0463936 | GL150: 5''شیفت | GN150: =-EL148-GK101 -> 5 | GO150: =EM148 -> 136.3693439 | GP150: چرخیده26 | GR150: =-ET106-GK101 -> -23.52504 | GS150: =EU106 -> 103.921203 | GT150: شیفت 41 | GZ150: =-AU240-GK101 -> -5.327636764 | HA150: =AV240 -> 150.6005684 | HB150: a13 | HD150: =-AL477-GK101 -> -8.862615796 | HE150: =AM477 -> 140.3758932 | HF150: g3 | HH150: =-CX271-GK101 -> 6.67994 | HI150: =CY271 -> 136.3693439 | HJ150: چرخیده 26'
E151: نصف پهنای ساسون میانی پشت کمر بالاتنه | F151: x'' | G151: =('متغیرها '!C84*1/4)*(H121-H119) -> 0.2 | H151: =('متغیرها '!C84*1/4)*('متغیرها '!U73-'متغیرها '!U71) -> 0.2 | J151: (31 → 32) | K151: =(1-'متغیرها '!C71)*0.5*G167*SIN(O139) -> 1.011453008 | L151: =0.5*H167*SIN(P139) -> 0.8054576979 | N151: (35 → 36') | O151: =COS(G161)*K159 -> 21.03322736 | P151: =COS(H161)*L159 -> 19.17325917 | Q151: =AN139 -> 8.351253178 | R151: =AO139 -> 46.34676563 | S151: 25 | Y151: =0.6*Y147 -> 1.422661537 | Z151: (31 → 32) | AA151: =0.6*AA147 -> 1.571027958 | AC151: (37 → 38') | AD151: =IF((4*G170)<G172,COS(G159)*(4*G170),COS(G159)*G172) -> 6.05820061 | AE151: =IF((4*H170)<H172,COS(H159)*(4*H170),COS(H159)*H172) -> 5.868473239 | AF151: =AR147 -> 14.19322562 | AG151: =AS147 -> 42.53229312 | AH151: 33 | AN151: =K162 -> -1.67994 | AO151: =0+AP111 -> 0 | AP151: 37 | AR151: =AA115-AA135+AA141-AA156 -> 15.81212393 | AS151: =AA130+AA136+AA142+AT111 -> 38.53231669 | AT151: 35 | AV151: =IF('متغیرها '!C125=1,H152,IF(H152>0,H152,0)) -> 1.295 | AW151: y'' | AX151: =IF('متغیرها '!C125=1,G152,IF(G152>0,G152,0)) -> 1.295 | AZ151: =AX110+AX99 -> 35.87935952 | BA151: =AX111+AX98 -> 85.42120297 | BB151: 9 | BD151: =AZ106 -> 5 | BE151: =BA106 -> 71.58 | BF151: 1 | BG151: =0.5*'متغیرها '!U71-BG149+BG163 -> 10.75 | BH151: (35 → 36) | BI151: =0.5*H119-BI149+BI163+'متغیرها '!C61*H120 -> 11.50584 | BK151: =0.5*(BK154-BK153)+BI98 -> 20.8833 | BL151: =BL150 -> 112.8 | BO151: =BK129 -> 39.13845584 | BP151: =BL129 -> 64.97470463 | BQ151: 4شیفت | BW151: =BW144 -> 24.46347404 | BX151: =BX144 -> 144.5213593 | BY151: b16 | CB151: b''6 | CC151: =CC147-0.05*(CC147-CC150) -> 34.47133225 | CD151: =CD147-0.2*(CD147-CD154) -> 121.2716146 | CL151: شبیه ساز حلقه آستین بدون ساسون سرشانه | CN151: بالاتنه کمر جناقی در جلو و پشت | CZ151: جلو بالاتنه عصایی با اپل و کنترل گودی حلقه آستین | DH151: پشت بالاتنه عصایی با اپل و کنترل گودی حلقه آستین | DT151: =DT150+DU141*COS(DU146-RADIANS(DU137)) -> 24.57310558 | DU151: =DU150-DU141*SIN(DU146-RADIANS(DU137)) -> 145.3003782 | DV151: 22b | DY151: =DY132+DZ143*SIN(DZ146+DZ144) -> 30.9815787 | DZ151: =DZ132+DZ143*COS(DZ146+DZ144) -> 137.6955296 | EA151: 32b | EF151: ساسون زیر بغل متغیر | EH151: 11.68100254 | EI151: 141.6080548 | EJ151: =BY106 -> 30 | EL151: =BW110 -> 3.32006 | EM151: =BX110 -> 136.3693439 | EN151: چرخیده 26' | EP151: =BS116 -> 3.32006 | EQ151: =BT116 -> 114.42 | ER151: e1 | EX151: =DT162 -> 16.01437637 | EY151: =DU162 -> 67.58 | EZ151: a'5 | FF151: =BK154 -> 26.7666 | FG151: =BL154 -> 113.4556109 | FH151: 40 | FN151: =DY181 -> 21.8416 | FO151: =DZ181 -> 62.58 | FP151: a'26 | FR151: =BO191 -> 25.8416 | FS151: =FS148+'متغیرها '!C57 -> 77.5 | FT151: b50 | FX151: =-(AZ99-'متغیرها '!C55)+2*GC101 -> -25.84414556 | FY151: =BA99 -> 119.8692642 | FZ151: 12 | GB151: =-EP133-GK101 -> -6.953969112 | GC151: =EQ133 -> 100.5 | GD151: 39 | GF151: =-ET147-GK101 -> -8.248969112 | GG151: =EU147 -> 100.5 | GH151: 40شیفت | GJ151: =-ED149-GK101 -> -18.65427276 | GK151: =EE149 -> 128.0036418 | GL151: شیفتb10 | GN151: =-EL149-GK101 -> 6.67994 | GO151: =EM149 -> 136.3693439 | GP151: چرخیده26' | GT151: باسن | GV151: =-CR203-GK101 -> 5 | GW151: =CS203 -> 120.2 | GX151: 4 | GZ151: =-AU241-GK101 -> -8.292212145 | HA151: =AV241 -> 154.3543711 | HB151: a2 | HD151: =-AL478-GK101 -> -14.31362117 | HE151: =AM478 -> 136.6167801 | HF151: g5 | HH151: =-CX274-GK101 -> 6.679939965 | HI151: =CY274 -> 120.201 | HJ151: چرخیده 4' | HL151: =-DP481-GK101 -> -18.04556861 | HM151: =DQ481 -> 98.45000839 | HN151: β13
E152: نصف پهنای ساسون جلو کمر | F152: y'' | G152: =0.5*'متغیرها '!C87*(H120-H121-H118+H119) -> 1.295 | H152: =0.5*'متغیرها '!C87*('متغیرها '!U72-'متغیرها '!U73-'متغیرها '!U70+'متغیرها '!U71) -> 1.295 | J152: (25 → 32) | K152: وصل | N152: (36' → 36) | O152: =SIN(G161)*K159 -> 5.932850888 | P152: =SIN(H161)*L159 -> 5.88776 | Q152: =AN116 -> 0 | R152: =AO116 -> 46.34676563 | S152: 2 | W152: دکلته ساسون سرشانه | Z152: (27→32→30→28) | AA152: هلال وصل | AC152: (38' → 38) | AD152: =IF((4*G170)<G172,SIN(G159)*(4*G170),SIN(G159)*G172) -> 1.118328413 | AE152: =IF((4*H170)<H172,SIN(H159)*(4*H170),SIN(H159)*H172) -> 1.107680465 | AF152: =AR141 -> 8.348421281 | AG152: =AS141 -> 42.53229312 | AH152: 27 | AN152: =K162 -> -1.67994 | AO152: =K114-K144+AP111 -> 35.86934389 | AP152: 38 | AR152: =AA115-AA135+AA141-AA156 -> 15.81212393 | AS152: =AA130+AA136+AA142+AA157+AT111 -> 40.92391791 | AT152: 36 | AV152: =MIN(AV150,AV151)+0.5*ABS((AV150-AV151)) -> 0.6475 | AW152: * | AX152: =MIN(AX150,AX151)+0.5*ABS((AX150-AX151)) -> 0.6475 | BD152: =0.42*AX104+AX99 -> 17.95454113 | BE152: =0+AX98 -> 71.58 | BF152: 3' | BG152: =BG148-1*('متغیرها '!U58-'متغیرها '!U60) -> 36.4 | BH152: (1 → 37) | BI152: =BI148-'متغیرها '!C96*(H106-H108) -> 12.82 | BK152: ساسون کمر | BO152: =BK126 -> 39.12312048 | BP152: =BL126 -> 78.02470463 | BQ152: 6شیفت | BT152: به دست آوردن نقطه تقاطع دو خط (رگلان بدون درز) | BU152: مولفه افقی | BV152: مولفه عمودی | BW152: =BW136 -> 24.34041777 | BX152: =BX136 -> 138.0302721 | BY152: b12 | CB152: به دست آوردن نقطه تقاطع دو خط (رگلان بدون درز) | CC152: مولفه افقی | CD152: مولفه عمودی | CI152: نقاط ورودی | CN152: بعضی نقاط ورودی جلو | CT152: جلو بالاتنه کمر جناقی | CX152: پشت بالاتنه کمر جناقی | CZ152: نقاط ورودی | DF152: حلقه آستین عصایی | DH152: نقاط ورودی | DN152: حلقه آستین عصایی | DY152: =DY151+DZ142*COS(DZ147-RADIANS(DZ137)) -> 35.89129835 | DZ152: =DZ151-DZ142*SIN(DZ147-RADIANS(DZ137)) -> 135.5582863 | EA152: 18b | ED152: =BW140+BT130 -> 36.29703227 | EE152: =BX140 -> 122.7362242 | EF152: شیفت b2 | EH152: 8.340501271 | EI152: 137.4170861 | EJ152: =BY107 -> 28 | EL152: =BW112 -> 3.320060035 | EM152: =BX112 -> 120.201 | EN152: چرخیده 4' | EP152: =CE184 -> 3.32006 | EQ152: =CF184 -> 114.0012048 | ER152: 8n | ET152: =BD175 -> 17.60146911 | EU152: =BE175 -> 118.23 | EV152: 43 | FB152: =EH116 -> 18.29221214 | FC152: =EI116 -> 154.3543711 | FD152: a2 | FF152: =BK159 -> 26.7666 | FG152: =BL159 -> 96.5 | FH152: 34 | FJ152: =BK129 -> 39.13845584 | FK152: =BL129 -> 64.97470463 | FL152: 4شیفت | FR152: =BK165 -> 42.32244 | FS152: =BL162-(H105-H108) -> 78.02470463 | FT152: b42 | FZ152: خطوط برش پیش سینه | GF152: =-ET148-GK101 -> -8.216594112 | GG152: =EU148 -> 111.138 | GH152: 40a | GR152: =-ET108-GK101 -> 5 | GS152: =EU108 -> 82.5 | GT152: g46 | GV152: =-CR204-GK101 -> 5 | GW152: =CS204 -> 95.7 | GX152: d4 | HL152: =-DP482-GK101 -> -18.64324108 | HM152: =DQ482 -> 99.73172115 | HN152: β11
E153: ضریب بالا آمدن کف حلقه آستین از خط سینه | F153: z1 | G153: =(H127-H126+H122-O128*H130-O127-(0.5-G148)*H119*((G151)/(I127-I126+0.05*H130)))/(H127-H126) -> 1.063012344 | H153: =(I127-I126+I122-O128*'متغیرها '!U82-P127-(0.5-G148)*'متغیرها '!U71*((H151)/(I127-I126+0.05*'متغیرها '!U82)))/(I127-I126) -> 1.0933197 | J153: (22 → 33) | K153: =(1-'متغیرها '!C76+'متغیرها '!C78)*0.5*G167*COS(O140) -> 4.408159922 | L153: =0.5*H167*COS(P140) -> 5.032005187 | N153: (36 → 32) | O153: وصل | Q153: =AN140 -> 0 | R153: =AO140 -> 35.86934389 | S153: 26 | U153: =AN148 -> 23.8417695 | V153: =AO148 -> 42.58286386 | W153: 34 | Y153: =0.5*H167*COS(AE139) -> 5.961410067 | Z153: (27 → 33) | AA153: =(1-'متغیرها '!C71)*0.5*G167*COS(AD139) -> 5.844804343 | AC153: (38 → 36) | AD153: وصل | AF153: =AR116 -> 0 | AG153: =AS116 -> 42.53229312 | AH153: 2 | AR153: =AR156+0.6*(AR152-AR156) -> 14.95804862 | AS153: =AS156+0.65*(AS152-AS156) -> 38.64717204 | AT153: 36- | AZ153: =AZ131 -> 30.48417223 | BA153: =BA131 -> 91.75 | BB153: 35 | BD153: =AZ108+'متغیرها '!C55 -> 35.89469488 | BE153: =BA108 -> 72.37120297 | BF153: 7شیفت | BG153: =BG155 -> 11.55 | BH153: (37 → 38) | BI153: =BI155 -> 11.7666 | BK153: =0+BI98 -> 15 | BL153: =BI154+BI97 -> 113.4556109 | BM153: 39 | BO153: =BO170 -> 39.08790652 | BP153: =BP170 -> 107.9908858 | BQ153: 10شیفت | BS153: نقطه اول از خط اول | BT153: 30 | BU153: =BW106 -> 11.68100254 | BV153: =BX106 -> 141.6080548 | BW153: =BW135 -> 25.58896243 | BX153: =BX135 -> 132.1074351 | BY153: b6 | CA153: نقطه اول از خط اول | CB153: 28 | CC153: =CE106 -> 21.26131596 | CD153: =CF106 -> 137.4612652 | CI153: مولفه افقی | CJ153: مولفه عمودی | CK153: اسم نقطه | CN153: مولفه افقی | CO153: مولفه عمودی | CP153: اسم نقطه | CR153: مولفه افقی | CS153: مولفه عمودی | CT153: اسم نقطه | CV153: مولفه افقی | CW153: مولفه عمودی | CX153: اسم نقطه | CZ153: مولفه افقی | DA153: مولفه عمودی | DB153: اسم نقطه | DD153: =CZ157 -> 24.57310558 | DE153: =DA157 -> 145.3003782 | DF153: =DB157 -> 39 | DH153: مولفه افقی | DI153: مولفه عمودی | DJ153: اسم نقطه | DL153: =DH158+DI161 -> 34.78553803 | DM153: =DI158+DI162 -> 122.4708058 | DN153: شیفت12p یا 12 | ED153: =BW142+BT130 -> 19.42573676 | EE153: =BX142 -> 120.0875759 | EF153: شیفت b | EH153: 5 | EI153: 136.3693439 | EJ153: =BY108 -> 26 | EP153: =CE183 -> 5.399063599 | EQ153: =CF183 -> 102.8374699 | ER153: 7n | ET153: =ET152-(ET149-ET150) -> 17.47196911 | EU153: =EU149 -> 115.5705 | EV153: 39aa | EX153: =DT162 -> 16.01437637 | EY153: =DU162 -> 67.58 | EZ153: a'5 | FB153: =EH117 -> 13.17957059 | FC153: =EI117 -> 160.1027661 | FD153: a4 | FJ153: =BK174 -> 36.174891 | FK153: 65.69708755 | FL153: 41''' | FN153: =DY181 -> 21.8416 | FO153: =DZ181 -> 62.58 | FP153: a'26 | FX153: =-(DU239)+2*GC101 -> -6.25712 | FY153: =DV239 -> 131.16 | FZ153: p25 | GB153: =-EP135-GK101 -> -6.953969112 | GC153: =EQ135 -> 100.5 | GD153: 39 | GF153: =-ET149-GK101 -> -7.730969112 | GG153: =EU149 -> 115.5705 | GH153: 40aa | GL153: 4' | GN153: =-EL149-GK101 -> 6.67994 | GO153: =EM149 -> 136.3693439 | GP153: چرخیده26' | GR153: =-ET109-GK101 -> -6.306469112 | GS153: =EU109 -> 82.5 | GT153: g47' | GZ153: =-AU243-GK101 -> -8.292212145 | HA153: =AV243 -> 154.3543711 | HB153: a2 | HF153: 42' | HH153: =-CX274-GK101 -> 6.679939965 | HI153: =CY274 -> 120.201 | HJ153: چرخیده 4'
E154: نسبت فاصله دو سینه به نوار سینه از جلو (بین دو خط پهلو) | F154: z2 | G154: =((2*G163+0.4*(K115-G163))/(H120-H121))*2*'متغیرها '!C89 -> 0.4146474957 | H154: =((2*H163+0.4*(L115-H163))/('متغیرها '!U72-'متغیرها '!U73))*2*0.5 -> 0.4151384615 | J154: (33 → 34) | K154: =(1-'متغیرها '!C76+'متغیرها '!C78)*0.5*G167*SIN(O140) -> 3.039947759 | L154: =0.5*H167*SIN(P140) -> 3.439197412 | N154: (36 → 34) | O154: وصل | Q154: =AN118 -> 0 | R154: =AO118 -> 19.7 | S154: 4 | U154: =AN120 -> 12.60146911 | V154: =AO120 -> 21.67 | W154: 6 | Y154: =0.5*H167*SIN(AE139) -> 1.269151314 | Z154: (33 → 34) | AA154: =(1-'متغیرها '!C71)*0.5*G167*SIN(AD139) -> 1.286430631 | AC154: (38 → 34) | AD154: وصل | AF154: =AR142 -> 0 | AG154: =AS142 -> 39.91391319 | AH154: 28 | AR154: =AR156+0.3*(AR152-AR156) -> 14.31749213 | AS154: =AS156+0.35*(AS152-AS156) -> 36.69567558 | AT154: 36-- | AW154: ساسون کمر در پیراهن راسته جلو | AZ154: =AX112-AX144+AX99+'متغیرها '!C55 -> 27.70354846 | BA154: =AX143+AX98 -> 91.75 | BB154: 36شیفت | BD154: =AZ151+'متغیرها '!C55 -> 35.87935952 | BE154: =BA151 -> 85.42120297 | BF154: شیفت9 | BG154: =BG148+Y116+Y120 -> 77.559 | BH154: (1 → 39) | BI154: =BI148+AA116+AA120 -> 46.87561085 | BK154: =BI155+BI98 -> 26.7666 | BL154: =BI154+BI97 -> 113.4556109 | BM154: 40 | BO154: =BK114 -> 40.81170652 | BP154: =BL114 -> 112.4727658 | BQ154: شیفت9 | BS154: نقطه دوم از خط اول | BT154: b10 | BU154: =BW162 -> 28.65427276 | BV154: =BX162 -> 128.0036418 | BW154: =BW134 -> 28.65427276 | BX154: =BX134 -> 128.0036418 | BY154: b10 | CA154: نقطه دوم از خط اول | CB154: b10 | CC154: =CE117 -> 36.07603953 | CD154: =CF117 -> 116.472627 | CI154: =BW169 -> 24.75424312 | CJ154: =BX169 -> 132.1932949 | CK154: b6 | CL154: با چرخش کامل | CN154: =AZ166 -> 16.95396911 | CO154: =BA166 -> 100.5 | CP154: 39 | CR154: =AZ161 -> 17.60146911 | CS154: =BA161 -> 118.23 | CT154: 43 | CV154: =BK154 -> 26.7666 | CW154: =BL154 -> 113.4556109 | CX154: 40 | CZ154: =AZ161 -> 17.60146911 | DA154: =BA161 -> 118.23 | DB154: 43 | DC154: راس ساسون کمر | DD154: =CZ156 -> 24.34041777 | DE154: =DA156 -> 138.0302721 | DF154: =DB156 -> 37 | DH154: =CA104 -> 26.7666 | DI154: =CB104 -> 113.4556109 | DJ154: 40 | DK154: راس ساسون کمر | DL154: =DH175+DI161 -> 31.97890972 | DM154: =DI175+DI162 -> 120.6677668 | DN154: شیفت25 | EL154: =BW112 -> 3.320060035 | EM154: =BX112 -> 120.201 | EN154: چرخیده 4' | EP154: =CE182 -> 8.864069598 | EQ154: =CF182 -> 98.07915662 | ER154: 6n | ET154: =ET152-(ET148-ET150) -> 16.98634411 | EU154: =EU148 -> 111.138 | EV154: 39a | EX154: =DT163 -> 29.07711451 | EY154: =DU163 -> 67.97560149 | EZ154: a''5 | FF154: =BK159 -> 26.7666 | FG154: =BL159 -> 96.5 | FH154: 34 | FJ154: 32.759586 | FK154: 66.25894093 | FL154: 41'' | FN154: =DY182 -> 45.55991485 | FO154: =DZ182 -> 62.58 | FP154: a''8 | FR154: =FR148 -> 15 | FS154: =FS148 -> 77.5 | FT154: b48 | FX154: =-(DU244)+2*GC101 -> -13.73223356 | FY154: =DV244 -> 129.0250507 | FZ154: p16 | GB154: =-EP136-GK101 -> -7.601469112 | GC154: =EQ136 -> 118.23 | GD154: 43 | GF154: =-ET150-GK101 -> -7.601469112 | GG154: =EU150 -> 118.23 | GH154: 43شیفت | GJ154: =-ED152-GK101 -> -26.29703227 | GK154: =EE152 -> 122.7362242 | GL154: شیفت b2 | GN154: =-EL152-GK101 -> 6.679939965 | GO154: =EM152 -> 120.201 | GP154: 4' | GX154: 61' | GZ154: =-AU244-GK101 -> -4.275820511 | HA154: =AV244 -> 156.9976675 | HB154: d4 | HD154: =-AU474-GK101 -> -1.681002542 | HE154: =AV474 -> 141.6080548 | HF154: 30 | HH154: =-CX277-GK101 -> 6.67994 | HI154: =CY277 -> 96 | HJ154: s'1 | HL154: =-DP484-GK101 -> -18.64324108 | HM154: =DQ484 -> 99.73172115 | HN154: β11
E155: نصف کف حلقه پشت | F155: z3 | G155: =0.5*(H121-H129) -> 4.1532 | H155: =0.5*('متغیرها '!U73-'متغیرها '!U81) -> 4.1 | J155: (22 → 34) | K155: وصل | U155: =AN146 -> 14.24986356 | V155: =AO146 -> 45.33531262 | W155: 32 | Z155: (27 → 34) | AA155: وصل | AF155: =AR119 -> 0 | AG155: =AS119 -> 31.95 | AH155: 5 | AR155: =AA115-AA135+AA141-AD148 -> 14.79526406 | AS155: =AA130+AA136+AA142+AD149+AT111 -> 40.47713032 | AT155: 37 | AV155: ='متغیرها '!U56-'متغیرها '!U59 -> 54.4 | AW155: (1 → 38) | AX155: =H104-H114 -> 28.92 | AZ155: =AX112-AX144+AX99+'متغیرها '!C55 -> 27.70354846 | BA155: =AX143+AX145+AX98 -> 99.38970101 | BB155: 37شیفت | BD155: =AX104+AX99+'متغیرها '!C55 -> 35.84414556 | BE155: =AX113-AX115+AX98 -> 115.3873842 | BF155: شیفت14 | BG155: =Y118 -> 11.55 | BH155: (39→40) | BI155: =AA118 -> 11.7666 | BK155: =BI153+BI98 -> 26.7666 | BL155: =BI152+BI97 -> 79.4 | BM155: 38 | BS155: نقطه اول از خط دوم | BT155: 5 بالاتنه | BU155: =BS104 -> 17.60146911 | BV155: =BT104 -> 120.2 | BW155: =BW133 -> 31.19371493 | BX155: =BX133 -> 126.8166658 | BY155: b8 | CA155: نقطه اول از خط دوم | CB155: 22 | CC155: =BK101 -> 28.67693565 | CD155: =BL101 -> 130.9189297 | CI155: =BK385 -> 13.0408 | CJ155: =BL385 -> 146.9 | CK155: 25 | CL155: نقطه اتصال سرشانه به گردن | CN155: =AZ167+CO162 -> 18.24896911 | CO155: =BA167 -> 100.5 | CP155: شیفت40 | CR155: =IF(CO158>CO154,CN158,CN154) -> 16.95396911 | CS155: =IF(CO158>CO154,CO158,CO154) -> 100.5 | CT155: 39 یا d5 | CV155: =IF(CO171>CO166,CN171,CN166) -> 26.7666 | CW155: =IF(CO171>CO166,CO171,CO166) -> 96.5 | CX155: 34 یا d2 | CZ155: =IF('متغیرها '!C119=1,DT122,BW135) -> 25.58896243 | DA155: =IF('متغیرها '!C119=1,DU122,BX135) -> 132.1074351 | DB155: 35 | DC155: b6 یا b'6g | DD155: =CZ155 -> 25.58896243 | DE155: =DA155 -> 132.1074351 | DF155: =DB155 -> 35 | DH155: =IF('متغیرها '!C119=1,DX122,CE118) -> 34.78491329 | DI155: =IF('متغیرها '!C119=1,DY122,CF118) -> 122.4713615 | DJ155: 37 | DK155: b'6p یا b6 | DL155: =DH174+DI161 -> 28.37038761 | DM155: =DI174+DI162 -> 117.0616888 | DN155: شیفت23 | DP155: آستر کت | DY155: لبه برگرد پایین کت | ED155: =BW142+BT130 -> 19.42573676 | EE155: =BX142 -> 120.0875759 | EF155: شیفت b | EJ155: پایین پیراهن بدون ترک | EL155: =BS104 -> 17.60146911 | EM155: =BT104 -> 120.2 | EN155: =BU104 -> 5 بالاتنه | EP155: =CE181 -> 13.98161692 | EQ155: =CF181 -> 95.7 | ER155: 5n | ET155: =BD172 -> 16.95396911 | EU155: =BE172 -> 100.5 | EV155: 39 | FB155: =EH126 -> 17.09926245 | FC155: 155.6956633 | FD155: a14 | FF155: =BK155 -> 26.7666 | FG155: =BL155 -> 79.4 | FH155: 38 | FJ155: 28.66122 | FK155: 66.58 | FL155: شیفت41' | GJ155: =-ED153-GK101 -> -9.425736756 | GK155: =EE153 -> 120.0875759 | GL155: شیفت b | GR155: =-ET111-GK101 -> -8.896469112 | GS155: =EU111 -> 82.5 | GT155: g47'' | GV155: =-CV189-GK101 -> 5 | GW155: =CW189 -> 95.7 | GX155: d4 | HD155: =-AU475-GK101 -> -8.510278241 | HE155: =AV475 -> 139.6575617 | HF155: g2 | HL155: =-DP485-GK101 -> -16.76385584 | HM155: =DQ485 -> 99.04768086 | HN155: β9
E156: نصف کف حلقه جلو | F156: z4 | G156: =O126*H130-G155 -> 6.1896 | H156: =O126*'متغیرها '!U82-H155 -> 6.1 | J156: (22 → 25) | K156: وصل | Q156: =AN141 -> 3.340501271 | R156: =AO141 -> 46.34676563 | S156: 27 | Y156: =0.5*H167*COS(AE140) -> 5.471075646 | Z156: (24 → 35) | AA156: =(1-'متغیرها '!C76+'متغیرها '!C78)*0.5*G167*COS(AD140) -> 4.790970659 | AF156: =AR118 -> 0 | AG156: =AS118 -> 16.3 | AH156: 4 | AR156: =AA115-AA135+AA141-AD148-AD152 -> 13.67693565 | AS156: =AA130+AA136+AA142+AD149-AD151+AT111 -> 34.41892971 | AT156: 38 | AV156: =AV160-0.5*AV157 -> 11.76514 | AW156: (38 → 39) | AX156: =AX160-0.5*AX157 -> 11.95396911 | BD156: =AX104+AX114+AX99+'متغیرها '!C55 -> 37.56794556 | BE156: =AX113+AX98 -> 119.8692642 | BF156: شیفت13 | BG156: =BG149+BG150+BG151+(IF('متغیرها '!U55>'متغیرها '!U53,0.5*'متغیرها '!U55,0.5*'متغیرها '!U53)-BG149-BG151+BG163)-BG142-BG150 -> 26.8 | BH156: (1 → 41) | BI156: =BI149+BI150+BI151+'متغیرها '!C128*(IF(H103>H101,0.5*H103,0.5*H101)+'متغیرها '!C62*H120-BI149-BI151+BI163)-'متغیرها '!C128*BI142-IF('متغیرها '!C125=1,2*BI143,BI150)*IF('متغیرها '!C128<'متغیرها '!C96,'متغیرها '!C128/'متغیرها '!C96,1) -> 27.32244 | BK156: =0+BI98 -> 15 | BL156: =BI152+BI97 -> 79.4 | BM156: 37 | BO156: =BK140 -> 35.64226427 | BP156: =BL140 -> 135.0225037 | BQ156: شیفت18 | BS156: نقطه دوم از خط دوم | BT156: 32 | BU156: =BW109 -> 19.24986356 | BV156: =BX109 -> 145.8353126 | BW156: =BW132 -> 34.58159617 | BX156: =BX132 -> 126.8768193 | BY156: b4 | CA156: نقطه دوم از خط دوم | CB156: 40 | CC156: =CA104 -> 26.7666 | CD156: =CB104 -> 113.4556109 | CI156: =BK395 -> 34.9 | CJ156: =BL395 -> 121.7423141 | CK156: 12 | CN156: =AZ168+CO162 -> 33.52504 | CO156: =BA168 -> 103.921203 | CP156: شیفت41 | CZ156: =IF('متغیرها '!C119=1,DT121,BW136) -> 24.34041777 | DA156: =IF('متغیرها '!C119=1,DU121,BX136) -> 138.0302721 | DB156: 37 | DC156: b12 یا b'12g | DH156: =IF('متغیرها '!C119=1,DX121,CE119) -> 35.04145278 | DI156: =IF('متغیرها '!C119=1,DY121,CF119) -> 129.3748131 | DJ156: 39 | DK156: b'12p یا b12 | DL156: =DH154+DI161 -> 26.7666 | DM156: =DI154+DI162 -> 113.4556109 | DN156: شیفت40 | DP156: نقاط ورودی | DT156: نقاط ورودی | DY156: نقاط ورودی | ED156: =BS140+BT130 -> 35.84414556 | EE156: =BT140 -> 115.3873842 | EF156: شیفت 14 | EH156: =BD153 -> 35.89469488 | EI156: =BE153 -> 72.37120297 | EJ156: شیفت7 | EP156: =CN158 -> 16.64700615 | EQ156: =CO158 -> 92.82 | ER156: d5 | EX156: =DT163 -> 29.07711451 | EY156: =DU163 -> 67.97560149 | EZ156: a''5 | FB156: 13.75142813 | FC156: 151.271396 | FD156: a16 | FJ156: =BO176 -> 15 | FK156: =BP176 -> 66.58 | FL156: 47 | FN156: =DY182 -> 45.55991485 | FO156: =DZ182 -> 62.58 | FP156: a''8 | FR156: =FR151 -> 25.8416 | FS156: =FS151 -> 77.5 | FT156: b50 | FX156: =-(0+AX99)+2*GC101 -> 5 | FY156: =DS251+AX98 -> 71.58 | FZ156: p10 | GB156: =-EP138-GK101 -> -6.306469112 | GC156: =EQ138 -> 84.3 | GD156: 47' | GF156: =-ET152-GK101 -> -7.601469112 | GG156: =EU152 -> 118.23 | GH156: 43 | GN156: =-EL152-GK101 -> 6.679939965 | GO156: =EM152 -> 120.201 | GP156: 4' | GR156: =-ET112-GK101 -> -22.23004 | GS156: =EU112 -> 85.42120297 | GT156: g45 | GV156: =-CV190-GK101 -> 6.67994 | GW156: =CW190 -> 95.7 | GX156: 26'' | GZ156: =-AU246-GK101 -> -4.275820511 | HA156: =AV246 -> 156.9976675 | HB156: d4 | HH156: =-CX277-GK101 -> 6.67994 | HI156: =CY277 -> 96 | HJ156: s'1 | HN156: کیسه جیب
E157: ربع زاویه ساسون کمر پشت بالاتنه | F157: α1 | G157: =0.5*ATAN(G151/(AA116+AA120)) -> 0.005897479216 | H157: =0.5*ATAN(H151/(Y116+Y120)) -> 0.00451271649 | J157: (22 → 35) | K157: =0.5*(G169+G167*(1-'متغیرها '!C76+'متغیرها '!C78)) -> 10.18069736 | Q157: =AN142 -> 3.340501271 | R157: =AO142 -> 36.91708607 | S157: 28 | Y157: =0.5*H167*SIN(AE140) -> 2.686351862 | Z157: (35 → 36) | AA157: =(1-'متغیرها '!C76+'متغیرها '!C78)*0.5*G167*SIN(AD140) -> 2.391601225 | AV157: =2*IF(AV151<0.3,0,IF(AV152>0.3,AV152,0)) -> 1.295 | AW157: (39 → 40) | AX157: =IF('متغیرها '!C125=0,2*IF(AX151<0.3,0,IF(AX152>0.3,AX152,0)),2*AX151) -> 1.295 | AZ157: =0+AX99 -> 5 | BA157: =0+'متغیرها '!C52 -> 5 | BB157: زمین | BG157: =BG148-1*(I105-'متغیرها '!U60)+Y128 -> 36.92470463 | BH157: (41 → 42) | BI157: =BI148-'متغیرها '!C128*(H105-H108)+Y128 -> 13.29470463 | BO157: =BK146 -> 30.85129361 | BP157: =BL146 -> 137.414105 | BQ157: شیفت32 | BS157: نقطه تقاطع | BT157: 5' | BU157: =(BV155-BV153+BU153*((BV154-BV153)/(BU154-BU153))-BU155*((BV156-BV155)/(BU156-BU155)))/(((BV154-BV153)/(BU154-BU153))-((BV156-BV155)/(BU156-BU155))) -> 18.62039369 | BV157: =BV153+(BU157-BU153)*((BV154-BV153)/(BU154-BU153)) -> 136.045995 | CA157: نقطه تقاطع | CB157: b'10 | CC157: =(CD155-CD153+CC153*((CD154-CD153)/(CC154-CC153))-CC155*((CD156-CD155)/(CC156-CC155)))/(((CD154-CD153)/(CC154-CC153))-((CD156-CD155)/(CC156-CC155))) -> 28.30152411 | CD157: =CD153+(CC157-CC153)*((CD154-CD153)/(CC154-CC153)) -> 127.487108 | CI157: =BK395+AX114 -> 36.6238 | CJ157: =BL395 -> 121.7423141 | CK157: 13 | CL157: نقطه انتهایی زیر حلقه | CN157: =J338 -> 5 | CO157: =K338 -> 95.7 | CP157: d4 | CR157: =IF(CO158>CO154,CN158,CN154) -> 16.95396911 | CS157: =IF(CO158>CO154,CO158,CO154) -> 100.5 | CT157: 39 یا d5 | CV157: =IF(CO171>CO166,CN171,CN166) -> 26.7666 | CW157: =IF(CO171>CO166,CO171,CO166) -> 96.5 | CX157: 34 یا d2 | CZ157: =DT151 -> 24.57310558 | DA157: =DU151 -> 145.3003782 | DB157: 39 | DC157: 22b | DD157: =CZ155 -> 25.58896243 | DE157: =DA155 -> 132.1074351 | DF157: =DB155 -> 35 | DH157: =DX103 -> 35.89129835 | DI157: =DY103 -> 135.5582863 | DJ157: 41 | DK157: =DZ103 -> 18b | DP157: مولفه افقی | DQ157: مولفه عمودی | DR157: اسم نقطه | DT157: مولفه افقی | DU157: مولفه عمودی | DV157: اسم نقطه | DY157: مولفه افقی | DZ157: مولفه عمودی | EA157: اسم نقطه | EH157: =BD180 -> 32.23004 | EI157: =BE180 -> 72.37120297 | EJ157: شیفت49' … | EL157: =BS104 -> 17.60146911 | EM157: =BT104 -> 120.2 | EN157: =BU106 -> 30 | ET157: =BD177 -> 35.84414556 | EU157: =IF(AX152>0,BE177,EU160) -> 115.3873842 | EV157: 14 | EX157: =DG124-DH118 -> 29.07711451 | EY157: =DH124 -> 71.97560149 | EZ157: 49'm | FB157: 12.63548336 | FC157: 147.6515409 | FD157: a15 | FF157: =BK155 -> 26.7666 | FG157: =BL155 -> 79.4 | FH157: 38 | FN157: =DY165 -> 45.47536549 | FO157: =DZ165 -> 64.57910315 | FP157: 43''m | FT157: زانو | FX157: =-(DS252+AX99)+2*GC101 -> 5 | FY157: =DS251+AX98 -> 71.58 | FZ157: p11 | GB157: =-EP139-GK101 -> -6.306469112 | GC157: =EQ139 -> 71.58 | GD157: 52 | GF157: =-ET153-GK101 -> -7.471969112 | GG157: =EU153 -> 115.5705 | GH157: 39aa | GJ157: =-ED155-GK101 -> -9.425736756 | GK157: =EE155 -> 120.0875759 | GL157: شیفت b | GN157: =-EL155-GK101 -> -7.601469112 | GO157: =EM155 -> 120.2 | GP157: بالاتنه 5 | GT157: زانو | GZ157: =-AU247-GK101 -> -0.188677654 | HA157: =AV247 -> 150.0173517 | HB157: d5 | HD157: =-AU477-GK101 -> -8.510278241 | HE157: =AV477 -> 139.6575617 | HF157: g3 | HH157: =-CX280-GK101 -> 5 | HI157: =CY280 -> 96 | HJ157: s1 | HL157: =-DP487-GK101 -> -16.76385584 | HM157: =DQ487 -> 99.04768086 | HN157: β9
E158: زاویه سرشانه پشت با افق | F158: α2 | G158: =ATAN(G182/G181) -> 0.3231244659 | H158: =ATAN(H182/H181) -> 0.3174885999 | J158: (35 → 6) | K158: وصل | Z158: (24 →36) | AA158: وصل | AC158: شبیه ساز بعضی نقاط | AF158: =AR143 -> 3.339368512 | AG158: =AS143 -> 42.53229312 | AH158: 29 | AV158: =0.5*('متغیرها '!U70-'متغیرها '!U71)-AV156 -> 14.43486 | AW158: (40 → 41) | AX158: =0.5*(H118-H119)-AX156+'متغیرها '!C61*H120 -> 15.27607089 | BD158: =AZ125+'متغیرها '!C55 -> 33.24992943 | BE158: =BA125 -> 140.0429161 | BF158: شیفت22 | BG158: =BG156 -> 26.8 | BH158: (1 → 43) | BI158: =BI156+0.25*'متغیرها '!C131*H103 -> 27.32244 | BK158: =0+BI98 -> 15 | BL158: =BI148+BI97 -> 96.5 | BM158: 33 | BO158: =BK101+'متغیرها '!C56 -> 28.67693565 | BP158: =BL101+'متغیرها '!C57 -> 130.9189297 | BQ158: 22شیفت | CI158: α4 | CJ158: ='متغیرها '!B245 -> 0.2782010298 | CK158: زاویه سرشانه با افق | CN158: =J340 -> 16.64700615 | CO158: =K340 -> 92.82 | CP158: d5 | CR158: =CN158 -> 16.64700615 | CS158: =CO158 -> 92.82 | CT158: d5 | CV158: =CN171 -> 27.1820386 | CW158: =CO171 -> 88.82 | CX158: d2 | CZ158: =IF('متغیرها '!C119=1,DT124,AZ115) -> 29.53829458 | DA158: =IF('متغیرها '!C119=1,DU124,BA115) -> 128.1435042 | DB158: =DV124 -> 16g | DC158: 16 یا | DD158: =CZ175 -> 21.99459044 | DE158: =DA175 -> 128.6380764 | DF158: =DB175 -> 33 | DH158: =IF('متغیرها '!C119=1,DX124,BK112-DI161) -> 34.78553803 | DI158: =IF('متغیرها '!C119=1,DY124,BL112-DI162) -> 122.4708058 | DJ158: =DZ124 -> 12p | DK158: یا 12 | DL158: =DH155 -> 34.78491329 | DM158: =DI155 -> 122.4713615 | DN158: 37 | DP158: =BW114 -> 11.99553017 | DQ158: =BX114 -> 141.4427034 | DR158: e5 | DS158: یقه چرخیده | DU158: =DZ168 -> 4 | DV158: (a13→a23) | DW158: عرض برگرد لبه پیراهن | DY158: =DT336 -> 31.6916 | DZ158: =DU336 -> 59.3 | EA158: e215 | EB158: وسط | EF158: 27انحنا لبه روی خط مرکزی جلو پیراهن | EH158: =BD183 -> 29.507036 | EI158: 72.29208268 | EJ158: شیفت50''' | EL158: =BS112 -> 3.32006 | EM158: =BT112 -> 120.2 | EN158: =BU112 -> 4' | ER158: ساسون کمر | ET158: =ET160+0.5*(ET157-ET160) -> 34.68459278 | EU158: =IF(AX152>0,EU160+0.65*(EU157-EU160),EU160) -> 111.3742208 | FB158: 12.51612786 | FC158: 143.7035391 | FD158: e7 | FF158: =BO165 -> 26.7666 | FG158: =BP165 -> 96.5 | FH158: 35 | FL158: خط پشت در پیراهن | FR158: =FR148 -> 15 | FS158: =BP178-(H106-H107) -> 41.1 | FT158: b'48 | GF158: =-ET154-GK101 -> -6.986344112 | GG158: =EU154 -> 111.138 | GH158: 39a | GJ158: =-ED156-GK101 -> -25.84414556 | GK158: =EE156 -> 115.3873842 | GL158: شیفت 14 | GR158: =-ET114-GK101 -> 5 | GS158: =EU114 -> 46.1 | GT158: g1 | GV158: =-CV190-GK101 -> 6.67994 | GW158: =CW190 -> 95.7 | GX158: 26'' | GZ158: =-AU248-GK101 -> 0.4981841114 | HA158: =AV248 -> 132.2186759 | HB158: d6 | HD158: =-AU478-GK101 -> -14.65620265 | HE158: =AV478 -> 137.9022389 | HF158: g5 | HL158: =-DP488-GK101 -> -6.511960483 | HM158: =DQ488 -> 85.5738582 | HN158: β'9
E159: زاویه خط عمود با وسط ساسون سرشانه پشت | F159: α3 | G159: =ATAN(G177/G178) -> 0.1825425141 | H159: =ATAN(H177/H178) -> 0.1865562338 | J159: (35 → 36) | K159: =IF((6*G169)<G171,6*G169,G171) -> 21.85395555 | L159: =IF((6*H169)<H171,6*H169,H171) -> 20.05690866 | Q159: =AN143 -> 6.681002542 | R159: =AO143 -> 46.34676563 | S159: 29 | Z159: (24 → 27) | AA159: وصل | AC159: =Y115-Y135 -> 19 | AD159: =Y130+Y136 -> 26.34581574 | AE159: 18 | AF159: =AR144 -> 3.339368512 | AG159: =AS144 -> 40.17575119 | AH159: 30 | AV159: =AV155+L116-L119 -> 74.1 | AW159: (1 → 42) | AX159: =AX155+K116-K119 -> 46.65 | AZ159: ساسون کمر | BD159: =AZ136+'متغیرها '!C55 -> 28.8417695 | BE159: =BA136 -> 143.0828639 | BF159: شیفت34 | BG159: =2*BG144-0.5*BG150 -> 0.4 | BH159: (43 → 43') | BI159: ='متغیرها '!C68*H127+Y128+0.5*(H106-H104) -> -1.605295368 | BK159: =BI149+BI98 -> 26.7666 | BL159: =BI148+BI97 -> 96.5 | BM159: 34 | BS159: =(BT172-BT171) -> 0.392770297 | BT159: زاویه چرخش کامل به ساسون زیر بغل | BW159: حلقه آستین با چرخش کامل به ساسون زیر بغل | CA159: به دست آوردن مختصات قرینه یک نقطه نسبت به خط تقارن با داشتن دونقطه از خط تقارن | CG159: آستر کت پشت | CJ159: =H167 -> 12.19002134 | CK159: W | CN159: =J352 -> 18.55593207 | CO159: =K352 -> 92.82 | CP159: dd5 | CZ159: =IF('متغیرها '!C119=1,DT125,AZ121) -> 30.79946478 | DA159: =IF('متغیرها '!C119=1,DU125,BA121) -> 123.1789602 | DB159: =DV125 -> 20g | DC159: یا 20 | DD159: =CZ173 -> 18.95934298 | DE159: =DA173 -> 123.7809741 | DF159: =DB173 -> 23 | DH159: =BK114 -> 40.81170652 | DI159: =BL114 -> 112.4727658 | DJ159: شیفت 9 | DL159: =DH177 -> 31.49740484 | DM159: =DI177 -> 120.2174238 | DN159: 35 | DP159: =DC126 -> 31.42867068 | DQ159: =DD126 -> 126.8208375 | DR159: b'8s | DS159: نقطه حلقه آستین | DY159: =DT340 -> 31.6916 | DZ159: =DU340 -> 66.58 | EA159: e216 | EB159: وسط | ED159: =BS116 -> 3.32006 | EE159: =BT116 -> 114.42 | EF159: e1 | EH159: 26.103281 | EI159: 72.01516164 | EJ159: شیفت50'' | EP159: =AZ161 -> 17.60146911 | EQ159: =BA161 -> 118.23 | ER159: 43 | ET159: =ET160+0.1*(ET157-ET160) -> 33.75695056 | EU159: =IF(AX152>0,EU160+0.3*(EU157-EU160),EU160) -> 107.3610573 | EZ159: 105 لبه برگرد پایین ترک در پهلو جدا | FJ159: =CE108 -> 15 | FK159: =CF108 -> 136.4139132 | FL159: 24 | FN159: =DY185 -> 21.8416 | FO159: =DZ185 -> 70.58 | FP159: a''26 | FR159: =FR149 -> 27.6916 | FS159: =FS158 -> 41.1 | FT159: b'49 | FZ159: 58' | GB159: =-EP141-GK101 -> -21.78453904 | GC159: =EQ141 -> 87.37935248 | GD159: 47''s | GF159: =-ET155-GK101 -> -6.953969112 | GG159: =EU155 -> 100.5 | GH159: 39 | GN159: =-EL155-GK101 -> -7.601469112 | GO159: =EM155 -> 120.2 | GP159: بالاتنه 5 | GR159: =-ET115-GK101 -> -6.306469112 | GS159: =EU115 -> 46.1 | GT159: g52 | GV159: =-CV193-GK101 -> 6.67994 | GW159: =CW193 -> 114.42 | GX159: e1 | GZ159: =-AU249-GK101 -> 2.352710878 | HA159: =AV249 -> 120.6495366 | HB159: d7 | HH159: =-CX280-GK101 -> 5 | HI159: =CY280 -> 96 | HJ159: s1 | HL159: =-DP489-GK101 -> -8.163750376 | HM159: =DQ489 -> 74.15461409 | HN159: β15
E160: زاویه سرشانه جلو با افق | F160: α4 | G160: =ATAN(G180/G179) -> 0.3387143381 | H160: =ATAN(H180/H179) -> 0.3363170957 | J160: (32 → 36) | K160: وصل | N160: شبیه ساز بعضی نقاط | Q160: =AN144 -> 6.681002542 | R160: =AO144 -> 41.10805476 | S160: 30 | Z160: (24 → 37) | AA160: =0.5*(G170+G167*(1-'متغیرها '!C76+'متغیرها '!C78)) -> 6.124801667 | AC160: =Y118 -> 11.55 | AD160: =Y116+Y119 -> 24.62111111 | AE160: 7 | AV160: =L117 -> 12.41264 | AW160: (42 → 43) | AX160: =K117 -> 12.60146911 | AZ160: =0+AX99 -> 5 | BA160: =AX159+AX98 -> 118.23 | BB160: 42 | BD160: =AZ104+'متغیرها '!C55 -> 17.60146911 | BE160: =BA104 -> 122.17 | BF160: شیفت5 | BH160: (1 → 41') | BI160: =0.5*BI158 -> 13.66122 | BO160: =BK101 -> 28.67693565 | BP160: =BL101 -> 130.9189297 | BQ160: 22 | BS160: =AZ99-BT130 -> 35.84414556 | BT160: =BA99 -> 119.8692642 | BU160: 12 | BV160: نقطه حلقه آستین | BW160: =BS104+SQRT(POWER(BS160-BS104,2)+POWER(BT160-BT104,2))*SIN(IF(BT160=BT104,RADIANS(90)-BS159,ATAN((BS160-BS104)/ABS(BT160-BT104))+IF(BT160>BT104,-1,1)*BS159)) -> 34.58159617 | BX160: =BT104+IF(BT160<BT104,-1,1)*SQRT(POWER(BS160-BS104,2)+POWER(BT160-BT104,2))*COS(IF(BT160=BT104,RADIANS(90)-BS159,ATAN((BS160-BS104)/ABS(BT160-BT104))+IF(BT160>BT104,-1,1)*BS159)) -> 126.8768193 | BY160: b4 | CA160: مولفه افقی | CB160: مولفه عمودی | CC160: اسم نقطه | CJ160: نقاط شبیه ساز حلقه آستین جلو بدون ساسون سرشانه | CN160: =J354 -> 32.77837333 | CO160: =K354 -> 94.32120297 | CP160: d3 | CR160: =CN158 -> 16.64700615 | CS160: =CO158 -> 92.82 | CT160: d5 | CV160: =CN171 -> 27.1820386 | CW160: =CO171 -> 88.82 | CX160: d2 | DA160: ='متغیرها '!C55 -> 0 | DB160: شیفت افقی | DD160: =CZ154 -> 17.60146911 | DE160: =DA154 -> 118.23 | DF160: =DB154 -> 43 | DH160: =BO170 -> 39.08790652 | DI160: =BP170 -> 107.9908858 | DJ160: شیفت 10 | DL160: =DH176 -> 28.29007953 | DM160: =DI176 -> 117.0619111 | DN160: 33 | DP160: =DC124 -> 35.63035591 | DQ160: =DD124 -> 109.2879978 | DR160: 41m | DS160: کمر | DT160: نقاط خروجی برگرد لبه پیراهن در رویه کت | DY160: =DT324 -> 27.6916 | DZ160: =DU324 -> 66.58 | EA160: e21 | EB160: وسط | ED160: =CA184 -> 3.32006 | EE160: =CB184 -> 100.7352048 | EF160: 8n | EH160: 22.699526 | EI160: 71.73824059 | EJ160: شیفت50' | EL160: =BW108 -> 5 | EM160: =BX108 -> 136.3693439 | EN160: چرخیده 26 | EP160: =AZ167 -> 18.24896911 | EQ160: =BA167 -> 100.5 | ER160: 40 | ET160: =BD178 -> 33.52504 | EU160: =BE178 -> 103.921203 | EV160: 41 | EX160: =DT169 -> 18.89646911 | EY160: =DU169 -> 71.58 | EZ160: =DV169 -> شیفت53 | FF160: =BO165 -> 26.7666 | FG160: =BP165 -> 96.5 | FH160: 35 | FJ160: =BK167 -> 15 | FK160: =BL167 -> 128.45 | FL160: 45 | FP160: خط ترک وسط کت | FX160: =-(AK240+AC244)+2*GC101 -> -17.68433957 | FY160: =AK239+AD244 -> 150.7109329 | FZ160: b2 | GB160: =-EP142-GK101 -> -14.98580723 | GC160: =EQ142 -> 102.0979292 | GD160: 40s | GL160: 27' | GN160: =-EL158-GK101 -> 6.67994 | GO160: =EM158 -> 120.2 | GP160: 4' | GZ160: =-AU250-GK101 -> 6.67994 | HA160: =AV250 -> 114.42 | HB160: e1 | HF160: 43' | HH160: =-CX283-GK101 -> 5 | HI160: =CY283 -> 120.2 | HJ160: 4 | HL160: =-DP490-GK101 -> -16.1706834 | HM160: =DQ490 -> 75.11196754 | HN160: β'15
E161: زاویه خط عمود با وسط ساسون سرشانه جلو | F161: α5 | G161: =ATAN(G175/G176) -> 0.274927552 | H161: =ATAN(H175/H176) -> 0.2979411795 | J161: (34 → 36) | K161: وصل | N161: =L115-L132 -> 23.8 | O161: =L127+L133 -> 28.04231408 | P161: 16 | U161: رسم الگو واقعی جلو بالاتنه | Z161: (37 → 7) | AA161: وصل | AC161: =Y146+Y153 -> 14.00221007 | AD161: =Y114-Y154 -> 41.33084869 | AE161: 34 | AF161: =AR145 -> 6.261315961 | AG161: =AS145 -> 42.53229312 | AH161: 31 | AJ161: رسم الگو واقعی پشت بالاتنه | AV161: =IF(('متغیرها '!U54-'متغیرها '!U55)>('متغیرها '!U52-'متغیرها '!U53),0.5*('متغیرها '!U54-'متغیرها '!U55),0.5*('متغیرها '!U52-'متغیرها '!U53)) -> 26.2 | AW161: (1 → 44) | AX161: =AX156+AX157+AX158+'متغیرها '!C128*(IF((H102-H103)>(H100-H101),0.5*(H102-H103),0.5*(H100-H101))+'متغیرها '!C62*H120-AX156-AX158)-IF('متغیرها '!C125=1,2*AX150,AX157)*IF('متغیرها '!C128<'متغیرها '!C98,'متغیرها '!C128/'متغیرها '!C98,1) -> 27.23004 | AZ161: =AX160+AX99 -> 17.60146911 | BA161: =AX159+AX98 -> 118.23 | BB161: 43 | BH161: (43' → 43'') | BI161: =BI159*((BI158-BI156)/BI157) -> 0 | BK161: =BK180 -> 26.7666 | BL161: =BL180 -> 96.5 | BM161: 35 شیفت | BO161: =BK106 -> 29.19322562 | BP161: =BL106 -> 137.7458625 | BQ161: 30 | BS161: =AZ98-BT130 -> 32.69122007 | BT161: =BA98 -> 121.1104002 | BU161: 18 | BV161: نقطه حلقه آستین | BW161: =BS104+SQRT(POWER(BS161-BS104,2)+POWER(BT161-BT104,2))*SIN(IF(BT161=BT104,RADIANS(90)-BS159,ATAN((BS161-BS104)/ABS(BT161-BT104))+IF(BT161>BT104,-1,1)*BS159)) -> 31.19371493 | BX161: =BT104+IF(BT161<BT104,-1,1)*SQRT(POWER(BS161-BS104,2)+POWER(BT161-BT104,2))*COS(IF(BT161=BT104,RADIANS(90)-BS159,ATAN((BS161-BS104)/ABS(BT161-BT104))+IF(BT161>BT104,-1,1)*BS159)) -> 126.8166658 | BY161: b8 | CA161: =DT328 -> 27.6916 | CB161: =DU328 -> 59.3 | CC161: e25 | CD161: نقطه اول خط تقارن | CE161: نقاط قرینه شده نسبت به خط تقارن | CJ161: مولفه افقی | CK161: مولفه عمودی | CL161: اسم نقطه | CN161: =BD97 -> 3.32006 | CO161: =CO157 -> 95.7 | CP161: 26'' | CR161: =IF(CO177=1,CN163,CN157) -> 5 | CS161: =IF(CO177=1,CO163,CO157) -> 95.7 | CT161: _ U5 | CV161: =CN170 -> 15 | CW161: =CO170 -> 91.7 | CX161: d1 | DB161: محاسبات | DI161: ='متغیرها '!C56 -> 0 | DJ161: شیفت افقی | DL161: =DH154 -> 26.7666 | DM161: =DI154 -> 113.4556109 | DN161: 40 | DP161: =EX105-'متغیرها '!C55 -> 29.07711451 | DQ161: =EY105 -> 71.97560149 | DR161: 49'm | DS161: لبه پایین پیراهن | DT161: مولفه افقی | DU161: مولفه عمودی | DV161: اسم نقطه | DY161: =BO176 -> 15 | DZ161: =BP176 -> 66.58 | EA161: 47 | EB161: وسط | ED161: =CA183 -> 5.345939821 | EE161: =CB183 -> 82.95052985 | EF161: 7n | EH161: 18.61502 | EI161: 71.58 | EJ161: شیفت50 | EL161: =BW111 -> 5.00000004 | EM161: =BX111 -> 120.201 | EN161: چرخیده 4 | EX161: =DT167 -> 18.89646911 | EY161: =DU167 -> 67.58 | EZ161: =DV167 -> شیفتa53 | FF161: =BK154 -> 26.7666 | FG161: =BL154 -> 113.4556109 | FH161: 40 | FN161: =DK103 -> 34.78553803 | FO161: =DL103 -> 122.4708058 | FP161: =DM103 -> شیفت12p | FR161: =FR151 -> 25.8416 | FS161: =FS158+'متغیرها '!C57 -> 41.1 | FT161: b'50 | FX161: =-(AC240)+2*GC101 -> -14.25469653 | FY161: =AD240 -> 143.7326593 | FZ161: =AE240 -> 22f | GF161: =-ET157-GK101 -> -25.84414556 | GG161: =EU157 -> 115.3873842 | GH161: 14 | GJ161: =-ED159-GK101 -> 6.67994 | GK161: =EE159 -> 114.42 | GL161: e1 | GR161: =-ET117-GK101 -> -8.896469112 | GS161: =EU117 -> 46.1 | GT161: g53 | GV161: =-CV193-GK101 -> 6.67994 | GW161: =CW193 -> 114.42 | GX161: e1 | HD161: =-BQ478-GK101 -> -15.71513527 | HE161: =BR478 -> 131.6593124 | HF161: g3 | HL161: =-DP491-GK101 -> -22.32510337 | HM161: =DQ491 -> 83.76827885 | HN161: β3
E162: ربع زاویه ساسون کمر جلو بالاتنه | F162: α6 | G162: =0.5*ATAN(G152/(K116-K119)) -> 0.03645528672 | H162: =0.5*ATAN(H152/(L116-L119)) -> 0.03282079928 | J162: (1 → 37) | K162: =-'متغیرها '!C66*(2*H129+H130) -> -1.67994 | N162: =L117 -> 12.41264 | O162: =L116+L118 -> 23.64 | P162: 6 | Q162: =AN136 -> 28.24992943 | R162: =AO136 -> 39.5429161 | S162: 22 | Z162: (37 → 38) | AA162: =4*G170 -> 6.16055623 | AC162: =Y115-Y135+Y141-Y156 -> 15.56892435 | AD162: =Y130+Y136+Y142+Y157 -> 41.01475602 | AE162: 36 | AF162: =AR146 -> 6.261315961 | AG162: =AS146 -> 40.96126517 | AH162: 32 | AV162: =AV155-1*(I105-'متغیرها '!U60)+L125 -> 39.32120297 | AW162: (44→ 45) | AX162: =AX155-'متغیرها '!C128*(H105-H108)+L125 -> 15.69120297 | AZ162: =AX164+AX99 -> 17.60146911 | BA162: =AX163+AX98 -> 84.3 | BB162: 47 | BD162: =AZ104 -> 17.60146911 | BE162: =BA104 -> 122.17 | BF162: 5 | BK162: =BI149+BI150+BI151+BI98+'متغیرها '!C56 -> 38.27244 | BL162: =BI148+BI97+Y128+'متغیرها '!C57 -> 96.52470463 | BM162: شیفت36 | BO162: =BK104 -> 23.34842128 | BP162: =BL104 -> 139.0322931 | BQ162: 23 | BS162: =AZ97-BT130 -> 30.79946478 | BT162: =BA97 -> 123.1789602 | BU162: 20 | BV162: نقطه حلقه آستین | BW162: =BS104+SQRT(POWER(BS162-BS104,2)+POWER(BT162-BT104,2))*SIN(IF(BT162=BT104,RADIANS(90)-BS159,ATAN((BS162-BS104)/ABS(BT162-BT104))+IF(BT162>BT104,-1,1)*BS159)) -> 28.65427276 | BX162: =BT104+IF(BT162<BT104,-1,1)*SQRT(POWER(BS162-BS104,2)+POWER(BT162-BT104,2))*COS(IF(BT162=BT104,RADIANS(90)-BS159,ATAN((BS162-BS104)/ABS(BT162-BT104))+IF(BT162>BT104,-1,1)*BS159)) -> 128.0036418 | BY162: b10 | CA162: =DT324 -> 27.6916 | CB162: =DU324 -> 66.58 | CC162: e21 | CD162: نقطه دوم خط تقارن | CE162: مولفه افقی | CF162: مولفه عمودی | CG162: اسم نقطه | CJ162: =CI155+CJ159*COS(CJ158) -> 24.76212768 | CK162: =CJ155-CJ159*SIN(CJ158) -> 143.5522996 | CL162: 22f | CO162: ='متغیرها '!C55 -> 0 | CP162: شیفت افقی تکه پهلو | CZ162: (1 → 6) | DA162: =DA154+0.4*(DA158-DA154) -> 122.1954017 | DC162: شیفت | DD162: =CZ154+DA160 -> 17.60146911 | DE162: =DA154 -> 118.23 | DF162: =DB154 -> 43 | DI162: ='متغیرها '!C57 -> 0 | DJ162: شیفت عمودی | DP162: =BD97 -> 3.32006 | DQ162: =BE97 -> 71.58 | DR162: 1' | DT162: =DP170 -> 16.01437637 | DU162: =DQ170-DU158 -> 67.58 | DV162: a'5 | DY162: =BK170 -> 15 | DZ162: =BL170 -> 79.4 | EA162: 48 | EB162: وسط | ED162: =CA182 -> 8.72240619 | EE162: =CB182 -> 75.37017662 | EF162: 6n | EH162: =AZ181 -> 18.89646911 | EI162: =BA181 -> 71.58 | EJ162: شیفت53 | EP162: =AZ167 -> 18.24896911 | EQ162: =BA167 -> 100.5 | ER162: 40 | FJ162: =BK167 -> 15 | FK162: =BL167 -> 128.45 | FL162: 45 | FN162: =DK112 -> 26.7666 | FO162: =DL112 -> 96.5 | FP162: =DM112 -> شیفت35 | FR162: =FR152 -> 42.32244 | FS162: =BL162-(H105-H107) -> 41.62470463 | FT162: b'42 | FZ162: انحنا | GB162: =-EP144-GK101 -> -14.98580723 | GC162: =EQ144 -> 102.0979292 | GD162: 40s | GF162: =-ET158-GK101 -> -24.68459278 | GG162: =EU158 -> 111.3742208 | GJ162: =-ED160-GK101 -> 6.67994 | GK162: =EE160 -> 100.7352048 | GL162: 8n | GN162: =-EL160-GK101 -> 5 | GO162: =EM160 -> 136.3693439 | GP162: چرخیده26 | GR162: =-ET118-GK101 -> -22.23004 | GS162: =EU118 -> 49.02120297 | GT162: g49 | GV162: =-CV196-GK101 -> 5 | GW162: =CW196 -> 114.42 | GX162: e'1 | GZ162: =-AU252-GK101 -> -3.351253178 | HA162: =AV252 -> 146.8467656 | HB162: 25 | HD162: =-BQ479-GK101 -> 5 | HE162: =BR479 -> 131.6593124 | HF162: g1 | HH162: =-CX283-GK101 -> 5 | HI162: =CY283 -> 120.2 | HJ162: 4
E163: شعاع یقه | F163: V1 | G163: =0.46*G164 -> 8.0408 | H163: =0.46*H164 -> 8.0408 | J163: (26 → 38) | K163: =K162 -> -1.67994 | N163: =L143+L150 -> 14.08235551 | O163: =L114-L151 -> 45.5945423 | P163: 32 | Q163: =AN139 -> 8.351253178 | R163: =AO139 -> 46.34676563 | S163: 25 | Z163: (36 →38) | AA163: وصل | AC163: =Y118 -> 11.55 | AD163: =Y116 -> 16.3 | AE163: 6 | AV163: =I104-I107-1*(I104-I108) -> 36.4 | AW163: (1 → 46) | AX163: =H104-H114-'متغیرها '!C98*(H104-H108) -> 12.72 | AZ163: =0+AX99 -> 5 | BA163: =AX163+AX98 -> 84.3 | BB163: 46 | BD163: =AZ138 -> 19.24986356 | BE163: =BA138 -> 145.8353126 | BF163: 32 | BG163: =BG141 -> 0 | BH163: (33 → 44) | BI163: =BI141 -> 0 | BO163: خطوط برش ساسون کمر | BS163: =AZ96-BT130 -> 29.53829458 | BT163: =BA96 -> 128.1435042 | BU163: 16 | BV163: نقطه حلقه آستین | BW163: =BS104+SQRT(POWER(BS163-BS104,2)+POWER(BT163-BT104,2))*SIN(ATAN((BS163-BS104)/(BT163-BT104))-BS159) -> 25.58896243 | BX163: =BT104+SQRT(POWER(BS163-BS104,2)+POWER(BT163-BT104,2))*COS(ATAN((BS163-BS104)/(BT163-BT104))-BS159) -> 132.1074351 | BY163: b6 | CA163: =DT336 -> 31.6916 | CB163: =DU336 -> 59.3 | CC163: e215 | CD163: نقطه قرینه خواسته | CE163: =CA163+2*(SIN(ATAN((CA162-CA161)/(CB162-CB161)))*(CB163-CB161)+COS(ATAN((CA162-CA161)/(CB162-CB161)))*(CA161-CA163))*COS(ATAN((CA162-CA161)/(CB162-CB161))) -> 23.6916 | CF163: =CB163-2*(SIN(ATAN((CA162-CA161)/(CB162-CB161)))*(CB163-CB161)+COS(ATAN((CA162-CA161)/(CB162-CB161)))*(CA161-CA163))*SIN(ATAN((CA162-CA161)/(CB162-CB161))) -> 59.3 | CG163: e'215 | CJ163: =CJ164+IF(CJ162>CJ164,0.3,0.7)*(CJ162-CJ164) -> 24.75660849 | CK163: =CK164+0.5*(CK162-CK164) -> 137.8727973 | CL163: 24f | CN163: =J341 -> 9.8 | CO163: =G338-I345 -> 95.7 | CP163: _u5 | CR163: =IF(CO177=1,CN163,CN157) -> 5 | CS163: =IF(CO177=1,CO163,CO157) -> 95.7 | CT163: _ U5 | CV163: =BK179 -> 26.7666 | CW163: =BL179 -> 113.4556109 | CX163: شیفت 40 | CZ163: (6 → 21) | DA163: =CZ154+0.17*(CZ158-CZ154) -> 19.63072944 | DC163: شیفت | DD163: =CZ172+DA160 -> 19.63072944 | DE163: =DA172 -> 122.1954017 | DF163: =DB172 -> 21 | DJ163: محاسبات | DL163: =DH155 -> 34.78491329 | DM163: 122.4713615 | DN163: 37 | DP163: =CA181 -> 13.70918729 | DQ163: =CB181 -> 71.58 | DR163: 5n | DT163: =DP161 -> 29.07711451 | DU163: =DQ161-DU158 -> 67.97560149 | DV163: a''5 | DY163: =EE341 -> 21.8416 | DZ163: =EF341 -> 66.58 | EA163: e216 | EB163: پهلو | ED163: =CA181 -> 13.70918729 | EE163: =CB181 -> 71.58 | EF163: 5n | EH163: =BD150 -> 5 | EI163: =BE150 -> 71.58 | EJ163: 1 | EP163: =AZ162 -> 17.60146911 | EQ163: =BA162 -> 84.3 | ER163: 47 | EX163: =DT167 -> 18.89646911 | EY163: 67.58 | EZ163: شیفتa53 | FF163: =BO176 -> 15 | FG163: =BP176 -> 66.58 | FH163: 47 | FJ163: =BO178 -> 15 | FK163: =BP178 -> 96.5 | FL163: 44 | FT163: سینه | FX163: =FX160 -> -17.68433957 | FY163: =FY160 -> 150.7109329 | FZ163: b2 | GB163: =-EP145-GK101 -> -7.601469112 | GC163: =EQ145 -> 118.23 | GD163: 43s | GF163: =-ET159-GK101 -> -23.75695056 | GG163: =EU159 -> 107.3610573 | GJ163: =-ED161-GK101 -> 4.654060179 | GK163: 82.95052985 | GL163: 7n | GN163: =-EL161-GK101 -> 4.99999996 | GO163: =EM161 -> 120.201 | GP163: چرخیده4 | GT163: سینه | GZ163: =-AU253-GK101 -> -8.658838925 | HA163: =AV253 -> 136.8617924 | HB163: d9 | HH163: =-CX286-GK101 -> 5 | HI163: =CY286 -> 136.3693439 | HJ163: 26 چرخیده
E164: نوار گردن از پشت | F164: V2 | G164: =0.38*H128 -> 17.48 | H164: =0.38*H128 -> 17.48 | N164: =L115-L132+L138-L153 -> 23.52799481 | O164: =L127+L133+L139+L154 -> 42.66571576 | P164: 34 | Z164: (34 → 38) | AA164: وصل | AC164: =Y118 -> 11.55 | AD164: =Y116-Y120 -> 10.441 | AE164: 8 | AF164: =AR138 -> 20.60309459 | AG164: =AS138 -> 38.53231669 | AH164: 24 | AV164: =AV160 -> 12.41264 | AW164: (46 → 47) | AX164: =AX160 -> 12.60146911 | BD164: =AZ140 -> 13.35125318 | BE164: =BA140 -> 146.8467656 | BF164: 25 | BG164: =Y117 -> 31.95 | BH164: (33→45) | BI164: =AA117 -> 31.95 | BK164: =BI156+BI98+'متغیرها '!C56 -> 42.32244 | BL164: =0+BI97+'متغیرها '!C57 -> 66.58 | BM164: شیفت41 | BO164: =BK154 -> 26.7666 | BP164: =BL154 -> 113.4556109 | BQ164: 40 | BS164: =AZ95-BT130 -> 30.65178504 | BT164: =BA95 -> 134.0932101 | BU164: 24 | BV164: نقطه حلقه آستین | BW164: =BS104+SQRT(POWER(BS164-BS104,2)+POWER(BT164-BT104,2))*SIN(ATAN((BS164-BS104)/(BT164-BT104))-BS159) -> 24.34041777 | BX164: =BT104+SQRT(POWER(BS164-BS104,2)+POWER(BT164-BT104,2))*COS(ATAN((BS164-BS104)/(BT164-BT104))-BS159) -> 138.0302721 | BY164: b12 | CJ164: =CI154 -> 24.75424312 | CK164: =CJ154 -> 132.1932949 | CL164: 16f | CN164: بعضی نقاط ورودی پشت | CR164: =CN157 -> 5 | CS164: =CO157 -> 95.7 | CT164: d4 | CV164: =IF(CO172>CO167,CN172,CN167) -> 26.7666 | CW164: =IF(CO172>CO167,CO172,CO167) -> 96.5 | CX164: شیفت35 یا dd2 | CZ164: (1 → 22) | DA164: =DA154+0.4*(DA155-DA154) -> 123.7809741 | DC164: شیفت | DD164: =CZ174+DA160 -> 24.16672312 | DE164: =DA174 -> 125.6651281 | DF164: =DB174 -> 31 | DH164: (1 → 7) | DI164: =DI154+0.4*(DI158-DI154) -> 117.0616888 | DL164: 35.04145278 | DM164: 129.3748131 | DN164: 39 | DP164: نقاط خروجی | DY164: =EE337 -> 21.8416 | DZ164: =EF337 -> 59.3 | EA164: e215 | EB164: پهلو | ED164: =AZ177 -> 16.30646911 | EE164: =BA177 -> 71.58 | EF164: 52 | EX164: 29.07711451 | EY164: 67.97560149 | EZ164: شیفتa''5 | FF164: =BO192 -> 25.8416 | FG164: =BP192 -> 66.58 | FH164: شیفت50 | FN164: =DO121 -> 34.59097934 | FO164: =DP121 -> 122.4713615 | FP164: =DQ121 -> b'6p | FR164: =BO178-(FS164-BP178)*(BO178-BK167)/(BL167-BP178) -> 15 | FS164: =BP178+(H127-H126) -> 112.8 | FT164: b44 | FX164: =-(AK242+AC244)+2*GC101 -> -6.078036592 | FY164: =AK241+AD244 -> 148.7168559 | FZ164: b4 | GD164: کمر | GF164: =-ET160-GK101 -> -23.52504 | GG164: =EU160 -> 103.921203 | GH164: 41 | GJ164: =-ED162-GK101 -> 1.27759381 | GK164: 75.37017662 | GL164: 6n | GR164: =-ET120-GK101 -> 5 | GS164: =EU120 -> 120.2 | GT164: g4 | GV164: =-CV196-GK101 -> 5 | GW164: =CW196 -> 114.42 | GX164: e'1 | GZ164: =-AU254-GK101 -> -16.08945897 | HA164: =AV254 -> 129.2732128 | HB164: d8 | HF164: 44'
E165: شعاع گودی یقه جلو | F165: V' | G165: =SQRT(0.2*(H128-G164)*(H128-G164)-G163*G163) -> 9.900687621 | H165: =SQRT(0.2*(H128-H164)*(H128-H164)-H163*H163) -> 9.900687621 | AF165: =AR141 -> 8.348421281 | AG165: =AS141 -> 42.53229312 | AH165: 27 | AW165: (1 → 48) | AX165: =AX161+0.25*'متغیرها '!C129*(H102-H103) -> 27.23004 | AZ165: =0+AX99 -> 5 | BA165: =AX155+AX98 -> 100.5 | BB165: 38 | BG165: =1*BG142-BG141 -> 0 | BH165: (1 → 46) | BI165: ='متغیرها '!C128*BI142-BI141 -> 0 | BK165: =BI156+BI98+'متغیرها '!C56 -> 42.32244 | BL165: =BI157+BI97+'متغیرها '!C57 -> 79.87470463 | BM165: شیفت42 | BO165: =BI149+BI150+BI98 -> 26.7666 | BP165: =BI148+BI97 -> 96.5 | BQ165: 35 | BS165: =AZ94-BT130 -> 33.24992943 | BT165: =BA94 -> 140.0429161 | BU165: 22 | BV165: نقطه حلقه آستین | BW165: =BS104+SQRT(POWER(BS165-BS104,2)+POWER(BT165-BT104,2))*SIN(ATAN((BS165-BS104)/(BT165-BT104))-BS159) -> 24.46347404 | BX165: =BT104+SQRT(POWER(BS165-BS104,2)+POWER(BT165-BT104,2))*COS(ATAN((BS165-BS104)/(BT165-BT104))-BS159) -> 144.5213593 | BY165: b16 | CA165: به دست آوردن مختصات قرینه یک نقطه نسبت به خط تقارن با داشتن دونقطه از خط تقارن | CG165: آستر کت پشت | CJ165: =CI156-0.85*(CI156-CJ164) -> 26.27610665 | CK165: =CJ156+0.5*(CK164-CJ156) -> 126.9678045 | CL165: 20f | CN165: مولفه افقی | CO165: مولفه عمودی | CP165: اسم نقطه | CZ165: (22→23) | DA165: =CZ154+0.17*(CZ155-CZ154) -> 18.95934298 | DC165: شیفت | DD165: =CZ158+DA160 -> 29.53829458 | DE165: =DA158 -> 128.1435042 | DF165: =DB158 -> 16g | DH165: (7→23) | DI165: =DH154+0.2*(DH158-DH154) -> 28.37038761 | DL165: 35.89129835 | DM165: 135.5582863 | DN165: 41 | DP165: مولفه افقی | DQ165: مولفه عمودی | DR165: اسم نقطه | DT165: نقاط خروجی برگرد لبه پیراهن ترک | DY165: =DO106 -> 45.47536549 | DZ165: =DP106 -> 64.57910315 | EA165: 43''m | EB165: پهلو | EP165: =AZ162 -> 17.60146911 | EQ165: =BA162 -> 84.3 | ER165: 47 | FJ165: =BO178 -> 15 | FK165: =BP178 -> 96.5 | FL165: 44 | FN165: =DK123 -> 26.7666 | FO165: =DL123 -> 96.5 | FP165: =DM123 -> 34 | FR165: =BK154 -> 26.7666 | FS165: =FS164 -> 112.8 | FT165: b40 | FX165: =-(AK244+AC244)+2*GC101 -> -1.242077016 | FY165: =AK243+AD244 -> 140.7405478 | FZ165: b6 | GB165: =-EP147-GK101 -> 5 | GC165: =EQ147 -> 100.5 | GD165: 38 | GJ165: =-ED163-GK101 -> -3.709187289 | GK165: 71.58 | GL165: 5n | GP165: 40' | GR165: =-ET121-GK101 -> -7.601469112 | GS165: =EU121 -> 120.2 | GT165: g5 | GV165: =-CV199-GK101 -> 5 | GW165: =CW199 -> 95.7 | GX165: d4 | GZ165: =-AU255-GK101 -> -24.58159617 | HA165: =AV255 -> 126.8768193 | HB165: b4 | HD165: =-P479-GK101 -> 5 | HE165: =Q479 -> 131.6593124 | HF165: g1
E166: شعاع گودی یقه پشت | F166: V'' | G166: =SQRT(0.23*G164*G164-G163*G163) -> 2.371102562 | H166: =SQRT(0.23*H164*H164-H163*H163) -> 2.371102562 | AW166: (48 → 49) | AX166: ='متغیرها '!C68*H127+L125-0.5*(H106-H104) -> 0.7912029738 | AZ166: =AX156+AX99 -> 16.95396911 | BA166: =AX155+AX98 -> 100.5 | BB166: 39 | BD166: =BD160 -> 17.60146911 | BE166: =BE160 -> 122.17 | BF166: 5شیفت | BH166: (46 → 47) | BI166: =0.25*'متغیرها '!C132*H103 -> 0 | BO166: =BK155 -> 26.7666 | BP166: =BL155 -> 79.4 | BQ166: 38 | BS166: =BD159-BT130 -> 28.8417695 | BT166: =BE159 -> 143.0828639 | BU166: 34 | BV166: نقطه ساسون سرشانه | BW166: =BS104+SQRT(POWER(BS166-BS104,2)+POWER(BT166-BT104,2))*SIN(ATAN((BS166-BS104)/(BT166-BT104))-BS159) -> 19.2274478 | BX166: =BT104+SQRT(POWER(BS166-BS104,2)+POWER(BT166-BT104,2))*COS(ATAN((BS166-BS104)/(BT166-BT104))-BS159) -> 145.6426022 | BY166: 34 | CA166: مولفه افقی | CB166: مولفه عمودی | CC166: اسم نقطه | CJ166: =CI156-0.5*(CI156-CJ164) -> 29.82712156 | CK166: =CJ156+0.15*(CK164-CJ156) -> 123.3099612 | CL166: 18f | CN166: =BK159 -> 26.7666 | CO166: =BL159 -> 96.5 | CP166: 34 | CR166: =AZ161+BT130 -> 17.60146911 | CS166: =BA161 -> 118.23 | CT166: شیفت 43 | CV166: =IF(CO172>CO167,CN172,CN167) -> 26.7666 | CW166: =IF(CO172>CO167,CO172,CO167) -> 96.5 | CX166: شیفت35 یا dd2 | CZ166: (1 → 24) | DA166: =DA154+0.75*(DA158-DA154) -> 125.6651281 | DH166: (1→ 24) | DI166: =DI154+0.8*(DI158-DI154) -> 120.6677668 | DP166: =DP160-DT171+0.8*(DP159-DP160) -> 32.26900772 | DQ166: =DQ160+0.8*(DQ159-DQ160) -> 123.3142696 | DR166: a1 | DT166: مولفه افقی | DU166: مولفه عمودی | DV166: اسم نقطه | DY166: =DT328 -> 27.6916 | DZ166: =DU328 -> 59.3 | EA166: e25 | EB166: وسط | EF166: 111انحنا لبه پیراهن بدون ترک روی خط مرکزی جلو | EP166: =AZ166 -> 16.95396911 | EQ166: =BA166 -> 100.5 | ER166: 39 | EX166: =DT168 -> 29.07711451 | EY166: =DU168 -> 67.97560149 | EZ166: =DV168 -> شیفتa''5 | FJ166: =BK170 -> 15 | FK166: =BL170 -> 79.4 | FL166: 48 | FX166: =-(AC242)+2*GC101 -> 1.659498729 | FY166: =AD242 -> 137.4170861 | FZ166: =AE242 -> 28 | GB166: =-EP148-GK101 -> -6.953969112 | GC166: =EQ148 -> 100.5 | GD166: 39 | GH166: 111' | GJ166: =-ED164-GK101 -> -6.306469112 | GK166: 71.58 | GL166: 52 | GN166: =-CD478-GK101 -> -14.38520563 | GO166: =CE478 -> 139.4296257 | GP166: g2 | HD166: =-P480-GK101 -> -8.26244199 | HE166: =Q480 -> 131.6593124 | HF166: g3
E167: اندازه سرشانه | F167: W | G167: =(1/COS(F137))*(0.5*G168-G163) -> 12.59936974 | H167: =(1/COS(F137))*(0.5*H168-H163) -> 12.19002134 | AW167: (1 → 50) | AX167: =0.5*AX165 -> 13.61502 | AZ167: =AX156+AX157+AX99 -> 18.24896911 | BA167: =AX155+AX98 -> 100.5 | BB167: 40 | BD167: =AZ161+'متغیرها '!C55 -> 17.60146911 | BE167: =BA161 -> 118.23 | BF167: شیفت43 | BG167: =BG157 -> 36.92470463 | BH167: (46 → 48) | BI167: =BI148-'متغیرها '!C128*(H106-H108) -> 12.82 | BK167: =0+BI98 -> 15 | BL167: =BI148+BI164+BI97 -> 128.45 | BM167: 45 | BO167: =BK159 -> 26.7666 | BP167: =BL159 -> 96.5 | BQ167: 34 | BS167: =AZ100-BT130 -> 37.56794556 | BT167: =BA100 -> 119.8692642 | BU167: 13 | BV167: نقطه حلقه آستین | BW167: =BS104+SQRT(POWER(BS167-BS104,2)+POWER(BT167-BT104,2))*SIN(IF(BT167=BT104,RADIANS(90)-BS159,ATAN((BS167-BS104)/ABS(BT167-BT104))+IF(BT167>BT104,-1,1)*BS159)) -> 36.17413272 | BX167: =BT104+IF(BT167<BT104,-1,1)*SQRT(POWER(BS167-BS104,2)+POWER(BT167-BT104,2))*COS(IF(BT167=BT104,RADIANS(90)-BS159,ATAN((BS167-BS104)/ABS(BT167-BT104))+IF(BT167>BT104,-1,1)*BS159)) -> 127.5366024 | BY167: b14 | CA167: =DT328 -> 27.6916 | CB167: =DU328 -> 59.3 | CC167: e25 | CD167: نقطه اول خط تقارن | CE167: نقاط قرینه شده نسبت به خط تقارن | CN167: =BK180 -> 26.7666 | CO167: =BL180 -> 96.5 | CP167: شیفت35 | CR167: =IF(CO159>CO155,CN159,CN155) -> 18.24896911 | CS167: =IF(CO159>CO155,CO159,CO155) -> 100.5 | CT167: شیفت40 یا dd5 | CV167: =CN172 -> 26.3511614 | CW167: =CO172 -> 88.82 | CX167: dd2 | CZ167: (24 → 31) | DA167: =CZ154+0.55*(CZ158-CZ154) -> 24.16672312 | DC167: شیفت | DD167: =BD156 -> 37.56794556 | DE167: =BE156 -> 119.8692642 | DF167: 13 | DH167: (24 → 25) | DI167: =DH154+0.65*(DH158-DH154) -> 31.97890972 | DK167: شیفت | DL167: =DH158+DI161 -> 34.78553803 | DM167: =DI158+DI162 -> 122.4708058 | DN167: 12p یا 12 | DP167: =DP160-DT171+0.5*(DP159-DP160) -> 33.52951329 | DQ167: =DQ160+0.5*(DQ159-DQ160) -> 118.0544176 | DR167: a2 | DT167: =DT169 -> 18.89646911 | DU167: =DU162 -> 67.58 | DV167: شیفتa53 | EA167: محاسبات | ED167: =BS116 -> 3.32006 | EE167: =BT116 -> 114.42 | EF167: e1 | EX167: =DT170 -> 29.07711451 | EY167: =DU170 -> 71.97560149 | EZ167: =DV170 -> شیفت49'm | FR167: =BK154+'متغیرها '!C56 -> 26.7666 | FS167: =FS164+'متغیرها '!C57 -> 112.8 | FT167: b35 | FX167: =GB147 -> 5 | FY167: =AD243 -> 136.3693439 | FZ167: =AE243 -> 26 | GF167: =-ED159-GK101 -> 6.67994 | GG167: =EE159 -> 114.42 | GH167: e1 | GN167: =-CD479-GK101 -> -1.681002542 | GO167: =CE479 -> 141.6080548 | GP167: 30 | GR167: =-ET123-GK101 -> -7.601469112 | GS167: =EU123 -> 120.2 | GT167: g'5
E168: فاصله بین دو سرشانه از پشت | F168: W1 | G168: =H129+0.6*G173 -> 40.001136 | H168: ='متغیرها '!U81+0.6*H173 -> 39.224 | AW168: (49 → 49') | AX168: =AX166*((AX165-AX161)/AX162) -> 0 | AZ168: =AX156+AX157+AX158+AX99 -> 33.52504 | BA168: =AX155+AX98+L125 -> 103.921203 | BB168: 41 | BD168: =AZ167+'متغیرها '!C55 -> 18.24896911 | BE168: =BA167 -> 100.5 | BF168: شیفت40 | BH168: (1 → 49') | BI168: =BI155-BI144+BI143 -> 12.6916 | BK168: =0+BI98 -> 15 | BL168: =0+BI97 -> 66.58 | BM168: 1 | BO168: =BK154 -> 26.7666 | BP168: =BL154 -> 113.4556109 | BQ168: 40 | BS168: =BD155-BT130 -> 35.84414556 | BT168: =BE155 -> 115.3873842 | BU168: 14 | BV168: نقطه زیر حلقه آستین | BW168: =BS104+SQRT(POWER(BS168-BS104,2)+POWER(BT168-BT104,2))*SIN(IF(BT168=BT104,RADIANS(90)-BS159,ATAN((BS168-BS104)/ABS(BT168-BT104))+IF(BT168>BT104,-1,1)*BS159)) -> 36.29703227 | BX168: =BT104+IF(BT168<BT104,-1,1)*SQRT(POWER(BS168-BS104,2)+POWER(BT168-BT104,2))*COS(IF(BT168=BT104,RADIANS(90)-BS159,ATAN((BS168-BS104)/ABS(BT168-BT104))+IF(BT168>BT104,-1,1)*BS159)) -> 122.7362242 | BY168: b2 | CA168: =DT324 -> 27.6916 | CB168: =DU324 -> 66.58 | CC168: e21 | CD168: نقطه دوم خط تقارن | CE168: مولفه افقی | CF168: مولفه عمودی | CG168: اسم نقطه | CI168: نقاط ورودی | CN168: =BK162 -> 38.27244 | CO168: =BL162 -> 96.52470463 | CP168: شیفت36 | CZ168: (1 → 32) | DA168: =DA154+0.75*(DA155-DA154) -> 128.6380764 | DC168: شیفت | DD168: =BS132+DA160 -> 35.84414556 | DE168: =BT132 -> 119.8692642 | DF168: 12 | DH168: (1 → 26) | DI168: =DI154+0.4*(DI155-DI154) -> 117.0619111 | DK168: شیفت | DL168: =IF('متغیرها '!C119=1,DX125,BK117-DI161)+DI161 -> 36.07624857 | DM168: =IF('متغیرها '!C119=1,DY125,BL117-DI162)+DI162 -> 116.4719818 | DN168: 16p یا 16 | DP168: =DP158+0.4*(DP166-DP158) -> 20.10492119 | DQ168: =DQ166+0.1*(DQ158-DQ166) -> 125.127113 | DR168: a3 | DT168: =DT163+DT171 -> 29.07711451 | DU168: =DU163 -> 67.97560149 | DV168: شیفتa''5 | DY168: (a13→a23) | DZ168: =SQRT(POWER(DY160-DY159,2)+POWER(DZ160-DZ159,2)) -> 4 | ED168: =CA190 -> 3.32006 | EE168: 100.7352048 | EF168: 8n' | EP168: =AZ166 -> 16.95396911 | EQ168: =BA166 -> 100.5 | ER168: 39 | FJ168: =BK170 -> 15 | FK168: =BL170 -> 79.4 | FL168: 48 | FR168: =CU104 -> 33.56104097 | FS168: =FS167 -> 112.8 | FT168: b36 | GD168: 34' | GF168: =-CA190-GK101 -> 6.67994 | GG168: =CB190 -> 100.7352048 | GH168: 8n' | GL168: 11' | GR168: =-ET124-GK101 -> -17.43592446 | GS168: =EU124 -> 120.2 | GT168: g''5 | HD168: =-P482-GK101 -> -8.25882394 | HE168: =Q482 -> 131.6595637 | HF168: g4
